Workbook

Sheet PSET Dashboard (hidden)
C2: OUTPUTS | J2: COST ASSUMPTIONS
C3: 2030 (R'm) | D3: Current costs | E3: Current Revenue | F3: Deficit (-) / Surplus (+) | J3: Sector | K3: Cost Scenario | L3: Enrolments
C4: Universities | D4: ='2a. Funding dashboard'!G15*'PSET Lookup'!$Q$25 -> 138221.2702 | E4: ='2a. Funding dashboard'!G14*'PSET Lookup'!$Q$25 -> 139157.312 | F4: =E4-D4 -> 936.0417844 | J4: Universities | K4: Mixed | L4: 1163139
C5: TVET | D5: ='PSET Lookup'!Q9*'PSET Lookup'!$Q$25 -> 255564.0251 | E5: ='PSET Lookup'!Q16*'PSET Lookup'!$Q$25 -> 45303.79565 | F5: =E5-D5 -> -210260.2295 | J5: TVET | K5: Mixed | L5: 2500000
C6: Community colleges | D6: =HLOOKUP(K6,Dashboard!$N$4:$P$11,2,0)*'PSET Lookup'!$Q$25 -> 16660.37793 | E6: =HLOOKUP(K6,'Funding Dashboard'!$M$4:$O$6,3,0)*'PSET Lookup'!$Q$25 -> 9626.417987 | F6: =E6-D6 -> -7033.959947 | J6: Community Colleges | K6: Mixed | L6: 750000
C7: NSFAS | D7: ='PSET Lookup'!AI12*'PSET Lookup'!$Q$25 -> 35320.80996 | E7: ='PSET Lookup'!AH12*'PSET Lookup'!$Q$25 -> 33097.09227 | F7: =E7-D7 -> -2223.717686
C8: Total | D8: =SUM(D4:D6) -> 410445.6733 | E8: =SUM(E4:E6) -> 194087.5256 | F8: =SUM(F4:F7) -> -218581.8653 | J8: Set all sectors to same cost scenario
C9: % of 2030 GDP | D9: =D8/('4g. GDP'!$R$2/1000*'PSET Lookup'!$Q$25) -> 0.04847083047 | E9: =E8/('4g. GDP'!$R$2/1000*'PSET Lookup'!$Q$25) -> 0.02292041107 | F9: =-F8/('4g. GDP'!$R$2/1000*'PSET Lookup'!$Q$25) -> 0.02581302527
C10: % of 2030 Tax Revenue | D10: =D8/('4g. GDP'!$R$3/1000*'PSET Lookup'!$Q$25) -> 0.1842997356 | E10: =E8/('4g. GDP'!$R$3/1000*'PSET Lookup'!$Q$25) -> 0.08714985197 | F10: =-F8/('4g. GDP'!$R$3/1000*'PSET Lookup'!$Q$25) -> 0.09814838508
C11: Note: NSFAS not included in total costs or total revenue, but is included in total deficit / surplus | J11: FUNDING ASSUMPTIONS
C12: New Infrastructure (2016-2030) | J12: Govt Funding Growth (real) | L12: 0.05
C13: Universities | D13: TVET | E13: Community colleges | F13: Total | J13: GDP Growth | L13: =L12 -> 0.05
C14: ='2b. Primary costing dashboard'!C19+'2b. Primary costing dashboard'!C20 -> -20257.23375 | D14: ='PSET Lookup'!Q23 -> 444250.9467 | E14: =HLOOKUP(K6,Dashboard!$N$4:$P$9,6,0) -> 6894.556892 | F14: =SUM(C14:E14) -> 430888.2699 | J14: Tax as a % of GDP (2030) | L14: 0.263
C17: Nominal

Sheet PSET Lookup (hidden)
P1: 2015 Subsidy | Q1: 6179574
C2: Current Costs | F2: Revenue - Historic | I2: Revenue - Projected | L2: Infrastructure | P2: 2030 Proj Sub | Q2: =Q1*(1.091)^15/1000 -> 22820.74384 | S2: NSFAS
A3: Row # | B3: Enrolments | C3: Status Quo | D3: Full Policy | E3: Mixed | F3: Status Quo | G3: Full Policy | H3: Mixed | I3: Status Quo | J3: Full Policy | K3: Mixed | L3: Status Quo | M3: Full Policy | N3: Mixed | P3: 2030 User | Q3: =Q1/1000*(1+6.2%+'PSET Dashboard'!$L$12)^15 -> 30375.98334 | S3: Status Quo | T3: Full Policy | U3: Mixed | W3: University NSFAS loan repayments | X3: University NSFAS grant requirement | Y3: TVET NSFAS grant requirement
A4: 1 | B4: 0 | C4: 1990.02529 | D4: 1871.30934 | E4: 1829.916642 | F4: 21411.58856 | G4: 21283.35479 | H4: 21283.35479 | I4: 25616.95031 | J4: 25488.71655 | K4: 25488.71655 | L4: 0 | M4: 0 | N4: 0 | P4: Costs | S4: 120.716701 | T4: 71.70286169 | U4: 71.70286169 | W4: 0 | X4: 0 | Y4: =OFFSET(S4,0,$Q$8-1) -> 71.70286169 | AB4: Run the NSFAS model for 3 levels of enrolments and paste here
A5: =A4+1 -> 2 | B5: =B4+10000 -> 10000 | C5: 2150.26915 | D5: 2796.387724 | E5: 2712.146913 | F5: 21461.49054 | G5: 21302.37923 | H5: 21302.37923 | I5: 25666.85229 | J5: 25507.74099 | K5: 25507.74099 | L5: 0 | M5: 0 | N5: 0 | P5: Required | Q5: ='PSET Dashboard'!L5 -> 2500000 | S5: 146.6544803 | T5: 85.52126017 | U5: 85.52126017 | W5: =IF($B5<=$AA$6,W$4+($B5-0)/($AA$6-0)*($AD$6-0),IF($B5<=$AA$7,$AD$6+($B5-$AA$6)/($AA$7-$AA$6)*($AD$7-$AD$6),$AD$7+($B5-$AA$7)/($AA$8-$AA$7)*($AD$8-$AD$7)))/1000 -> 130.8288712 | X5: =IF($B5<=$AA$6,X$4+($B5-0)/($AA$6-0)*($AE$6-0),IF($B5<=$AA$7,$AE$6+($B5-$AA$6)/($AA$7-$AA$6)*($AE$7-$AE$6),$AE$7+($B5-$AA$7)/($AA$8-$AA$7)*($AE$8-$AE$7)))/1000 -> 246.7650825 | Y5: =OFFSET(S5,0,$Q$8-1) -> 85.52126017 | AB5: DHET NSFAS grant | AC5: NSFAS administration grant | AD5: University NSFAS loan repayments | AE5: University NSFAS grant requirement | AF5: TVET NSFAS grant requirement | AG5: NSFAS administration grant requirement | AH5: Total income | AI5: Total expenditure | AJ5: Shortfalls / Surpluses
A6: =A5+1 -> 3 | B6: =B5+10000 -> 20000 | C6: 2321.716716 | D6: 3721.995649 | E6: 3594.900425 | F6: 21515.53531 | G6: 21321.41763 | H6: 21321.41763 | I6: 25720.89707 | J6: 25526.77939 | K6: 25526.77939 | L6: 0 | M6: 0 | N6: 0 | P6: TVET Row | Q6: =QUOTIENT(Q5,10000)+1 -> 251 | S6: 175.7477315 | T6: 99.28606123 | U6: 99.28606123 | W6: 261.6577424 | X6: =IF($B6<=$AA$6,X$4+($B6-0)/($AA$6-0)*($AE$6-0),IF($B6<=$AA$7,$AE$6+($B6-$AA$6)/($AA$7-$AA$6)*($AE$7-$AE$6),$AE$7+($B6-$AA$7)/($AA$8-$AA$7)*($AE$8-$AE$7)))/1000 -> 493.5301651 | Y6: 99.28606123 | AA6: 500000 | AB6: 24265114.04 | AC6: 468168.4439 | AD6: 6541443.559 | AE6: 12338254.13 | AF6: 5643199.149 | AG6: 420858.1953 | AH6: 31274726.05 | AI6: 18402311.47 | AJ6: 12872414.57
A7: 4 | B7: 30000 | C7: 2522.431143 | D7: 4713.350761 | E7: 4539.913297 | F7: 21582.15012 | G7: 21351.53327 | H7: 21351.53327 | I7: 25787.51187 | J7: 25556.89503 | K7: 25556.89503 | L7: 0 | M7: 0 | N7: 0 | P7: Remainder | Q7: =MOD(Q5,10000)/10000 -> 0 | S7: 215.7853956 | T7: 120.35109 | U7: 120.35109 | W7: 392.4866136 | X7: 740.2952476 | Y7: 120.35109 | AA7: 1000000 | AB7: 24265114.04 | AC7: 468168.4439 | AD7: 8009209.959 | AE7: 21934723.79 | AF7: 5643199.149 | AG7: 431048.4641 | AH7: 32742492.44 | AI7: 28008971.4 | AJ7: 4733521.043
A8: 5 | B8: 40000 | C8: 2723.871866 | D8: 5704.897516 | E8: 5485.063281 | F8: 21652.39037 | G8: 21381.90407 | H8: 21381.90407 | I8: 25857.75213 | J8: 25587.26582 | K8: 25587.26582 | L8: 0 | M8: 0 | N8: 0 | P8: Column | Q8: =IF('PSET Dashboard'!K5='PSET Lookup'!C3,1,IF('PSET Dashboard'!K5='PSET Lookup'!D3,2,3)) -> 3 | S8: 261.3771909 | T8: 141.7902622 | U8: 141.7902622 | W8: 523.3154848 | X8: 987.0603301 | Y8: 141.7902622 | AA8: 1440000 | AB8: 24265114.04 | AC8: 468168.4439 | AD8: 8965596.371 | AE8: 29878465.76 | AF8: 5643199.149 | AG8: 431048.4641 | AH8: 33698878.86 | AI8: 35952713.37 | AJ8: -2253834.513
A9: 6 | B9: 50000 | C9: 2925.576167 | D9: 6696.493978 | E9: 6430.248827 | F9: 21723.79439 | G9: 21412.3186 | H9: 21412.3186 | I9: 25929.15615 | J9: 25617.68036 | K9: 25617.68036 | L9: 0 | M9: 0 | N9: 0 | P9: Output | Q9: =INDEX($C$4:$E$255,Q6,Q8)+Q7*(INDEX($C$4:$E$255,Q6+1,Q8)-INDEX($C$4:$E$255,Q6,Q8)) -> 255564.0251 | S9: 308.8003294 | T9: 163.2845011 | U9: 163.2845011 | W9: 654.1443559 | X9: 1233.825413 | Y9: 163.2845011
A10: 7 | B10: 60000 | C10: 3127.280469 | D10: 7688.211026 | E10: 7375.520649 | F10: 21795.41924 | G10: 21442.83364 | H10: 21442.83364 | I10: 26000.78099 | J10: 25648.1954 | K10: 25648.1954 | L10: 0 | M10: 0 | N10: 0 | S10: 356.6049032 | T10: 184.9079503 | U10: 184.9079503 | W10: 784.9732271 | X10: 1480.590495 | Y10: 184.9079503
A11: 8 | B11: 70000 | C11: 3360.376694 | D11: 8712.008982 | E11: 8351.242388 | F11: 21883.34825 | G11: 21481.41701 | H11: 21481.41701 | I11: 26088.71001 | J11: 25686.77877 | K11: 25686.77877 | L11: 0 | M11: 0 | N11: 0 | P11: Revenue | S11: 421.0484129 | T11: 214.6398666 | U11: 214.6398666 | W11: 915.8020983 | X11: 1727.355578 | Y11: 214.6398666 | AB11: DHET NSFAS grant | AC11: NSFAS administration grant | AD11: University NSFAS loan repayments | AE11: University NSFAS grant requirement | AF11: TVET NSFAS grant requirement | AG11: NSFAS administration grant requirement | AH11: Total income | AI11: Total expenditure | AJ11: Shortfalls / Surpluses
A12: 9 | B12: 80000 | C12: 3601.240614 | D12: 9777.141949 | E12: 9366.229265 | F12: 21975.40908 | G12: 21530.35177 | H12: 21530.35177 | I12: 26180.77084 | J12: 25735.71353 | K12: 25735.71353 | L12: 0 | M12: 0 | N12: 0 | P12: Required | Q12: ='PSET Dashboard'!L5 -> 2500000 | S12: 490.2396551 | T12: 254.7543004 | U12: 254.7543004 | W12: 1046.63097 | X12: 1974.12066 | Y12: 254.7543004 | AB12: =AB8/1000 -> 24265.11404 | AC12: =AC8/1000 -> 468.1684439 | AD12: =Q39 -> 8363.809784 | AE12: =Q46 -> 24880.02861 | AF12: =Q32 -> 10009.73288 | AG12: 431.0484641 | AH12: =SUM(AB12:AD12) -> 33097.09227 | AI12: =SUM(AE12:AG12) -> 35320.80996 | AJ12: =AH12-AI12 -> -2223.717686
A13: 10 | B13: 90000 | C13: 3841.121459 | D13: 10842.09873 | E13: 10381.09009 | F13: 22067.00859 | G13: 21579.24257 | H13: 21579.24257 | I13: 26272.37035 | J13: 25784.60433 | K13: 25784.60433 | L13: 0 | M13: 0 | N13: 0 | P13: TVET Row | Q13: =Q6 -> 251 | S13: 559.3009852 | T13: 294.8576655 | U13: 294.8576655 | W13: 1177.459841 | X13: 2220.885743 | Y13: 294.8576655
A14: 11 | B14: 100000 | C14: 4081.002305 | D14: 11906.41224 | E14: 11395.49068 | F14: 22158.6081 | G14: 21627.97257 | H14: 21627.97257 | I14: 26363.96986 | J14: 25833.33433 | K14: 25833.33433 | L14: 0 | M14: 0 | N14: 0 | P14: Remainder | Q14: =Q7 -> 0 | S14: 628.3623154 | T14: 334.9200833 | U14: 334.9200833 | W14: 1308.288712 | X14: 2467.650825 | Y14: 334.9200833
A15: 12 | B15: 110000 | C15: 4314.632315 | D15: 12970.31715 | E15: 12409.59893 | F15: 22248.46176 | G15: 21676.63563 | H15: 21676.63563 | I15: 26453.82352 | J15: 25881.99738 | K15: 25881.99738 | L15: 0 | M15: 0 | N15: 0 | P15: Column | Q15: =Q8 -> 3 | S15: 697.4223421 | T15: 374.9786714 | U15: 374.9786714 | W15: 1439.117583 | X15: 2714.415908 | Y15: 374.9786714
A16: 13 | B16: 120000 | C16: 4562.443725 | D16: 14033.84898 | E16: 13423.44026 | F16: 22344.89566 | G16: 21725.2395 | H16: 21725.2395 | I16: 26550.25742 | J16: 25930.60126 | K16: 25930.60126 | L16: 0 | M16: 0 | N16: 0 | P16: Output | Q16: =INDEX($I$4:$K$255,Q13,Q15)+Q14*(INDEX($I$4:$K$255,Q13+1,Q15)-INDEX($I$4:$K$255,Q13,Q15))-Q2+Q3 -> 45303.79565 | S16: 768.1386842 | T16: 415.0350411 | U16: 415.0350411 | W16: 1569.946454 | X16: 2961.18099 | Y16: 415.0350411
A17: 14 | B17: 130000 | C17: 4811.423856 | D17: 15098.72758 | E17: 14438.24515 | F17: 22441.86642 | G17: 21774.18077 | H17: 21774.18077 | I17: 26647.22817 | J17: 25979.54253 | K17: 25979.54253 | L17: 0 | M17: 0 | N17: 0 | S17: 838.989467 | T17: 455.1784299 | U17: 455.1784299 | W17: 1700.775325 | X17: 3207.946073 | Y17: 455.1784299
A18: 15 | B18: 140000 | C18: 5073.121737 | D18: 16164.84847 | E18: 15453.93884 | F18: 22542.97787 | G18: 21823.40875 | H18: 21823.40875 | I18: 26748.33963 | J18: 26028.7705 | K18: 26028.7705 | L18: 0 | M18: 0 | N18: 0 | P18: Infrastructure | S18: 910.6854637 | T18: 495.3950344 | U18: 495.3950344 | W18: 1831.604197 | X18: 3454.711155 | Y18: 495.3950344
A19: 16 | B19: 150000 | C19: 5344.71734 | D19: 17233.3761 | E19: 16471.35446 | F19: 22647.31188 | G19: 21873.06885 | H19: 21873.06885 | I19: 26852.67364 | J19: 26078.43061 | K19: 26078.43061 | L19: 0 | M19: 0 | N19: 0 | P19: Required | Q19: ='PSET Dashboard'!L5 -> 2500000 | S19: 983.0392564 | T19: 535.7100217 | U19: 535.7100217 | W19: 1962.433068 | X19: 3701.476238 | Y19: 535.7100217
A20: 17 | B20: 160000 | C20: 5616.312944 | D20: 18301.90373 | E20: 17488.77008 | F20: 22751.64588 | G20: 21922.72896 | H20: 21922.72896 | I20: 26957.00764 | J20: 26128.09072 | K20: 26128.09072 | L20: 0 | M20: 0 | N20: 0 | P20: TVET Row | Q20: =Q13 -> 251 | S20: 1055.393049 | T20: 576.025009 | U20: 576.025009 | W20: 2093.261939 | X20: 3948.24132 | Y20: 576.025009
A21: 18 | B21: 170000 | C21: 5887.908548 | D21: 19370.43135 | E21: 18506.18569 | F21: 22855.97989 | G21: 21972.38906 | H21: 21972.38906 | I21: 27061.34165 | J21: 26177.75082 | K21: 26177.75082 | L21: 0 | M21: 0 | N21: 0 | P21: Remainder | Q21: =Q14 -> 0 | S21: 1127.746842 | T21: 616.3399962 | U21: 616.3399962 | W21: 2224.09081 | X21: 4195.006403 | Y21: 616.3399962
A22: 19 | B22: 180000 | C22: 6159.504152 | D22: 20438.95898 | E22: 19523.60131 | F22: 22960.31389 | G22: 22022.04917 | H22: 22022.04917 | I22: 27165.67565 | J22: 26227.41093 | K22: 26227.41093 | L22: 0 | M22: 0 | N22: 0 | P22: Column | Q22: 3 | S22: 1200.100634 | T22: 656.6549835 | U22: 656.6549835 | W22: 2354.919681 | X22: 4441.771486 | Y22: 656.6549835
A23: 20 | B23: 190000 | C23: 6431.099756 | D23: 21507.48661 | E23: 20541.01692 | F23: 23064.6479 | G23: 22071.70927 | H23: 22071.70927 | I23: 27270.00966 | J23: 26277.07103 | K23: 26277.07103 | L23: 0 | M23: 0 | N23: 0 | P23: Output | Q23: =INDEX($L$4:$N$255,Q20,Q22)+Q21*(INDEX($L$4:$N$255,Q20+1,Q22)-INDEX($L$4:$N$255,Q20,Q22)) -> 444250.9467 | S23: 1272.454427 | T23: 696.9699708 | U23: 696.9699708 | W23: 2485.748553 | X23: 4688.536568 | Y23: 696.9699708
A24: 21 | B24: 200000 | C24: 6702.69536 | D24: 22576.01424 | E24: 21558.43254 | F24: 23168.9819 | G24: 22121.36938 | H24: 22121.36938 | I24: 27374.34366 | J24: 26326.73114 | K24: 26326.73114 | L24: 0 | M24: 0 | N24: 0 | S24: 1344.80822 | T24: 737.2849581 | U24: 737.2849581 | W24: 2616.577424 | X24: 4935.301651 | Y24: 737.2849581
A25: 22 | B25: 210000 | C25: 6974.290964 | D25: 23644.54186 | E25: 22575.84815 | F25: 23273.31591 | G25: 22171.02949 | H25: 22171.02949 | I25: 27478.67767 | J25: 26376.39124 | K25: 26376.39124 | L25: 0 | M25: 0 | N25: 0 | P25: Discount rate | Q25: =IF('PSET Dashboard'!C17="Real",1/(1.062)^16,1) -> 1 | S25: 1417.162013 | T25: 777.5999454 | U25: 777.5999454 | W25: 2747.406295 | X25: 5182.066733 | Y25: 777.5999454
A26: 23 | B26: 220000 | C26: 7245.886568 | D26: 24713.06949 | E26: 23593.26377 | F26: 23377.64991 | G26: 22220.68959 | H26: 22220.68959 | I26: 27583.01167 | J26: 26426.05135 | K26: 26426.05135 | L26: 0 | M26: 0 | N26: 0 | S26: 1489.515805 | T26: 817.9149327 | U26: 817.9149327 | W26: 2878.235166 | X26: 5428.831816 | Y26: 817.9149327
A27: 24 | B27: 230000 | C27: 7517.482172 | D27: 25781.59712 | E27: 24610.67939 | F27: 23481.98392 | G27: 22270.3497 | H27: 22270.3497 | I27: 27687.34568 | J27: 26475.71145 | K27: 26475.71145 | L27: 0 | M27: 0 | N27: 0 | P27: TVET NSFAS Reqt | S27: 1561.869598 | T27: 858.22992 | U27: 858.22992 | W27: 3009.064037 | X27: 5675.596898 | Y27: 858.22992
A28: 25 | B28: 240000 | C28: 7789.077775 | D28: 26850.12475 | E28: 25628.095 | F28: 23586.31792 | G28: 22320.0098 | H28: 22320.0098 | I28: 27791.67968 | J28: 26525.37156 | K28: 26525.37156 | L28: 0 | M28: 0 | N28: 0 | P28: Required | Q28: =Q19 -> 2500000 | S28: 1634.223391 | T28: 898.5449072 | U28: 898.5449072 | W28: 3139.892909 | X28: 5922.361981 | Y28: 898.5449072
A29: 26 | B29: 250000 | C29: 8060.673379 | D29: 27918.65237 | E29: 26645.51062 | F29: 23690.65193 | G29: 22369.66991 | H29: 22369.66991 | I29: 27896.01369 | J29: 26575.03167 | K29: 26575.03167 | L29: 0 | M29: 0 | N29: 0 | P29: TVET Row | Q29: =Q20 -> 251 | S29: 1706.577183 | T29: 938.8598945 | U29: 938.8598945 | W29: 3270.72178 | X29: 6169.127063 | Y29: 938.8598945
A30: 27 | B30: 260000 | C30: 8332.268983 | D30: 28987.18 | E30: 27662.92623 | F30: 23794.98593 | G30: 22419.33001 | H30: 22419.33001 | I30: 28000.34769 | J30: 26624.69177 | K30: 26624.69177 | L30: 0 | M30: 0 | N30: 0 | P30: Remainder | Q30: =Q21 -> 0 | S30: 1778.930976 | T30: 979.1748818 | U30: 979.1748818 | W30: 3401.550651 | X30: 6415.892146 | Y30: 979.1748818
A31: 28 | B31: 270000 | C31: 8603.864587 | D31: 30055.70763 | E31: 28680.34185 | F31: 23899.31994 | G31: 22468.99012 | H31: 22468.99012 | I31: 28104.6817 | J31: 26674.35188 | K31: 26674.35188 | L31: 0 | M31: 0 | N31: 0 | P31: Column | Q31: =Q22 -> 3 | S31: 1851.284769 | T31: 1019.489869 | U31: 1019.489869 | W31: 3532.379522 | X31: 6662.657228 | Y31: 1019.489869
A32: 29 | B32: 280000 | C32: 8875.460191 | D32: 31124.23525 | E32: 29697.75747 | F32: 24003.65394 | G32: 22518.65022 | H32: 22518.65022 | I32: 28209.0157 | J32: 26724.01198 | K32: 26724.01198 | L32: 0 | M32: 0 | N32: 0 | P32: Output | Q32: =INDEX($S$4:$U$255,Q29,Q31)+Q30*(INDEX($S$4:$U$255,Q29+1,Q31)-INDEX($S$4:$U$255,Q29,Q31)) -> 10009.73288 | S32: 1923.638561 | T32: 1059.804856 | U32: 1059.804856 | W32: 3663.208393 | X32: 6909.422311 | Y32: 1059.804856
A33: 30 | B33: 290000 | C33: 9147.055795 | D33: 32192.76288 | E33: 30715.17308 | F33: 24107.98795 | G33: 22568.31033 | H33: 22568.31033 | I33: 28313.3497 | J33: 26773.67209 | K33: 26773.67209 | L33: 0 | M33: 0 | N33: 0 | S33: 1995.992354 | T33: 1100.119844 | U33: 1100.119844 | W33: 3794.037264 | X33: 7156.187393 | Y33: 1100.119844
A34: 31 | B34: 300000 | C34: 9418.651399 | D34: 33261.29051 | E34: 31732.5887 | F34: 24212.32195 | G34: 22617.97044 | H34: 22617.97044 | I34: 28417.68371 | J34: 26823.33219 | K34: 26823.33219 | L34: 0 | M34: 0 | N34: 0 | P34: Univ NSFAS repayments | S34: 2068.346147 | T34: 1140.434831 | U34: 1140.434831 | W34: 3924.866136 | X34: 7402.952476 | Y34: 1140.434831
A35: 32 | B35: 310000 | C35: 9690.247003 | D35: 34329.81814 | E35: 32750.00431 | F35: 24316.65596 | G35: 22667.63054 | H35: 22667.63054 | I35: 28522.01771 | J35: 26872.9923 | K35: 26872.9923 | L35: 0 | M35: 0 | N35: 0 | P35: Required | Q35: ='PSET Dashboard'!$L$4 -> 1163139 | S35: 2140.699939 | T35: 1180.749818 | U35: 1180.749818 | W35: 4055.695007 | X35: 7649.717558 | Y35: 1180.749818
A36: 33 | B36: 320000 | C36: 9961.842607 | D36: 35398.34576 | E36: 33767.41993 | F36: 24420.98996 | G36: 22717.29065 | H36: 22717.29065 | I36: 28626.35172 | J36: 26922.65241 | K36: 26922.65241 | L36: 0 | M36: 0 | N36: 0 | P36: TVET Row | Q36: =QUOTIENT(Q35,10000)+1 -> 117 | S36: 2213.053732 | T36: 1221.064806 | U36: 1221.064806 | W36: 4186.523878 | X36: 7896.482641 | Y36: 1221.064806
A37: 34 | B37: 330000 | C37: 10233.43821 | D37: 36466.87339 | E37: 34784.83554 | F37: 24525.32397 | G37: 22766.95075 | H37: 22766.95075 | I37: 28730.68572 | J37: 26972.31251 | K37: 26972.31251 | L37: 0 | M37: 0 | N37: 0 | P37: Remainder | Q37: =MOD(Q35,10000)/10000 -> 0.3139 | S37: 2285.407525 | T37: 1261.379793 | U37: 1261.379793 | W37: 4317.352749 | X37: 8143.247723 | Y37: 1261.379793
A38: 35 | B38: 340000 | C38: 10505.03381 | D38: 37535.40102 | E38: 35802.25116 | F38: 24629.65797 | G38: 22816.61086 | H38: 22816.61086 | I38: 28835.01973 | J38: 27021.97262 | K38: 27021.97262 | L38: 0 | M38: 0 | N38: 0 | P38: Column | Q38: 1 | S38: 2357.761317 | T38: 1301.69478 | U38: 1301.69478 | W38: 4448.18162 | X38: 8390.012806 | Y38: 1301.69478
A39: 36 | B39: 350000 | C39: 10776.62942 | D39: 38603.92865 | E39: 36819.66678 | F39: 24733.99198 | G39: 22866.27096 | H39: 22866.27096 | I39: 28939.35373 | J39: 27071.63272 | K39: 27071.63272 | L39: 0 | M39: 0 | N39: 0 | P39: Output | Q39: =INDEX($W$4:$Y$255,Q36,Q38)+Q37*(INDEX($W$4:$Y$255,Q36+1,Q38)-INDEX($W$4:$Y$255,Q36,Q38)) -> 8363.809784 | S39: 2430.11511 | T39: 1342.009767 | U39: 1342.009767 | W39: 4579.010492 | X39: 8636.777889 | Y39: 1342.009767
A40: 37 | B40: 360000 | C40: 11048.22502 | D40: 39672.45627 | E40: 37837.08239 | F40: 24838.32598 | G40: 22915.93107 | H40: 22915.93107 | I40: 29043.68774 | J40: 27121.29283 | K40: 27121.29283 | L40: 0 | M40: 0 | N40: 0 | S40: 2502.468903 | T40: 1382.324755 | U40: 1382.324755 | W40: 4709.839363 | X40: 8883.542971 | Y40: 1382.324755
A41: 38 | B41: 370000 | C41: 11319.82063 | D41: 40740.9839 | E41: 38854.49801 | F41: 24942.65999 | G41: 22965.59118 | H41: 22965.59118 | I41: 29148.02174 | J41: 27170.95293 | K41: 27170.95293 | L41: 0 | M41: 0 | N41: 0 | P41: Univ NSFAS repayments | S41: 2574.822695 | T41: 1422.639742 | U41: 1422.639742 | W41: 4840.668234 | X41: 9130.308054 | Y41: 1422.639742
A42: 39 | B42: 380000 | C42: 11591.41623 | D42: 41809.51153 | E42: 39871.91362 | F42: 25046.99399 | G42: 23015.25128 | H42: 23015.25128 | I42: 29252.35575 | J42: 27220.61304 | K42: 27220.61304 | L42: 0 | M42: 2260.984258 | N42: 0 | P42: Required | Q42: ='PSET Dashboard'!$L$4 -> 1163139 | S42: 2647.176488 | T42: 1462.954729 | U42: 1462.954729 | W42: 4971.497105 | X42: 9377.073136 | Y42: 1462.954729
A43: 40 | B43: 390000 | C43: 11863.01183 | D43: 42878.03916 | E43: 40889.32924 | F43: 25151.32799 | G43: 23064.91139 | H43: 23064.91139 | I43: 29356.68975 | J43: 27270.27314 | K43: 27270.27314 | L43: 0 | M43: 4942.826814 | N43: 0 | P43: TVET Row | Q43: =QUOTIENT(Q42,10000)+1 -> 117 | S43: 2719.530281 | T43: 1503.269717 | U43: 1503.269717 | W43: 5102.325976 | X43: 9623.838219 | Y43: 1503.269717
A44: 41 | B44: 400000 | C44: 12134.60744 | D44: 43946.56678 | E44: 41906.74485 | F44: 25255.662 | G44: 23114.57149 | H44: 23114.57149 | I44: 29461.02376 | J44: 27319.93325 | K44: 27319.93325 | L44: 0 | M44: 7624.669369 | N44: 0 | P44: Remainder | Q44: =MOD(Q42,10000)/10000 -> 0.3139 | S44: 2791.884074 | T44: 1543.584704 | U44: 1543.584704 | W44: 5233.154848 | X44: 9870.603301 | Y44: 1543.584704
A45: 42 | B45: 410000 | C45: 12406.20304 | D45: 45015.09441 | E45: 42924.16047 | F45: 25359.996 | G45: 23164.2316 | H45: 23164.2316 | I45: 29565.35776 | J45: 27369.59336 | K45: 27369.59336 | L45: 0 | M45: 10306.51193 | N45: 0 | P45: Column | Q45: 2 | S45: 2864.237866 | T45: 1583.899691 | U45: 1583.899691 | W45: 5363.983719 | X45: 10117.36838 | Y45: 1583.899691
A46: 43 | B46: 420000 | C46: 12677.79865 | D46: 46083.62204 | E46: 43941.57609 | F46: 25464.33001 | G46: 23213.8917 | H46: 23213.8917 | I46: 29669.69177 | J46: 27419.25346 | K46: 27419.25346 | L46: 0 | M46: 12988.35448 | N46: 0 | P46: Output | Q46: =INDEX($W$4:$Y$255,Q43,Q45)+Q44*(INDEX($W$4:$Y$255,Q43+1,Q45)-INDEX($W$4:$Y$255,Q43,Q45)) -> 24880.02861 | S46: 2936.591659 | T46: 1624.214678 | U46: 1624.214678 | W46: 5494.81259 | X46: 10364.13347 | Y46: 1624.214678
A47: 44 | B47: 430000 | C47: 12949.39425 | D47: 47152.14967 | E47: 44958.9917 | F47: 25568.66401 | G47: 23263.55181 | H47: 23263.55181 | I47: 29774.02577 | J47: 27468.91357 | K47: 27468.91357 | L47: 0 | M47: 15670.19704 | N47: 0 | S47: 3008.945452 | T47: 1664.529666 | U47: 1664.529666 | W47: 5625.641461 | X47: 10610.89855 | Y47: 1664.529666
A48: 45 | B48: 440000 | C48: 13220.98985 | D48: 48220.67729 | E48: 45976.40732 | F48: 25672.99802 | G48: 23313.21191 | H48: 23313.21191 | I48: 29878.35978 | J48: 27518.57367 | K48: 27518.57367 | L48: 0 | M48: 18352.03959 | N48: 0 | P48: ="Convert model output to "&IF('PSET Dashboard'!C17="Nominal","REAL","NOMINAL")&" prices" -> Convert model output to REAL prices | S48: 3081.299244 | T48: 1704.844653 | U48: 1704.844653 | W48: 5756.470332 | X48: 10857.66363 | Y48: 1704.844653
A49: 46 | B49: 450000 | C49: 13492.58546 | D49: 49289.20492 | E49: 46993.82293 | F49: 25777.33202 | G49: 23362.87202 | H49: 23362.87202 | I49: 29982.69378 | J49: 27568.23378 | K49: 27568.23378 | L49: 0 | M49: 21033.88215 | N49: 0 | S49: 3153.653037 | T49: 1745.15964 | U49: 1745.15964 | W49: 5887.299203 | X49: 11104.42871 | Y49: 1745.15964
A50: 47 | B50: 460000 | C50: 13764.18106 | D50: 50357.73255 | E50: 48011.23855 | F50: 25881.66603 | G50: 23412.53213 | H50: 23412.53213 | I50: 30087.02779 | J50: 27617.89388 | K50: 27617.89388 | L50: 0 | M50: 23715.7247 | N50: 2094.606039 | S50: 3226.00683 | T50: 1785.474628 | U50: 1785.474628 | W50: 6018.128075 | X50: 11351.1938 | Y50: 1785.474628
A51: 48 | B51: 470000 | C51: 14035.77666 | D51: 51426.26018 | E51: 49028.65416 | F51: 25986.00003 | G51: 23462.19223 | H51: 23462.19223 | I51: 30191.36179 | J51: 27667.55399 | K51: 27667.55399 | L51: 0 | M51: 26397.56726 | N51: 4262.262452 | S51: 3298.360622 | T51: 1825.789615 | U51: 1825.789615 | W51: 6148.956946 | X51: 11597.95888 | Y51: 1825.789615
A52: 49 | B52: 480000 | C52: 14307.37227 | D52: 52494.7878 | E52: 50046.06978 | F52: 26090.33404 | G52: 23511.85234 | H52: 23511.85234 | I52: 30295.6958 | J52: 27717.2141 | K52: 27717.2141 | L52: 0 | M52: 29079.40981 | N52: 6429.918865 | S52: 3370.714415 | T52: 1866.104602 | U52: 1866.104602 | W52: 6279.785817 | X52: 11844.72396 | Y52: 1866.104602
A53: 50 | B53: 490000 | C53: 14578.96787 | D53: 53563.31543 | E53: 51063.4854 | F53: 26194.66804 | G53: 23561.51244 | H53: 23561.51244 | I53: 30400.0298 | J53: 27766.8742 | K53: 27766.8742 | L53: 0 | M53: 31761.25237 | N53: 8597.575279 | S53: 3443.068208 | T53: 1906.419589 | U53: 1906.419589 | W53: 6410.614688 | X53: 12091.48904 | Y53: 1906.419589
A54: 51 | B54: 500000 | C54: 14850.56348 | D54: 54631.84306 | E54: 52080.90101 | F54: 26299.00205 | G54: 23611.17255 | H54: 23611.17255 | I54: 30504.36381 | J54: 27816.53431 | K54: 27816.53431 | L54: 0 | M54: 34443.09493 | N54: 10765.23169 | S54: 3515.422 | T54: 1946.734577 | U54: 1946.734577 | W54: 6541.443559 | X54: 12338.25413 | Y54: 1946.734577
A55: 52 | B55: 510000 | C55: 15122.15908 | D55: 55700.37069 | E55: 53098.31663 | F55: 26403.33605 | G55: 23660.83265 | H55: 23660.83265 | I55: 30608.69781 | J55: 27866.19441 | K55: 27866.19441 | L55: 0 | M55: 37124.93748 | N55: 12932.8881 | S55: 3587.775793 | T55: 1987.049564 | U55: 1987.049564 | W55: 6570.798887 | X55: 12530.18352 | Y55: 1987.049564
A56: 53 | B56: 520000 | C56: 15393.75468 | D56: 56768.89831 | E56: 54115.73224 | F56: 26507.67006 | G56: 23710.49276 | H56: 23710.49276 | I56: 30713.03182 | J56: 27915.85452 | K56: 27915.85452 | L56: 0 | M56: 39806.78004 | N56: 15100.54452 | S56: 3660.129586 | T56: 2027.364551 | U56: 2027.364551 | W56: 6600.154215 | X56: 12722.11291 | Y56: 2027.364551
A57: 54 | B57: 530000 | C57: 15665.35029 | D57: 57837.42594 | E57: 55133.14786 | F57: 26612.00406 | G57: 23760.15287 | H57: 23760.15287 | I57: 30817.36582 | J57: 27965.51462 | K57: 27965.51462 | L57: 0 | M57: 42488.62259 | N57: 17268.20093 | S57: 3732.483378 | T57: 2067.679539 | U57: 2067.679539 | W57: 6629.509543 | X57: 12914.04231 | Y57: 2067.679539
A58: 55 | B58: 540000 | C58: 15936.94589 | D58: 58905.95357 | E58: 56150.56347 | F58: 26716.33807 | G58: 23809.81297 | H58: 23809.81297 | I58: 30921.69982 | J58: 28015.17473 | K58: 28015.17473 | L58: 0 | M58: 45170.46515 | N58: 19435.85734 | S58: 3804.837171 | T58: 2107.994526 | U58: 2107.994526 | W58: 6658.864871 | X58: 13105.9717 | Y58: 2107.994526
A59: 56 | B59: 550000 | C59: 16208.5415 | D59: 59974.4812 | E59: 57167.97909 | F59: 26820.67207 | G59: 23859.47308 | H59: 23859.47308 | I59: 31026.03383 | J59: 28064.83483 | K59: 28064.83483 | L59: 0 | M59: 47852.3077 | N59: 21603.51376 | S59: 3877.190964 | T59: 2148.309513 | U59: 2148.309513 | W59: 6688.220199 | X59: 13297.90109 | Y59: 2148.309513
A60: 57 | B60: 560000 | C60: 16480.1371 | D60: 61043.00882 | E60: 58185.39471 | F60: 26925.00608 | G60: 23909.13318 | H60: 23909.13318 | I60: 31130.36783 | J60: 28114.49494 | K60: 28114.49494 | L60: 0 | M60: 50534.15026 | N60: 23771.17017 | S60: 3949.544756 | T60: 2188.6245 | U60: 2188.6245 | W60: 6717.575527 | X60: 13489.83049 | Y60: 2188.6245
A61: 58 | B61: 570000 | C61: 16751.7327 | D61: 62111.53645 | E61: 59202.81032 | F61: 27029.34008 | G61: 23958.79329 | H61: 23958.79329 | I61: 31234.70184 | J61: 28164.15505 | K61: 28164.15505 | L61: 0 | M61: 53215.99281 | N61: 25938.82658 | S61: 4021.898549 | T61: 2228.939488 | U61: 2228.939488 | W61: 6746.930855 | X61: 13681.75988 | Y61: 2228.939488
A62: 59 | B62: 580000 | C62: 17023.32831 | D62: 63180.06408 | E62: 60220.22594 | F62: 27133.67409 | G62: 24008.45339 | H62: 24008.45339 | I62: 31339.03584 | J62: 28213.81515 | K62: 28213.81515 | L62: 0 | M62: 55897.83537 | N62: 28106.483 | S62: 4094.252342 | T62: 2269.254475 | U62: 2269.254475 | W62: 6776.286183 | X62: 13873.68927 | Y62: 2269.254475
A63: 60 | B63: 590000 | C63: 17294.92391 | D63: 64248.59171 | E63: 61237.64155 | F63: 27238.00809 | G63: 24058.1135 | H63: 24058.1135 | I63: 31443.36985 | J63: 28263.47526 | K63: 28263.47526 | L63: 0 | M63: 58579.67793 | N63: 30274.13941 | S63: 4166.606135 | T63: 2309.569462 | U63: 2309.569462 | W63: 6805.641511 | X63: 14065.61867 | Y63: 2309.569462
A64: 61 | B64: 600000 | C64: 17566.51952 | D64: 65317.11933 | E64: 62255.05717 | F64: 27342.3421 | G64: 24107.7736 | H64: 24107.7736 | I64: 31547.70385 | J64: 28313.13536 | K64: 28313.13536 | L64: 0 | M64: 61261.52048 | N64: 32441.79582 | S64: 4238.959927 | T64: 2349.884449 | U64: 2349.884449 | W64: 6834.996839 | X64: 14257.54806 | Y64: 2349.884449
A65: 62 | B65: 610000 | C65: 17838.11512 | D65: 66385.64696 | E65: 63272.47278 | F65: 27446.6761 | G65: 24157.43371 | H65: 24157.43371 | I65: 31652.03786 | J65: 28362.79547 | K65: 28362.79547 | L65: 0 | M65: 63943.36304 | N65: 34609.45224 | S65: 4311.31372 | T65: 2390.199437 | U65: 2390.199437 | W65: 6864.352167 | X65: 14449.47745 | Y65: 2390.199437
A66: 63 | B66: 620000 | C66: 18109.71072 | D66: 67454.17459 | E66: 64289.8884 | F66: 27551.0101 | G66: 24207.09382 | H66: 24207.09382 | I66: 31756.37186 | J66: 28412.45557 | K66: 28412.45557 | L66: 0 | M66: 66625.20559 | N66: 36777.10865 | S66: 4383.667513 | T66: 2430.514424 | U66: 2430.514424 | W66: 6893.707495 | X66: 14641.40685 | Y66: 2430.514424
A67: 64 | B67: 630000 | C67: 18381.30633 | D67: 68522.70222 | E67: 65307.30402 | F67: 27655.34411 | G67: 24256.75392 | H67: 24256.75392 | I67: 31860.70587 | J67: 28462.11568 | K67: 28462.11568 | L67: 0 | M67: 69307.04815 | N67: 38944.76506 | S67: 4456.021305 | T67: 2470.829411 | U67: 2470.829411 | W67: 6923.062823 | X67: 14833.33624 | Y67: 2470.829411
A68: 65 | B68: 640000 | C68: 18652.90193 | D68: 69591.22984 | E68: 66324.71963 | F68: 27759.67811 | G68: 24306.41403 | H68: 24306.41403 | I68: 31965.03987 | J68: 28511.77579 | K68: 28511.77579 | L68: 0 | M68: 71988.8907 | N68: 41112.42147 | S68: 4528.375098 | T68: 2511.144399 | U68: 2511.144399 | W68: 6952.418151 | X68: 15025.26563 | Y68: 2511.144399
A69: 66 | B69: 650000 | C69: 18924.49753 | D69: 70659.75747 | E69: 67342.13525 | F69: 27864.01212 | G69: 24356.07413 | H69: 24356.07413 | I69: 32069.37388 | J69: 28561.43589 | K69: 28561.43589 | L69: 0 | M69: 74670.73326 | N69: 43280.07789 | S69: 4600.728891 | T69: 2551.459386 | U69: 2551.459386 | W69: =IF($B69<=$AA$6,W$4+($B69-0)/($AA$6-0)*($AD$6-0),IF($B69<=$AA$7,$AD$6+($B69-$AA$6)/($AA$7-$AA$6)*($AD$7-$AD$6),$AD$7+($B69-$AA$7)/($AA$8-$AA$7)*($AD$8-$AD$7)))/1000 -> 6981.773479 | X69: 15217.19503 | Y69: =OFFSET(S69,0,$Q$8-1) -> 2551.459386
A70: =A69+1 -> 67 | B70: =B69+10000 -> 660000 | C70: 19196.09314 | D70: 71728.2851 | E70: 68359.55086 | F70: 27968.34612 | G70: 24405.73424 | H70: 24405.73424 | I70: 32173.70788 | J70: 28611.096 | K70: 28611.096 | L70: 0 | M70: 77352.57582 | N70: 45447.7343 | S70: 4673.082683 | T70: 2591.774373 | U70: 2591.774373 | W70: 7011.128807 | X70: =IF($B70<=$AA$6,X$4+($B70-0)/($AA$6-0)*($AE$6-0),IF($B70<=$AA$7,$AE$6+($B70-$AA$6)/($AA$7-$AA$6)*($AE$7-$AE$6),$AE$7+($B70-$AA$7)/($AA$8-$AA$7)*($AE$8-$AE$7)))/1000 -> 15409.12442 | Y70: 2591.774373
A71: 68 | B71: 670000 | C71: 19467.68874 | D71: 72796.81273 | E71: 69376.96648 | F71: 28072.68013 | G71: 24455.39434 | H71: 24455.39434 | I71: 32278.04189 | J71: 28660.7561 | K71: 28660.7561 | L71: 0 | M71: 80034.41837 | N71: 47615.39071 | S71: 4745.436476 | T71: 2632.08936 | U71: 2632.08936 | W71: 7040.484135 | X71: 15601.05381 | Y71: 2632.08936
A72: 69 | B72: 680000 | C72: 19739.28435 | D72: 73865.34035 | E72: 70394.38209 | F72: 28177.01413 | G72: 24505.05445 | H72: 24505.05445 | I72: 32382.37589 | J72: 28710.41621 | K72: 28710.41621 | L72: 0 | M72: 82716.26093 | N72: 49783.04713 | S72: 4817.790269 | T72: 2672.404348 | U72: 2672.404348 | W72: 7069.839463 | X72: 15792.9832 | Y72: 2672.404348
A73: 70 | B73: 690000 | C73: 20010.87995 | D73: 74933.86798 | E73: 71411.79771 | F73: 28281.34814 | G73: 24554.71455 | H73: 24554.71455 | I73: 32486.7099 | J73: 28760.07631 | K73: 28760.07631 | L73: 0 | M73: 85398.10348 | N73: 51950.70354 | S73: 4890.144061 | T73: 2712.719335 | U73: 2712.719335 | W73: 7099.194791 | X73: 15984.9126 | Y73: 2712.719335
A74: 71 | B74: 700000 | C74: 20282.47555 | D74: 76002.39561 | E74: 72429.21333 | F74: 28385.68214 | G74: 24604.37466 | H74: 24604.37466 | I74: 32591.0439 | J74: 28809.73642 | K74: 28809.73642 | L74: 0 | M74: 88079.94604 | N74: 54118.35995 | S74: 4962.497854 | T74: 2753.034322 | U74: 2753.034322 | W74: 7128.550119 | X74: 16176.84199 | Y74: 2753.034322
A75: 72 | B75: 710000 | C75: 20554.07116 | D75: 77070.92324 | E75: 73446.62894 | F75: 28490.01615 | G75: 24654.03477 | H75: 24654.03477 | I75: 32695.37791 | J75: 28859.39652 | K75: 28859.39652 | L75: 0 | M75: 90761.78859 | N75: 56286.01637 | S75: 5034.851647 | T75: 2793.34931 | U75: 2793.34931 | W75: 7157.905447 | X75: 16368.77138 | Y75: 2793.34931
A76: 73 | B76: 720000 | C76: 20825.66676 | D76: 78139.45086 | E76: 74464.04456 | F76: 28594.35015 | G76: 24703.69487 | H76: 24703.69487 | I76: 32799.71191 | J76: 28909.05663 | K76: 28909.05663 | L76: 0 | M76: 93443.63115 | N76: 58453.67278 | S76: 5107.205439 | T76: 2833.664297 | U76: 2833.664297 | W76: 7187.260775 | X76: 16560.70078 | Y76: 2833.664297
A77: 74 | B77: 730000 | C77: 21097.26237 | D77: 79207.97849 | E77: 75481.46017 | F77: 28698.68416 | G77: 24753.35498 | H77: 24753.35498 | I77: 32904.04592 | J77: 28958.71674 | K77: 28958.71674 | L77: 742.1484202 | M77: 96125.4737 | N77: 60621.32919 | S77: 5179.559232 | T77: 2873.979284 | U77: 2873.979284 | W77: 7216.616103 | X77: 16752.63017 | Y77: 2873.979284
A78: 75 | B78: 740000 | C78: 21368.85797 | D78: 80276.50612 | E78: 76498.87579 | F78: 28803.01816 | G78: 24803.01508 | H78: 24803.01508 | I78: 33008.37992 | J78: 29008.37684 | K78: 29008.37684 | L78: 1839.065845 | M78: 98807.31626 | N78: 62788.98561 | S78: 5251.913025 | T78: 2914.294271 | U78: 2914.294271 | W78: 7245.971431 | X78: 16944.55956 | Y78: 2914.294271
A79: 76 | B79: 750000 | C79: 21640.45357 | D79: 81345.03375 | E79: 77516.2914 | F79: 28907.35217 | G79: 24852.67519 | H79: 24852.67519 | I79: 33112.71393 | J79: 29058.03695 | K79: 29058.03695 | L79: 2935.983271 | M79: 101489.1588 | N79: 64956.64202 | S79: 5324.266817 | T79: 2954.609259 | U79: 2954.609259 | W79: 7275.326759 | X79: 17136.48896 | Y79: 2954.609259
A80: 77 | B80: 760000 | C80: 21912.04918 | D80: 82413.56137 | E80: 78533.70702 | F80: 29011.68617 | G80: 24902.33529 | H80: 24902.33529 | I80: 33217.04793 | J80: 29107.69705 | K80: 29107.69705 | L80: 4032.900696 | M80: 104171.0014 | N80: 67124.29843 | S80: 5396.62061 | T80: 2994.924246 | U80: 2994.924246 | W80: 7304.682087 | X80: 17328.41835 | Y80: 2994.924246
A81: 78 | B81: 770000 | C81: 22183.64478 | D81: 83482.089 | E81: 79551.12264 | F81: 29116.02018 | G81: 24951.9954 | H81: 24951.9954 | I81: 33321.38193 | J81: 29157.35716 | K81: 29157.35716 | L81: 5129.818121 | M81: 106852.8439 | N81: 69291.95484 | S81: 5468.974403 | T81: 3035.239233 | U81: 3035.239233 | W81: 7334.037415 | X81: 17520.34774 | Y81: 3035.239233
A82: 79 | B82: 780000 | C82: 22455.24039 | D82: 84550.61663 | E82: 80568.53825 | F82: 29220.35418 | G82: 25001.65551 | H82: 25001.65551 | I82: 33425.71594 | J82: 29207.01726 | K82: 29207.01726 | L82: 6226.735547 | M82: 109534.6865 | N82: 71459.61126 | S82: 5541.328195 | T82: 3075.554221 | U82: 3075.554221 | W82: 7363.392743 | X82: 17712.27714 | Y82: 3075.554221
A83: 80 | B83: 790000 | C83: 22726.83599 | D83: 85619.14426 | E83: 81585.95387 | F83: 29324.68819 | G83: 25051.31561 | H83: 25051.31561 | I83: 33530.04994 | J83: 29256.67737 | K83: 29256.67737 | L83: 7323.652972 | M83: 112216.529 | N83: 73627.26767 | S83: 5613.681988 | T83: 3115.869208 | U83: 3115.869208 | W83: 7392.748071 | X83: 17904.20653 | Y83: 3115.869208
A84: 81 | B84: 800000 | C84: 22998.43159 | D84: 86687.67188 | E84: 82603.36948 | F84: 29429.02219 | G84: 25100.97572 | H84: 25100.97572 | I84: 33634.38395 | J84: 29306.33747 | K84: 29306.33747 | L84: 8420.570397 | M84: 114898.3716 | N84: 75794.92408 | S84: 5686.035781 | T84: 3156.184195 | U84: 3156.184195 | W84: 7422.103399 | X84: 18096.13592 | Y84: 3156.184195
A85: 82 | B85: 810000 | C85: 23270.0272 | D85: 87756.19951 | E85: 83620.7851 | F85: 29533.3562 | G85: 25150.63582 | H85: 25150.63582 | I85: 33738.71795 | J85: 29355.99758 | K85: 29355.99758 | L85: 9517.487822 | M85: 117580.2141 | N85: 77962.5805 | S85: 5758.389574 | T85: 3196.499182 | U85: 3196.499182 | W85: 7451.458727 | X85: 18288.06532 | Y85: 3196.499182
A86: 83 | B86: 820000 | C86: 23541.6228 | D86: 88824.72714 | E86: 84638.20071 | F86: 29637.6902 | G86: 25200.29593 | H86: 25200.29593 | I86: 33843.05196 | J86: 29405.65769 | K86: 29405.65769 | L86: 10614.40525 | M86: 120262.0542 | N86: 80130.23448 | S86: 5830.743366 | T86: 3236.81417 | U86: 3236.81417 | W86: 7480.814055 | X86: 18479.99471 | Y86: 3236.81417
A87: 84 | B87: 830000 | C87: 23813.2184 | D87: 89893.25477 | E87: 85655.61633 | F87: 29742.02421 | G87: 25249.95603 | H87: 25249.95603 | I87: 33947.38596 | J87: 29455.31779 | K87: 29455.31779 | L87: 11711.32267 | M87: 122943.871 | N87: 82297.86548 | S87: 5903.097159 | T87: 3277.129158 | U87: 3277.129158 | W87: 7510.169383 | X87: 18671.9241 | Y87: 3277.129158
A88: 85 | B88: 840000 | C88: 24084.81401 | D88: 90961.78239 | E88: 86673.03195 | F88: 29846.35821 | G88: 25299.61614 | H88: 25299.61614 | I88: 34051.71997 | J88: 29504.9779 | K88: 29504.9779 | L88: 12808.2401 | M88: 125625.6877 | N88: 84465.49647 | S88: 5975.450952 | T88: 3317.444146 | U88: 3317.444146 | W88: 7539.524711 | X88: 18863.8535 | Y88: 3317.444146
A89: 86 | B89: 850000 | C89: 24356.40961 | D89: 92030.31002 | E89: 87690.44756 | F89: 29950.69221 | G89: 25349.27625 | H89: 25349.27625 | I89: 34156.05397 | J89: 29554.638 | K89: 29554.638 | L89: 13905.15752 | M89: 128307.5044 | N89: 86633.12747 | S89: 6047.804744 | T89: 3357.759134 | U89: 3357.759134 | W89: 7568.880039 | X89: 19055.78289 | Y89: 3357.759134
A90: 87 | B90: 860000 | C90: 24628.00522 | D90: 93098.83765 | E90: 88707.86318 | F90: 30055.02622 | G90: 25398.93635 | H90: 25398.93635 | I90: 34260.38798 | J90: 29604.29811 | K90: 29604.29811 | L90: 15002.07495 | M90: 130989.3212 | N90: 88800.75846 | S90: 6120.158537 | T90: 3398.074122 | U90: 3398.074122 | W90: 7598.235367 | X90: 19247.71228 | Y90: 3398.074122
A91: 88 | B91: 870000 | C91: 24899.60082 | D91: 94167.36528 | E91: 89725.2788 | F91: 30159.36022 | G91: 25448.59646 | H91: 25448.59646 | I91: 34364.72198 | J91: 29653.95822 | K91: 29653.95822 | L91: 16098.99237 | M91: 133671.1379 | N91: 90968.38945 | S91: 6192.51233 | T91: 3438.38911 | U91: 3438.38911 | W91: 7627.590695 | X91: 19439.64168 | Y91: 3438.38911
A92: 89 | B92: 880000 | C92: 25171.19642 | D92: 95235.89291 | E92: 90742.69441 | F92: 30263.69423 | G92: 25498.25656 | H92: 25498.25656 | I92: 34469.05599 | J92: 29703.61832 | K92: 29703.61832 | L92: 17195.9098 | M92: 136352.9547 | N92: 93136.02045 | S92: 6264.866122 | T92: 3478.704098 | U92: 3478.704098 | W92: 7656.946023 | X92: 19631.57107 | Y92: 3478.704098
A93: 90 | B93: 890000 | C93: 25442.79203 | D93: 96304.42054 | E93: 91760.11003 | F93: 30368.02823 | G93: 25547.91667 | H93: 25547.91667 | I93: 34573.38999 | J93: 29753.27843 | K93: 29753.27843 | L93: 18292.82722 | M93: 139034.7714 | N93: 95303.65144 | S93: 6337.219915 | T93: 3519.019086 | U93: 3519.019086 | W93: 7686.301351 | X93: 19823.50046 | Y93: 3519.019086
A94: 91 | B94: 900000 | C94: 25714.38763 | D94: 97372.94816 | E94: 92777.52564 | F94: 30472.36224 | G94: 25597.57678 | H94: 25597.57678 | I94: 34677.724 | J94: 29802.93854 | K94: 29802.93854 | L94: 19389.74465 | M94: 141716.5881 | N94: 97471.28244 | S94: 6409.573708 | T94: 3559.334073 | U94: 3559.334073 | W94: 7715.656679 | X94: 20015.42986 | Y94: 3559.334073
A95: 92 | B95: 910000 | C95: 25985.98324 | D95: 98441.47579 | E95: 93794.94126 | F95: 30576.69624 | G95: 25647.23688 | H95: 25647.23688 | I95: 34782.058 | J95: 29852.59864 | K95: 29852.59864 | L95: 20486.66208 | M95: 144398.4049 | N95: 99638.91343 | S95: 6481.9275 | T95: 3599.649061 | U95: 3599.649061 | W95: 7745.012007 | X95: 20207.35925 | Y95: 3599.649061
A96: 93 | B96: 920000 | C96: 26257.57884 | D96: 99510.00342 | E96: 94812.35688 | F96: 30681.03025 | G96: 25696.89699 | H96: 25696.89699 | I96: 34886.39201 | J96: 29902.25875 | K96: 29902.25875 | L96: 21583.5795 | M96: 147080.2216 | N96: 101806.5444 | S96: 6554.281293 | T96: 3639.964049 | U96: 3639.964049 | W96: 7774.367335 | X96: 20399.28864 | Y96: 3639.964049
A97: 94 | B97: 930000 | C97: 26529.17444 | D97: 100578.531 | E97: 95829.77249 | F97: 30785.36425 | G97: 25746.5571 | H97: 25746.5571 | I97: 34990.72601 | J97: 29951.91885 | K97: 29951.91885 | L97: 22680.49693 | M97: 149762.0383 | N97: 103974.1754 | S97: 6626.635086 | T97: 3680.279037 | U97: 3680.279037 | W97: 7803.722663 | X97: 20591.21804 | Y97: 3680.279037
A98: 95 | B98: 940000 | C98: 26800.77005 | D98: 101647.0587 | E98: 96847.18811 | F98: 30889.69826 | G98: 25796.2172 | H98: 25796.2172 | I98: 35095.06002 | J98: 30001.57896 | K98: 30001.57896 | L98: 23777.41435 | M98: 152443.8551 | N98: 106141.8064 | S98: 6698.988878 | T98: 3720.594025 | U98: 3720.594025 | W98: 7833.077991 | X98: 20783.14743 | Y98: 3720.594025
A99: 96 | B99: 950000 | C99: 27072.36565 | D99: 102715.5863 | E99: 97864.60373 | F99: 30994.03226 | G99: 25845.87731 | H99: 25845.87731 | I99: 35199.39402 | J99: 30051.23907 | K99: 30051.23907 | L99: 24874.33178 | M99: 155125.6718 | N99: 108309.4374 | S99: 6771.342671 | T99: 3760.909013 | U99: 3760.909013 | W99: 7862.433319 | X99: 20975.07682 | Y99: 3760.909013
A100: 97 | B100: 960000 | C100: 27343.96126 | D100: 103784.1139 | E100: 98882.01934 | F100: 31098.36627 | G100: 25895.53741 | H100: 25895.53741 | I100: 35303.72803 | J100: 30100.89917 | K100: 30100.89917 | L100: 25971.2492 | M100: 157807.4885 | N100: 110477.0684 | S100: 6843.696464 | T100: 3801.224001 | U100: 3801.224001 | W100: 7891.788647 | X100: 21167.00622 | Y100: 3801.224001
A101: 98 | B101: 970000 | C101: 27615.55686 | D101: 104852.6416 | E101: 99899.43496 | F101: 31202.70027 | G101: 25945.19752 | H101: 25945.19752 | I101: 35408.06203 | J101: 30150.55928 | K101: 30150.55928 | L101: 27068.16663 | M101: 160489.3053 | N101: 112644.6994 | S101: 6916.050256 | T101: 3841.538989 | U101: 3841.538989 | W101: 7921.143975 | X101: 21358.93561 | Y101: 3841.538989
A102: 99 | B102: 980000 | C102: 27887.15246 | D102: 105921.1692 | E102: 100916.8506 | F102: 31307.03428 | G102: 25994.85763 | H102: 25994.85763 | I102: 35512.39604 | J102: 30200.21938 | K102: 30200.21938 | L102: 28165.08405 | M102: 163171.122 | N102: 114812.3304 | S102: 6988.404049 | T102: 3881.853977 | U102: 3881.853977 | W102: 7950.499303 | X102: 21550.865 | Y102: 3881.853977
A103: 100 | B103: 990000 | C103: 28158.74807 | D103: 106989.6968 | E103: 101934.2662 | F103: 31411.36828 | G103: 26044.51773 | H103: 26044.51773 | I103: 35616.73004 | J103: 30249.87949 | K103: 30249.87949 | L103: 29262.00148 | M103: 165852.897 | N103: 116979.9203 | S103: 7060.757842 | T103: 3922.168966 | U103: 3922.168966 | W103: 7979.854631 | X103: 21742.7944 | Y103: 3922.168966
A104: 101 | B104: 1000000 | C104: 28430.34367 | D104: 108058.2245 | E104: 102951.6818 | F104: 31515.70229 | G104: 26094.17784 | H104: 26094.17784 | I104: 35721.06404 | J104: 30299.5396 | K104: 30299.5396 | L104: 30358.9189 | M104: 168534.4362 | N104: 119147.2781 | S104: 7133.111635 | T104: 3962.483959 | U104: 3962.483959 | W104: 8009.209959 | X104: 21934.72379 | Y104: 3962.483959
A105: 102 | B105: 1010000 | C105: 28701.93927 | D105: 109126.7521 | E105: 103969.0974 | F105: 31620.03629 | G105: 26143.83795 | H105: 26143.83795 | I105: 35825.39805 | J105: 30349.19971 | K105: 30349.19971 | L105: 31455.83633 | M105: 171215.9754 | N105: 121314.6358 | S105: 7205.465427 | T105: 4002.798952 | U105: 4002.798952 | W105: 8030.946014 | X105: 22115.26338 | Y105: 4002.798952
A106: 103 | B106: 1020000 | C106: 28973.53488 | D106: 110195.2797 | E106: 104986.5131 | F106: 31724.3703 | G106: 26193.49806 | H106: 26193.49806 | I106: 35929.73205 | J106: 30398.85982 | K106: 30398.85982 | L106: 32552.75375 | M106: 173897.5146 | N106: 123481.9936 | S106: 7277.81922 | T106: 4043.113944 | U106: 4043.113944 | W106: 8052.682069 | X106: 22295.80297 | Y106: 4043.113944
A107: 104 | B107: 1030000 | C107: 29245.13048 | D107: 111263.8074 | E107: 106003.9287 | F107: 31828.7043 | G107: 26243.15817 | H107: 26243.15817 | I107: 36034.06606 | J107: 30448.51993 | K107: 30448.51993 | L107: 33649.67118 | M107: 176579.0538 | N107: 125649.3514 | S107: 7350.173013 | T107: 4083.428937 | U107: 4083.428937 | W107: 8074.418124 | X107: 22476.34256 | Y107: 4083.428937
A108: 105 | B108: 1040000 | C108: 29516.72609 | D108: 112332.335 | E108: 107021.3443 | F108: 31933.03831 | G108: 26292.81828 | H108: 26292.81828 | I108: 36138.40006 | J108: 30498.18004 | K108: 30498.18004 | L108: 34746.5886 | M108: 179260.593 | N108: 127816.7092 | S108: 7422.526805 | T108: 4123.74393 | U108: 4123.74393 | W108: 8096.154179 | X108: 22656.88215 | Y108: 4123.74393
A109: 106 | B109: 1050000 | C109: 29788.32169 | D109: 113400.8626 | E109: 108038.7599 | F109: 32037.37231 | G109: 26342.4784 | H109: 26342.4784 | I109: 36242.73407 | J109: 30547.84015 | K109: 30547.84015 | L109: 35843.50603 | M109: 181942.1322 | N109: 129984.067 | S109: 7494.880598 | T109: 4164.058923 | U109: 4164.058923 | W109: 8117.890233 | X109: 22837.42174 | Y109: 4164.058923
A110: 107 | B110: 1060000 | C110: 30059.91729 | D110: 114469.3903 | E110: 109056.1755 | F110: 32141.70632 | G110: 26392.13851 | H110: 26392.13851 | I110: 36347.06807 | J110: 30597.50026 | K110: 30597.50026 | L110: 36940.42345 | M110: 184623.6714 | N110: 132151.4248 | S110: 7567.234391 | T110: 4204.373916 | U110: 4204.373916 | W110: 8139.626288 | X110: 23017.96133 | Y110: 4204.373916
A111: 108 | B111: 1070000 | C111: 30331.5129 | D111: 115537.9179 | E111: 110073.5912 | F111: 32246.04032 | G111: 26441.79862 | H111: 26441.79862 | I111: 36451.40208 | J111: 30647.16037 | K111: 30647.16037 | L111: 38037.34088 | M111: 187305.2107 | N111: 134318.7826 | S111: 7639.588183 | T111: 4244.688908 | U111: 4244.688908 | W111: 8161.362343 | X111: 23198.50092 | Y111: 4244.688908
A112: 109 | B112: 1080000 | C112: 30603.1085 | D112: 116606.4455 | E112: 111091.0068 | F112: 32350.37432 | G112: 26491.45873 | H112: 26491.45873 | I112: 36555.73608 | J112: 30696.82048 | K112: 30696.82048 | L112: 39134.2583 | M112: 189986.7499 | N112: 136486.1404 | S112: 7711.941976 | T112: 4285.003901 | U112: 4285.003901 | W112: 8183.098398 | X112: 23379.04051 | Y112: 4285.003901
A113: 110 | B113: 1090000 | C113: 30874.70411 | D113: 117674.9732 | E113: 112108.4224 | F113: 32454.70833 | G113: 26541.11884 | H113: 26541.11884 | I113: 36660.07009 | J113: 30746.48059 | K113: 30746.48059 | L113: 40231.17573 | M113: 192668.2891 | N113: 138653.4982 | S113: 7784.295769 | T113: 4325.318894 | U113: 4325.318894 | W113: 8204.834453 | X113: 23559.5801 | Y113: 4325.318894
A114: 111 | B114: 1100000 | C114: 31146.29971 | D114: 118743.5008 | E114: 113125.838 | F114: 32559.04233 | G114: 26590.77895 | H114: 26590.77895 | I114: 36764.40409 | J114: 30796.14071 | K114: 30796.14071 | L114: 41328.09316 | M114: 195349.8283 | N114: 140820.856 | S114: 7856.649561 | T114: 4365.633887 | U114: 4365.633887 | W114: 8226.570507 | X114: 23740.11969 | Y114: 4365.633887
A115: 112 | B115: 1110000 | C115: 31417.89531 | D115: 119812.0285 | E115: 114143.2537 | F115: 32663.37634 | G115: 26640.43906 | H115: 26640.43906 | I115: 36868.7381 | J115: 30845.80082 | K115: 30845.80082 | L115: 42425.01058 | M115: 198031.3675 | N115: 142988.2138 | S115: 7929.003354 | T115: 4405.94888 | U115: 4405.94888 | W115: 8248.306562 | X115: 23920.65928 | Y115: 4405.94888
A116: 113 | B116: 1120000 | C116: 31689.49092 | D116: 120880.5561 | E116: 115160.6693 | F116: 32767.71034 | G116: 26690.09917 | H116: 26690.09917 | I116: 36973.0721 | J116: 30895.46093 | K116: 30895.46093 | L116: 43521.92801 | M116: 200712.9067 | N116: 145155.5716 | S116: 8001.357147 | T116: 4446.263873 | U116: 4446.263873 | W116: 8270.042617 | X116: 24101.19887 | Y116: 4446.263873
A117: 114 | B117: 1130000 | C117: 31961.08652 | D117: 121949.0837 | E117: 116178.0849 | F117: 32872.04435 | G117: 26739.75928 | H117: 26739.75928 | I117: 37077.40611 | J117: 30945.12104 | K117: 30945.12104 | L117: 44618.84543 | M117: 203394.4459 | N117: 147322.9293 | S117: 8073.710939 | T117: 4486.578865 | U117: 4486.578865 | W117: 8291.778672 | X117: 24281.73846 | Y117: 4486.578865
A118: 115 | B118: 1140000 | C118: 32232.68213 | D118: 123017.6114 | E118: 117195.5005 | F118: 32976.37835 | G118: 26789.41939 | H118: 26789.41939 | I118: 37181.74011 | J118: 30994.78115 | K118: 30994.78115 | L118: 45715.76286 | M118: 206075.9851 | N118: 149490.2871 | S118: 8146.064732 | T118: 4526.893858 | U118: 4526.893858 | W118: 8313.514727 | X118: 24462.27805 | Y118: 4526.893858
A119: 116 | B119: 1150000 | C119: 32504.27773 | D119: 124086.139 | E119: 118212.9161 | F119: 33080.71236 | G119: 26839.0795 | H119: 26839.0795 | I119: 37286.07412 | J119: 31044.44126 | K119: 31044.44126 | L119: 46812.68028 | M119: 208757.5243 | N119: 151657.6449 | S119: 8218.418525 | T119: 4567.208851 | U119: 4567.208851 | W119: 8335.250781 | X119: 24642.81764 | Y119: 4567.208851
A120: 117 | B120: 1160000 | C120: 32775.87333 | D120: 125154.6666 | E120: 119230.3318 | F120: 33185.04636 | G120: 26888.73961 | H120: 26888.73961 | I120: 37390.40812 | J120: 31094.10137 | K120: 31094.10137 | L120: 47909.59771 | M120: 211439.0636 | N120: 153825.0027 | S120: 8290.772317 | T120: 4607.523844 | U120: 4607.523844 | W120: 8356.986836 | X120: 24823.35723 | Y120: 4607.523844
A121: 118 | B121: 1170000 | C121: 33047.46894 | D121: 126223.1943 | E121: 120247.7474 | F121: 33289.38037 | G121: 26938.39972 | H121: 26938.39972 | I121: 37494.74213 | J121: 31143.76148 | K121: 31143.76148 | L121: 49006.51513 | M121: 214120.6028 | N121: 155992.3605 | S121: 8363.12611 | T121: 4647.838837 | U121: 4647.838837 | W121: 8378.722891 | X121: 25003.89682 | Y121: 4647.838837
A122: 119 | B122: 1180000 | C122: 33319.06454 | D122: 127291.7219 | E122: 121265.163 | F122: 33393.71437 | G122: 26988.05983 | H122: 26988.05983 | I122: 37599.07613 | J122: 31193.42159 | K122: 31193.42159 | L122: 50103.43256 | M122: 216802.142 | N122: 158159.7183 | S122: 8435.479903 | T122: 4688.15383 | U122: 4688.15383 | W122: 8400.458946 | X122: 25184.43641 | Y122: 4688.15383
A123: 120 | B123: 1190000 | C123: 33590.66014 | D123: 128360.2495 | E123: 122282.5786 | F123: 33498.04838 | G123: 27037.71994 | H123: 27037.71994 | I123: 37703.41014 | J123: 31243.0817 | K123: 31243.0817 | L123: 51200.34998 | M123: 219483.6812 | N123: 160327.0761 | S123: 8507.833696 | T123: 4728.468822 | U123: 4728.468822 | W123: 8422.195001 | X123: 25364.976 | Y123: 4728.468822
A124: 121 | B124: 1200000 | C124: 33862.25575 | D124: 129428.7772 | E124: 123299.9943 | F124: 33602.38238 | G124: 27087.38005 | H124: 27087.38005 | I124: 37807.74414 | J124: 31292.74181 | K124: 31292.74181 | L124: 52297.26741 | M124: 222165.2204 | N124: 162494.4339 | S124: 8580.187488 | T124: 4768.783815 | U124: 4768.783815 | W124: 8443.931055 | X124: 25545.51559 | Y124: 4768.783815
A125: 122 | B125: 1210000 | C125: 34133.85135 | D125: 130497.3048 | E125: 124317.4099 | F125: 33706.71639 | G125: 27137.04016 | H125: 27137.04016 | I125: 37912.07815 | J125: 31342.40192 | K125: 31342.40192 | L125: 53394.18483 | M125: 224846.7596 | N125: 164661.7917 | S125: 8652.541281 | T125: 4809.098808 | U125: 4809.098808 | W125: 8465.66711 | X125: 25726.05518 | Y125: 4809.098808
A126: 123 | B126: 1220000 | C126: 34405.44696 | D126: 131565.8325 | E126: 125334.8255 | F126: 33811.05039 | G126: 27186.70027 | H126: 27186.70027 | I126: 38016.41215 | J126: 31392.06203 | K126: 31392.06203 | L126: 54491.10226 | M126: 227528.2988 | N126: 166829.1495 | S126: 8724.895074 | T126: 4849.413801 | U126: 4849.413801 | W126: 8487.403165 | X126: 25906.59477 | Y126: 4849.413801
A127: 124 | B127: 1230000 | C127: 34677.04256 | D127: 132634.3601 | E127: 126352.2411 | F127: 33915.3844 | G127: 27236.36038 | H127: 27236.36038 | I127: 38120.74615 | J127: 31441.72214 | K127: 31441.72214 | L127: 55588.01968 | M127: 230209.838 | N127: 168996.5073 | S127: 8797.248866 | T127: 4889.728794 | U127: 4889.728794 | W127: 8509.13922 | X127: 26087.13436 | Y127: 4889.728794
A128: 125 | B128: 1240000 | C128: 34948.63816 | D128: 133702.8877 | E128: 127369.6567 | F128: 34019.7184 | G128: 27286.02049 | H128: 27286.02049 | I128: 38225.08016 | J128: 31491.38225 | K128: 31491.38225 | L128: 56684.93711 | M128: 232891.3772 | N128: 171163.865 | S128: 8869.602659 | T128: 4930.043786 | U128: 4930.043786 | W128: 8530.875275 | X128: 26267.67395 | Y128: 4930.043786
A129: 126 | B129: 1250000 | C129: 35220.23377 | D129: 134771.4154 | E129: 128387.0724 | F129: 34124.05241 | G129: 27335.6806 | H129: 27335.6806 | I129: 38329.41416 | J129: 31541.04236 | K129: 31541.04236 | L129: 57781.85453 | M129: 235572.9165 | N129: 173331.2228 | S129: 8941.956452 | T129: 4970.358779 | U129: 4970.358779 | W129: 8552.611329 | X129: 26448.21354 | Y129: 4970.358779
A130: 127 | B130: 1260000 | C130: 35491.82937 | D130: 135839.943 | E130: 129404.488 | F130: 34228.38641 | G130: 27385.34071 | H130: 27385.34071 | I130: 38433.74817 | J130: 31590.70247 | K130: 31590.70247 | L130: 58878.77196 | M130: 238254.4557 | N130: 175498.5806 | S130: 9014.310244 | T130: 5010.673772 | U130: 5010.673772 | W130: 8574.347384 | X130: 26628.75313 | Y130: 5010.673772
A131: 128 | B131: 1270000 | C131: 35763.42498 | D131: 136908.4706 | E131: 130421.9036 | F131: 34332.72042 | G131: 27435.00082 | H131: 27435.00082 | I131: 38538.08217 | J131: 31640.36258 | K131: 31640.36258 | L131: 59975.68939 | M131: 240935.9949 | N131: 177665.9384 | S131: 9086.664037 | T131: 5050.988765 | U131: 5050.988765 | W131: 8596.083439 | X131: 26809.29272 | Y131: 5050.988765
A132: 129 | B132: 1280000 | C132: 36035.02058 | D132: 137976.9983 | E132: 131439.3192 | F132: 34437.05442 | G132: 27484.66093 | H132: 27484.66093 | I132: 38642.41618 | J132: 31690.02269 | K132: 31690.02269 | L132: 61072.60681 | M132: 243617.5341 | N132: 179833.2962 | S132: 9159.01783 | T132: 5091.303758 | U132: 5091.303758 | W132: 8617.819494 | X132: 26989.83231 | Y132: 5091.303758
A133: 130 | B133: 1290000 | C133: 36306.61618 | D133: 139045.5259 | E133: 132456.7349 | F133: 34541.38843 | G133: 27534.32104 | H133: 27534.32104 | I133: 38746.75018 | J133: 31739.6828 | K133: 31739.6828 | L133: 62169.52424 | M133: 246299.0733 | N133: 182000.654 | S133: 9231.371622 | T133: 5131.618751 | U133: 5131.618751 | W133: =IF($B133<=$AA$6,W$4+($B133-0)/($AA$6-0)*($AD$6-0),IF($B133<=$AA$7,$AD$6+($B133-$AA$6)/($AA$7-$AA$6)*($AD$7-$AD$6),$AD$7+($B133-$AA$7)/($AA$8-$AA$7)*($AD$8-$AD$7)))/1000 -> 8639.555549 | X133: 27170.3719 | Y133: =OFFSET(S133,0,$Q$8-1) -> 5131.618751
A134: =A133+1 -> 131 | B134: =B133+10000 -> 1300000 | C134: 36578.21179 | D134: 140114.0535 | E134: 133474.1505 | F134: 34645.72243 | G134: 27583.98115 | H134: 27583.98115 | I134: 38851.08419 | J134: 31789.34291 | K134: 31789.34291 | L134: 63266.44166 | M134: 248980.6125 | N134: 184168.0118 | S134: 9303.725415 | T134: 5171.933743 | U134: 5171.933743 | W134: 8661.291603 | X134: =IF($B134<=$AA$6,X$4+($B134-0)/($AA$6-0)*($AE$6-0),IF($B134<=$AA$7,$AE$6+($B134-$AA$6)/($AA$7-$AA$6)*($AE$7-$AE$6),$AE$7+($B134-$AA$7)/($AA$8-$AA$7)*($AE$8-$AE$7)))/1000 -> 27350.91149 | Y134: 5171.933743
A135: 132 | B135: 1310000 | C135: 36849.80739 | D135: 141182.5812 | E135: 134491.5661 | F135: 34750.05643 | G135: 27633.64126 | H135: 27633.64126 | I135: 38955.41819 | J135: 31839.00302 | K135: 31839.00302 | L135: 64363.35909 | M135: 251662.1517 | N135: 186335.3696 | S135: 9376.079208 | T135: 5212.248736 | U135: 5212.248736 | W135: 8683.027658 | X135: 27531.45108 | Y135: 5212.248736
A136: 133 | B136: 1320000 | C136: 37121.403 | D136: 142251.1088 | E136: 135508.9817 | F136: 34854.39044 | G136: 27683.30137 | H136: 27683.30137 | I136: 39059.7522 | J136: 31888.66313 | K136: 31888.66313 | L136: 65460.27651 | M136: 254343.6909 | N136: 188502.7274 | S136: 9448.433 | T136: 5252.563729 | U136: 5252.563729 | W136: 8704.763713 | X136: 27711.99067 | Y136: 5252.563729
A137: 134 | B137: 1330000 | C137: 37392.9986 | D137: 143319.6365 | E137: 136526.3973 | F137: 34958.72444 | G137: 27732.96148 | H137: 27732.96148 | I137: 39164.0862 | J137: 31938.32324 | K137: 31938.32324 | L137: 66557.19394 | M137: 257025.2301 | N137: 190670.0852 | S137: 9520.786793 | T137: 5292.878722 | U137: 5292.878722 | W137: 8726.499768 | X137: 27892.53026 | Y137: 5292.878722
A138: 135 | B138: 1340000 | C138: 37664.5942 | D138: 144388.1641 | E138: 137543.813 | F138: 35063.05845 | G138: 27782.62159 | H138: 27782.62159 | I138: 39268.42021 | J138: 31987.98335 | K138: 31987.98335 | L138: 67654.11136 | M138: 259706.7694 | N138: 192837.443 | S138: 9593.140586 | T138: 5333.193715 | U138: 5333.193715 | W138: 8748.235823 | X138: 28073.06986 | Y138: 5333.193715
A139: 136 | B139: 1350000 | C139: 37936.18981 | D139: 145456.6917 | E139: 138561.2286 | F139: 35167.39245 | G139: 27832.2817 | H139: 27832.2817 | I139: 39372.75421 | J139: 32037.64346 | K139: 32037.64346 | L139: 68751.02879 | M139: 262388.3086 | N139: 195004.8007 | S139: 9665.494378 | T139: 5373.508708 | U139: 5373.508708 | W139: 8769.971877 | X139: 28253.60945 | Y139: 5373.508708
A140: 137 | B140: 1360000 | C140: 38207.78541 | D140: 146525.2194 | E140: 139578.6442 | F140: 35271.72646 | G140: 27881.94182 | H140: 27881.94182 | I140: 39477.08822 | J140: 32087.30357 | K140: 32087.30357 | L140: 69847.94621 | M140: 265069.8478 | N140: 197172.1585 | S140: 9737.848171 | T140: 5413.8237 | U140: 5413.8237 | W140: 8791.707932 | X140: 28434.14904 | Y140: 5413.8237
A141: 138 | B141: 1370000 | C141: 38479.38101 | D141: 147593.747 | E141: 140596.0598 | F141: 35376.06046 | G141: 27931.60193 | H141: 27931.60193 | I141: 39581.42222 | J141: 32136.96368 | K141: 32136.96368 | L141: 70944.86364 | M141: 267751.387 | N141: 199339.5163 | S141: 9810.201964 | T141: 5454.138693 | U141: 5454.138693 | W141: 8813.443987 | X141: 28614.68863 | Y141: 5454.138693
A142: 139 | B142: 1380000 | C142: 38750.97662 | D142: 148662.2746 | E142: 141613.4755 | F142: 35480.39447 | G142: 27981.26204 | H142: 27981.26204 | I142: 39685.75623 | J142: 32186.62379 | K142: 32186.62379 | L142: 72041.78106 | M142: 270432.9262 | N142: 201506.8741 | S142: 9882.555757 | T142: 5494.453686 | U142: 5494.453686 | W142: 8835.180042 | X142: 28795.22822 | Y142: 5494.453686
A143: 140 | B143: 1390000 | C143: 39022.57222 | D143: 149730.8023 | E143: 142630.8911 | F143: 35584.72847 | G143: 28030.92215 | H143: 28030.92215 | I143: 39790.09023 | J143: 32236.2839 | K143: 32236.2839 | L143: 73138.69849 | M143: 273114.4654 | N143: 203674.2319 | S143: 9954.909549 | T143: 5534.768679 | U143: 5534.768679 | W143: 8856.916097 | X143: 28975.76781 | Y143: 5534.768679
A144: 141 | B144: 1400000 | C144: 39294.16783 | D144: 150799.3299 | E144: 143648.3067 | F144: 35689.06248 | G144: 28080.58226 | H144: 28080.58226 | I144: 39894.42424 | J144: 32285.94401 | K144: 32285.94401 | L144: 74235.61591 | M144: 275796.0046 | N144: 205841.5897 | S144: 10027.26334 | T144: 5575.083672 | U144: 5575.083672 | W144: 8878.652151 | X144: 29156.3074 | Y144: 5575.083672
A145: 142 | B145: 1410000 | C145: 39565.76343 | D145: 151867.8575 | E145: 144665.7223 | F145: 35793.39648 | G145: 28130.24237 | H145: 28130.24237 | I145: 39998.75824 | J145: 32335.60412 | K145: 32335.60412 | L145: 75332.53334 | M145: 278477.5438 | N145: 208008.9475 | S145: 10099.61713 | T145: 5615.398665 | U145: 5615.398665 | W145: 8900.388206 | X145: 29336.84699 | Y145: 5615.398665
A146: 143 | B146: 1420000 | C146: 39837.35903 | D146: 152936.3852 | E146: 145683.1379 | F146: 35897.73049 | G146: 28179.90248 | H146: 28179.90248 | I146: 40103.09225 | J146: 32385.26424 | K146: 32385.26424 | L146: 76429.45076 | M146: 281159.083 | N146: 210176.3053 | S146: 10171.97093 | T146: 5655.713657 | U146: 5655.713657 | W146: 8922.124261 | X146: 29517.38658 | Y146: 5655.713657
A147: 144 | B147: 1430000 | C147: 40108.95464 | D147: 154004.9128 | E147: 146700.5536 | F147: 36002.06449 | G147: 28229.56259 | H147: 28229.56259 | I147: 40207.42625 | J147: 32434.92435 | K147: 32434.92435 | L147: 77526.36819 | M147: 283840.6223 | N147: 212343.6631 | S147: 10244.32472 | T147: 5696.02865 | U147: 5696.02865 | W147: 8943.860316 | X147: 29697.92617 | Y147: 5696.02865
A148: 145 | B148: 1440000 | C148: 40380.55024 | D148: 155073.4405 | E148: 147717.9692 | F148: 36106.3985 | G148: 28279.2227 | H148: 28279.2227 | I148: 40311.76026 | J148: 32484.58446 | K148: 32484.58446 | L148: 78623.28561 | M148: 286522.1615 | N148: 214511.0209 | S148: 10316.67851 | T148: 5736.343643 | U148: 5736.343643 | W148: 8965.596371 | X148: 29878.46576 | Y148: 5736.343643
A149: 146 | B149: 1450000 | C149: 40652.14585 | D149: 156141.9681 | E149: 148735.3848 | F149: 36210.7325 | G149: 28328.88281 | H149: 28328.88281 | I149: 40416.09426 | J149: 32534.24457 | K149: 32534.24457 | L149: 79720.20304 | M149: 289203.7007 | N149: 216678.3787 | S149: 10389.03231 | T149: 5776.658636 | U149: 5776.658636 | W149: 8987.332426 | X149: 30059.00535 | Y149: 5776.658636
A150: 147 | B150: 1460000 | C150: 40923.74145 | D150: 157210.4957 | E150: 149752.8004 | F150: 36315.06651 | G150: 28378.54292 | H150: 28378.54292 | I150: 40520.42827 | J150: 32583.90468 | K150: 32583.90468 | L150: 80817.12047 | M150: 291885.2399 | N150: 218845.7364 | S150: 10461.3861 | T150: 5816.973629 | U150: 5816.973629 | W150: 9009.06848 | X150: 30239.54494 | Y150: 5816.973629
A151: 148 | B151: 1470000 | C151: 41195.33705 | D151: 158279.0234 | E151: 150770.216 | F151: 36419.40051 | G151: 28428.20303 | H151: 28428.20303 | I151: 40624.76227 | J151: 32633.56479 | K151: 32633.56479 | L151: 81914.03789 | M151: 294566.7791 | N151: 221013.0942 | S151: 10533.73989 | T151: 5857.288621 | U151: 5857.288621 | W151: 9030.804535 | X151: 30420.08453 | Y151: 5857.288621
A152: 149 | B152: 1480000 | C152: 41466.93266 | D152: 159347.551 | E152: 151787.6317 | F152: 36523.73452 | G152: 28477.86314 | H152: 28477.86314 | I152: 40729.09627 | J152: 32683.2249 | K152: 32683.2249 | L152: 83010.95532 | M152: 297248.3183 | N152: 223180.452 | S152: 10606.09368 | T152: 5897.603614 | U152: 5897.603614 | W152: 9052.54059 | X152: 30600.62412 | Y152: 5897.603614
A153: 150 | B153: 1490000 | C153: 41738.52826 | D153: 160416.0786 | E153: 152805.0473 | F153: 36628.06852 | G153: 28527.52325 | H153: 28527.52325 | I153: 40833.43028 | J153: 32732.88501 | K153: 32732.88501 | L153: 84107.87274 | M153: 299929.8575 | N153: 225347.8098 | S153: 10678.44748 | T153: 5937.918607 | U153: 5937.918607 | W153: 9074.276645 | X153: 30781.16371 | Y153: 5937.918607
A154: 151 | B154: 1500000 | C154: 42010.12387 | D154: 161484.6063 | E154: 153822.4629 | F154: 36732.40253 | G154: 28577.18336 | H154: 28577.18336 | I154: 40937.76428 | J154: 32782.54512 | K154: 32782.54512 | L154: 85204.79017 | M154: 302611.3967 | N154: 227515.1676 | S154: 10750.80127 | T154: 5978.2336 | U154: 5978.2336 | W154: 9096.0127 | X154: 30961.7033 | Y154: 5978.2336
A155: 152 | B155: 1510000 | C155: 42281.71947 | D155: 162553.1339 | E155: 154839.8785 | F155: 36836.73653 | G155: 28626.84347 | H155: 28626.84347 | I155: 41042.09829 | J155: 32832.20523 | K155: 32832.20523 | L155: 86301.70759 | M155: 305292.9359 | N155: 229682.5254 | S155: 10823.15506 | T155: 6018.548593 | U155: 6018.548593 | W155: 9117.748754 | X155: 31142.24289 | Y155: 6018.548593
A156: 153 | B156: 1520000 | C156: 42553.31507 | D156: 163621.6615 | E156: 155857.2942 | F156: 36941.07054 | G156: 28676.50358 | H156: 28676.50358 | I156: 41146.43229 | J156: 32881.86534 | K156: 32881.86534 | L156: 87398.62502 | M156: 307974.4751 | N156: 231849.8832 | S156: 10895.50885 | T156: 6058.863586 | U156: 6058.863586 | W156: 9139.484809 | X156: 31322.78248 | Y156: 6058.863586
A157: 154 | B157: 1530000 | C157: 42824.91068 | D157: 164690.1892 | E157: 156874.7098 | F157: 37045.40454 | G157: 28726.16369 | H157: 28726.16369 | I157: 41250.7663 | J157: 32931.52545 | K157: 32931.52545 | L157: 88495.54244 | M157: 310656.0144 | N157: 234017.241 | S157: 10967.86265 | T157: 6099.178578 | U157: 6099.178578 | W157: 9161.220864 | X157: 31503.32207 | Y157: 6099.178578
A158: 155 | B158: 1540000 | C158: 43096.50628 | D158: 165758.7168 | E158: 157892.1254 | F158: 37149.73855 | G158: 28775.8238 | H158: 28775.8238 | I158: 41355.1003 | J158: 32981.18556 | K158: 32981.18556 | L158: 89592.45987 | M158: 313337.5536 | N158: 236184.5988 | S158: 11040.21644 | T158: 6139.493571 | U158: 6139.493571 | W158: 9182.956919 | X158: 31683.86166 | Y158: 6139.493571
A159: 156 | B159: 1550000 | C159: 43368.10188 | D159: 166827.2444 | E159: 158909.541 | F159: 37254.07255 | G159: 28825.48391 | H159: 28825.48391 | I159: 41459.43431 | J159: 33030.84567 | K159: 33030.84567 | L159: 90689.37729 | M159: 316019.0928 | N159: 238351.9566 | S159: 11112.57023 | T159: 6179.808564 | U159: 6179.808564 | W159: 9204.692974 | X159: 31864.40125 | Y159: 6179.808564
A160: 157 | B160: 1560000 | C160: 43639.69749 | D160: 167895.7721 | E160: 159926.9566 | F160: 37358.40655 | G160: 28875.14402 | H160: 28875.14402 | I160: 41563.76831 | J160: 33080.50578 | K160: 33080.50578 | L160: 91786.29472 | M160: 318700.632 | N160: 240519.3144 | S160: 11184.92402 | T160: 6220.123557 | U160: 6220.123557 | W160: 9226.429028 | X160: 32044.94084 | Y160: 6220.123557
A161: 158 | B161: 1570000 | C161: 43911.29309 | D161: 168964.2997 | E161: 160944.3723 | F161: 37462.74056 | G161: 28924.80413 | H161: 28924.80413 | I161: 41668.10232 | J161: 33130.16589 | K161: 33130.16589 | L161: 92883.21214 | M161: 321382.1712 | N161: 242686.6721 | S161: 11257.27782 | T161: 6260.43855 | U161: 6260.43855 | W161: 9248.165083 | X161: 32225.48043 | Y161: 6260.43855
A162: 159 | B162: 1580000 | C162: 44182.8887 | D162: 170032.8274 | E162: 161961.7879 | F162: 37567.07456 | G162: 28974.46424 | H162: 28974.46424 | I162: 41772.43632 | J162: 33179.826 | K162: 33179.826 | L162: 93980.12957 | M162: 324063.7104 | N162: 244854.0299 | S162: 11329.63161 | T162: 6300.753543 | U162: 6300.753543 | W162: 9269.901138 | X162: 32406.02002 | Y162: 6300.753543
A163: 160 | B163: 1590000 | C163: 44454.4843 | D163: 171101.355 | E163: 162979.2035 | F163: 37671.40857 | G163: 29024.12435 | H163: 29024.12435 | I163: 41876.77033 | J163: 33229.48611 | K163: 33229.48611 | L163: 95077.04699 | M163: 326745.2496 | N163: 247021.3877 | S163: 11401.9854 | T163: 6341.068535 | U163: 6341.068535 | W163: 9291.637193 | X163: 32586.55961 | Y163: 6341.068535
A164: 161 | B164: 1600000 | C164: 44726.0799 | D164: 172169.8826 | E164: 163996.6191 | F164: 37775.74257 | G164: 29073.78446 | H164: 29073.78446 | I164: 41981.10433 | J164: 33279.14622 | K164: 33279.14622 | L164: 96173.96442 | M164: 329426.7888 | N164: 249188.7455 | S164: 11474.3392 | T164: 6381.383528 | U164: 6381.383528 | W164: 9313.373248 | X164: 32767.0992 | Y164: 6381.383528
A165: 162 | B165: 1610000 | C165: 44997.67551 | D165: 173238.4103 | E165: 165014.0348 | F165: 37880.07658 | G165: 29123.44457 | H165: 29123.44457 | I165: 42085.43834 | J165: 33328.80633 | K165: 33328.80633 | L165: 97270.88184 | M165: 332108.328 | N165: 251356.1033 | S165: 11546.69299 | T165: 6421.698521 | U165: 6421.698521 | W165: 9335.109302 | X165: 32947.63879 | Y165: 6421.698521
A166: 163 | B166: 1620000 | C166: 45269.27111 | D166: 174306.9379 | E166: 166031.4504 | F166: 37984.41058 | G166: 29173.10468 | H166: 29173.10468 | I166: 42189.77234 | J166: 33378.46644 | K166: 33378.46644 | L166: 98367.79927 | M166: 334789.8673 | N166: 253523.4611 | S166: 11619.04678 | T166: 6462.013514 | U166: 6462.013514 | W166: 9356.845357 | X166: 33128.17838 | Y166: 6462.013514
A167: 164 | B167: 1630000 | C167: 45540.86672 | D167: 175375.4655 | E167: 167048.866 | F167: 38088.74459 | G167: 29222.76479 | H167: 29222.76479 | I167: 42294.10635 | J167: 33428.12655 | K167: 33428.12655 | L167: 99464.7167 | M167: 337471.4065 | N167: 255690.8189 | S167: 11691.40057 | T167: 6502.328507 | U167: 6502.328507 | W167: 9378.581412 | X167: 33308.71797 | Y167: 6502.328507
A168: 165 | B168: 1640000 | C168: 45812.46232 | D168: 176443.9932 | E168: 168066.2816 | F168: 38193.07859 | G168: 29272.4249 | H168: 29272.4249 | I168: 42398.44035 | J168: 33477.78666 | K168: 33477.78666 | L168: 100561.6341 | M168: 340152.9457 | N168: 257858.1767 | S168: 11763.75437 | T168: 6542.643499 | U168: 6542.643499 | W168: 9400.317467 | X168: 33489.25756 | Y168: 6542.643499
A169: 166 | B169: 1650000 | C169: 46084.05792 | D169: 177512.5208 | E169: 169083.6972 | F169: 38297.4126 | G169: 29322.08501 | H169: 29322.08501 | I169: 42502.77436 | J169: 33527.44677 | K169: 33527.44677 | L169: 101658.5515 | M169: 342834.4849 | N169: 260025.5345 | S169: 11836.10816 | T169: 6582.958492 | U169: 6582.958492 | W169: 9422.053522 | X169: 33669.79715 | Y169: 6582.958492
A170: 167 | B170: 1660000 | C170: 46355.65353 | D170: 178581.0484 | E170: 170101.1129 | F170: 38401.7466 | G170: 29371.74512 | H170: 29371.74512 | I170: 42607.10836 | J170: 33577.10688 | K170: 33577.10688 | L170: 102755.469 | M170: 345516.0241 | N170: 262192.8923 | S170: 11908.46195 | T170: 6623.273485 | U170: 6623.273485 | W170: 9443.789576 | X170: 33850.33674 | Y170: 6623.273485
A171: 168 | B171: 1670000 | C171: 46627.24913 | D171: 179649.5761 | E171: 171118.5285 | F171: 38506.08061 | G171: 29421.40523 | H171: 29421.40523 | I171: 42711.44237 | J171: 33626.76699 | K171: 33626.76699 | L171: 103852.3864 | M171: 348197.5633 | N171: 264360.2501 | S171: 11980.81574 | T171: 6663.588478 | U171: 6663.588478 | W171: 9465.525631 | X171: 34030.87633 | Y171: 6663.588478
A172: 169 | B172: 1680000 | C172: 46898.84474 | D172: 180718.1037 | E172: 172135.9441 | F172: 38610.41461 | G172: 29471.06535 | H172: 29471.06535 | I172: 42815.77637 | J172: 33676.4271 | K172: 33676.4271 | L172: 104949.3038 | M172: 350879.1025 | N172: 266527.6079 | S172: 12053.16954 | T172: 6703.903471 | U172: 6703.903471 | W172: 9487.261686 | X172: 34211.41592 | Y172: 6703.903471
A173: 170 | B173: 1690000 | C173: 47170.44034 | D173: 181786.6314 | E173: 173153.3597 | F173: 38714.74862 | G173: 29520.72546 | H173: 29520.72546 | I173: 42920.11038 | J173: 33726.08721 | K173: 33726.08721 | L173: 106046.2212 | M173: 353560.6417 | N173: 268694.9656 | S173: 12125.52333 | T173: 6744.218464 | U173: 6744.218464 | W173: 9508.997741 | X173: 34391.95551 | Y173: 6744.218464
A174: 171 | B174: 1700000 | C174: 47442.03594 | D174: 182855.159 | E174: 174170.7754 | F174: 38819.08262 | G174: 29570.38557 | H174: 29570.38557 | I174: 43024.44438 | J174: 33775.74732 | K174: 33775.74732 | L174: 107143.1387 | M174: 356242.1809 | N174: 270862.3234 | S174: 12197.87712 | T174: 6784.533456 | U174: 6784.533456 | W174: 9530.733796 | X174: 34572.4951 | Y174: 6784.533456
A175: 172 | B175: 1710000 | C175: 47713.63155 | D175: 183923.6866 | E175: 175188.191 | F175: 38923.41663 | G175: 29620.04568 | H175: 29620.04568 | I175: 43128.77838 | J175: 33825.40743 | K175: 33825.40743 | L175: 108240.0561 | M175: 358923.7202 | N175: 273029.6812 | S175: 12270.23092 | T175: 6824.848449 | U175: 6824.848449 | W175: 9552.46985 | X175: 34753.03469 | Y175: 6824.848449
A176: 173 | B176: 1720000 | C176: 47985.22715 | D176: 184992.2143 | E176: 176205.6066 | F176: 39027.75063 | G176: 29669.70579 | H176: 29669.70579 | I176: 43233.11239 | J176: 33875.06754 | K176: 33875.06754 | L176: 109336.9735 | M176: 361605.2594 | N176: 275197.039 | S176: 12342.58471 | T176: 6865.163442 | U176: 6865.163442 | W176: 9574.205905 | X176: 34933.57428 | Y176: 6865.163442
A177: 174 | B177: 1730000 | C177: 48256.82275 | D177: 186060.7419 | E177: 177223.0222 | F177: 39132.08464 | G177: 29719.3659 | H177: 29719.3659 | I177: 43337.44639 | J177: 33924.72765 | K177: 33924.72765 | L177: 110433.8909 | M177: 364286.7986 | N177: 277364.3968 | S177: 12414.9385 | T177: 6905.478435 | U177: 6905.478435 | W177: 9595.94196 | X177: 35114.11387 | Y177: 6905.478435
A178: 175 | B178: 1740000 | C178: 48528.41836 | D178: 187129.2695 | E178: 178240.4378 | F178: 39236.41864 | G178: 29769.02601 | H178: 29769.02601 | I178: 43441.7804 | J178: 33974.38777 | K178: 33974.38777 | L178: 111530.8084 | M178: 366968.3378 | N178: 279531.7546 | S178: 12487.29229 | T178: 6945.793428 | U178: 6945.793428 | W178: 9617.678015 | X178: 35294.65346 | Y178: 6945.793428
A179: 176 | B179: 1750000 | C179: 48800.01396 | D179: 188197.7972 | E179: 179257.8535 | F179: 39340.75265 | G179: 29818.68612 | H179: 29818.68612 | I179: 43546.1144 | J179: 34024.04788 | K179: 34024.04788 | L179: 112627.7258 | M179: 369649.877 | N179: 281699.1124 | S179: 12559.64609 | T179: 6986.108421 | U179: 6986.108421 | W179: 9639.41407 | X179: 35475.19305 | Y179: 6986.108421
A180: 177 | B180: 1760000 | C180: 49071.60957 | D180: 189266.3248 | E180: 180275.2691 | F180: 39445.08665 | G180: 29868.34623 | H180: 29868.34623 | I180: 43650.44841 | J180: 34073.70799 | K180: 34073.70799 | L180: 113724.6432 | M180: 372331.4162 | N180: 283866.4702 | S180: 12631.99988 | T180: 7026.423413 | U180: 7026.423413 | W180: 9661.150124 | X180: 35655.73264 | Y180: 7026.423413
A181: 178 | B181: 1770000 | C181: 49343.20517 | D181: 190334.8524 | E181: 181292.6847 | F181: 39549.42066 | G181: 29918.00634 | H181: 29918.00634 | I181: 43754.78241 | J181: 34123.3681 | K181: 34123.3681 | L181: 114821.5606 | M181: 375012.9554 | N181: 286033.828 | S181: 12704.35367 | T181: 7066.738406 | U181: 7066.738406 | W181: 9682.886179 | X181: 35836.27223 | Y181: 7066.738406
A182: 179 | B182: 1780000 | C182: 49614.80077 | D182: 191403.3801 | E182: 182310.1003 | F182: 39653.75466 | G182: 29967.66645 | H182: 29967.66645 | I182: 43859.11642 | J182: 34173.02821 | K182: 34173.02821 | L182: 115918.4781 | M182: 377694.4946 | N182: 288201.1858 | S182: 12776.70746 | T182: 7107.053399 | U182: 7107.053399 | W182: 9704.622234 | X182: 36016.81182 | Y182: 7107.053399
A183: 180 | B183: 1790000 | C183: 49886.39638 | D183: 192471.9077 | E183: 183327.516 | F183: 39758.08866 | G183: 30017.32656 | H183: 30017.32656 | I183: 43963.45042 | J183: 34222.68832 | K183: 34222.68832 | L183: 117015.3955 | M183: 380376.0338 | N183: 290368.5436 | S183: 12849.06126 | T183: 7147.368392 | U183: 7147.368392 | W183: 9726.358289 | X183: 36197.35141 | Y183: 7147.368392
A184: 181 | B184: 1800000 | C184: 50157.99198 | D184: 193540.4354 | E184: 184344.9316 | F184: 39862.42267 | G184: 30066.98667 | H184: 30066.98667 | I184: 44067.78443 | J184: 34272.34843 | K184: 34272.34843 | L184: 118112.3129 | M184: 383057.5731 | N184: 292535.9013 | S184: 12921.41505 | T184: 7187.683385 | U184: 7187.683385 | W184: 9748.094344 | X184: 36377.891 | Y184: 7187.683385
A185: 182 | B185: 1810000 | C185: 50429.58759 | D185: 194608.963 | E185: 185362.3472 | F185: 39966.75667 | G185: 30116.64678 | H185: 30116.64678 | I185: 44172.11843 | J185: 34322.00854 | K185: 34322.00854 | L185: 119209.2304 | M185: 385739.1123 | N185: 294703.2591 | S185: 12993.76884 | T185: 7227.998378 | U185: 7227.998378 | W185: 9769.830398 | X185: 36558.43059 | Y185: 7227.998378
A186: 183 | B186: 1820000 | C186: 50701.18319 | D186: 195677.4906 | E186: 186379.7628 | F186: 40071.09068 | G186: 30166.30689 | H186: 30166.30689 | I186: 44276.45244 | J186: 34371.66865 | K186: 34371.66865 | L186: 120306.1478 | M186: 388420.6515 | N186: 296870.6169 | S186: 13066.12263 | T186: 7268.31337 | U186: 7268.31337 | W186: 9791.566453 | X186: 36738.97018 | Y186: 7268.31337
A187: 184 | B187: 1830000 | C187: 50972.77879 | D187: 196746.0183 | E187: 187397.1784 | F187: 40175.42468 | G187: 30215.967 | H187: 30215.967 | I187: 44380.78644 | J187: 34421.32876 | K187: 34421.32876 | L187: 121403.0652 | M187: 391102.1907 | N187: 299037.9747 | S187: 13138.47643 | T187: 7308.628363 | U187: 7308.628363 | W187: 9813.302508 | X187: 36919.50977 | Y187: 7308.628363
A188: 185 | B188: 1840000 | C188: 51244.3744 | D188: 197814.5459 | E188: 188414.5941 | F188: 40279.75869 | G188: 30265.62711 | H188: 30265.62711 | I188: 44485.12045 | J188: 34470.98887 | K188: 34470.98887 | L188: 122499.9826 | M188: 393783.7299 | N188: 301205.3325 | S188: 13210.83022 | T188: 7348.943356 | U188: 7348.943356 | W188: 9835.038563 | X188: 37100.04936 | Y188: 7348.943356
A189: 186 | B189: 1850000 | C189: 51515.97 | D189: 198883.0735 | E189: 189432.0097 | F189: 40384.09269 | G189: 30315.28722 | H189: 30315.28722 | I189: 44589.45445 | J189: 34520.64898 | K189: 34520.64898 | L189: 123596.9001 | M189: 396465.2691 | N189: 303372.6903 | S189: 13283.18401 | T189: 7389.258349 | U189: 7389.258349 | W189: 9856.774618 | X189: 37280.58895 | Y189: 7389.258349
A190: 187 | B190: 1860000 | C190: 51787.56561 | D190: 199951.6012 | E190: 190449.4253 | F190: 40488.4267 | G190: 30364.94733 | H190: 30364.94733 | I190: 44693.78846 | J190: 34570.30909 | K190: 34570.30909 | L190: 124693.8175 | M190: 399146.8083 | N190: 305540.0481 | S190: 13355.53781 | T190: 7429.573342 | U190: 7429.573342 | W190: 9878.510672 | X190: 37461.12854 | Y190: 7429.573342
A191: 188 | B191: 1870000 | C191: 52059.16121 | D191: 201020.1288 | E191: 191466.8409 | F191: 40592.7607 | G191: 30414.60744 | H191: 30414.60744 | I191: 44798.12246 | J191: 34619.9692 | K191: 34619.9692 | L191: 125790.7349 | M191: 401828.3475 | N191: 307707.4059 | S191: 13427.8916 | T191: 7469.888334 | U191: 7469.888334 | W191: 9900.246727 | X191: 37641.66814 | Y191: 7469.888334
A192: 189 | B192: 1880000 | C192: 52330.75681 | D192: 202088.6564 | E192: 192484.2566 | F192: 40697.09471 | G192: 30464.26755 | H192: 30464.26755 | I192: 44902.45647 | J192: 34669.62931 | K192: 34669.62931 | L192: 126887.6523 | M192: 404509.8867 | N192: 309874.7637 | S192: 13500.24539 | T192: 7510.203327 | U192: 7510.203327 | W192: 9921.982782 | X192: 37822.20773 | Y192: 7510.203327
A193: 190 | B193: 1890000 | C193: 52602.35242 | D193: 203157.1841 | E193: 193501.6722 | F193: 40801.42871 | G193: 30513.92766 | H193: 30513.92766 | I193: 45006.79047 | J193: 34719.28942 | K193: 34719.28942 | L193: 127984.5698 | M193: 407191.426 | N193: 312042.1215 | S193: 13572.59918 | T193: 7550.51832 | U193: 7550.51832 | W193: 9943.718837 | X193: 38002.74732 | Y193: 7550.51832
A194: 191 | B194: 1900000 | C194: 52873.94802 | D194: 204225.7117 | E194: 194519.0878 | F194: 40905.76272 | G194: 30563.58777 | H194: 30563.58777 | I194: 45111.12448 | J194: 34768.94953 | K194: 34768.94953 | L194: 129081.4872 | M194: 409872.9652 | N194: 314209.4793 | S194: 13644.95298 | T194: 7590.833313 | U194: 7590.833313 | W194: 9965.454892 | X194: 38183.28691 | Y194: 7590.833313
A195: 192 | B195: 1910000 | C195: 53145.54362 | D195: 205294.2394 | E195: 195536.5034 | F195: 41010.09672 | G195: 30613.24788 | H195: 30613.24788 | I195: 45215.45848 | J195: 34818.60964 | K195: 34818.60964 | L195: 130178.4046 | M195: 412554.5044 | N195: 316376.837 | S195: 13717.30677 | T195: 7631.148306 | U195: 7631.148306 | W195: 9987.190946 | X195: 38363.8265 | Y195: 7631.148306
A196: 193 | B196: 1920000 | C196: 53417.13923 | D196: 206362.767 | E196: 196553.919 | F196: 41114.43073 | G196: 30662.90799 | H196: 30662.90799 | I196: 45319.79249 | J196: 34868.26975 | K196: 34868.26975 | L196: 131275.322 | M196: 415236.0436 | N196: 318544.1948 | S196: 13789.66056 | T196: 7671.463299 | U196: 7671.463299 | W196: 10008.927 | X196: 38544.36609 | Y196: 7671.463299
A197: 194 | B197: 1930000 | C197: 53688.73483 | D197: 207431.2946 | E197: 197571.3347 | F197: 41218.76473 | G197: 30712.5681 | H197: 30712.5681 | I197: 45424.12649 | J197: 34917.92986 | K197: 34917.92986 | L197: 132372.2395 | M197: 417917.5828 | N197: 320711.5526 | S197: 13862.01435 | T197: 7711.778291 | U197: 7711.778291 | W197: =IF($B197<=$AA$6,W$4+($B197-0)/($AA$6-0)*($AD$6-0),IF($B197<=$AA$7,$AD$6+($B197-$AA$6)/($AA$7-$AA$6)*($AD$7-$AD$6),$AD$7+($B197-$AA$7)/($AA$8-$AA$7)*($AD$8-$AD$7)))/1000 -> 10030.66306 | X197: 38724.90568 | Y197: =OFFSET(S197,0,$Q$8-1) -> 7711.778291
A198: =A197+1 -> 195 | B198: =B197+10000 -> 1940000 | C198: 53960.33044 | D198: 208499.8223 | E198: 198588.7503 | F198: 41323.09874 | G198: 30762.22821 | H198: 30762.22821 | I198: 45528.46049 | J198: 34967.58997 | K198: 34967.58997 | L198: 133469.1569 | M198: 420599.122 | N198: 322878.9104 | S198: 13934.36815 | T198: 7752.093284 | U198: 7752.093284 | W198: 10052.39911 | X198: =IF($B198<=$AA$6,X$4+($B198-0)/($AA$6-0)*($AE$6-0),IF($B198<=$AA$7,$AE$6+($B198-$AA$6)/($AA$7-$AA$6)*($AE$7-$AE$6),$AE$7+($B198-$AA$7)/($AA$8-$AA$7)*($AE$8-$AE$7)))/1000 -> 38905.44527 | Y198: 7752.093284
A199: 196 | B199: 1950000 | C199: 54231.92604 | D199: 209568.3499 | E199: 199606.1659 | F199: 41427.43274 | G199: 30811.88832 | H199: 30811.88832 | I199: 45632.7945 | J199: 35017.25008 | K199: 35017.25008 | L199: 134566.0743 | M199: 423280.6612 | N199: 325046.2682 | S199: 14006.72194 | T199: 7792.408277 | U199: 7792.408277 | W199: 10074.13517 | X199: 39085.98486 | Y199: 7792.408277
A200: 197 | B200: 1960000 | C200: 54503.52164 | D200: 210636.8775 | E200: 200623.5815 | F200: 41531.76675 | G200: 30861.54843 | H200: 30861.54843 | I200: 45737.1285 | J200: 35066.91019 | K200: 35066.91019 | L200: 135662.9917 | M200: 425962.2004 | N200: 327213.626 | S200: 14079.07573 | T200: 7832.72327 | U200: 7832.72327 | W200: 10095.87122 | X200: 39266.52445 | Y200: 7832.72327
... 55 more rows

Sheet List (hidden)
A1: Growth dynamic | B1: FTE to headcount ratio | C1: Percentage point change | D1: Student-lecturer ratio dynamic | E1: Academic staff composition | F1: Baseline | G1: Student lecturer ratio | H1: Undergraduate rates | I1: Support staff | J1: Performance | K1: NSFAS | L1: Distibution according to level of qualification | M1: Level of qualification | N1: Field of study | O1: Pick specific type of graduate | P1: Inflation | Q1: Residences non-fee income growth | R1: Projection method | S1: Block grant | T1: Tuition fees | U1: Third stream income
A2: Straight line | B2: Plan (2019) | C2: -0.15 | D2: Plan (2019) | E2: User-defined % | F2: -1 | G2: Average (2010-2019) | H2: Average (2010-2019) | I2: User-defined annual growth | J2: Status quo (2014) | K2: Historical growth rate | L2: Status quo (2014) | M2: 360 degree credit (Excl UNISA) | N2: Funding group 1 | O2: Undergraduate - Funding group 1 (excl. UNISA) | P2: Real prices (0% inflation) | Q2: Historical growth (2007-2013) (1.7% real) | R2: University level | S2: User-defined annual growth | T2: User-defined annual increase | U2: User-defined annual increase
A3: Constant rate | B3: User-defined %-point change | C3: -0.14 | D3: User-defined % change | E3: Status quo (2014) | F3: -0.95 | G3: Average (2010-2014) | H3: Average (2010-2014) | I3: Status quo (2014) | J3: User-defined %-point change | K3: User-defined growth rate | L3: User-defined | M3: 3-year degree (Excl UNISA) | N3: Funding group 2 | O3: Undergraduate - Funding group 2 (excl. UNISA) | P3: User-defined | Q3: User-defined | R3: Aggregate level | S3: Projected growth rate (2.9% real) | T3: 0% real annual increase | U3: Status quo | V3: Projected (2.9% real) | W3: Nominal
B4: Status quo (2014) | C4: -0.13 | D4: Status quo (2014) | F4: -0.9 | G4: User-defined %-point change | H4: User-defined %-point change | K4: Mitigated growth | M4: 4 year degree (Excl UNISA) | N4: Funding group 3 | O4: Undergraduate - Funding group 3 (excl. UNISA) | R4: Simple growth rate | S4: Historical growth rate (1.6% real) | T4: 2030 Fee-free university education | V4: Historical (1.6% real) | W4: Real
C5: -0.12 | F5: -0.85 | G5: Status quo (2014) | H5: Status quo (2014) | M5: 360 degree credit (UNISA) | N5: Funding group 4 | O5: Undergraduate - Funding group 4 (excl. UNISA) | R5: Compound growth rate
C6: -0.11 | F6: -0.8 | M6: 3 year degree (UNISA) | O6: Undergraduate - Funding group 1 (UNISA)
C7: -0.1 | F7: -0.75 | M7: 4 year degree (UNISA) | O7: Undergraduate - Funding group 2 (UNISA)
C8: -0.09 | F8: -0.7 | M8: Post-graduate to Masters level | O8: Undergraduate - Funding group 3 (UNISA)
C9: -0.08 | F9: -0.65 | M9: Masters | O9: Undergraduate - Funding group 4 (UNISA)
C10: -0.07 | F10: -0.6 | M10: PhD | O10: Honours - Funding group 1
C11: -0.06 | F11: -0.55 | O11: Honours - Funding group 2
C12: -0.05 | F12: -0.5 | O12: Honours - Funding group 3
C13: -0.04 | F13: -0.45 | O13: Honours - Funding group 4
C14: -0.03 | F14: -0.4 | O14: Masters - Funding group 1
C15: -0.02 | F15: -0.35 | O15: Masters - Funding group 2
C16: -0.01 | F16: -0.3 | O16: Masters - Funding group 3
C17: 0 | F17: -0.25 | O17: Masters - Funding group 4
C18: 0.01 | F18: -0.2 | O18: PHD - Funding group 1
C19: 0.02 | F19: -0.15 | O19: PHD - Funding group 2
C20: 0.03 | F20: -0.1 | O20: PHD - Funding group 3
C21: 0.04 | F21: -0.05 | O21: PHD - Funding group 4
C22: 0.05 | F22: 0
C23: 0.06 | F23: 0.05
C24: 0.07 | F24: 0.1
C25: 0.08 | F25: 0.15
C26: 0.09 | F26: 0.2
C27: 0.1 | F27: 0.25
C28: 0.11 | F28: 0.3
C29: 0.12 | F29: 0.35
C30: 0.13 | F30: 0.4
C31: 0.14 | F31: 0.45
C32: 0.15 | F32: 0.5
C33: n/a | F33: 0.55
C34: User-defined | F34: 0.6
F35: 0.65
F36: 0.7
F37: 0.75
F38: 0.8
F39: 0.85
F40: 0.9
F41: 0.95
F42: 1

Sheet Frontpage
G4: University Sector Costing Model
G6: Final version
G7: 23 May 2016
D8: Model developed for the National Treasury
H10: For more information on this model,
H11: please contact Fouche Venter
H12: Tel: 087 357 0620
H13: Email: fouche.venter@dnaeconomics.com

Sheet Contents
A1: Sheet | B1: Description
A2: 1a. Cost model diagram | B2: Diagramatic representation of the costing model
A3: 1b. Funding model diagram | B3: Diagramatic representation of the funding model
A4: 2a. Funding dashboard | B4: This sheet is used to input various growth scenarios for each of the components of university sector income. The sheet shows total university income over the MTEF and for 2030 given the chosen growth projections.
A5: 2b. Primary costing dashboard | B5: The primary costing dashboard has the main university input parameters. These are the parameters that are most important to the policy dialogue. The outputs presented on this sheet include total current spending, infrastructure spending and spending per graduate and Full-Time-equivalent in 2030. Current spending is also presented over the MTEF.
A6: 2c. Secondary costing dashboard | B6: The secondary costing dashboard offers the user the opportunity to alter aadditional innput parameters. These are inputs that are not explicitly targeted in policy, but are nevertheless significant cost drivers.
A7: 2d. University NSFAS dashboard | B7: The University NSFAS dashboard allows the user to change input variables on a loose-standing NSFAS model (Developed by Cornerstone Economic Research). Changing these input variables and initiating the NSFAS model (button available) results in the model providing a value for NSFAS's contribution to Univerisity tuition and residences fees. This value is then presented in the outputs section of the funding dashboard (2a)
A8: 3a. Time-series results | B8: Detailed annual expenditure and income results are presented on this sheet.
A9: 3b. Graduates | B9: A breakdown of graduates by CESM and by level of qualification along with cost per graduate within each of these categories can be seen here.
A10: 3c. Current performance | B10: Summary of current throughput rates and possible interventions to improve perfomance.
A11: 4a. Government grants | B11: Time-series of the block grant and earmarked grants that are calculated based on the growth rates on the funding dashboard (2a)
A12: 4b. Tuition fees | B12: Calculation and time-series of the per FTE tuition fee and total tuition fee income based on the growth rates on the funding dashboard (2a)
A13: 4c. Residences fees | B13: Calculation and time-series of the per FTE residences fee and total residences fee income based on the growth rates on the funding dashboard (2a)
A14: 4d. Third stream income | B14: Time-series of projected third stream income that grows at the rate selected on the funding dashboard.
A15: 4e. GDP projection | B15: Projection of of GDP growth over the period based on estimations provided by National Treasury
A16: 5a. Headcount | B16: Projected headcount enrolments based on the 2030 headcount target selected on the costing dashboard.
A17: 5b. Full-Time Equivalents | B17: Projected student FTE numbers based on HC enrolments
A18: 5c. TIU calculation | B18: The model calculates the number of Teaching Input Units based on the number of FTEs, the selected composition of students in terms of level of qualification, mode of study and field of study and the weights according to the DHET funding grid. The calculation is done on this sheet.
A19: 5d. Teaching Input Units | B19: The results of the calculation done in 5c is presented on this sheet.
A20: 5e. Cohort Analysis | B20: The model calculates the number of graduates based on the headcount enrolments, i.e. the graduation rate. This sheet converts throughput rates, according to the latest DHET study, to graduation rates by dividing the number of graduates (according to throughput rates) in a cohort by the number of headcounts in that same cohort.
A21: 5f. Infrastructure | B21: Calculation of residences and university infrastructure investment requirement
A22: 5g. Residences | B22: Calculation and time-series projection of expected residences expenses
A23: 5h. Operational staff reg. | B23: Presents the regression used to calculate the additional expenditure incurred for increasing the number of non-academic staff members.
A24: 5i. Operational staff | B24: Projection of Non-academic staff over the period
A25: 5j. Academic staff reg. | B25: Presents the regression used to calculate the additional expenditure incurred for increasing the number of academic staff members.
A26: 5k. Non-staff opex reg. | B26: Presents the regression used to calculate the relationship between expenditure on staff and non-staff operational expenditure.
A27: 5l. Current spending calc. | B27: Uses the projected number of staff and its relationship with expenditure estimated with the regressions to calculate projected total expenditure.
A28: 5m.Current spending summary | B28: Summary of current throughput rates and possible interventions to improve perfomance. Hyperlinked to the primary costing dashboard.

Sheet 1a. Cost model diagram
B2: COSTING MODEL

Sheet 1b.Funding model diagram
B2: FUNDING AND SHORTFALL MODEL

Sheet 2a. Funding dashboard
B2: OUTPUTS | I2: INPUTS & ASSUMPTIONS
B3: Ensure balance between income and expenditure, i.e R0 shortfall | I3: Inflation - CPI rate | J3: 0.062
D4: ='2b. Primary costing dashboard'!H7 -> 494876.2123 | I4: University Revenue | J4: User-defined annual growth
D5: =K8 -> 0 | I5: Block grant | J5: Historical growth rate (1.6% real) | K5: 0.06027377613
D6: =K5 -> 0.06027377613 | I6: Earmarked grant | J6: =J5 -> Historical growth rate (1.6% real) | K6: =K5 -> 0.06027377613
B7: University Revenue (R'm) | C7: 2014/15 | D7: MTEF | G7: 2030/31 | I7: Third stream revenue | J7: Status quo | K7: 0.008
D8: 2017/18 | E8: 2018/19 | F8: 2019/20 | I8: Tuition fees | J8: 0% real annual increase | K8: 0
B9: Block grant | C9: =19561234/1000 -> 19561.234 | D9: ='3a. Time-series results'!E2/1000 -> 23368.98964 | E9: ='3a. Time-series results'!F2/1000 -> 25191.77084 | F9: ='3a. Time-series results'!G2/1000 -> 27156.72896 | G9: ='3a. Time-series results'!R2/1000 -> 62041.71969 | I9: Residence fees | J9: 0% real annual increase | K9: 0
B10: Earmarked grant (Excluding Infrastructure and Efficiency grant | C10: =2393859/1000 -> 2393.859 | D10: ='3a. Time-series results'!E3/1000 -> 3809.659546 | E10: ='3a. Time-series results'!F3/1000 -> 4106.812991 | F10: ='3a. Time-series results'!G3/1000 -> 4427.144404 | G10: ='3a. Time-series results'!R3/1000 -> 10114.16554 | I10: NSFAS
B11: Third stream revenue | C11: =17210831.9888761/1000 -> 17210.83199 | D11: ='3a. Time-series results'!E6/1000 -> 17889.08219 | E11: ='3a. Time-series results'!F6/1000 -> 18926.01611 | F11: ='3a. Time-series results'!G6/1000 -> 20025.33856 | G11: ='3a. Time-series results'!R6/1000 -> 37582.63171 | I11: Select pre-set costing scenario
B12: Tuition and residences fees | C12: =17002442.449/1000 -> 17002.44245 | D12: =SUM('3a. Time-series results'!E4:E5)/1000 -> 21170.22159 | E12: =SUM('3a. Time-series results'!F4:F5)/1000 -> 21852.81105 | F12: =SUM('3a. Time-series results'!G4:G5)/1000 -> 22538.66328 | G12: =SUM('3a. Time-series results'!R4:R5)/1000 -> 29418.79508
B13: NSFAS contribution | C13: 5870 | D13: =SUM('NSFAS Awards'!R19:S19)/1000000 -> 6638.72118 | E13: =SUM('NSFAS Awards'!R20:S20)/1000000 -> 7054.61347 | F13: =SUM('NSFAS Awards'!R21:S21)/1000000 -> 7547.806003 | G13: =SUM('NSFAS Awards'!R32:S32)/1000000 -> 21047.03985
B14: Total University current income | D14: =SUM(D9:D12) -> 66237.95296 | E14: =SUM(E9:E12) -> 70077.41099 | F14: 74147.87521 | G14: 139157.312 | I14: Navigate to other dashboards
B15: Total University current expenditure | D15: ='3a. Time-series results'!E22/1000 -> 66930.15492 | E15: ='3a. Time-series results'!F22/1000 -> 70664.86303 | F15: ='3a. Time-series results'!G22/1000 -> 74628.92119 | G15: ='3a. Time-series results'!R22/1000 -> 138221.2702
B16: Total shortfall (-) / Surplus (+) | D16: =D14-D15 -> -692.2019523 | E16: =E14-E15 -> -587.4520464 | F16: -481.0459818 | G16: 936.0417844
A53: ='3a. Time-series results'!S25 -> -5.123764277e-05

Sheet NSFAS Funding (hidden)
D1: Year | E1: DHET NSFAS grant | F1: NSFAS administration grant | G1: University NSFAS loan repayments | H1: University NSFAS grant requirement | I1: TVET NSFAS grant requirement | J1: NSFAS administration grant requirement | K1: Total income | L1: Total expenditure | M1: Shortfalls / Surpluses
A2: User-defined growth rate | B2: ='[14]Shortfall-surplus Dashboard'!B1+'[14]Shortfall-surplus Dashboard'!C2 -> 0.162 | D2: 2014 | E2: 6022632 | F2: 116200 | G2: ='[14]NSFAS Income'!D18/1000 -> 291030.1461 | H2: =[14]NSFASFundingNeeds!H18/1000 -> 5433581.471 | I2: 1900853.211 | J2: =[14]NSFASFundingNeeds!AC18/1000 -> 118694.7226 | K2: =SUM(E2:G2) -> 6429862.146 | L2: =SUM(H2:J2) -> 7453129.404 | M2: =SUM(E2:G2)-SUM(H2:J2) -> -1023267.258 | AA2: TVET
A3: Projected growth rate (2.9%) | B3: ='[14]Shortfall-surplus Dashboard'!B1+2.9% -> 0.091 | D3: 2015 | E3: =E2*(1+$B$6) -> 6570691.512 | F3: 126774.2 | G3: ='[14]NSFAS Income'!D19/1000 -> 271779.4477 | H3: =[14]NSFASFundingNeeds!H19/1000 -> 6012034.806 | I3: 2100607.938 | J3: =[14]NSFASFundingNeeds!AC19/1000 -> 133735.4436 | K3: =SUM(E3:G3) -> 6969245.16 | L3: =SUM(H3:J3) -> 8246378.188 | M3: =SUM(E3:G3)-SUM(H3:J3) -> -1277133.028 | AB3: Status quo | AC3: Full Policy | AD3: Mixed | AI3: Status quo | AJ3: 1
A4: Historical growth rate (1.6%) | B4: ='[14]Shortfall-surplus Dashboard'!B1+1.6% -> 0.078 | D4: 2016 | E4: 7168624.44 | F4: 138310.6522 | G4: ='[14]NSFAS Income'!D20/1000 -> 248867.8075 | H4: =[14]NSFASFundingNeeds!H20/1000 -> 6308089.027 | I4: 2647912.621 | J4: =[14]NSFASFundingNeeds!AC20/1000 -> 148141.5832 | K4: 7555802.899 | L4: 9104143.232 | M4: -1548340.333 | AA4: 2014 | AB4: 1900853.211 | AC4: 1900853.211 | AD4: 1900853.211 | AI4: Full Policy | AJ4: 2
D5: 2017 | E5: 7820969.264 | F5: 150896.9216 | G5: ='[14]NSFAS Income'!D21/1000 -> 408410.2327 | H5: =[14]NSFASFundingNeeds!H21/1000 -> 6638721.18 | I5: 3082052.286 | J5: =[14]NSFASFundingNeeds!AC21/1000 -> 165094.5617 | K5: 8380276.418 | L5: 9885868.027 | M5: -1505591.61 | AA5: 2015 | AB5: 2097126.471 | AC5: 2100607.938 | AD5: 2098045.842 | AI5: Mixed | AJ5: 3
A6: Selected | B6: 0.091 | D6: 2018 | E6: 8532677.467 | F6: 164628.5414 | G6: ='[14]NSFAS Income'!D22/1000 -> 568347.9153 | H6: =[14]NSFASFundingNeeds!H22/1000 -> 7054613.47 | I6: 3777504.601 | J6: =[14]NSFASFundingNeeds!AC22/1000 -> 181025.03 | K6: 9265653.923 | L6: 11013143.1 | M6: -1747489.178 | AA6: 2016 | AB6: 2655946.272 | AC6: 2647912.621 | AD6: 2233032.27
D7: 2019 | E7: 9309151.116 | F7: 179609.7387 | G7: ='[14]NSFAS Income'!D23/1000 -> 759009.4647 | H7: =[14]NSFASFundingNeeds!H23/1000 -> 7547806.003 | I7: 4465730.134 | J7: =[14]NSFASFundingNeeds!AC23/1000 -> 198393.6355 | K7: 10247770.32 | L7: 12211929.77 | M7: -1964159.453 | AA7: 2017 | AB7: 3147073.238 | AC7: 3082052.286 | AD7: 2386774.173
D8: 2020 | E8: 10156283.87 | F8: 195954.2249 | G8: ='[14]NSFAS Income'!D24/1000 -> 994213.8281 | H8: =[14]NSFASFundingNeeds!H24/1000 -> 9509331.805 | I8: 4884580.142 | J8: =[14]NSFASFundingNeeds!AC24/1000 -> 215069.2142 | K8: 11346451.92 | L8: 14608981.16 | M8: -3262529.241 | AA8: 2018 | AB8: 3885938.455 | AC8: 3777504.601 | AD8: 2548957.583
D9: 2021 | E9: 11080505.7 | F9: 213786.0594 | G9: ='[14]NSFAS Income'!D25/1000 -> 1253521.468 | H9: =[14]NSFASFundingNeeds!H25/1000 -> 11300091.66 | I9: 5538038.972 | J9: =[14]NSFASFundingNeeds!AC25/1000 -> 229014.8264 | K9: 12547813.23 | L9: 17067145.46 | M9: -4519332.235 | AA9: 2019 | AB9: 4660492.947 | AC9: 4465730.134 | AD9: 2723808.707
D10: 2022 | E10: 12088831.72 | F10: 233240.5908 | G10: ='[14]NSFAS Income'!D26/1000 -> 1553846.196 | H10: =[14]NSFASFundingNeeds!H26/1000 -> 13137344.7 | I10: 6129085.319 | J10: =[14]NSFASFundingNeeds!AC26/1000 -> 245503.8939 | K10: 13875918.51 | L10: 19511933.92 | M10: -5636015.41 | AA10: 2020 | AB10: 5165074.606 | AC10: 4884580.142 | AD10: 2910244.562
D11: 2023 | E11: 13188915.4 | F11: 254465.4845 | G11: ='[14]NSFAS Income'!D27/1000 -> 1838367.68 | H11: =[14]NSFASFundingNeeds!H27/1000 -> 14730553.95 | I11: 6890840.074 | J11: =[14]NSFASFundingNeeds!AC27/1000 -> 263180.1743 | K11: 15281748.57 | L11: 21884574.2 | M11: -6602825.627 | AA11: 2021 | AB11: 5925454.042 | AC11: 5538038.972 | AD11: 3109929.475
D12: 2024 | E12: 14389106.71 | F12: 277621.8436 | G12: ='[14]NSFAS Income'!D28/1000 -> 2193189.84 | H12: =[14]NSFASFundingNeeds!H28/1000 -> 16100784.27 | I12: 7661298.311 | J12: =[14]NSFASFundingNeeds!AC28/1000 -> 282129.1468 | K12: 16859918.39 | L12: 24044211.72 | M12: -7184293.335 | AA12: 2022 | AB12: 6644936.037 | AC12: 6129085.319 | AD12: 3322668.229
D13: 2025 | E13: 15698515.42 | F13: 302885.4314 | G13: ='[14]NSFAS Income'!D29/1000 -> 2666188.946 | H13: =[14]NSFASFundingNeeds!H29/1000 -> 17441179.85 | I13: 8581946.062 | J13: =[14]NSFASFundingNeeds!AC29/1000 -> 304475.3758 | K13: 18667589.79 | L13: 26327601.29 | M13: -7660011.492 | AA13: 2023 | AB13: 7571492.931 | AC13: 6890840.074 | AD13: 3550352.642
D14: 2026 | E14: 17127080.32 | F14: 330448.0056 | G14: ='[14]NSFAS Income'!D30/1000 -> 3257119.506 | H14: =[14]NSFASFundingNeeds!H30/1000 -> 18817689.08 | I14: 9554474.471 | J14: =[14]NSFASFundingNeeds!AC30/1000 -> 324218.3015 | K14: 20714647.83 | L14: 28696381.85 | M14: -7981734.021 | AA14: 2024 | AB14: 8532720.719 | AC14: 7661298.311 | AD14: 3793330.7
D15: 2027 | E15: 18685644.63 | F15: 360518.7742 | G15: ='[14]NSFAS Income'!D31/1000 -> 3959265.197 | H15: =[14]NSFASFundingNeeds!H31/1000 -> 20270647.47 | I15: 10672969.82 | J15: =[14]NSFASFundingNeeds!AC31/1000 -> 347562.0192 | K15: 23005428.6 | L15: 31291179.31 | M15: -8285750.712 | AA15: 2025 | AB15: 9695754.551 | AC15: 8581946.062 | AD15: 4053178.308
D16: 2028 | E16: 20386038.29 | F16: 393325.9826 | G16: ='[14]NSFAS Income'!D32/1000 -> 4773432.88 | H16: =[14]NSFASFundingNeeds!H32/1000 -> 21832769.15 | I16: 11881943.13 | J16: =[14]NSFASFundingNeeds!AC32/1000 -> 372586.4846 | K16: 25552797.15 | L16: 34087298.76 | M16: -8534501.607 | AA16: 2026 | AB16: 10948969.41 | AC16: 9554474.471 | AD16: 4330549.023
D17: 2029 | E17: 22241167.77 | F17: 429118.647 | G17: ='[14]NSFAS Income'!D33/1000 -> 5714364.265 | H17: =[14]NSFASFundingNeeds!H33/1000 -> 23511929.9 | I17: 13265193.8 | J17: =[14]NSFASFundingNeeds!AC33/1000 -> 399412.7115 | K17: 28384650.69 | L17: 37176536.41 | M17: -8791885.723 | AA17: 2027 | AB17: 12418317.97 | AC17: 10672969.82 | AD17: 4627006.176
D18: 2030 | E18: 24265114.04 | F18: 468168.4439 | G18: ='[14]NSFAS Income'!D34/1000 -> 6735555.709 | H18: =[14]NSFASFundingNeeds!H34/1000 -> 25316566.7 | I18: ='PSET Lookup'!Q32*1000 -> 10009732.88 | J18: =[14]NSFASFundingNeeds!AC34/1000 -> 431144.4576 | K18: 31468838.19 | L18: 35757444.04 | M18: -4288605.848 | AA18: 2028 | AB18: 14036624.87 | AC18: 11881943.13 | AD18: 4943587.728
AA19: 2029 | AB19: 15904388.61 | AC19: 13265193.8 | AD19: 5281885.544
H20: 14808327.4 | AA20: 2030 | AB20: 17982617.39 | AC20: 14808327.4 | AD20: 5643199.149
E24: DHET NSFAS grant | F24: NSFAS administration grant | G24: University NSFAS loan repayments | H24: University NSFAS grant requirement | I24: TVET NSFAS grant requirement | J24: NSFAS administration grant requirement | K24: Total income | L24: Total expenditure | M24: Shortfalls / Surpluses
A25: 500000 | E25: 24265114.04 | F25: 468168.4439 | G25: 6541443.559 | H25: 12338254.13 | I25: 5643199.149 | J25: 420858.1953 | K25: 31274726.05 | L25: 18402311.47 | M25: 12872414.57
A26: 1000000 | E26: 24265114.04 | F26: 468168.4439 | G26: 8009209.959 | H26: 21934723.79 | I26: 5643199.149 | J26: 431048.4641 | K26: 32742492.44 | L26: 28008971.4 | M26: 4733521.043
A27: 1440000 | E27: 24265114.04 | F27: 468168.4439 | G27: 8965596.371 | H27: 29878465.76 | I27: 5643199.149 | J27: 431048.4641 | K27: 33698878.86 | L27: 35952713.37 | M27: -2253834.513

Sheet 2014 (hidden)
A2: Cost paramaters | B2: Universities | C2: TVET | D2: Community Colleges | F2: 2030 (R'm) | G2: Universities | H2: TVET | I2: Community colleges | J2: Total | K2: % of 2030 GDP | L2: % of 2030 Tax Revenue
A3: Enrolments | B3: 937000 | C3: 702000 | D3: 262621 | F3: Current costs | G3: 52920 | H3: 8501 | I3: 1884 | J3: 63305 | K3: =J3/('4g. GDP'!$B$2/1000) -> 0.01646947326 | L3: =J3/('4g. GDP'!$B$3/1000) -> 0.0641890135

Sheet Description (hidden)
C5: Model Layout
C6: This model forms part of the broader post school education and training (PSET) system costing initiative
C7: 'This model forecasts expenditure of the Community Colleges up to 2030 based on the targets and objectives of White Paper on Post-School Education.

Sheet Enrol Scenarios (hidden)
A3: Learning Programme Mix | B3: =Dashboard!N4 -> Status quo | C3: =Dashboard!O4 -> Full Policy | D3: =Dashboard!P4 -> Mixed | H3: =Dashboard!N4 -> Status quo | I3: =Dashboard!O4 -> Full Policy | J3: =Dashboard!P4 -> Mixed | K3: Norm
A4: AET Level 1 | B4: 0.06023077509 | C4: 0.09 | D4: 0.1 | G4: AET Level 1 | I4: =C4*K4 -> 1.8 | J4: =D4*K4 -> 2 | K4: 20
A5: AET Level 2 | B5: 0.08643444873 | C5: 0.12 | D5: 0.1 | G5: AET Level 2 | I5: 2.4 | J5: 2 | K5: 20
A6: AET Level 3 | B6: 0.1025582449 | C6: 0.05 | D6: =(100%-$D$9)*$B6/SUM($B$4:$B$8) -> 0.07889949557 | G6: AET Level 3 | I6: 1 | J6: 1.577989911 | K6: 20
A7: AET Level 4 | B7: 0.4382722729 | C7: =100%-C8-C9-C6-C5-C4 -> 0.22 | D7: =100%-D8-D9-D6-D5-D4 -> 0.2500006167 | G7: AET Level 4 | I7: 5.5 | J7: 6.250015417 | K7: 25
A8: NSC / NASCA | B8: 0.2873987503 | C8: 0.17 | D8: =(100%-$D$9)*$B8/SUM($B$4:$B$8) -> 0.2210998878 | G8: Grade 12 | I8: 5.1 | J8: 6.632996633 | K8: 30
A9: Skills Programmes | B9: =Dashboard!E7 -> 0.029 | C9: =Dashboard!F7 -> 0.35 | D9: =Dashboard!G7 -> 0.25 | G9: Skills Programmes | I9: 10.5 | J9: 7.5 | K9: 30
G10: Average Lecturer Ratio | I10: =SUM(I4:I9) -> 26.3 | J10: =SUM(J4:J9) -> 25.96100196
A12: Certification | B12: =Dashboard!N4 -> Status quo | C12: =Dashboard!O4 -> Full Policy | D12: =Dashboard!P4 -> Mixed
A13: AET Level 1 to 4 | B13: =Dashboard!E8 -> 0.1745255015 | C13: =Dashboard!F8 -> 0.2 | D13: =Dashboard!G8 -> 0.1745255015
A14: Grade 12 | B14: 0.3823333333 | C14: 0.3823333333 | D14: 0.3823333333
A15: Skills Programmes | B15: 0.8 | C15: 0.8 | D15: 0.8
A17: Dropout Rates
A18: AET Level 1 to 4 | B18: 0.55 | C18: 0.55 | D18: 0.55
A19: Grade 12 | B19: 0.55 | C19: 0.55 | D19: 0.55
A20: Skills Programmes | B20: 0.04 | C20: 0.04 | D20: 0.04
A23: Number of colleges | B23: 9 | C23: 9 | D23: 9
A24: Number of AET Centres | B24: 3150
A25: Total Number of employees | B25: =B27+B28+B29 -> 19133
A26: FTE lecturers
A27: Number of Support Staff | B27: 283
A28: Number of Educators | B28: 16604
A29: Number of Centre Managers | B29: 2246
A30: Number of learners | B30: 293248
A31: Lecturer Student Ratio | B31: 18

Sheet Funding Descr (hidden)
C3: Model Layout
C4: This model forms part of the broader post school education and training (PSET) system costing initiative
C5: 'This model forecasts expenditure of the Community Colleges up to 2030 based on the targets and objectives of White Paper on Post-School Education.

Sheet Funding Dashboard (hidden)
C2: INPUTS & ASSUMPTIONS | L2: OUTPUTS
M3: 2030
M4: Status quo | N4: Full Policy | O4: Mixed | P4: 2014
E5: Status quo | F5: Full Policy | G5: Mixed | L5: Total current spending (R'm) | M5: =Dashboard!N5 -> 11334.54845 | N5: =Dashboard!O5 -> 19856.67633 | O5: =Dashboard!P5 -> 16660.37793 | P5: =Dashboard!Q5 -> 1843.818969
C6: Government Subsidy | D6: Historical Real Growth | E6: 0.016 | F6: 0.016 | G6: 0.016 | L6: Total Current Revenue | M6: ='Funding Shortfall'!C8 -> 9649.500332 | N6: ='Funding Shortfall'!D8 -> 12177.95709 | O6: ='Funding Shortfall'!E8 -> 9626.417987 | P6: ='Funding Shortfall'!B8 -> 1843.818969
D7: Projection Real Growth | E7: 0.029 | F7: 0.029 | G7: 0.029 | L7: Shortfall (-) / Surplus (+): Current spending | M7: =M6-M5 -> -1685.048114 | N7: =N6-N5 -> -7678.719234 | O7: =O6-O5 -> -7033.959947
C8: Learning Fees | D8: Real Growth | E8: 0 | F8: 0 | G8: 0
L9: Total Cumulative Spending (R'm) | M9: =Dashboard!N6 -> 33015 | N9: =Dashboard!O6 -> 89620 | O9: =Dashboard!P6 -> 203685
L10: Total Cumulative Revenue (R'm) | M10: =('Funding over time'!S3+'[15]TVET & CET Funding'!T10)/1000 -> 90057.16336 | N10: =('Funding over time'!S3+'[15]TVET & CET Funding'!T21)/1000 -> 90057.16336 | O10: =('Funding over time'!S3+'[15]TVET & CET Funding'!T32)/1000 -> 90057.16336
L11: Shortfall (-) / Surplus (+): Current spending | M11: =M10-M9 -> 57042.16336 | N11: =N10-N9 -> 437.1633598 | O11: =O10-O9 -> -113627.8366
E14: Status quo | F14: Full Policy | G14: Mixed
C15: Enrolments | D15: Current | E15: =Dashboard!E6:E6 -> 750000 | F15: =Dashboard!F6:F6 -> 750000 | G15: =Dashboard!G6:G6 -> 750000

Sheet Funding Shortfall (hidden)
C4: Historical
A5: All figures in R'm | B5: 2014 | C5: 2030 (Nominal) | F5: 2030 (Real)
B6: Status Quo | C6: Status Quo | D6: Full Policy Scenario | E6: Mixed | F6: Status Quo | G6: Full Policy Scenario | H6: Mixed
A7: Current Costs | B7: =Dashboard!Q5 -> 1843.818969 | C7: =Dashboard!N5 -> 11334.54845 | D7: =Dashboard!O5 -> 19856.67633 | E7: =Dashboard!P5 -> 16660.37793 | F7: =C7/(1.062)^16 -> 4329.242918 | G7: =D7/(1.062)^16 -> 7584.278788 | H7: =E7/(1.062)^16 -> 6363.449194
A8: Funding and financing: Total | B8: =B9+B10+B11 -> 1843.818969 | C8: 9649.500332 | D8: 12177.95709 | E8: 9626.417987 | F8: 3685.636986 | G8: 4651.383753 | H8: 3676.820659
A9: State subsidies | B9: ='Funding over time'!B15/1000 -> 1731.89 | C9: ='Funding over time'!R4/1000 -> 9142.410187 | D9: =C9 -> 9142.410187 | E9: =C9 -> 9142.410187 | F9: =C9/(1.062)^16 -> 3491.953362 | G9: 3491.953362 | H9: 3491.953362
A10: NSF | B10: ='Funding over time'!B19/1000 -> 22.59580585 | C10: ='Funding over time'!R19/1000 -> 101.7996156 | D10: ='Funding over time'!R20/1000 -> 2275.832947 | E10: ='Funding over time'!R21/1000 -> 227.5832947 | F10: 38.88247221 | G10: 869.2568315 | H10: 86.92568315
A11: SETA | B11: ='Funding over time'!B16/1000 -> 89.33316315 | C11: ='Funding over time'!R16/1000 -> 405.2905297 | D11: ='Funding over time'!R17/1000 -> 759.7139583 | E11: ='Funding over time'!R18/1000 -> 256.4245057 | F11: 154.8011519 | G11: 290.17356 | H11: 97.94161456
A12: Shortfall (+) / Surplus (-) | B12: =B7-B8 -> -3.217337508e-10 | C12: 1685.048114 | D12: 7678.719234 | E12: 7033.959947 | F12: 643.6059317 | G12: 2932.895035 | H12: 2686.628535
C13: =C12/C8 -> 0.1746254268 | D13: 0.6305424773 | E13: 0.7306933852 | F13: 0.1746254268 | G13: 0.6305424773 | H13: 0.7306933852
C14: Projected
A15: All figures in R'm | B15: 2014 | C15: 2030 | F15: 2030 (Real)
B16: Status Quo | C16: Status Quo | D16: Full Policy Scenario | E16: Mixed | F16: Status Quo | G16: Full Policy Scenario | H16: Mixed
A17: Current Costs | B17: =B7 -> 1843.818969 | C17: 11334.54845 | D17: 19856.67633 | E17: 16660.37793 | F17: 4329.242918 | G17: 7584.278788 | H17: 6363.449194
A18: Funding and financing: Total | B18: =B19+B20+B21 -> 1843.818969 | C18: 9645.563789 | D18: 12154.39213 | E18: 9622.660632 | F18: 3684.133419 | G18: 4642.383089 | H18: 3675.385534
A19: State subsidies | B19: ='Funding over time'!B4/1000 -> 1731.89 | C19: =('Funding over time'!R15)/1000 -> 9142.410187 | D19: =C19 -> 9142.410187 | E19: =C19 -> 9142.410187 | F19: =C19/(1.062)^16 -> 3491.953362 | G19: 3491.953362 | H19: 3491.953362
A20: NSF | B20: ='Funding over time'!B8/1000 -> 22.59580585 | C20: ='Funding over time'!R8/1000 -> 101.0093447 | D20: ='Funding over time'!R9/1000 -> 2258.165644 | E20: ='Funding over time'!R10/1000 -> 225.8165644 | F20: 38.58062737 | G20: 862.5087861 | H20: 86.25087861
A21: SETA | B21: ='Funding over time'!B16/1000 -> 89.33316315 | C21: ='Funding over time'!R5/1000 -> 402.1442572 | D21: ='Funding over time'!R6/1000 -> 753.8162948 | E21: ='Funding over time'!R7/1000 -> 254.4338809 | F21: 153.5994297 | G21: 287.9209411 | H21: 97.18129329
A22: Shortfall (+) / Surplus (-) | B22: =B17-B18 -> -3.217337508e-10 | C22: 1688.984657 | D22: 7702.2842 | E22: 7037.717302 | F22: 645.1094986 | G22: 2941.895699 | H22: 2688.06366
C23: =C22/C18 -> 0.1751048144 | D23: 0.6337037773 | E23: 0.7313691682 | F23: 0.1751048144 | G23: 0.6337037773 | H23: 0.7313691682
C25: 65165337.69 | D25: 1160478616
C26: 171962971.1 | D26: 311981026.1

Sheet Funding over time (hidden)
A1: Projection
A2: Funding Item | B2: 2014 | C2: 2015 | D2: 2016 | E2: 2017 | F2: 2018 | G2: 2019 | H2: 2020 | I2: 2021 | J2: 2022 | K2: 2023 | L2: 2024 | M2: 2025 | N2: 2026 | O2: 2027 | P2: 2028 | Q2: 2029 | R2: 2030 | S2: Cumulative
A3: Total revenue | B3: =SUM(B4:B8) -> 2022485.295 | C3: 2332748.299 | D3: 2596594.403 | E3: 2889585.936 | F3: 3087906.807 | G3: 3423698.988 | H3: 3794976.633 | I3: 4206729.299 | J3: 4663389.355 | K3: 5169876.417 | L3: 5731651.088 | M3: 6354774.637 | N3: 7045975.279 | O3: 7812721.788 | P3: 8663305.258 | Q3: 9606929.912 | R3: 10653813.96 | S3: =SUM(B3:R3) -> 90057163.36
A4: Programme funding (DHET Subsidy) | B4: 1731890 | C4: 1859897 | D4: =C4*(1+$B$27)/(1+$C$28) -> 2068205.464 | E4: 2299844.476 | F4: 2557427.057 | G4: 2843858.888 | H4: 3162371.083 | I4: 3516556.644 | J4: 3910410.989 | K4: 4348377.019 | L4: 4835395.245 | M4: 5376959.513 | N4: 5979178.978 | O4: 6648847.024 | P4: 7393517.891 | Q4: 8221591.894 | R4: 9142410.187 | S4: 75896739.35
A5: SETA: Status Quo | B5: 89333.16315 | C5: =$B$31*C40 -> 100928.8358 | D5: 112789.0627 | E5: 125885.5201 | F5: 140980.5699 | G5: 154279.9945 | H5: 168319.474 | I5: 183636.5461 | J5: 200347.4718 | K5: 218579.0918 | L5: 238469.7891 | M5: 260170.5399 | N5: 283846.0591 | O5: 309676.0504 | P5: 337856.571 | Q5: 368601.519 | R5: 402144.2572 | S5: 3695844.516
A6: SETA: Full Policy | B6: 89333.16315 | C6: =$C$31*C41 -> 230986.4252 | D6: 258129.8218 | E6: 288102.4639 | F6: 264708.7365 | G6: 289196.6545 | H6: 315513.5501 | I6: 344225.2831 | J6: 375549.7839 | K6: 409724.8142 | L6: 447009.7723 | M6: 487687.6616 | N6: 532067.2388 | O6: 580485.3575 | P6: 633309.5251 | Q6: 690940.6919 | R6: 753816.2948 | S6: 6990787.238
A7: SETA: Mixed | B7: 89333.16315 | C7: =$D$31*C42 -> 115493.2126 | D7: 129064.9109 | E7: 144051.232 | F7: 89271.13125 | G7: 97611.88191 | H7: 106494.5632 | I7: 116185.5684 | J7: 126758.4551 | K7: 138293.4745 | L7: 150878.1807 | M7: 164608.0952 | N7: 179587.4318 | O7: 195929.8881 | P7: 213759.508 | Q7: 233211.6232 | R7: 254433.8809 | S7: 2544966.201
A8: NSF: Status Quo | B8: 22595.80585 | C8: =$B$32*C44 -> 25442.82586 | D8: 28405.14374 | E8: 31702.24411 | F8: 35519.31211 | G8: 38751.56952 | H8: 42277.96234 | I8: 46125.25692 | J8: 50322.6553 | K8: 54902.01693 | L8: 59898.10047 | M8: 65348.82761 | N8: 71295.57092 | O8: 77783.46788 | P8: 84861.76345 | Q8: 92584.18393 | R8: 101009.3447 | S8: 928826.0516
A9: NSF: Full Policy | B9: 22595.80585 | C9: =$C$32*C45 -> 568800 | D9: 635025.6 | E9: 708735.6 | F9: 794070 | G9: 866330.37 | H9: 945166.4337 | I9: 1031176.579 | J9: 1125013.648 | K9: 1227389.89 | L9: 1339082.37 | M9: 1460938.865 | N9: 1593884.302 | O9: 1738927.774 | P9: 1897170.201 | Q9: 2069812.689 | R9: 2258165.644 | S9: 20282285.77
A10: NSF Mixed | B10: 22595.80585 | C10: =$D$32*C46 -> 56880 | D10: 63502.56 | E10: 70873.56 | F10: 79407 | G10: 86633.037 | H10: 94516.64337 | I10: 103117.6579 | J10: 112501.3648 | K10: 122738.989 | L10: 133908.237 | M10: 146093.8865 | N10: 159388.4302 | O10: 173892.7774 | P10: 189717.0201 | Q10: 206981.2689 | R10: 225816.5644 | S10: 2048564.802
A12: Historical
A13: Funding Item | B13: 2014 | C13: 2015 | D13: 2016 | E13: 2017 | F13: 2018 | G13: 2019 | H13: 2020 | I13: 2021 | J13: 2022 | K13: 2023 | L13: 2024 | M13: 2025 | N13: 2026 | O13: 2027 | P13: 2028 | Q13: 2029 | R13: 2030 | S13: Cumulative | AL13: Current | AM13: 0.18
A14: Total revenue | B14: =SUM(B15:B19) -> 2022485.295 | C14: 2336248.708 | D14: 2600728.381 | E14: 2894199.92 | F14: 3092057.143 | G14: 3428235.507 | H14: 3799925.975 | I14: 4212129.031 | J14: 4669280.462 | K14: 5176303.615 | L14: 5738663.162 | M14: 6362424.81 | N14: 7054321.617 | O14: 7821827.643 | P14: 8673239.746 | Q14: 9617768.438 | R14: 10665638.8 | S14: =SUM(B14:R14) -> 90165478.25 | AL14: SETA Landscape | AM14: 1
A15: Programme funding (DHET Subsidy) | B15: 1731890 | C15: 1859897 | D15: =C15*(1+$B$27)/(1+$C$28) -> 2068205.464 | E15: 2299844.476 | F15: 2557427.057 | G15: 2843858.888 | H15: 3162371.083 | I15: 3516556.644 | J15: 3910410.989 | K15: 4348377.019 | L15: 4835395.245 | M15: 5376959.513 | N15: 5979178.978 | O15: 6648847.024 | P15: 7393517.891 | Q15: 8221591.894 | R15: 9142410.187 | S15: 75896739.35
A16: SETA | B16: 89333.16315 | C16: =$B$31*C40*(1+$B$26)/(1+$B$27) -> 101718.4769 | D16: 113671.4951 | E16: 126870.4158 | F16: 142083.5654 | G16: 155487.0412 | H16: 169636.362 | I16: 185073.2709 | J16: 201914.9386 | K16: 220289.198 | L16: 240335.515 | M16: 262206.0469 | N16: 286066.7971 | O16: 312098.8757 | P16: 340499.8733 | Q16: 371485.3618 | R16: 405290.5297 | S16: 3724060.926
A17: SETA: Full Policy | B17: 89333.16315 | C17: =$C$31*C41*(1+$B$26)/(1+$B$27) -> 232793.6032 | D17: 260149.3627 | E17: 290356.503 | F17: 266779.7491 | G17: 291459.2542 | H17: 317982.0464 | I17: 346918.4126 | J17: 378487.9881 | K17: 412930.3951 | L17: 450507.061 | M17: 491503.2036 | N17: 536229.9951 | O17: 585026.9246 | P17: 638264.3748 | Q17: 696346.4329 | R17: 759713.9583 | S17: 7044782.428
A18: SETA: Mixed | B18: 89333.16315 | C18: =$D$31*C42*(1+$B$26)/(1+$B$27) -> 116396.8016 | D18: 130074.6813 | E18: 145178.2515 | F18: 89969.56546 | G18: 98375.57199 | H18: 107327.749 | I18: 117094.5742 | J18: 127750.1805 | K18: 139375.4469 | L18: 152058.6125 | M18: 165895.9463 | N18: 180992.4774 | O18: 197462.7928 | P18: 215431.907 | Q18: 235036.2105 | R18: 256424.5057 | S18: 2564178.438
A19: NSF | B19: 22595.80585 | C19: =$B$32*C44 -> 25442.82586 | D19: =$B$32*D44*(1+$B$26)/(1+$B$27) -> 28627.37823 | E19: 31950.27426 | F19: 35797.20601 | G19: 39054.75176 | H19: 42608.73417 | I19: 46486.12898 | J19: 50716.36672 | K19: 55331.55609 | L19: 60366.72769 | M19: 65860.09991 | N19: 71853.36901 | O19: 78392.02559 | P19: 85525.69991 | Q19: 93308.53861 | R19: 101799.6156 | S19: 935717.1043
A20: NSF: Full Policy | B20: 22595.80585 | C20: =$B$32*C45 -> 25442.82586 | D20: =$C$32*D45*(1+$B$26)/(1+$B$27) -> 639993.8758 | E20: 714280.5638 | F20: 800282.598 | G20: 873108.3144 | H20: 952561.1711 | I20: 1039244.238 | J20: 1133815.463 | K20: 1236992.67 | L20: 1349559.003 | M20: 1472368.873 | N20: 1606354.44 | O20: 1752532.694 | P20: 1912013.169 | Q20: 2086006.368 | R20: 2275832.947 | S20: 19892985.02
A21: NSF Mixed | B21: 22595.80585 | C21: =$B$32*C46 -> 25442.82586 | D21: =$D$32*D46*(1+$B$26)/(1+$B$27) -> 63999.38758 | E21: 71428.05638 | F21: 80028.2598 | G21: 87310.83144 | H21: 95256.11711 | I21: 103924.4238 | J21: 113381.5463 | K21: 123699.267 | L21: 134955.9003 | M21: 147236.8873 | N21: 160635.444 | O21: 175253.2694 | P21: 191201.3169 | Q21: 208600.6368 | R21: 227583.2947 | S21: 2032533.271
A24: Growth Assumptions
A25: Historical (Subsidy)
A26: Historical (SDL) | B26: 0.1207 | E26: =1843.81896899968*1000 -> 1843818.969
A27: Projection | B27: =6.2%+'PSET Dashboard'!L12 -> 0.112
A28: CPI Inflation | B28: Nominal | C28: =IF(B28=Dashboard!AK3,Dashboard!AL4,Dashboard!AL3) -> 0
A30: Community College Allocations | B30: Status Quo | C30: Full Policy | D30: Mixed
A31: SETA | B31: =B16/B40 -> 0.04369470444 | C31: 0.1 | D31: 0.05
A32: NSF | B32: =B8/B44 -> 0.04473070651 | C32: 1 | D32: 0.1
A34: NSF Skills Programmes Scenario | B34: Current | C34: =IF(B34=AL13,AM13,AM14) -> 0.18
A39: SETA Skills Programmes
A40: Status Quo | B40: 2044484.894 | C40: 2309864.252 | D40: 2581298.218 | E40: 2881024.639 | F40: 3226490.984 | G40: 3530862.527 | H40: 3852171.016 | I40: 4202718.579 | J40: 4585165.97 | K40: 5002416.073 | L40: 5457635.935 | M40: 5954280.806 | N40: 6496120.359 | O40: 7087267.312 | P40: 7732208.637 | Q40: 8435839.623 | R40: 9203501.029
A41: Full Policy | B41: 2019429.799 | C41: 2309864.252 | D41: 2581298.218 | E41: 2881024.639 | F41: 2647087.365 | G41: 2891966.545 | H41: 3155135.501 | I41: 3442252.831 | J41: 3755497.839 | K41: 4097248.142 | L41: 4470097.723 | M41: 4876876.616 | N41: 5320672.388 | O41: 5804853.575 | P41: 6333095.251 | Q41: 6909406.919 | R41: 7538162.948
A42: Mixed | B42: 2019429.799 | C42: 2309864.252 | D42: 2581298.218 | E42: 2881024.639 | F42: 1785422.625 | G42: 1952237.638 | H42: 2129891.263 | I42: 2323711.368 | J42: 2535169.103 | K42: 2765869.491 | L42: 3017563.615 | M42: 3292161.904 | N42: 3591748.637 | O42: 3918597.763 | P42: 4275190.159 | Q42: 4664232.464 | R42: 5088677.618
A43: NSF Skills Programmes
A44: Status Quo | B44: =B50*0.18 -> 505152 | C44: 568800 | D44: 635025.6 | E44: 708735.6 | F44: 794070 | G44: 866330.37 | H44: 945166.4337 | I44: 1031176.579 | J44: 1125013.648 | K44: 1227389.89 | L44: 1339082.37 | M44: 1460938.865 | N44: 1593884.302 | O44: 1738927.774 | P44: 1897170.201 | Q44: 2069812.689 | R44: 2258165.644
A45: Full Policy | B45: =B51*0.18 -> 505152 | C45: 568800 | D45: 635025.6 | E45: 708735.6 | F45: =F51*$C$34 -> 794070 | G45: 866330.37 | H45: 945166.4337 | I45: 1031176.579 | J45: 1125013.648 | K45: 1227389.89 | L45: 1339082.37 | M45: 1460938.865 | N45: 1593884.302 | O45: 1738927.774 | P45: 1897170.201 | Q45: 2069812.689 | R45: 2258165.644
A46: Mixed | B46: 505152 | C46: 568800 | D46: 635025.6 | E46: 708735.6 | F46: =F52*$C$34 -> 794070 | G46: 866330.37 | H46: 945166.4337 | I46: 1031176.579 | J46: 1125013.648 | K46: 1227389.89 | L46: 1339082.37 | M46: 1460938.865 | N46: 1593884.302 | O46: 1738927.774 | P46: 1897170.201 | Q46: 2069812.689 | R46: 2258165.644
A49: NSF Training Programmes
A50: Status Quo | B50: 2806400 | C50: 3160000 | D50: 3527920 | E50: 3937420 | F50: 4411500 | G50: 4812946.5 | H50: 5250924.632 | I50: 5728758.773 | J50: 6250075.821 | K50: 6818832.721 | L50: 7439346.499 | M50: 8116327.03 | N50: 8854912.79 | O50: 9660709.854 | P50: 10539834.45 | Q50: 11498959.39 | R50: 12545364.69
A51: Full Policy | B51: 2806400 | C51: 3160000 | D51: 3527920 | E51: 3937420 | F51: 4411500 | G51: 4812946.5 | H51: 5250924.632 | I51: 5728758.773 | J51: 6250075.821 | K51: 6818832.721 | L51: 7439346.499 | M51: 8116327.03 | N51: 8854912.79 | O51: 9660709.854 | P51: 10539834.45 | Q51: 11498959.39 | R51: 12545364.69
A52: Mixed | B52: 2806400 | C52: 3160000 | D52: 3527920 | E52: 3937420 | F52: 4411500 | G52: 4812946.5 | H52: 5250924.632 | I52: 5728758.773 | J52: 6250075.821 | K52: 6818832.721 | L52: 7439346.499 | M52: 8116327.03 | N52: 8854912.79 | O52: 9660709.854 | P52: 10539834.45 | Q52: 11498959.39 | R52: 12545364.69
B55: 1000

Sheet Infrastructure (hidden)
B1: 2014 | C1: 2015 | D1: 2016 | E1: 2017 | F1: 2018 | G1: 2019 | H1: 2020 | I1: 2021 | J1: 2022 | K1: 2023 | L1: 2024 | M1: 2025 | N1: 2026 | O1: 2027 | P1: 2028 | Q1: 2029 | R1: 2030
A2: Number of FTEs | B2: =Enrolments!C90 -> 239629.0245 | C2: =Enrolments!D90 -> 267574.6882 | D2: =Enrolments!E90 -> 295358.9695 | E2: =Enrolments!F90 -> 323143.2508 | F2: =Enrolments!G90 -> 350927.5322 | G2: =Enrolments!H90 -> 378711.8135 | H2: =Enrolments!I90 -> 406496.0948 | I2: =Enrolments!J90 -> 434280.3762 | J2: =Enrolments!K90 -> 462064.6575 | K2: =Enrolments!L90 -> 489848.9388 | L2: =Enrolments!M90 -> 517633.2201 | M2: =Enrolments!N90 -> 545417.5015 | N2: =Enrolments!O90 -> 573201.7828 | O2: =Enrolments!P90 -> 600986.0641 | P2: =Enrolments!Q90 -> 628770.3455 | Q2: =Enrolments!R90 -> 656554.6268 | R2: =Enrolments!S90 -> 684338.9081 | T2: Status Quo
A3: Change in FTEs | C3: =C2-B2 -> 27945.66365 | D3: 27784.28133 | E3: 27784.28133 | F3: 27784.28133 | G3: 27784.28133 | H3: 27784.28133 | I3: 27784.28133 | J3: 27784.28133 | K3: 27784.28133 | L3: 27784.28133 | M3: 27784.28133 | N3: 27784.28133 | O3: 27784.28133 | P3: 27784.28133 | Q3: 27784.28133 | R3: 27784.28133
A4: Number of FTEs | B4: =Enrolments!C98 -> 239629.0245 | C4: =Enrolments!D98 -> 267574.6882 | D4: =Enrolments!E98 -> 283461.3756 | E4: =Enrolments!F98 -> 299348.0631 | F4: =Enrolments!G98 -> 315234.7505 | G4: =Enrolments!H98 -> 331121.438 | H4: =Enrolments!I98 -> 347008.1254 | I4: =Enrolments!J98 -> 362894.8129 | J4: =Enrolments!K98 -> 378781.5004 | K4: =Enrolments!L98 -> 394668.1878 | L4: =Enrolments!M98 -> 410554.8753 | M4: =Enrolments!N98 -> 426441.5627 | N4: =Enrolments!O98 -> 442328.2502 | O4: =Enrolments!P98 -> 458214.9376 | P4: =Enrolments!Q98 -> 474101.6251 | Q4: =Enrolments!R98 -> 489988.3125 | R4: =Enrolments!S98 -> 505875 | T4: full Policy
A5: Change in FTEs | C5: =C4-B4 -> 27945.66365 | D5: 15886.68746 | E5: 15886.68746 | F5: 15886.68746 | G5: 15886.68746 | H5: 15886.68746 | I5: 15886.68746 | J5: 15886.68746 | K5: 15886.68746 | L5: 15886.68746 | M5: 15886.68746 | N5: 15886.68746 | O5: 15886.68746 | P5: 15886.68746 | Q5: 15886.68746 | R5: 15886.68746
A6: Number of FTEs | B6: =Enrolments!C106 -> 239424.4694 | C6: =Enrolments!D106 -> 267574.6882 | D6: =Enrolments!E106 -> 287111.3756 | E6: =Enrolments!F106 -> 306648.0631 | F6: =Enrolments!G106 -> 326184.7505 | G6: =Enrolments!H106 -> 345721.438 | H6: =Enrolments!I106 -> 365258.1254 | I6: =Enrolments!J106 -> 384794.8129 | J6: =Enrolments!K106 -> 404331.5004 | K6: =Enrolments!L106 -> 423868.1878 | L6: =Enrolments!M106 -> 443404.8753 | M6: =Enrolments!N106 -> 462941.5627 | N6: =Enrolments!O106 -> 482478.2502 | O6: =Enrolments!P106 -> 502014.9376 | P6: =Enrolments!Q106 -> 521551.6251 | Q6: =Enrolments!R106 -> 541088.3125 | R6: =Enrolments!S106 -> 560625 | T6: Balanced
A7: Change in FTEs | C7: =C6-B6 -> 28150.21873 | D7: 19536.68746 | E7: 19536.68746 | F7: 19536.68746 | G7: 19536.68746 | H7: 19536.68746 | I7: 19536.68746 | J7: 19536.68746 | K7: 19536.68746 | L7: 19536.68746 | M7: 19536.68746 | N7: 19536.68746 | O7: 19536.68746 | P7: 19536.68746 | Q7: 19536.68746 | R7: 19536.68746
C9: Equipment costs
A10: Cost per square meter (inflation adjusted) | B10: 13000 | C10: Basic | D10: 4000 | E10: FTE to seats ratio | F10: 2.5
E11: FTE to enrolment | F11: 1.926384927
A13: New campus estimates | D13: LEGEND
A14: Number of FTEs per campus | B14: 6000 | E14: Heading
A15: Number of FTEs per campus | B15: =B14/F11 -> 3114.642311 | E15: Item description
A16: Total cost of campus | B16: 453034103.3 | E16: User-defined Input
A17: Average cost per new campus FTE | B17: =B16/B15 -> 145453.0113 | E17: Fixed Assumption
E18: Output
A19: Existing campus expansion estimates | E19: Key output
A20: Ratio between expansion and new campus costs | B20: =1/3 -> 0.3333333333
A21: Average cost per new campus FTE | B21: =B20*B17 -> 48484.33711
A23: Final cost per FTE to use (2014)
A24: Ratio of expanding existing and building new | B24: =1/3 -> 0.3333333333
A25: Weighted cost (2014) | B25: =B24*B21+(1-B24)*B17*0.8 -> 93736.38509
A28: Cost per FTE new infrastructure | B28: =B25 -> 93736.38509 | C28: =B28*(1+Expenditure!$C$9)/(1+Expenditure!$C$5) -> 99548.04096 | D28: =C28*(1+Expenditure!$C$9)/(1+Expenditure!$C$5) -> 105720.0195 | E28: =D28*(1+Expenditure!$C$9)/(1+Expenditure!$C$5) -> 112274.6607 | F28: =E28*(1+Expenditure!$C$9)/(1+Expenditure!$C$5) -> 119235.6897 | G28: =F28*(1+Expenditure!$C$9)/(1+Expenditure!$C$5) -> 126628.3024 | H28: =G28*(1+Expenditure!$C$9)/(1+Expenditure!$C$5) -> 134479.2572 | I28: =H28*(1+Expenditure!$C$9)/(1+Expenditure!$C$5) -> 142816.9711 | J28: =I28*(1+Expenditure!$C$9)/(1+Expenditure!$C$5) -> 151671.6233 | K28: =J28*(1+Expenditure!$C$9)/(1+Expenditure!$C$5) -> 161075.264 | L28: =K28*(1+Expenditure!$C$9)/(1+Expenditure!$C$5) -> 171061.9304 | M28: =L28*(1+Expenditure!$C$9)/(1+Expenditure!$C$5) -> 181667.77 | N28: =M28*(1+Expenditure!$C$9)/(1+Expenditure!$C$5) -> 192931.1718 | O28: =N28*(1+Expenditure!$C$9)/(1+Expenditure!$C$5) -> 204892.9044 | P28: =O28*(1+Expenditure!$C$9)/(1+Expenditure!$C$5) -> 217596.2645 | Q28: =P28*(1+Expenditure!$C$9)/(1+Expenditure!$C$5) -> 231087.2329 | R28: =Q28*(1+Expenditure!$C$9)/(1+Expenditure!$C$5) -> 245414.6413
A29: Proportion requiring infrastructure | B29: 0 | C29: =Expenditure!$C$22 -> 0 | D29: =Expenditure!$C$22 -> 0 | E29: =Expenditure!$C$22 -> 0 | F29: =Expenditure!$C$22 -> 0 | G29: =Expenditure!$C$22 -> 0 | H29: =Expenditure!$C$22 -> 0 | I29: =Expenditure!$C$22 -> 0 | J29: =Expenditure!$C$22 -> 0 | K29: =Expenditure!$C$22 -> 0 | L29: =Expenditure!$C$22 -> 0 | M29: =Expenditure!$C$22 -> 0 | N29: =Expenditure!$C$22 -> 0 | O29: =Expenditure!$C$22 -> 0 | P29: =Expenditure!$C$22 -> 0 | Q29: =Expenditure!$C$22 -> 0 | R29: =Expenditure!$C$22 -> 0
A30: Total new infrastructure costs required | C30: =C3*B$28*Expenditure!$C$22 -> 0 | D30: =D3*D$28*D29 -> 0 | E30: =E3*D$28*E29 -> 0 | F30: 0 | G30: 0 | H30: 0 | I30: 0 | J30: 0 | K30: 0 | L30: 0 | M30: 0 | N30: 0 | O30: 0 | P30: 0 | Q30: 0 | R30: 0 | S30: =SUM(C30:R30) -> 0 | T30: Status Quo
A31: Total new infrastructure costs required | C31: =C5*B$28*Expenditure!$D$22*(1+Expenditure!$C$9)/(1+Expenditure!$C$5) -> 1390968035 | D31: =D5*C$28*Expenditure!$D$22*(1+Expenditure!$C$9)/(1+Expenditure!$C$5) -> 839770453.8 | E31: =E5*D$28*Expenditure!$D$22 -> 839770453.8 | F31: =F5*E$28*Expenditure!$D$22 -> 891836221.9 | G31: =G5*F$28*Expenditure!$D$22 -> 947130067.7 | H31: =H5*G$28*Expenditure!$D$22 -> 1005852132 | I31: =I5*H$28*Expenditure!$D$22 -> 1068214964 | J31: =J5*I$28*Expenditure!$D$22 -> 1134444292 | K31: =K5*J$28*Expenditure!$D$22 -> 1204779838 | L31: =L5*K$28*Expenditure!$D$22 -> 1279476188 | M31: =M5*L$28*Expenditure!$D$22 -> 1358803712 | N31: =N5*M$28*Expenditure!$D$22 -> 1443049542 | O31: =O5*N$28*Expenditure!$D$22 -> 1532518613 | P31: =P5*O$28*Expenditure!$D$22 -> 1627534767 | Q31: =Q5*P$28*Expenditure!$D$22 -> 1728441923 | R31: =R5*Q$28*Expenditure!$D$22 -> 1835605322 | S31: =SUM(D31:R31) -> 1.873722849e+10 | T31: Full Policy
A32: Total new infrastructure costs required | C32: =C7*B$28*Expenditure!$E$22 -> 395804961.4 | D32: =D7*C$28*Expenditure!$E$22 -> 291725844.5 | E32: =E7*D$28*Expenditure!$E$22 -> 309812846.8 | F32: =F7*E$28*Expenditure!$E$22 -> 329021243.3 | G32: =G7*F$28*Expenditure!$E$22 -> 349420560.4 | H32: =H7*G$28*Expenditure!$E$22 -> 371084635.2 | I32: =I7*H$28*Expenditure!$E$22 -> 394091882.5 | J32: =J7*I$28*Expenditure!$E$22 -> 418525579.2 | K32: =K7*J$28*Expenditure!$E$22 -> 444474165.2 | L32: =L7*K$28*Expenditure!$E$22 -> 472031563.4 | M32: =M7*L$28*Expenditure!$E$22 -> 501297520.3 | N32: =N7*M$28*Expenditure!$E$22 -> 532377966.6 | O32: =O7*N$28*Expenditure!$E$22 -> 565385400.5 | P32: =P7*O$28*Expenditure!$E$22 -> 600439295.4 | Q32: =Q7*P$28*Expenditure!$E$22 -> 637666531.7 | R32: =R7*Q$28*Expenditure!$E$22 -> 677201856.6 | S32: =SUM(D32:R32) -> 6894556892 | T32: Balanced
A35: Cost per sqm | B35: 128
A36: Number of learners per sqm | B36: 2
A37: Status Quo | B37: =B$6*$B$35/$B$36 -> 15323166.04 | C37: 17124780.04 | D37: 18375128.04 | E37: 19625476.04 | F37: 20875824.03 | G37: 22126172.03 | H37: 23376520.03 | I37: 24626868.03 | J37: 25877216.02 | K37: 27127564.02 | L37: 28377912.02 | M37: 29628260.01 | N37: 30878608.01 | O37: 32128956.01 | P37: 33379304.01 | Q37: 34629652 | R37: 35880000
A38: Full Policy
A39: Mixed

Sheet Enrolments (hidden)
C1: 2014 | D1: 2015 | E1: 2016 | F1: 2017 | G1: 2018 | H1: 2019 | I1: 2020 | J1: 2021 | K1: 2022 | L1: 2023 | M1: 2024 | N1: 2025 | O1: 2026 | P1: 2027 | Q1: 2028 | R1: 2029 | S1: 2030
A2: =Dashboard!N4 -> Status quo | B2: Total Enrolment | C2: 262621 | D2: 293248 | E2: =D2+($S2-$D2)/($S$1-$D$1) -> 323698.1333 | F2: 354148.2667 | G2: 384598.4 | H2: 415048.5333 | I2: 445498.6667 | J2: 475948.8 | K2: 506398.9333 | L2: 536849.0667 | M2: 567299.2 | N2: 597749.3333 | O2: 628199.4667 | P2: 658649.6 | Q2: 689099.7333 | R2: 719549.8667 | S2: =Dashboard!E6 -> 750000
B3: Abet 1 | C3: =C$2*'Enrol Scenarios'!$B$4 -> 15817.86638 | D3: =D$2*'Enrol Scenarios'!$B$4 -> 17662.55433 | E3: =E$2*'Enrol Scenarios'!$B$4 -> 19496.58947 | F3: =F$2*'Enrol Scenarios'!$B$4 -> 21330.6246 | G3: =G$2*'Enrol Scenarios'!$B$4 -> 23164.65973 | H3: =H$2*'Enrol Scenarios'!$B$4 -> 24998.69486 | I3: =I$2*'Enrol Scenarios'!$B$4 -> 26832.72999 | J3: =J$2*'Enrol Scenarios'!$B$4 -> 28666.76513 | K3: =K$2*'Enrol Scenarios'!$B$4 -> 30500.80026 | L3: =L$2*'Enrol Scenarios'!$B$4 -> 32334.83539 | M3: =M$2*'Enrol Scenarios'!$B$4 -> 34168.87052 | N3: =N$2*'Enrol Scenarios'!$B$4 -> 36002.90566 | O3: =O$2*'Enrol Scenarios'!$B$4 -> 37836.94079 | P3: =P$2*'Enrol Scenarios'!$B$4 -> 39670.97592 | Q3: =Q$2*'Enrol Scenarios'!$B$4 -> 41505.01105 | R3: =R$2*'Enrol Scenarios'!$B$4 -> 43339.04618 | S3: =S$2*'Enrol Scenarios'!$B$4 -> 45173.08132
B4: Abet 2 | C4: =C$2*'Enrol Scenarios'!$B$5 -> 22699.50136 | D4: =D$2*'Enrol Scenarios'!$B$5 -> 25346.72922 | E4: =E$2*'Enrol Scenarios'!$B$5 -> 27978.66971 | F4: =F$2*'Enrol Scenarios'!$B$5 -> 30610.6102 | G4: =G$2*'Enrol Scenarios'!$B$5 -> 33242.55069 | H4: =H$2*'Enrol Scenarios'!$B$5 -> 35874.49118 | I4: =I$2*'Enrol Scenarios'!$B$5 -> 38506.43166 | J4: =J$2*'Enrol Scenarios'!$B$5 -> 41138.37215 | K4: =K$2*'Enrol Scenarios'!$B$5 -> 43770.31264 | L4: =L$2*'Enrol Scenarios'!$B$5 -> 46402.25313 | M4: =M$2*'Enrol Scenarios'!$B$5 -> 49034.19362 | N4: =N$2*'Enrol Scenarios'!$B$5 -> 51666.13411 | O4: =O$2*'Enrol Scenarios'!$B$5 -> 54298.0746 | P4: =P$2*'Enrol Scenarios'!$B$5 -> 56930.01508 | Q4: =Q$2*'Enrol Scenarios'!$B$5 -> 59561.95557 | R4: =R$2*'Enrol Scenarios'!$B$5 -> 62193.89606 | S4: =S$2*'Enrol Scenarios'!$B$5 -> 64825.83655
B5: Abet 3 | C5: =C$2*'Enrol Scenarios'!$B$6 -> 26933.94882 | D5: =D$2*'Enrol Scenarios'!$B$6 -> 30075.00019 | E5: =E$2*'Enrol Scenarios'!$B$6 -> 33197.91242 | F5: =F$2*'Enrol Scenarios'!$B$6 -> 36320.82465 | G5: =G$2*'Enrol Scenarios'!$B$6 -> 39443.73688 | H5: =H$2*'Enrol Scenarios'!$B$6 -> 42566.64911 | I5: =I$2*'Enrol Scenarios'!$B$6 -> 45689.56134 | J5: =J$2*'Enrol Scenarios'!$B$6 -> 48812.47357 | K5: =K$2*'Enrol Scenarios'!$B$6 -> 51935.3858 | L5: =L$2*'Enrol Scenarios'!$B$6 -> 55058.29803 | M5: =M$2*'Enrol Scenarios'!$B$6 -> 58181.21026 | N5: =N$2*'Enrol Scenarios'!$B$6 -> 61304.12249 | O5: =O$2*'Enrol Scenarios'!$B$6 -> 64427.03472 | P5: =P$2*'Enrol Scenarios'!$B$6 -> 67549.94695 | Q5: =Q$2*'Enrol Scenarios'!$B$6 -> 70672.85918 | R5: =R$2*'Enrol Scenarios'!$B$6 -> 73795.77141 | S5: =S$2*'Enrol Scenarios'!$B$6 -> 76918.68364
B6: Abet 4 | C6: =C$2*'Enrol Scenarios'!$B$7 -> 115099.5026 | D6: =D$2*'Enrol Scenarios'!$B$7 -> 128522.4675 | E6: =E$2*'Enrol Scenarios'!$B$7 -> 141867.9166 | F6: =F$2*'Enrol Scenarios'!$B$7 -> 155213.3658 | G6: =G$2*'Enrol Scenarios'!$B$7 -> 168558.8149 | H6: =H$2*'Enrol Scenarios'!$B$7 -> 181904.2641 | I6: =I$2*'Enrol Scenarios'!$B$7 -> 195249.7132 | J6: =J$2*'Enrol Scenarios'!$B$7 -> 208595.1624 | K6: =K$2*'Enrol Scenarios'!$B$7 -> 221940.6115 | L6: =L$2*'Enrol Scenarios'!$B$7 -> 235286.0607 | M6: =M$2*'Enrol Scenarios'!$B$7 -> 248631.5098 | N6: =N$2*'Enrol Scenarios'!$B$7 -> 261976.959 | O6: =O$2*'Enrol Scenarios'!$B$7 -> 275322.4081 | P6: =P$2*'Enrol Scenarios'!$B$7 -> 288667.8573 | Q6: =Q$2*'Enrol Scenarios'!$B$7 -> 302013.3064 | R6: =R$2*'Enrol Scenarios'!$B$7 -> 315358.7555 | S6: =S$2*'Enrol Scenarios'!$B$7 -> 328704.2047
B7: Grade 12 | C7: =C$2*'Enrol Scenarios'!$B$8 -> 75476.94721 | D7: =D$2*'Enrol Scenarios'!$B$8 -> 84279.10874 | E7: =E$2*'Enrol Scenarios'!$B$8 -> 93030.43901 | F7: =F$2*'Enrol Scenarios'!$B$8 -> 101781.7693 | G7: =G$2*'Enrol Scenarios'!$B$8 -> 110533.0995 | H7: =H$2*'Enrol Scenarios'!$B$8 -> 119284.4298 | I7: =I$2*'Enrol Scenarios'!$B$8 -> 128035.7601 | J7: =J$2*'Enrol Scenarios'!$B$8 -> 136787.0903 | K7: =K$2*'Enrol Scenarios'!$B$8 -> 145538.4206 | L7: =L$2*'Enrol Scenarios'!$B$8 -> 154289.7509 | M7: =M$2*'Enrol Scenarios'!$B$8 -> 163041.0811 | N7: =N$2*'Enrol Scenarios'!$B$8 -> 171792.4114 | O7: =O$2*'Enrol Scenarios'!$B$8 -> 180543.7417 | P7: =P$2*'Enrol Scenarios'!$B$8 -> 189295.0719 | Q7: =Q$2*'Enrol Scenarios'!$B$8 -> 198046.4022 | R7: =R$2*'Enrol Scenarios'!$B$8 -> 206797.7325 | S7: =S$2*'Enrol Scenarios'!$B$8 -> 215549.0628
B8: Occupational | C8: =C$2*'Enrol Scenarios'!$B$9 -> 7616.009 | D8: =D$2*'Enrol Scenarios'!$B$9 -> 8504.192 | E8: =E$2*'Enrol Scenarios'!$B$9 -> 9387.245867 | F8: =F$2*'Enrol Scenarios'!$B$9 -> 10270.29973 | G8: =G$2*'Enrol Scenarios'!$B$9 -> 11153.3536 | H8: =H$2*'Enrol Scenarios'!$B$9 -> 12036.40747 | I8: =I$2*'Enrol Scenarios'!$B$9 -> 12919.46133 | J8: =J$2*'Enrol Scenarios'!$B$9 -> 13802.5152 | K8: =K$2*'Enrol Scenarios'!$B$9 -> 14685.56907 | L8: =L$2*'Enrol Scenarios'!$B$9 -> 15568.62293 | M8: =M$2*'Enrol Scenarios'!$B$9 -> 16451.6768 | N8: =N$2*'Enrol Scenarios'!$B$9 -> 17334.73067 | O8: =O$2*'Enrol Scenarios'!$B$9 -> 18217.78453 | P8: =P$2*'Enrol Scenarios'!$B$9 -> 19100.8384 | Q8: =Q$2*'Enrol Scenarios'!$B$9 -> 19983.89227 | R8: =R$2*'Enrol Scenarios'!$B$9 -> 20866.94613 | S8: =S$2*'Enrol Scenarios'!$B$9 -> 21750
C9: =C2/D2 -> 0.89555939 | D9: =1-C9 -> 0.10444061 | E9: =($S$10/$D$10)^(1/($S$1-$D$1))-1 -> 0.06005823816 | F9: 0.06005823816 | G9: 0.06005823816 | H9: 0.06005823816 | I9: 0.06005823816 | J9: 0.06005823816 | K9: 0.06005823816 | L9: 0.06005823816 | M9: 0.06005823816 | N9: 0.06005823816 | O9: 0.06005823816 | P9: 0.06005823816 | Q9: 0.06005823816 | R9: 0.06005823816
A10: Constant Growth | B10: Total Enrolment | C10: 293248 | D10: 312691 | E10: =D10*(1+E9) -> 331470.6705 | F10: 351378.215 | G10: 372481.3715 | H10: 394851.9465 | I10: 418566.0587 | J10: 443704.3987 | K10: 470352.5032 | L10: 498601.0458 | M10: 528546.1462 | N10: 560289.6965 | O10: 593939.7085 | P10: 629610.681 | Q10: 667423.9892 | R10: 707508.2981 | S10: =Dashboard!F6 -> 750000
B11: Abet 1 | C11: =C$10*#REF! ->  | D11: =D$10*#REF! ->  | E11: =E$10*#REF! ->  | F11: =F$10*#REF! ->  | G11: =G$10*#REF! ->  | H11: =H$10*#REF! ->  | I11: =I$10*#REF! ->  | J11: =J$10*#REF! ->  | K11: =K$10*#REF! ->  | L11: =L$10*#REF! ->  | M11: =M$10*#REF! ->  | N11: =N$10*#REF! ->  | O11: =O$10*#REF! ->  | P11: =P$10*#REF! ->  | Q11: =Q$10*#REF! ->  | R11: =R$10*#REF! ->  | S11: =S$10*#REF! -> 
B12: Abet 2 | C12: =C$10*#REF! ->  | D12: =D$10*#REF! ->  | E12: =E$10*#REF! ->  | F12: =F$10*#REF! ->  | G12: =G$10*#REF! ->  | H12: =H$10*#REF! ->  | I12: =I$10*#REF! ->  | J12: =J$10*#REF! ->  | K12: =K$10*#REF! ->  | L12: =L$10*#REF! ->  | M12: =M$10*#REF! ->  | N12: =N$10*#REF! ->  | O12: =O$10*#REF! ->  | P12: =P$10*#REF! ->  | Q12: =Q$10*#REF! ->  | R12: =R$10*#REF! ->  | S12: =S$10*#REF! -> 
B13: Abet 3 | C13: =C$10*#REF! ->  | D13: =D$10*#REF! ->  | E13: =E$10*#REF! ->  | F13: =F$10*#REF! ->  | G13: =G$10*#REF! ->  | H13: =H$10*#REF! ->  | I13: =I$10*#REF! ->  | J13: =J$10*#REF! ->  | K13: =K$10*#REF! ->  | L13: =L$10*#REF! ->  | M13: =M$10*#REF! ->  | N13: =N$10*#REF! ->  | O13: =O$10*#REF! ->  | P13: =P$10*#REF! ->  | Q13: =Q$10*#REF! ->  | R13: =R$10*#REF! ->  | S13: =S$10*#REF! -> 
B14: Abet 4 | C14: =C$10*#REF! ->  | D14: =D$10*#REF! ->  | E14: =E$10*#REF! ->  | F14: =F$10*#REF! ->  | G14: =G$10*#REF! ->  | H14: =H$10*#REF! ->  | I14: =I$10*#REF! ->  | J14: =J$10*#REF! ->  | K14: =K$10*#REF! ->  | L14: =L$10*#REF! ->  | M14: =M$10*#REF! ->  | N14: =N$10*#REF! ->  | O14: =O$10*#REF! ->  | P14: =P$10*#REF! ->  | Q14: =Q$10*#REF! ->  | R14: =R$10*#REF! ->  | S14: =S$10*#REF! -> 
B15: Grade 12 | C15: =C$10*#REF! ->  | D15: =D$10*#REF! ->  | E15: =E$10*#REF! ->  | F15: =F$10*#REF! ->  | G15: =G$10*#REF! ->  | H15: =H$10*#REF! ->  | I15: =I$10*#REF! ->  | J15: =J$10*#REF! ->  | K15: =K$10*#REF! ->  | L15: =L$10*#REF! ->  | M15: =M$10*#REF! ->  | N15: =N$10*#REF! ->  | O15: =O$10*#REF! ->  | P15: =P$10*#REF! ->  | Q15: =Q$10*#REF! ->  | R15: =R$10*#REF! ->  | S15: =S$10*#REF! -> 
B16: Occupational | C16: =C$10*#REF! ->  | D16: =D$10*#REF! ->  | E16: =E$10*#REF! ->  | F16: =F$10*#REF! ->  | G16: =G$10*#REF! ->  | H16: =H$10*#REF! ->  | I16: =I$10*#REF! ->  | J16: =J$10*#REF! ->  | K16: =K$10*#REF! ->  | L16: =L$10*#REF! ->  | M16: =M$10*#REF! ->  | N16: =N$10*#REF! ->  | O16: =O$10*#REF! ->  | P16: =P$10*#REF! ->  | Q16: =Q$10*#REF! ->  | R16: =R$10*#REF! ->  | S16: =S$10*#REF! -> 
A18: =Dashboard!O4 -> Full Policy | B18: Total Enrolment | C18: =C2 -> 262621 | D18: 293248 | E18: =D18+($S18-$D18)/($S$1-$D$1) -> 323698.1333 | F18: 354148.2667 | G18: 384598.4 | H18: 415048.5333 | I18: 445498.6667 | J18: 475948.8 | K18: 506398.9333 | L18: 536849.0667 | M18: 567299.2 | N18: 597749.3333 | O18: 628199.4667 | P18: 658649.6 | Q18: 689099.7333 | R18: 719549.8667 | S18: =Dashboard!F6 -> 750000
B19: Abet 1 | C19: 15817.86638 | D19: =D$2*'Enrol Scenarios'!$B$4 -> 17662.55433 | E19: =D19+($S19-$D19)/($S$1-$D$1) -> 20985.05071 | F19: 24307.54709 | G19: 27630.04347 | H19: 30952.53984 | I19: 34275.03622 | J19: 37597.5326 | K19: 40920.02898 | L19: 44242.52536 | M19: 47565.02173 | N19: 50887.51811 | O19: 54210.01449 | P19: 57532.51087 | Q19: 60855.00724 | R19: 64177.50362 | S19: =S$18*'Enrol Scenarios'!C4 -> 67500
B20: Abet 2 | C20: 22699.50136 | D20: =D$2*'Enrol Scenarios'!$B$5 -> 25346.72922 | E20: =D20+($S20-$D20)/($S$1-$D$1) -> 29656.94727 | F20: 33967.16533 | G20: 38277.38338 | H20: 42587.60143 | I20: 46897.81948 | J20: 51208.03753 | K20: 55518.25559 | L20: 59828.47364 | M20: 64138.69169 | N20: 68448.90974 | O20: 72759.12779 | P20: 77069.34584 | Q20: 81379.5639 | R20: 85689.78195 | S20: =S$18*'Enrol Scenarios'!C5 -> 90000
B21: Abet 3 | C21: 26933.94882 | D21: =D$2*'Enrol Scenarios'!$B$6 -> 30075.00019 | E21: =D21+($S21-$D21)/($S$1-$D$1) -> 30570.00018 | F21: 31065.00016 | G21: 31560.00015 | H21: 32055.00014 | I21: 32550.00013 | J21: 33045.00011 | K21: 33540.0001 | L21: 34035.00009 | M21: 34530.00008 | N21: 35025.00006 | O21: 35520.00005 | P21: 36015.00004 | Q21: 36510.00003 | R21: 37005.00001 | S21: =S$18*'Enrol Scenarios'!C6 -> 37500
B22: Abet 4 | C22: 115099.5026 | D22: =D$2*'Enrol Scenarios'!$B$7 -> 128522.4675 | E22: =D22+($S22-$D22)/($S$1-$D$1) -> 130954.303 | F22: 133386.1385 | G22: 135817.974 | H22: 138249.8095 | I22: 140681.645 | J22: 143113.4805 | K22: 145545.316 | L22: 147977.1515 | M22: 150408.987 | N22: 152840.8225 | O22: 155272.658 | P22: 157704.4935 | Q22: 160136.329 | R22: 162568.1645 | S22: =S$18*'Enrol Scenarios'!C7 -> 165000
B23: Grade 12 | C23: 75476.94721 | D23: =D$2*'Enrol Scenarios'!$B$8 -> 84279.10874 | E23: =D23+($S23-$D23)/($S$1-$D$1) -> 87160.50149 | F23: 90041.89424 | G23: 92923.28699 | H23: 95804.67974 | I23: 98686.07249 | J23: 101567.4652 | K23: 104448.858 | L23: 107330.2507 | M23: 110211.6435 | N23: 113093.0362 | O23: 115974.429 | P23: 118855.8217 | Q23: 121737.2145 | R23: 124618.6072 | S23: =S$18*'Enrol Scenarios'!C8 -> 127500
B24: Occupational | C24: 7616.009 | D24: =D$2*'Enrol Scenarios'!$B$9 -> 8504.192 | E24: =D24+($S24-$D24)/($S$1-$D$1) -> 25437.24587 | F24: 42370.29973 | G24: 59303.3536 | H24: 76236.40747 | I24: 93169.46133 | J24: 110102.5152 | K24: 127035.5691 | L24: 143968.6229 | M24: 160901.6768 | N24: 177834.7307 | O24: 194767.7845 | P24: 211700.8384 | Q24: 228633.8923 | R24: 245566.9461 | S24: =S$18*'Enrol Scenarios'!C9 -> 262500
C25: =1-(C18/D18) -> 0.10444061 | D25: =($S$26/$C$26)^(1/($S$1-$C$1))-1 -> 0.06778358036 | E25: =D25+($S25-$D25)/($S$1-$D$1) -> 0.06326467501 | F25: =($S$26/$C$26)^(1/($S$1-$C$1))-1 -> 0.06778358036 | G25: 0.06778358036 | H25: 0.06778358036 | I25: 0.06778358036 | J25: 0.06778358036 | K25: 0.06778358036 | L25: 0.06778358036 | M25: 0.06778358036 | N25: 0.06778358036 | O25: 0.06778358036 | P25: 0.06778358036 | Q25: 0.06778358036 | R25: 0.06778358036
A26: =Dashboard!P4 -> Mixed | B26: Total Enrolment | C26: 262621 | D26: 293248 | E26: =D26+($S26-$D26)/($S$1-$D$1) -> 323698.1333 | F26: 354148.2667 | G26: 384598.4 | H26: 415048.5333 | I26: 445498.6667 | J26: 475948.8 | K26: 506398.9333 | L26: 536849.0667 | M26: 567299.2 | N26: 597749.3333 | O26: 628199.4667 | P26: 658649.6 | Q26: 689099.7333 | R26: 719549.8667 | S26: =Dashboard!G6 -> 750000
B27: Abet 1 | C27: 15817.86638 | D27: =D$2*'Enrol Scenarios'!$B$4 -> 17662.55433 | E27: =D27+($S27-$D27)/($S$1-$D$1) -> 21485.05071 | F27: 25307.54709 | G27: 29130.04347 | H27: 32952.53984 | I27: 36775.03622 | J27: 40597.5326 | K27: 44420.02898 | L27: 48242.52536 | M27: 52065.02173 | N27: 55887.51811 | O27: 59710.01449 | P27: 63532.51087 | Q27: 67355.00724 | R27: 71177.50362 | S27: =$S$26*'Enrol Scenarios'!D4 -> 75000
B28: Abet 2 | C28: 22699.50136 | D28: =D$2*'Enrol Scenarios'!$B$5 -> 25346.72922 | E28: =D28+($S28-$D28)/($S$1-$D$1) -> 28656.94727 | F28: 31967.16533 | G28: 35277.38338 | H28: 38587.60143 | I28: 41897.81948 | J28: 45208.03753 | K28: 48518.25559 | L28: 51828.47364 | M28: 55138.69169 | N28: 58448.90974 | O28: 61759.12779 | P28: 65069.34584 | Q28: 68379.5639 | R28: 71689.78195 | S28: =$S$26*'Enrol Scenarios'!D5 -> 75000
B29: Abet 3 | C29: 26933.94882 | D29: =D$2*'Enrol Scenarios'!$B$6 -> 30075.00019 | E29: =D29+($S29-$D29)/($S$1-$D$1) -> 32014.97495 | F29: 33954.94972 | G29: 35894.92449 | H29: 37834.89925 | I29: 39774.87402 | J29: 41714.84878 | K29: 43654.82355 | L29: 45594.79831 | M29: 47534.77308 | N29: 49474.74785 | O29: 51414.72261 | P29: 53354.69738 | Q29: 55294.67214 | R29: 57234.64691 | S29: =$S$26*'Enrol Scenarios'!D6 -> 59174.62167
B30: Abet 4 | C30: 115099.5026 | D30: =D$2*'Enrol Scenarios'!$B$7 -> 128522.4675 | E30: =D30+($S30-$D30)/($S$1-$D$1) -> 132454.3338 | F30: 136386.2002 | G30: 140318.0665 | H30: 144249.9328 | I30: 148181.7992 | J30: 152113.6655 | K30: 156045.5318 | L30: 159977.3982 | M30: 163909.2645 | N30: 167841.1308 | O30: 171772.9972 | P30: 175704.8635 | Q30: 179636.7298 | R30: 183568.5962 | S30: =$S$26*'Enrol Scenarios'!D7 -> 187500.4625
B31: Grade 12 | C31: 75476.94721 | D31: =D$2*'Enrol Scenarios'!$B$8 -> 84279.10874 | E31: =D31+($S31-$D31)/($S$1-$D$1) -> 89715.49588 | F31: 95151.88302 | G31: 100588.2702 | H31: 106024.6573 | I31: 111461.0444 | J31: 116897.4316 | K31: 122333.8187 | L31: 127770.2059 | M31: 133206.593 | N31: 138642.9801 | O31: 144079.3673 | P31: 149515.7544 | Q31: 154952.1415 | R31: 160388.5287 | S31: =$S$26*'Enrol Scenarios'!D8 -> 165824.9158
B32: Occupational | C32: 6593.233633 | D32: =D$2*'Enrol Scenarios'!$B$9 -> 8504.192 | E32: =D32+($S32-$D32)/($S$1-$D$1) -> 20437.24587 | F32: 32370.29973 | G32: 44303.3536 | H32: 56236.40747 | I32: 68169.46133 | J32: 80102.5152 | K32: 92035.56907 | L32: 103968.6229 | M32: 115901.6768 | N32: 127834.7307 | O32: 139767.7845 | P32: 151700.8384 | Q32: 163633.8923 | R32: 175566.9461 | S32: =$S$26*'Enrol Scenarios'!D9 -> 187500
E33: =D33+($S33-$D33)/($S$1-$D$1) -> 0 | F33: =($S$34/$D$34)^(1/($S$1-$D$1))-1 -> 0.08058509936 | G33: 0.08058509936 | H33: 0.08058509936 | I33: 0.08058509936 | J33: 0.08058509936 | K33: 0.08058509936 | L33: 0.08058509936 | M33: 0.08058509936 | N33: 0.08058509936 | O33: 0.08058509936 | P33: 0.08058509936 | Q33: 0.08058509936 | R33: 0.08058509936
A34: Constant Growth | B34: Total Enrolment | C34: 293248 | D34: 312691 | E34: 358511.6 | F34: =E34*(1+F$33) -> 387402.2929 | G34: 418621.1452 | H34: 452355.7717 | I34: 488808.9066 | J34: 528199.6209 | K34: 570764.6398 | L34: 616759.765 | M34: 666461.4119 | N34: 720168.271 | O34: 778203.1027 | P34: 840914.6771 | Q34: 908679.8699 | R34: 981905.9274 | S34: 1000000
B35: Abet 1 | C35: =C$10*#REF! ->  | D35: =D$10*#REF! ->  | F35: =F$10*#REF! ->  | G35: =G$10*#REF! ->  | H35: =H$10*#REF! ->  | I35: =I$10*#REF! ->  | J35: =J$10*#REF! ->  | K35: =K$10*#REF! ->  | L35: =L$10*#REF! ->  | M35: =M$10*#REF! ->  | N35: =N$10*#REF! ->  | O35: =O$10*#REF! ->  | P35: =P$10*#REF! ->  | Q35: =Q$10*#REF! ->  | R35: =R$10*#REF! ->  | S35: =S$34*'Enrol Scenarios'!C4 -> 90000
B36: Abet 2 | C36: =C$10*#REF! ->  | D36: =D$10*#REF! ->  | F36: =F$10*#REF! ->  | G36: =G$10*#REF! ->  | H36: =H$10*#REF! ->  | I36: =I$10*#REF! ->  | J36: =J$10*#REF! ->  | K36: =K$10*#REF! ->  | L36: =L$10*#REF! ->  | M36: =M$10*#REF! ->  | N36: =N$10*#REF! ->  | O36: =O$10*#REF! ->  | P36: =P$10*#REF! ->  | Q36: =Q$10*#REF! ->  | R36: =R$10*#REF! ->  | S36: =S$34*'Enrol Scenarios'!C5 -> 120000
B37: Abet 3 | C37: =C$10*#REF! ->  | D37: =D$10*#REF! ->  | F37: =F$10*#REF! ->  | G37: =G$10*#REF! ->  | H37: =H$10*#REF! ->  | I37: =I$10*#REF! ->  | J37: =J$10*#REF! ->  | K37: =K$10*#REF! ->  | L37: =L$10*#REF! ->  | M37: =M$10*#REF! ->  | N37: =N$10*#REF! ->  | O37: =O$10*#REF! ->  | P37: =P$10*#REF! ->  | Q37: =Q$10*#REF! ->  | R37: =R$10*#REF! ->  | S37: =S$34*'Enrol Scenarios'!C6 -> 50000
B38: Abet 4 | C38: =C$10*#REF! ->  | D38: =D$10*#REF! ->  | F38: =F$10*#REF! ->  | G38: =G$10*#REF! ->  | H38: =H$10*#REF! ->  | I38: =I$10*#REF! ->  | J38: =J$10*#REF! ->  | K38: =K$10*#REF! ->  | L38: =L$10*#REF! ->  | M38: =M$10*#REF! ->  | N38: =N$10*#REF! ->  | O38: =O$10*#REF! ->  | P38: =P$10*#REF! ->  | Q38: =Q$10*#REF! ->  | R38: =R$10*#REF! ->  | S38: =S$34*'Enrol Scenarios'!C7 -> 220000
B39: Grade 12 | C39: =C$10*#REF! ->  | D39: =D$10*#REF! ->  | F39: =F$10*#REF! ->  | G39: =G$10*#REF! ->  | H39: =H$10*#REF! ->  | I39: =I$10*#REF! ->  | J39: =J$10*#REF! ->  | K39: =K$10*#REF! ->  | L39: =L$10*#REF! ->  | M39: =M$10*#REF! ->  | N39: =N$10*#REF! ->  | O39: =O$10*#REF! ->  | P39: =P$10*#REF! ->  | Q39: =Q$10*#REF! ->  | R39: =R$10*#REF! ->  | S39: =S$34*'Enrol Scenarios'!C8 -> 170000
B40: Occupational | C40: =C$10*#REF! ->  | D40: =D$10*#REF! ->  | F40: =F$10*#REF! ->  | G40: =G$10*#REF! ->  | H40: =H$10*#REF! ->  | I40: =I$10*#REF! ->  | J40: =J$10*#REF! ->  | K40: =K$10*#REF! ->  | L40: =L$10*#REF! ->  | M40: =M$10*#REF! ->  | N40: =N$10*#REF! ->  | O40: =O$10*#REF! ->  | P40: =P$10*#REF! ->  | Q40: =Q$10*#REF! ->  | R40: =R$10*#REF! ->  | S40: =S$34*'Enrol Scenarios'!C9 -> 350000
A44: =Dashboard!N4 -> Status quo | B44: Total AET Outpuut | C44: =SUM(C45:C48) -> 14179.82502 | D44: 15833.48372 | E44: 17477.59277 | F44: 19121.70182 | G44: 20765.81087 | H44: 22409.91991 | I44: 24054.02896 | J44: 25698.13801 | K44: 27342.24706 | L44: 28986.35611 | M44: 30630.46516 | N44: 32274.57421 | O44: 33918.68326 | P44: 35562.79231 | Q44: 37206.90135 | R44: 38851.0104 | S44: 40495.11945
B45: AET 1 | C45: =C3*(1-'Enrol Scenarios'!$B$18)*'Enrol Scenarios'!$B$13 -> 1242.279479 | D45: =D3*(1-'Enrol Scenarios'!$B$18)*'Enrol Scenarios'!$B$13 -> 1387.154769 | E45: =E3*(1-'Enrol Scenarios'!$B$18)*'Enrol Scenarios'!$B$13 -> 1531.193425 | F45: =F3*(1-'Enrol Scenarios'!$B$18)*'Enrol Scenarios'!$B$13 -> 1675.23208 | G45: =G3*(1-'Enrol Scenarios'!$B$18)*'Enrol Scenarios'!$B$13 -> 1819.270736 | H45: =H3*(1-'Enrol Scenarios'!$B$18)*'Enrol Scenarios'!$B$13 -> 1963.309391 | I45: =I3*(1-'Enrol Scenarios'!$B$18)*'Enrol Scenarios'!$B$13 -> 2107.348047 | J45: =J3*(1-'Enrol Scenarios'!$B$18)*'Enrol Scenarios'!$B$13 -> 2251.386703 | K45: =K3*(1-'Enrol Scenarios'!$B$18)*'Enrol Scenarios'!$B$13 -> 2395.425358 | L45: =L3*(1-'Enrol Scenarios'!$B$18)*'Enrol Scenarios'!$B$13 -> 2539.464014 | M45: =M3*(1-'Enrol Scenarios'!$B$18)*'Enrol Scenarios'!$B$13 -> 2683.502669 | N45: =N3*(1-'Enrol Scenarios'!$B$18)*'Enrol Scenarios'!$B$13 -> 2827.541325 | O45: =O3*(1-'Enrol Scenarios'!$B$18)*'Enrol Scenarios'!$B$13 -> 2971.579981 | P45: =P3*(1-'Enrol Scenarios'!$B$18)*'Enrol Scenarios'!$B$13 -> 3115.618636 | Q45: =Q3*(1-'Enrol Scenarios'!$B$18)*'Enrol Scenarios'!$B$13 -> 3259.657292 | R45: =R3*(1-'Enrol Scenarios'!$B$18)*'Enrol Scenarios'!$B$13 -> 3403.695947 | S45: =S3*(1-'Enrol Scenarios'!$B$18)*'Enrol Scenarios'!$B$13 -> 3547.734603
B46: AET 2 | C46: =C4*(1-'Enrol Scenarios'!$B$18)*'Enrol Scenarios'!$B$13 -> 1782.738837 | D46: =D4*(1-'Enrol Scenarios'!$B$18)*'Enrol Scenarios'!$B$13 -> 1990.642784 | E46: =E4*(1-'Enrol Scenarios'!$B$18)*'Enrol Scenarios'!$B$13 -> 2197.346114 | F46: =F4*(1-'Enrol Scenarios'!$B$18)*'Enrol Scenarios'!$B$13 -> 2404.049444 | G46: =G4*(1-'Enrol Scenarios'!$B$18)*'Enrol Scenarios'!$B$13 -> 2610.752774 | H46: =H4*(1-'Enrol Scenarios'!$B$18)*'Enrol Scenarios'!$B$13 -> 2817.456104 | I46: =I4*(1-'Enrol Scenarios'!$B$18)*'Enrol Scenarios'!$B$13 -> 3024.159435 | J46: =J4*(1-'Enrol Scenarios'!$B$18)*'Enrol Scenarios'!$B$13 -> 3230.862765 | K46: =K4*(1-'Enrol Scenarios'!$B$18)*'Enrol Scenarios'!$B$13 -> 3437.566095 | L46: =L4*(1-'Enrol Scenarios'!$B$18)*'Enrol Scenarios'!$B$13 -> 3644.269425 | M46: =M4*(1-'Enrol Scenarios'!$B$18)*'Enrol Scenarios'!$B$13 -> 3850.972755 | N46: =N4*(1-'Enrol Scenarios'!$B$18)*'Enrol Scenarios'!$B$13 -> 4057.676086 | O46: =O4*(1-'Enrol Scenarios'!$B$18)*'Enrol Scenarios'!$B$13 -> 4264.379416 | P46: =P4*(1-'Enrol Scenarios'!$B$18)*'Enrol Scenarios'!$B$13 -> 4471.082746 | Q46: =Q4*(1-'Enrol Scenarios'!$B$18)*'Enrol Scenarios'!$B$13 -> 4677.786076 | R46: =R4*(1-'Enrol Scenarios'!$B$18)*'Enrol Scenarios'!$B$13 -> 4884.489407 | S46: =S4*(1-'Enrol Scenarios'!$B$18)*'Enrol Scenarios'!$B$13 -> 5091.192737
B47: AET 3 | C47: =C5*(1-'Enrol Scenarios'!$B$18)*'Enrol Scenarios'!$B$13 -> 2115.297417 | D47: =D5*(1-'Enrol Scenarios'!$B$18)*'Enrol Scenarios'!$B$13 -> 2361.984521 | E47: =E5*(1-'Enrol Scenarios'!$B$18)*'Enrol Scenarios'!$B$13 -> 2607.247042 | F47: =F5*(1-'Enrol Scenarios'!$B$18)*'Enrol Scenarios'!$B$13 -> 2852.509562 | G47: =G5*(1-'Enrol Scenarios'!$B$18)*'Enrol Scenarios'!$B$13 -> 3097.772083 | H47: =H5*(1-'Enrol Scenarios'!$B$18)*'Enrol Scenarios'!$B$13 -> 3343.034603 | I47: =I5*(1-'Enrol Scenarios'!$B$18)*'Enrol Scenarios'!$B$13 -> 3588.297124 | J47: =J5*(1-'Enrol Scenarios'!$B$18)*'Enrol Scenarios'!$B$13 -> 3833.559644 | K47: =K5*(1-'Enrol Scenarios'!$B$18)*'Enrol Scenarios'!$B$13 -> 4078.822165 | L47: =L5*(1-'Enrol Scenarios'!$B$18)*'Enrol Scenarios'!$B$13 -> 4324.084685 | M47: =M5*(1-'Enrol Scenarios'!$B$18)*'Enrol Scenarios'!$B$13 -> 4569.347206 | N47: =N5*(1-'Enrol Scenarios'!$B$18)*'Enrol Scenarios'!$B$13 -> 4814.609726 | O47: =O5*(1-'Enrol Scenarios'!$B$18)*'Enrol Scenarios'!$B$13 -> 5059.872247 | P47: =P5*(1-'Enrol Scenarios'!$B$18)*'Enrol Scenarios'!$B$13 -> 5305.134767 | Q47: =Q5*(1-'Enrol Scenarios'!$B$18)*'Enrol Scenarios'!$B$13 -> 5550.397288 | R47: =R5*(1-'Enrol Scenarios'!$B$18)*'Enrol Scenarios'!$B$13 -> 5795.659808 | S47: =S5*(1-'Enrol Scenarios'!$B$18)*'Enrol Scenarios'!$B$13 -> 6040.922329
B48: AET 4 | C48: =C6*(1-'Enrol Scenarios'!$B$18)*'Enrol Scenarios'!$B$13 -> 9039.509288 | D48: =D6*(1-'Enrol Scenarios'!$B$18)*'Enrol Scenarios'!$B$13 -> 10093.70164 | E48: =E6*(1-'Enrol Scenarios'!$B$18)*'Enrol Scenarios'!$B$13 -> 11141.80619 | F48: =F6*(1-'Enrol Scenarios'!$B$18)*'Enrol Scenarios'!$B$13 -> 12189.91073 | G48: =G6*(1-'Enrol Scenarios'!$B$18)*'Enrol Scenarios'!$B$13 -> 13238.01527 | H48: =H6*(1-'Enrol Scenarios'!$B$18)*'Enrol Scenarios'!$B$13 -> 14286.11981 | I48: =I6*(1-'Enrol Scenarios'!$B$18)*'Enrol Scenarios'!$B$13 -> 15334.22436 | J48: =J6*(1-'Enrol Scenarios'!$B$18)*'Enrol Scenarios'!$B$13 -> 16382.3289 | K48: =K6*(1-'Enrol Scenarios'!$B$18)*'Enrol Scenarios'!$B$13 -> 17430.43344 | L48: =L6*(1-'Enrol Scenarios'!$B$18)*'Enrol Scenarios'!$B$13 -> 18478.53799 | M48: =M6*(1-'Enrol Scenarios'!$B$18)*'Enrol Scenarios'!$B$13 -> 19526.64253 | N48: =N6*(1-'Enrol Scenarios'!$B$18)*'Enrol Scenarios'!$B$13 -> 20574.74707 | O48: =O6*(1-'Enrol Scenarios'!$B$18)*'Enrol Scenarios'!$B$13 -> 21622.85161 | P48: =P6*(1-'Enrol Scenarios'!$B$18)*'Enrol Scenarios'!$B$13 -> 22670.95616 | Q48: =Q6*(1-'Enrol Scenarios'!$B$18)*'Enrol Scenarios'!$B$13 -> 23719.0607 | R48: =R6*(1-'Enrol Scenarios'!$B$18)*'Enrol Scenarios'!$B$13 -> 24767.16524 | S48: =S6*(1-'Enrol Scenarios'!$B$18)*'Enrol Scenarios'!$B$13 -> 25815.26978
A50: =Dashboard!O4 -> Full Policy | B50: Total AET Outpuut | C50: =SUM(C51:C54) -> 14179.82502 | D50: 15833.48372 | E50: 16662.79355 | F50: 17492.10339 | G50: 18321.41323 | H50: 19150.72306 | I50: 19980.0329 | J50: 20809.34273 | K50: 21638.65257 | L50: 22467.9624 | M50: 23297.27224 | N50: 24126.58207 | O50: 24955.89191 | P50: 25785.20174 | Q50: 26614.51158 | R50: 27443.82142 | S50: 28273.13125
B51: Abet 1 | C51: =C19*(1-'Enrol Scenarios'!$B$18)*'Enrol Scenarios'!$B$13 -> 1242.279479 | D51: =D19*(1-'Enrol Scenarios'!$B$18)*'Enrol Scenarios'!$B$13 -> 1387.154769 | E51: =E19*(1-'Enrol Scenarios'!$B$18)*'Enrol Scenarios'!$B$13 -> 1648.091925 | F51: =F19*(1-'Enrol Scenarios'!$B$18)*'Enrol Scenarios'!$B$13 -> 1909.029081 | G51: =G19*(1-'Enrol Scenarios'!$B$18)*'Enrol Scenarios'!$B$13 -> 2169.966237 | H51: =H19*(1-'Enrol Scenarios'!$B$18)*'Enrol Scenarios'!$B$13 -> 2430.903393 | I51: =I19*(1-'Enrol Scenarios'!$B$18)*'Enrol Scenarios'!$B$13 -> 2691.840549 | J51: =J19*(1-'Enrol Scenarios'!$B$18)*'Enrol Scenarios'!$B$13 -> 2952.777705 | K51: =K19*(1-'Enrol Scenarios'!$B$18)*'Enrol Scenarios'!$B$13 -> 3213.714861 | L51: =L19*(1-'Enrol Scenarios'!$B$18)*'Enrol Scenarios'!$B$13 -> 3474.652017 | M51: =M19*(1-'Enrol Scenarios'!$B$18)*'Enrol Scenarios'!$B$13 -> 3735.589173 | N51: =N19*(1-'Enrol Scenarios'!$B$18)*'Enrol Scenarios'!$B$13 -> 3996.526329 | O51: =O19*(1-'Enrol Scenarios'!$B$18)*'Enrol Scenarios'!$B$13 -> 4257.463485 | P51: =P19*(1-'Enrol Scenarios'!$B$18)*'Enrol Scenarios'!$B$13 -> 4518.400641 | Q51: =Q19*(1-'Enrol Scenarios'!$B$18)*'Enrol Scenarios'!$B$13 -> 4779.337798 | R51: =R19*(1-'Enrol Scenarios'!$B$18)*'Enrol Scenarios'!$B$13 -> 5040.274954 | S51: =S19*(1-'Enrol Scenarios'!$B$18)*'Enrol Scenarios'!$B$13 -> 5301.21211
B52: Abet 2 | C52: =C20*(1-'Enrol Scenarios'!$B$18)*'Enrol Scenarios'!$B$13 -> 1782.738837 | D52: =D20*(1-'Enrol Scenarios'!$B$18)*'Enrol Scenarios'!$B$13 -> 1990.642784 | E52: =E20*(1-'Enrol Scenarios'!$B$18)*'Enrol Scenarios'!$B$13 -> 2329.152119 | F52: =F20*(1-'Enrol Scenarios'!$B$18)*'Enrol Scenarios'!$B$13 -> 2667.661454 | G52: =G20*(1-'Enrol Scenarios'!$B$18)*'Enrol Scenarios'!$B$13 -> 3006.170789 | H52: =H20*(1-'Enrol Scenarios'!$B$18)*'Enrol Scenarios'!$B$13 -> 3344.680125 | I52: =I20*(1-'Enrol Scenarios'!$B$18)*'Enrol Scenarios'!$B$13 -> 3683.18946 | J52: =J20*(1-'Enrol Scenarios'!$B$18)*'Enrol Scenarios'!$B$13 -> 4021.698795 | K52: =K20*(1-'Enrol Scenarios'!$B$18)*'Enrol Scenarios'!$B$13 -> 4360.208131 | L52: =L20*(1-'Enrol Scenarios'!$B$18)*'Enrol Scenarios'!$B$13 -> 4698.717466 | M52: =M20*(1-'Enrol Scenarios'!$B$18)*'Enrol Scenarios'!$B$13 -> 5037.226801 | N52: =N20*(1-'Enrol Scenarios'!$B$18)*'Enrol Scenarios'!$B$13 -> 5375.736136 | O52: =O20*(1-'Enrol Scenarios'!$B$18)*'Enrol Scenarios'!$B$13 -> 5714.245472 | P52: =P20*(1-'Enrol Scenarios'!$B$18)*'Enrol Scenarios'!$B$13 -> 6052.754807 | Q52: =Q20*(1-'Enrol Scenarios'!$B$18)*'Enrol Scenarios'!$B$13 -> 6391.264142 | R52: =R20*(1-'Enrol Scenarios'!$B$18)*'Enrol Scenarios'!$B$13 -> 6729.773477 | S52: =S20*(1-'Enrol Scenarios'!$B$18)*'Enrol Scenarios'!$B$13 -> 7068.282813
B53: Abet 3 | C53: =C21*(1-'Enrol Scenarios'!$B$18)*'Enrol Scenarios'!$B$13 -> 2115.297417 | D53: =D21*(1-'Enrol Scenarios'!$B$18)*'Enrol Scenarios'!$B$13 -> 2361.984521 | E53: =E21*(1-'Enrol Scenarios'!$B$18)*'Enrol Scenarios'!$B$13 -> 2400.860076 | F53: =F21*(1-'Enrol Scenarios'!$B$18)*'Enrol Scenarios'!$B$13 -> 2439.73563 | G53: =G21*(1-'Enrol Scenarios'!$B$18)*'Enrol Scenarios'!$B$13 -> 2478.611185 | H53: =H21*(1-'Enrol Scenarios'!$B$18)*'Enrol Scenarios'!$B$13 -> 2517.486739 | I53: =I21*(1-'Enrol Scenarios'!$B$18)*'Enrol Scenarios'!$B$13 -> 2556.362294 | J53: =J21*(1-'Enrol Scenarios'!$B$18)*'Enrol Scenarios'!$B$13 -> 2595.237848 | K53: =K21*(1-'Enrol Scenarios'!$B$18)*'Enrol Scenarios'!$B$13 -> 2634.113403 | L53: =L21*(1-'Enrol Scenarios'!$B$18)*'Enrol Scenarios'!$B$13 -> 2672.988957 | M53: =M21*(1-'Enrol Scenarios'!$B$18)*'Enrol Scenarios'!$B$13 -> 2711.864512 | N53: =N21*(1-'Enrol Scenarios'!$B$18)*'Enrol Scenarios'!$B$13 -> 2750.740066 | O53: =O21*(1-'Enrol Scenarios'!$B$18)*'Enrol Scenarios'!$B$13 -> 2789.615621 | P53: =P21*(1-'Enrol Scenarios'!$B$18)*'Enrol Scenarios'!$B$13 -> 2828.491175 | Q53: =Q21*(1-'Enrol Scenarios'!$B$18)*'Enrol Scenarios'!$B$13 -> 2867.36673 | R53: =R21*(1-'Enrol Scenarios'!$B$18)*'Enrol Scenarios'!$B$13 -> 2906.242284 | S53: =S21*(1-'Enrol Scenarios'!$B$18)*'Enrol Scenarios'!$B$13 -> 2945.117839
B54: Abet 4 | C54: =C22*(1-'Enrol Scenarios'!$B$18)*'Enrol Scenarios'!$B$13 -> 9039.509288 | D54: =D22*(1-'Enrol Scenarios'!$B$18)*'Enrol Scenarios'!$B$13 -> 10093.70164 | E54: =E22*(1-'Enrol Scenarios'!$B$18)*'Enrol Scenarios'!$B$13 -> 10284.68943 | F54: =F22*(1-'Enrol Scenarios'!$B$18)*'Enrol Scenarios'!$B$13 -> 10475.67722 | G54: =G22*(1-'Enrol Scenarios'!$B$18)*'Enrol Scenarios'!$B$13 -> 10666.66501 | H54: =H22*(1-'Enrol Scenarios'!$B$18)*'Enrol Scenarios'!$B$13 -> 10857.6528 | I54: =I22*(1-'Enrol Scenarios'!$B$18)*'Enrol Scenarios'!$B$13 -> 11048.64059 | J54: =J22*(1-'Enrol Scenarios'!$B$18)*'Enrol Scenarios'!$B$13 -> 11239.62838 | K54: =K22*(1-'Enrol Scenarios'!$B$18)*'Enrol Scenarios'!$B$13 -> 11430.61617 | L54: =L22*(1-'Enrol Scenarios'!$B$18)*'Enrol Scenarios'!$B$13 -> 11621.60396 | M54: =M22*(1-'Enrol Scenarios'!$B$18)*'Enrol Scenarios'!$B$13 -> 11812.59175 | N54: =N22*(1-'Enrol Scenarios'!$B$18)*'Enrol Scenarios'!$B$13 -> 12003.57954 | O54: =O22*(1-'Enrol Scenarios'!$B$18)*'Enrol Scenarios'!$B$13 -> 12194.56733 | P54: =P22*(1-'Enrol Scenarios'!$B$18)*'Enrol Scenarios'!$B$13 -> 12385.55512 | Q54: =Q22*(1-'Enrol Scenarios'!$B$18)*'Enrol Scenarios'!$B$13 -> 12576.54291 | R54: =R22*(1-'Enrol Scenarios'!$B$18)*'Enrol Scenarios'!$B$13 -> 12767.5307 | S54: =S22*(1-'Enrol Scenarios'!$B$18)*'Enrol Scenarios'!$B$13 -> 12958.51849
A56: =Dashboard!P4 -> Mixed | B56: Total AET Outpuut | C56: =SUM(C57:C60) -> 14179.82502 | D56: 15833.48372 | E56: 16854.81568 | F56: 17876.14764 | G56: 18897.4796 | H56: 19918.81156 | I56: 20940.14352 | J56: 21961.47547 | K56: 22982.80743 | L56: 24004.13939 | M56: 25025.47135 | N56: 26046.80331 | O56: 27068.13527 | P56: 28089.46723 | Q56: 29110.79919 | R56: 30132.13115 | S56: 31153.46311
B57: Abet 1 | C57: =C27*(1-'Enrol Scenarios'!$B$18)*'Enrol Scenarios'!$B$13 -> 1242.279479 | D57: =D27*(1-'Enrol Scenarios'!$B$18)*'Enrol Scenarios'!$B$13 -> 1387.154769 | E57: =E27*(1-'Enrol Scenarios'!$B$18)*'Enrol Scenarios'!$B$13 -> 1687.360163 | F57: =F27*(1-'Enrol Scenarios'!$B$18)*'Enrol Scenarios'!$B$13 -> 1987.565557 | G57: =G27*(1-'Enrol Scenarios'!$B$18)*'Enrol Scenarios'!$B$13 -> 2287.770951 | H57: =H27*(1-'Enrol Scenarios'!$B$18)*'Enrol Scenarios'!$B$13 -> 2587.976345 | I57: =I27*(1-'Enrol Scenarios'!$B$18)*'Enrol Scenarios'!$B$13 -> 2888.181739 | J57: =J27*(1-'Enrol Scenarios'!$B$18)*'Enrol Scenarios'!$B$13 -> 3188.387132 | K57: =K27*(1-'Enrol Scenarios'!$B$18)*'Enrol Scenarios'!$B$13 -> 3488.592526 | L57: =L27*(1-'Enrol Scenarios'!$B$18)*'Enrol Scenarios'!$B$13 -> 3788.79792 | M57: =M27*(1-'Enrol Scenarios'!$B$18)*'Enrol Scenarios'!$B$13 -> 4089.003314 | N57: =N27*(1-'Enrol Scenarios'!$B$18)*'Enrol Scenarios'!$B$13 -> 4389.208708 | O57: =O27*(1-'Enrol Scenarios'!$B$18)*'Enrol Scenarios'!$B$13 -> 4689.414102 | P57: =P27*(1-'Enrol Scenarios'!$B$18)*'Enrol Scenarios'!$B$13 -> 4989.619496 | Q57: =Q27*(1-'Enrol Scenarios'!$B$18)*'Enrol Scenarios'!$B$13 -> 5289.82489 | R57: =R27*(1-'Enrol Scenarios'!$B$18)*'Enrol Scenarios'!$B$13 -> 5590.030283 | S57: =S27*(1-'Enrol Scenarios'!$B$18)*'Enrol Scenarios'!$B$13 -> 5890.235677
B58: Abet 2 | C58: =C28*(1-'Enrol Scenarios'!$B$18)*'Enrol Scenarios'!$B$13 -> 1782.738837 | D58: =D28*(1-'Enrol Scenarios'!$B$18)*'Enrol Scenarios'!$B$13 -> 1990.642784 | E58: =E28*(1-'Enrol Scenarios'!$B$18)*'Enrol Scenarios'!$B$13 -> 2250.615643 | F58: =F28*(1-'Enrol Scenarios'!$B$18)*'Enrol Scenarios'!$B$13 -> 2510.588503 | G58: =G28*(1-'Enrol Scenarios'!$B$18)*'Enrol Scenarios'!$B$13 -> 2770.561362 | H58: =H28*(1-'Enrol Scenarios'!$B$18)*'Enrol Scenarios'!$B$13 -> 3030.534222 | I58: =I28*(1-'Enrol Scenarios'!$B$18)*'Enrol Scenarios'!$B$13 -> 3290.507081 | J58: =J28*(1-'Enrol Scenarios'!$B$18)*'Enrol Scenarios'!$B$13 -> 3550.479941 | K58: =K28*(1-'Enrol Scenarios'!$B$18)*'Enrol Scenarios'!$B$13 -> 3810.452801 | L58: =L28*(1-'Enrol Scenarios'!$B$18)*'Enrol Scenarios'!$B$13 -> 4070.42566 | M58: =M28*(1-'Enrol Scenarios'!$B$18)*'Enrol Scenarios'!$B$13 -> 4330.39852 | N58: =N28*(1-'Enrol Scenarios'!$B$18)*'Enrol Scenarios'!$B$13 -> 4590.371379 | O58: =O28*(1-'Enrol Scenarios'!$B$18)*'Enrol Scenarios'!$B$13 -> 4850.344239 | P58: =P28*(1-'Enrol Scenarios'!$B$18)*'Enrol Scenarios'!$B$13 -> 5110.317099 | Q58: =Q28*(1-'Enrol Scenarios'!$B$18)*'Enrol Scenarios'!$B$13 -> 5370.289958 | R58: =R28*(1-'Enrol Scenarios'!$B$18)*'Enrol Scenarios'!$B$13 -> 5630.262818 | S58: =S28*(1-'Enrol Scenarios'!$B$18)*'Enrol Scenarios'!$B$13 -> 5890.235677
B59: Abet 3 | C59: =C29*(1-'Enrol Scenarios'!$B$18)*'Enrol Scenarios'!$B$13 -> 2115.297417 | D59: =D29*(1-'Enrol Scenarios'!$B$18)*'Enrol Scenarios'!$B$13 -> 2361.984521 | E59: =E29*(1-'Enrol Scenarios'!$B$18)*'Enrol Scenarios'!$B$13 -> 2514.343302 | F59: =F29*(1-'Enrol Scenarios'!$B$18)*'Enrol Scenarios'!$B$13 -> 2666.702083 | G59: =G29*(1-'Enrol Scenarios'!$B$18)*'Enrol Scenarios'!$B$13 -> 2819.060865 | H59: =H29*(1-'Enrol Scenarios'!$B$18)*'Enrol Scenarios'!$B$13 -> 2971.419646 | I59: =I29*(1-'Enrol Scenarios'!$B$18)*'Enrol Scenarios'!$B$13 -> 3123.778427 | J59: =J29*(1-'Enrol Scenarios'!$B$18)*'Enrol Scenarios'!$B$13 -> 3276.137208 | K59: =K29*(1-'Enrol Scenarios'!$B$18)*'Enrol Scenarios'!$B$13 -> 3428.495989 | L59: =L29*(1-'Enrol Scenarios'!$B$18)*'Enrol Scenarios'!$B$13 -> 3580.85477 | M59: =M29*(1-'Enrol Scenarios'!$B$18)*'Enrol Scenarios'!$B$13 -> 3733.213551 | N59: =N29*(1-'Enrol Scenarios'!$B$18)*'Enrol Scenarios'!$B$13 -> 3885.572332 | O59: =O29*(1-'Enrol Scenarios'!$B$18)*'Enrol Scenarios'!$B$13 -> 4037.931113 | P59: =P29*(1-'Enrol Scenarios'!$B$18)*'Enrol Scenarios'!$B$13 -> 4190.289894 | Q59: =Q29*(1-'Enrol Scenarios'!$B$18)*'Enrol Scenarios'!$B$13 -> 4342.648675 | R59: =R29*(1-'Enrol Scenarios'!$B$18)*'Enrol Scenarios'!$B$13 -> 4495.007456 | S59: =S29*(1-'Enrol Scenarios'!$B$18)*'Enrol Scenarios'!$B$13 -> 4647.366237
B60: Abet 4 | C60: =C30*(1-'Enrol Scenarios'!$B$18)*'Enrol Scenarios'!$B$13 -> 9039.509288 | D60: =D30*(1-'Enrol Scenarios'!$B$18)*'Enrol Scenarios'!$B$13 -> 10093.70164 | E60: =E30*(1-'Enrol Scenarios'!$B$18)*'Enrol Scenarios'!$B$13 -> 10402.49657 | F60: =F30*(1-'Enrol Scenarios'!$B$18)*'Enrol Scenarios'!$B$13 -> 10711.29149 | G60: =G30*(1-'Enrol Scenarios'!$B$18)*'Enrol Scenarios'!$B$13 -> 11020.08642 | H60: =H30*(1-'Enrol Scenarios'!$B$18)*'Enrol Scenarios'!$B$13 -> 11328.88134 | I60: =I30*(1-'Enrol Scenarios'!$B$18)*'Enrol Scenarios'!$B$13 -> 11637.67627 | J60: =J30*(1-'Enrol Scenarios'!$B$18)*'Enrol Scenarios'!$B$13 -> 11946.47119 | K60: =K30*(1-'Enrol Scenarios'!$B$18)*'Enrol Scenarios'!$B$13 -> 12255.26612 | L60: =L30*(1-'Enrol Scenarios'!$B$18)*'Enrol Scenarios'!$B$13 -> 12564.06104 | M60: =M30*(1-'Enrol Scenarios'!$B$18)*'Enrol Scenarios'!$B$13 -> 12872.85597 | N60: =N30*(1-'Enrol Scenarios'!$B$18)*'Enrol Scenarios'!$B$13 -> 13181.65089 | O60: =O30*(1-'Enrol Scenarios'!$B$18)*'Enrol Scenarios'!$B$13 -> 13490.44582 | P60: =P30*(1-'Enrol Scenarios'!$B$18)*'Enrol Scenarios'!$B$13 -> 13799.24074 | Q60: =Q30*(1-'Enrol Scenarios'!$B$18)*'Enrol Scenarios'!$B$13 -> 14108.03567 | R60: =R30*(1-'Enrol Scenarios'!$B$18)*'Enrol Scenarios'!$B$13 -> 14416.83059 | S60: =S30*(1-'Enrol Scenarios'!$B$18)*'Enrol Scenarios'!$B$13 -> 14725.62552
A62: Enrolments excl. Occupational
A63: Status quo Scenario | C63: =C2-C8 -> 255004.991 | D63: 284743.808 | E63: 314310.8875 | F63: 343877.9669 | G63: 373445.0464 | H63: 403012.1259 | I63: 432579.2053 | J63: 462146.2848 | K63: 491713.3643 | L63: 521280.4437 | M63: 550847.5232 | N63: 580414.6027 | O63: 609981.6821 | P63: 639548.7616 | Q63: 669115.8411 | R63: 698682.9205 | S63: 728250
A64: Full Policy Scenario | C64: =C18-C24 -> 255004.991 | D64: 284743.808 | E64: 298260.8875 | F64: 311777.9669 | G64: 325295.0464 | H64: 338812.1259 | I64: 352329.2053 | J64: 365846.2848 | K64: 379363.3643 | L64: 392880.4437 | M64: 406397.5232 | N64: 419914.6027 | O64: 433431.6821 | P64: 446948.7616 | Q64: 460465.8411 | R64: 473982.9205 | S64: 487500
A65: Balanced Scenario | C65: =C26-C32 -> 256027.7664 | D65: 284743.808 | E65: 303260.8875 | F65: 321777.9669 | G65: 340295.0464 | H65: 358812.1259 | I65: 377329.2053 | J65: 395846.2848 | K65: 414363.3643 | L65: 432880.4437 | M65: 451397.5232 | N65: 469914.6027 | O65: 488431.6821 | P65: 506948.7616 | Q65: 525465.8411 | R65: 543982.9205 | S65: 562500
C67: 2014 | D67: 2015 | E67: 2016 | F67: 2017 | G67: 2018 | H67: 2019 | I67: 2020 | J67: 2021 | K67: 2022 | L67: 2023 | M67: 2024 | N67: 2025 | O67: 2026 | P67: 2027 | Q67: 2028 | R67: 2029 | S67: 2030
B68: =Dashboard!N4 -> Status quo | C68: =C2 -> 262621 | D68: 293248 | E68: 323698.1333 | F68: 354148.2667 | G68: 384598.4 | H68: 415048.5333 | I68: 445498.6667 | J68: 475948.8 | K68: 506398.9333 | L68: 536849.0667 | M68: 567299.2 | N68: 597749.3333 | O68: 628199.4667 | P68: 658649.6 | Q68: 689099.7333 | R68: 719549.8667 | S68: 750000
B69: =Dashboard!O4 -> Full Policy | C69: =C18 -> 262621 | D69: 293248 | E69: 323698.1333 | F69: 354148.2667 | G69: 384598.4 | H69: 415048.5333 | I69: 445498.6667 | J69: 475948.8 | K69: 506398.9333 | L69: 536849.0667 | M69: 567299.2 | N69: 597749.3333 | O69: 628199.4667 | P69: 658649.6 | Q69: 689099.7333 | R69: 719549.8667 | S69: 750000
B70: =Dashboard!P4 -> Mixed | C70: =C26 -> 262621 | D70: 293248 | E70: 323698.1333 | F70: 354148.2667 | G70: 384598.4 | H70: 415048.5333 | I70: 445498.6667 | J70: 475948.8 | K70: 506398.9333 | L70: 536849.0667 | M70: 567299.2 | N70: 597749.3333 | O70: 628199.4667 | P70: 658649.6 | Q70: 689099.7333 | R70: 719549.8667 | S70: 750000
A83: Programme Name | B83: Theory Cost per enrolment (2014 prices) | C83: Practical Cost per enrolment (2014 prices) | D83: Proportion with practical component | E83: Average Total Cost per Enrolment | F83: FTE to Enrol ratio | G83: Cost per FTE
A84: Skills Programme | B84: 5000 | C84: 10000 | D84: 1 | E84: =B84+D84*C84 -> 15000 | F84: 0.2 | G84: =E84/F84 -> 75000
A85: AET | D85: 0 | F85: 0.93
A86: Matric | D86: 0 | F86: 0.93
C89: 2014 | D89: 2015 | E89: 2016 | F89: 2017 | G89: 2018 | H89: 2019 | I89: 2020 | J89: 2021 | K89: 2022 | L89: 2023 | M89: 2024 | N89: 2025 | O89: 2026 | P89: 2027 | Q89: 2028 | R89: 2029 | S89: 2030
A90: Status Quo FTE | B90: Total Enrolment | C90: =SUM(C91:C96) -> 239629.0245 | D90: 267574.6882 | E90: 295358.9695 | F90: 323143.2508 | G90: 350927.5322 | H90: 378711.8135 | I90: 406496.0948 | J90: 434280.3762 | K90: 462064.6575 | L90: 489848.9388 | M90: 517633.2201 | N90: 545417.5015 | O90: 573201.7828 | P90: 600986.0641 | Q90: 628770.3455 | R90: 656554.6268 | S90: 684338.9081
B91: FTE Abet 1 | C91: =C3*$F$85 -> 14710.61574 | D91: 16426.17553 | E91: 18131.8282 | F91: 19837.48088 | G91: 21543.13355 | H91: 23248.78622 | I91: 24954.43889 | J91: 26660.09157 | K91: 28365.74424 | L91: 30071.39691 | M91: 31777.04959 | N91: 33482.70226 | O91: 35188.35493 | P91: 36894.00761 | Q91: 38599.66028 | R91: 40305.31295 | S91: 42010.96562
B92: FTE Abet 2 | C92: =C4*$F$85 -> 21110.53627 | D92: 23572.45818 | E92: 26020.16283 | F92: 28467.86749 | G92: 30915.57214 | H92: 33363.27679 | I92: 35810.98145 | J92: 38258.6861 | K92: 40706.39076 | L92: 43154.09541 | M92: 45601.80007 | N92: 48049.50472 | O92: 50497.20937 | P92: 52944.91403 | Q92: 55392.61868 | R92: 57840.32334 | S92: 60288.02799
B93: FTE Abet 3 | C93: =C5*$F$85 -> 25048.57241 | D93: 27969.75018 | E93: 30874.05855 | F93: 33778.36692 | G93: 36682.6753 | H93: 39586.98367 | I93: 42491.29205 | J93: 45395.60042 | K93: 48299.90879 | L93: 51204.21717 | M93: 54108.52554 | N93: 57012.83392 | O93: 59917.14229 | P93: 62821.45067 | Q93: 65725.75904 | R93: 68630.06741 | S93: 71534.37579
B94: FTE Abet 4 | C94: =C6*$F$85 -> 107042.5374 | D94: 119525.8948 | E94: 131937.1625 | F94: 144348.4302 | G94: 156759.6979 | H94: 169170.9656 | I94: 181582.2333 | J94: 193993.501 | K94: 206404.7687 | L94: 218816.0364 | M94: 231227.3041 | N94: 243638.5718 | O94: 256049.8395 | P94: 268461.1072 | Q94: 280872.375 | R94: 293283.6427 | S94: 305694.9104
B95: FTE Grade 12 | C95: =C7*$F$85 -> 70193.56091 | D95: 78379.57113 | E95: 86518.30828 | F95: 94657.04542 | G95: 102795.7826 | H95: 110934.5197 | I95: 119073.2569 | J95: 127211.994 | K95: 135350.7312 | L95: 143489.4683 | M95: 151628.2055 | N95: 159766.9426 | O95: 167905.6798 | P95: 176044.4169 | Q95: 184183.1541 | R95: 192321.8912 | S95: 200460.6284
B96: FTE Skills Programmes | C96: =C8*$F$84 -> 1523.2018 | D96: 1700.8384 | E96: 1877.449173 | F96: 2054.059947 | G96: 2230.67072 | H96: 2407.281493 | I96: 2583.892267 | J96: 2760.50304 | K96: 2937.113813 | L96: 3113.724587 | M96: 3290.33536 | N96: 3466.946133 | O96: 3643.556907 | P96: 3820.16768 | Q96: 3996.778453 | R96: 4173.389227 | S96: 4350
A98: Full Policy FTE | B98: Total Enrolment | C98: =SUM(C99:C104) -> 239629.0245 | D98: 267574.6882 | E98: 283461.3756 | F98: 299348.0631 | G98: 315234.7505 | H98: 331121.438 | I98: 347008.1254 | J98: 362894.8129 | K98: 378781.5004 | L98: 394668.1878 | M98: 410554.8753 | N98: 426441.5627 | O98: 442328.2502 | P98: 458214.9376 | Q98: 474101.6251 | R98: 489988.3125 | S98: 505875
B99: FTE Abet 1 | C99: =C19*$F$85 -> 14710.61574 | D99: 16426.17553 | E99: 19516.09716 | F99: 22606.01879 | G99: 25695.94042 | H99: 28785.86206 | I99: 31875.78369 | J99: 34965.70532 | K99: 38055.62695 | L99: 41145.54858 | M99: 44235.47021 | N99: 47325.39184 | O99: 50415.31347 | P99: 53505.23511 | Q99: 56595.15674 | R99: 59685.07837 | S99: 62775
B100: FTE Abet 2 | C100: =C20*$F$85 -> 21110.53627 | D100: 23572.45818 | E100: 27580.96096 | F100: 31589.46375 | G100: 35597.96654 | H100: 39606.46933 | I100: 43614.97212 | J100: 47623.47491 | K100: 51631.97769 | L100: 55640.48048 | M100: 59648.98327 | N100: 63657.48606 | O100: 67665.98885 | P100: 71674.49164 | Q100: 75682.99442 | R100: 79691.49721 | S100: 83700
B101: FTE Abet 3 | C101: =C21*$F$85 -> 25048.57241 | D101: 27969.75018 | E101: 28430.10016 | F101: 28890.45015 | G101: 29350.80014 | H101: 29811.15013 | I101: 30271.50012 | J101: 30731.85011 | K101: 31192.20009 | L101: 31652.55008 | M101: 32112.90007 | N101: 32573.25006 | O101: 33033.60005 | P101: 33493.95004 | Q101: 33954.30002 | R101: 34414.65001 | S101: 34875
B102: FTE Abet 4 | C102: =C22*$F$85 -> 107042.5374 | D102: 119525.8948 | E102: 121787.5018 | F102: 124049.1088 | G102: 126310.7158 | H102: 128572.3228 | I102: 130833.9298 | J102: 133095.5369 | K102: 135357.1439 | L102: 137618.7509 | M102: 139880.3579 | N102: 142141.9649 | O102: 144403.5719 | P102: 146665.179 | Q102: 148926.786 | R102: 151188.393 | S102: 153450
B103: FTE Grade 12 | C103: =C23*$F$85 -> 70193.56091 | D103: 78379.57113 | E103: 81059.26638 | F103: 83738.96164 | G103: 86418.6569 | H103: 89098.35216 | I103: 91778.04742 | J103: 94457.74268 | K103: 97137.43793 | L103: 99817.13319 | M103: 102496.8285 | N103: 105176.5237 | O103: 107856.219 | P103: 110535.9142 | Q103: 113215.6095 | R103: 115895.3047 | S103: 118575
B104: FTE Occupational | C104: =C24*$F$84 -> 1523.2018 | D104: 1700.8384 | E104: 5087.449173 | F104: 8474.059947 | G104: 11860.67072 | H104: 15247.28149 | I104: 18633.89227 | J104: 22020.50304 | K104: 25407.11381 | L104: 28793.72459 | M104: 32180.33536 | N104: 35566.94613 | O104: 38953.55691 | P104: 42340.16768 | Q104: 45726.77845 | R104: 49113.38923 | S104: 52500
A106: Mixed FTE | B106: Total Enrolment | C106: =SUM(C107:C112) -> 239424.4694 | D106: 267574.6882 | E106: 287111.3756 | F106: 306648.0631 | G106: 326184.7505 | H106: 345721.438 | I106: 365258.1254 | J106: 384794.8129 | K106: 404331.5004 | L106: 423868.1878 | M106: 443404.8753 | N106: 462941.5627 | O106: 482478.2502 | P106: 502014.9376 | Q106: 521551.6251 | R106: 541088.3125 | S106: 560625
B107: FTE Abet 1 | C107: =C27*$F$85 -> 14710.61574 | D107: 16426.17553 | E107: 19981.09716 | F107: 23536.01879 | G107: 27090.94042 | H107: 30645.86206 | I107: 34200.78369 | J107: 37755.70532 | K107: 41310.62695 | L107: 44865.54858 | M107: 48420.47021 | N107: 51975.39184 | O107: 55530.31347 | P107: 59085.23511 | Q107: 62640.15674 | R107: 66195.07837 | S107: 69750
B108: FTE Abet 2 | C108: =C28*$F$85 -> 21110.53627 | D108: 23572.45818 | E108: 26650.96096 | F108: 29729.46375 | G108: 32807.96654 | H108: 35886.46933 | I108: 38964.97212 | J108: 42043.47491 | K108: 45121.97769 | L108: 48200.48048 | M108: 51278.98327 | N108: 54357.48606 | O108: 57435.98885 | P108: 60514.49164 | Q108: 63592.99442 | R108: 66671.49721 | S108: 69750
B109: FTE Abet 3 | C109: =C29*$F$85 -> 25048.57241 | D109: 27969.75018 | E109: 29773.92671 | F109: 31578.10324 | G109: 33382.27977 | H109: 35186.4563 | I109: 36990.63284 | J109: 38794.80937 | K109: 40598.9859 | L109: 42403.16243 | M109: 44207.33896 | N109: 46011.5155 | O109: 47815.69203 | P109: 49619.86856 | Q109: 51424.04509 | R109: 53228.22163 | S109: 55032.39816
B110: FTE Abet 4 | C110: =C30*$F$85 -> 107042.5374 | D110: 119525.8948 | E110: 123182.5305 | F110: 126839.1661 | G110: 130495.8018 | H110: 134152.4375 | I110: 137809.0732 | J110: 141465.7089 | K110: 145122.3446 | L110: 148778.9803 | M110: 152435.616 | N110: 156092.2517 | O110: 159748.8874 | P110: 163405.5231 | Q110: 167062.1587 | R110: 170718.7944 | S110: 174375.4301
B111: FTE Grade 12 | C111: =C31*$F$85 -> 70193.56091 | D111: 78379.57113 | E111: 83435.41117 | F111: 88491.25121 | G111: 93547.09124 | H111: 98602.93128 | I111: 103658.7713 | J111: 108714.6114 | K111: 113770.4514 | L111: 118826.2914 | M111: 123882.1315 | N111: 128937.9715 | O111: 133993.8116 | P111: 139049.6516 | Q111: 144105.4916 | R111: 149161.3317 | S111: 154217.1717
B112: FTE Occupational | C112: =C32*$F$84 -> 1318.646727 | D112: 1700.8384 | E112: 4087.449173 | F112: 6474.059947 | G112: 8860.67072 | H112: 11247.28149 | I112: 13633.89227 | J112: 16020.50304 | K112: 18407.11381 | L112: 20793.72459 | M112: 23180.33536 | N112: 25566.94613 | O112: 27953.55691 | P112: 30340.16768 | Q112: 32726.77845 | R112: 35113.38923 | S112: 37500
C114: =C112*$G$84 -> 98898504.49 | S114: =S112*$G$84 -> 2812500000

Sheet Expenditure (hidden)
C4: =Dashboard!N4 -> Status quo | D4: =Dashboard!O4 -> Full Policy | E4: =Dashboard!P4 -> Mixed | F4: Assumptions
B5: CPI Inflation (%) | C5: ='Funding Dashboard'!E8 -> 0 | D5: ='Funding Dashboard'!F8 -> 0 | E5: ='Funding Dashboard'!G8 -> 0
A6: Lecturing Costs | B6: Average salary per educator | C6: 83914 | D6: 274177.4488 | E6: 274177.4488 | F6: Based on existing data and average hours worked per week
B7: Number of lecturers | C7: 16063 | D7: 3790 | E7: 3790 | F7: Current existing lecturers employed
B8: Lecturer:Student ratio | C8: 18 | D8: =Dashboard!F9 -> 23 | E8: =Dashboard!G9 -> 23
B9: Wage Inflation | C9: =Dashboard!G11 -> 0.062 | D9: N/A | E9: N/A
B10: Lecturer:Post ratio | C10: 1 | D10: 4 | E10: 4.3
B11: Enrolmentts | C11: =Dashboard!E6 -> 750000 | D11: =Dashboard!F6 -> 750000 | E11: =Dashboard!G6 -> 750000 | F11: Estimations based on white paper targets
B12: Lecturer development cost (%) | C12: 0.011 | D12: 0.015 | E12: 0.015
B13: Average salary per centre manager | C13: =14000*12 -> 168000 | D13: =14000*12 -> 168000 | E13: =14000*12 -> 168000
B14: Direct Learning Cost | C14: =Dashboard!E10 -> 214 | D14: =Dashboard!F10 -> 3600 | E14: =Dashboard!G10 -> 2600
B15: Direct Learning Inflation | C15: =Dashboard!G11 -> 0.062 | D15: =Dashboard!G11 -> 0.062 | E15: =Dashboard!G11 -> 0.062
A16: Indirect Programme Costs | B16: Number of AET Centres | C16: 3276 | D16: 3276 | E16: 3276
B17: Consumables per centre | C17: 6362.623626 | D17: 6900 | E17: 6900
B18: Centre operational cost | C18: 14846.12179 | D18: 36048 | E18: 26048 | F18: Based on existing PALC data
B19: % centres requiring utility services | C19: 0.32 | D19: 0.32 | E19: 0.32 | F19: Estimate based on interviews with college principals school
A20: Management and Support | B20: Number of Community Colleges | C20: 9 | D20: 9 | E20: 9
B21: Management and support cost | C21: 26976701.95 | D21: 28864833.33 | E21: 28864833.33 | F21: Based on data provided by DHET on provincial support
B22: Proportion of additional learners requiring college infrastructure | C22: 0 | D22: 0.5 | E22: 0.15 | F22: Based on DHET Infrastructure costingestimates
C25: =C39-C38 -> 1729578834
C28: 2014 | D28: 2015 | E28: 2016 | F28: 2017 | G28: 2018 | H28: 2019 | I28: 2020 | J28: 2021 | K28: 2022 | L28: 2023 | M28: 2024 | N28: 2025 | O28: 2026 | P28: 2027 | Q28: 2028 | R28: 2029 | S28: 2030
B29: Lecturing costs | C29: =C31*$C$7 -> 1347910582 | D29: =D31*D$30 -> 1451849148 | E29: 1701967046 | F29: 1977518655 | G29: 2280696303 | H29: 2613866397 | I29: 2979582586 | J29: 3380599880 | K29: 3819889804 | L29: 4300656652 | M29: 4826354932 | N29: 5400708075 | O29: 6027728500 | P29: 6711739136 | Q29: 7457396501 | R29: 8269715455 | S29: 9154095728
B30: Lecturers required | C30: =C7 -> 16063 | D30: =Enrolments!D2/Expenditure!$C$8 -> 16291.55556 | E30: =Enrolments!E2/Expenditure!$C$8 -> 17983.22963 | F30: =Enrolments!F2/Expenditure!$C$8 -> 19674.9037 | G30: =Enrolments!G2/Expenditure!$C$8 -> 21366.57778 | H30: =Enrolments!H2/Expenditure!$C$8 -> 23058.25185 | I30: =Enrolments!I2/Expenditure!$C$8 -> 24749.92593 | J30: =Enrolments!J2/Expenditure!$C$8 -> 26441.6 | K30: =Enrolments!K2/Expenditure!$C$8 -> 28133.27407 | L30: =Enrolments!L2/Expenditure!$C$8 -> 29824.94815 | M30: =Enrolments!M2/Expenditure!$C$8 -> 31516.62222 | N30: =Enrolments!N2/Expenditure!$C$8 -> 33208.2963 | O30: =Enrolments!O2/Expenditure!$C$8 -> 34899.97037 | P30: =Enrolments!P2/Expenditure!$C$8 -> 36591.64444 | Q30: =Enrolments!Q2/Expenditure!$C$8 -> 38283.31852 | R30: =Enrolments!R2/Expenditure!$C$8 -> 39974.99259 | S30: =Enrolments!S2/Expenditure!$C$8 -> 41666.66667
B31: Average lecturer salary | C31: =$C$6 -> 83914 | D31: =C31*(1+$C$9)/(1+$C$5) -> 89116.668 | E31: 94641.90142 | F31: 100509.6993 | G31: 106741.3007 | H31: 113359.2613 | I31: 120387.5355 | J31: 127851.5627 | K31: 135778.3596 | L31: 144196.6179 | M31: 153136.8082 | N31: 162631.2903 | O31: 172714.4303 | P31: 183422.725 | Q31: 194794.9339 | R31: 206872.2198 | S31: 219698.2975
B32: Lecturer development | C32: =C29*$C$12 -> 14827016.4 | D32: 15970340.62 | E32: 18721637.5 | F32: 21752705.21 | G32: 25087659.33 | H32: 28752530.37 | I32: 32775408.45 | J32: 37186598.68 | K32: 42018787.84 | L32: 47307223.17 | M32: 53089904.25 | N32: 59407788.83 | O32: 66305013.5 | P32: 73829130.49 | Q32: 82031361.52 | R32: 90966870.01 | S32: 100695053
B33: Management and Support | C33: =$C$21*$C$20 -> 242790317.5 | D33: =C33*(1+$C$9)/(1+$C$5) -> 257843317.2 | E33: 273829602.9 | F33: 290807038.3 | G33: 308837074.6 | H33: 327984973.3 | I33: 348320041.6 | J33: 369915884.2 | K33: 392850669 | L33: 417207410.5 | M33: 443074269.9 | N33: 470544874.7 | O33: 499718656.9 | P33: 530701213.6 | Q33: 563604688.9 | R33: 598548179.6 | S33: 635658166.7
B34: Indirect costs per centre | C34: =$C$17+$C$18 -> 21208.74542 | D34: =C34*(1+$C$15)/(1+$C$5) -> 22523.68764 | E34: 23920.15627 | F34: 25403.20596 | G34: 26978.20473 | H34: 28650.85342 | I34: 30427.20633 | J34: 32313.69313 | K34: 34317.1421 | L34: 36444.80491 | M34: 38704.38282 | N34: 41104.05455 | O34: 43652.50593 | P34: 46358.9613 | Q34: 49233.2169 | R34: 52285.67635 | S34: 55527.38828
B35: Total indirect costs | C35: =C34*$C$16 -> 69479850 | D35: 73787600.7 | E35: 78362431.94 | F35: 83220902.72 | G35: 88380598.69 | H35: 93860195.81 | I35: 99679527.95 | J35: 105859658.7 | K35: 112422957.5 | L35: 119393180.9 | M35: 126795558.1 | N35: 134656882.7 | O35: 143005609.4 | P35: 151871957.2 | Q35: 161288018.6 | R35: 171287875.7 | S35: 181907724
B36: Direct cost per learner | C36: =C14 -> 214 | D36: =C36*(1+$C$15)/(1+$C$5) -> 227.268 | E36: 241.358616 | F36: 256.3228502 | G36: 272.2148669 | H36: 289.0921887 | I36: 307.0159043 | J36: 326.0508904 | K36: 346.2660456 | L36: 367.7345405 | M36: 390.534082 | N36: 414.747195 | O36: 440.4615211 | P36: 467.7701354 | Q36: 496.7718838 | R36: 527.5717406 | S36: 560.2811886
B37: Total direct cost | C37: =(C36*C40) -> 54571068.07 | D37: 64713155.76 | E37: 75861640.79 | F37: 88143780.6 | G37: 101657293.6 | H37: 116507657.5 | I37: 132808695.9 | J37: 150683207.7 | K37: 170263642.2 | L37: 191692824.4 | M37: 215124731.8 | N37: 240725328.4 | O37: 268673459.6 | P37: 299161810.8 | Q37: 332397936.9 | R37: 368605364.5 | S37: 408024775.6
B38: Total occupational Costs | C38: =Enrolments!$G$84*Enrolments!C96 -> 114240135 | D38: =(Enrolments!$G$84*Enrolments!D96)*((1+$C$15)/(1+$C$5))^(D$28-$C$28) -> 135471778.6 | E38: =(Enrolments!$G$84*Enrolments!E96)*((1+$C$15)/(1+$C$5))^(E$28-$C$28) -> 158810233.9 | F38: =(Enrolments!$G$84*Enrolments!F96)*((1+$C$15)/(1+$C$5))^(F$28-$C$28) -> 184521904.2 | G38: =(Enrolments!$G$84*Enrolments!G96)*((1+$C$15)/(1+$C$5))^(G$28-$C$28) -> 212811355.1 | H38: =(Enrolments!$G$84*Enrolments!H96)*((1+$C$15)/(1+$C$5))^(H$28-$C$28) -> 243899395.7 | I38: =(Enrolments!$G$84*Enrolments!I96)*((1+$C$15)/(1+$C$5))^(I$28-$C$28) -> 278024306.4 | J38: =(Enrolments!$G$84*Enrolments!J96)*((1+$C$15)/(1+$C$5))^(J$28-$C$28) -> 315443156.8 | K38: =(Enrolments!$G$84*Enrolments!K96)*((1+$C$15)/(1+$C$5))^(K$28-$C$28) -> 356433219.3 | L38: =(Enrolments!$G$84*Enrolments!L96)*((1+$C$15)/(1+$C$5))^(L$28-$C$28) -> 401293486 | M38: =(Enrolments!$G$84*Enrolments!M96)*((1+$C$15)/(1+$C$5))^(M$28-$C$28) -> 450346296.4 | N38: =(Enrolments!$G$84*Enrolments!N96)*((1+$C$15)/(1+$C$5))^(N$28-$C$28) -> 503939083.2 | O38: =(Enrolments!$G$84*Enrolments!O96)*((1+$C$15)/(1+$C$5))^(O$28-$C$28) -> 562446244.4 | P38: =(Enrolments!$G$84*Enrolments!P96)*((1+$C$15)/(1+$C$5))^(P$28-$C$28) -> 626271151.8 | Q38: =(Enrolments!$G$84*Enrolments!Q96)*((1+$C$15)/(1+$C$5))^(Q$28-$C$28) -> 695848304.3 | R38: =(Enrolments!$G$84*Enrolments!R96)*((1+$C$15)/(1+$C$5))^(R$28-$C$28) -> 771645637.4 | S38: =(Enrolments!$G$84*Enrolments!S96)*((1+$C$15)/(1+$C$5))^(S$28-$C$28) -> 854166998.9
B39: Total costs | C39: =C37+C35+C33+C32+C29+C38 -> 1843818969 | D39: 1999635340 | E39: 2307552593 | F39: 2645964986 | G39: 3017470284 | H39: 3424871149 | I39: 3871190566 | J39: 4359688386 | K39: 4893879080 | L39: 5477550777 | M39: 6114785693 | N39: 6809982033 | O39: 7567877484 | P39: 8393574399 | Q39: 9292566811 | R39: 1.027076938e+10 | S39: 1.133454845e+10
A40: Status Quo | B40: =Enrolments!B2:S2 -> Total Enrolment | C40: =Enrolments!C63 -> 255004.991 | D40: =Enrolments!D63 -> 284743.808 | E40: =Enrolments!E63 -> 314310.8875 | F40: =Enrolments!F63 -> 343877.9669 | G40: =Enrolments!G63 -> 373445.0464 | H40: =Enrolments!H63 -> 403012.1259 | I40: =Enrolments!I63 -> 432579.2053 | J40: =Enrolments!J63 -> 462146.2848 | K40: =Enrolments!K63 -> 491713.3643 | L40: =Enrolments!L63 -> 521280.4437 | M40: =Enrolments!M63 -> 550847.5232 | N40: =Enrolments!N63 -> 580414.6027 | O40: =Enrolments!O63 -> 609981.6821 | P40: =Enrolments!P63 -> 639548.7616 | Q40: =Enrolments!Q63 -> 669115.8411 | R40: =Enrolments!R63 -> 698682.9205 | S40: =Enrolments!S63 -> 728250
B41: Lecturing costs | C41: =C42*C43 -> 1347910582 | D41: 1431481038 | E41: 1013839033 | F41: 1125492588 | G41: 1247093987 | H41: 1379447566 | I41: 1523419159 | J41: 1679940633 | K41: 1850014747 | L41: 2034720359 | M41: 2235218011 | N41: 2452755906 | O41: 2688676322 | P41: 2944422476 | Q41: 3221545882 | R41: 3521714229 | S41: 3846719830
B42: Lecturers required | C42: =$C$7 -> 16063 | D42: =C42 -> 16063 | E42: =E52/Expenditure!$D$8/$D$10 -> 3241.966168 | F42: =F52/Expenditure!$D$8/$D$10 -> 3388.890945 | G42: =G52/Expenditure!$D$8/$D$10 -> 3535.815722 | H42: =H52/Expenditure!$D$8/$D$10 -> 3682.740499 | I42: =I52/Expenditure!$D$8/$D$10 -> 3829.665275 | J42: =J52/Expenditure!$D$8/$D$10 -> 3976.590052 | K42: =K52/Expenditure!$D$8/$D$10 -> 4123.514829 | L42: =L52/Expenditure!$D$8/$D$10 -> 4270.439606 | M42: =M52/Expenditure!$D$8/$D$10 -> 4417.364383 | N42: =N52/Expenditure!$D$8/$D$10 -> 4564.289159 | O42: =O52/Expenditure!$D$8/$D$10 -> 4711.213936 | P42: =P52/Expenditure!$D$8/$D$10 -> 4858.138713 | Q42: =Q52/Expenditure!$D$8/$D$10 -> 5005.06349 | R42: =R52/Expenditure!$D$8/$D$10 -> 5151.988267 | S42: =S52/Expenditure!$D$8/$D$10 -> 5298.913043
B43: Average lecturer salary | C43: =$C$6 -> 83914 | D43: =C43*(1+$C$9)/(1+$C$5) -> 89116.668 | E43: =$D$6*1.074*(1+$C$9) -> 312723.508 | F43: =E43*(1+$C$9)/(1+$C$5) -> 332112.3655 | G43: 352703.3321 | H43: 374570.9387 | I43: 397794.3369 | J43: 422457.5858 | K43: 448649.9561 | L43: 476466.2534 | M43: 506007.1611 | N43: 537379.6051 | O43: 570697.1406 | P43: 606080.3633 | Q43: 643657.3458 | R43: 683564.1013 | S43: 725945.0756
B44: Lecturer development | C44: =C41*$D$12 -> 20218658.73 | D44: 21472215.57 | E44: 15207585.49 | F44: 16882388.82 | G44: 18706409.8 | H44: 20691713.48 | I44: 22851287.38 | J44: 25199109.5 | K44: 27750221.21 | L44: 30520805.39 | M44: 33528270.16 | N44: 36791338.59 | O44: 40330144.83 | P44: 44166337.14 | Q44: 48323188.22 | R44: 52825713.44 | S44: 57700797.45
B45: Management and Support | C45: =$C$21*$C$20 -> 242790317.5 | D45: =$D$20*$D$21*(1+$C$9)/(1+$C$5) -> 275890077 | E45: =D45*(1+$C$9)/(1+$C$5) -> 292995261.8 | F45: 311160968 | G45: 330452948 | H45: 350941030.8 | I45: 372699374.7 | J45: 395806735.9 | K45: 420346753.6 | L45: 446408252.3 | M45: 474085563.9 | N45: 503478868.9 | O45: 534694558.8 | P45: 567845621.4 | Q45: 603052049.9 | R45: 640441277 | S45: 680148636.2
B46: Indirect costs per centre | C46: =$C$17+$C$18 -> 21208.74542 | D46: =($D$17+$D$18)*(1+$C$15)/(1+$C$5) -> 45610.776 | E46: =D46*(1+$C$15)/(1+$C$5) -> 48438.64411 | F46: 51441.84005 | G46: 54631.23413 | H46: 58018.37065 | I46: 61615.50963 | J46: 65435.67122 | K46: 69492.68284 | L46: 73801.22917 | M46: 78376.90538 | N46: 83236.27352 | O46: 88396.92248 | P46: 93877.53167 | Q46: 99697.93863 | R46: 105879.2108 | S46: 112443.7219
B47: Total indirect costs | C47: =C46*$D$16 -> 69479850 | D47: 149420902.2 | E47: 158684998.1 | F47: 168523468 | G47: 178971923 | H47: 190068182.2 | I47: 201852409.5 | J47: 214367258.9 | K47: 227658029 | L47: 241772826.8 | M47: 256762742 | N47: 272682032 | O47: 289588318 | P47: 307542793.7 | Q47: 326610447 | R47: 346860294.7 | S47: 368365632.9 | T47: =S51-S50 -> 9547764270
B48: Direct cost per learner | C48: 525 | D48: =$D$14*(1+$C$15)/(1+$C$5) -> 3823.2 | E48: =D48*(1+$C$15)/(1+$C$5) -> 4060.2384 | F48: 4311.973181 | G48: 4579.315518 | H48: 4863.23308 | I48: 5164.753531 | J48: 5484.96825 | K48: 5825.036282 | L48: 6186.188531 | M48: 6569.73222 | N48: 6977.055618 | O48: 7409.633066 | P48: 7869.030316 | Q48: 8356.910195 | R48: 8875.038628 | S48: 9425.291023 | T48: =T47/SUM(Enrolments!S99:S103) -> 21059.30911
B49: Total direct cost | C49: =C48*C52 -> 133877620.3 | D49: 1088632527 | E49: 1211010309 | F49: 1344378232 | G49: 1489628654 | H49: 1647722338 | I49: 1819693507 | J49: 2006655257 | K49: 2209805361 | L49: 2430432495 | M49: 2669922902 | N49: 2929767537 | O49: 3211569724 | P49: 3517053355 | Q49: 3848071682 | R49: 4206616729 | S49: 4594829373
B50: Total occupational Costs | C50: =Enrolments!$G$84*Enrolments!C104 -> 114240135 | D50: =(Enrolments!$G$84*Enrolments!D104)*((1+$C$15)/(1+$C$5))^(D$28-$C$28) -> 135471778.6 | E50: =(Enrolments!$G$84*Enrolments!E104)*((1+$C$15)/(1+$C$5))^(E$28-$C$28) -> 430338676.9 | F50: =(Enrolments!$G$84*Enrolments!F104)*((1+$C$15)/(1+$C$5))^(F$28-$C$28) -> 761248317.1 | G50: =(Enrolments!$G$84*Enrolments!G104)*((1+$C$15)/(1+$C$5))^(G$28-$C$28) -> 1131536531 | H50: =(Enrolments!$G$84*Enrolments!H104)*((1+$C$15)/(1+$C$5))^(H$28-$C$28) -> 1544814245 | I50: =(Enrolments!$G$84*Enrolments!I104)*((1+$C$15)/(1+$C$5))^(I$28-$C$28) -> 2004988768 | J50: =(Enrolments!$G$84*Enrolments!J104)*((1+$C$15)/(1+$C$5))^(J$28-$C$28) -> 2516286667 | K50: =(Enrolments!$G$84*Enrolments!K104)*((1+$C$15)/(1+$C$5))^(K$28-$C$28) -> 3083278329 | L50: =(Enrolments!$G$84*Enrolments!L104)*((1+$C$15)/(1+$C$5))^(L$28-$C$28) -> 3710904350 | M50: =(Enrolments!$G$84*Enrolments!M104)*((1+$C$15)/(1+$C$5))^(M$28-$C$28) -> 4404503876 | N50: =(Enrolments!$G$84*Enrolments!N104)*((1+$C$15)/(1+$C$5))^(N$28-$C$28) -> 5169845027 | O50: =(Enrolments!$G$84*Enrolments!O104)*((1+$C$15)/(1+$C$5))^(O$28-$C$28) -> 6013157568 | P50: =(Enrolments!$G$84*Enrolments!P104)*((1+$C$15)/(1+$C$5))^(P$28-$C$28) -> 6941167980 | Q50: =(Enrolments!$G$84*Enrolments!Q104)*((1+$C$15)/(1+$C$5))^(Q$28-$C$28) -> 7961137105 | R50: =(Enrolments!$G$84*Enrolments!R104)*((1+$C$15)/(1+$C$5))^(R$28-$C$28) -> 9080900552 | S50: =(Enrolments!$G$84*Enrolments!S104)*((1+$C$15)/(1+$C$5))^(S$28-$C$28) -> 1.030891206e+10
B51: Total costs | C51: =C49+C47+C45+C44+C41+C50 -> 1928517164 | D51: 3102368538 | E51: 3122075864 | F51: 3727685962 | G51: 4396390452 | H51: 5133685075 | I51: 5945504506 | J51: 6838255661 | K51: 7818853440 | L51: 8894759089 | M51: 1.007402137e+10 | N51: 1.136532071e+10 | O51: 1.277801664e+10 | P51: 1.432219856e+10 | Q51: 1.600874035e+10 | R51: 1.78493588e+10 | S51: 1.985667633e+10 | T51: =S51/C51 -> 10.2963441
A52: Full White Paper | B52: =Enrolments!B18:S18 -> Total Enrolment | C52: =Enrolments!C64 -> 255004.991 | D52: =Enrolments!D64 -> 284743.808 | E52: =Enrolments!E64 -> 298260.8875 | F52: =Enrolments!F64 -> 311777.9669 | G52: =Enrolments!G64 -> 325295.0464 | H52: =Enrolments!H64 -> 338812.1259 | I52: =Enrolments!I64 -> 352329.2053 | J52: =Enrolments!J64 -> 365846.2848 | K52: =Enrolments!K64 -> 379363.3643 | L52: =Enrolments!L64 -> 392880.4437 | M52: =Enrolments!M64 -> 406397.5232 | N52: =Enrolments!N64 -> 419914.6027 | O52: =Enrolments!O64 -> 433431.6821 | P52: =Enrolments!P64 -> 446948.7616 | Q52: =Enrolments!Q64 -> 460465.8411 | R52: =Enrolments!R64 -> 473982.9205 | S52: =Enrolments!S64 -> 487500
B53: Lecturing costs | C53: =$C7*$C6 -> 1347910582 | D53: =D54*D55 -> 1431481038 | E53: 1030834876 | F53: 1161591758 | G53: 1304599965 | H53: 1460876030 | I53: 1631515446 | J53: 1817698542 | K53: 2020696796 | L53: 2241879600 | M53: 2482721513 | N53: 2744810039 | O53: 3029853961 | P53: 3339692278 | Q53: 3676303789 | R53: 4041817350 | S53: 4438522881
B54: Lecturers required | C54: =$C$7 -> 16063 | D54: =C54 -> 16063 | E54: =E64/Expenditure!$D$8/$D$10 -> 3296.313994 | F54: =F64/Expenditure!$D$8/$D$10 -> 3497.586597 | G54: =G64/Expenditure!$D$8/$D$10 -> 3698.8592 | H54: =H64/Expenditure!$D$8/$D$10 -> 3900.131803 | I54: =I64/Expenditure!$D$8/$D$10 -> 4101.404406 | J54: =J64/Expenditure!$D$8/$D$10 -> 4302.677009 | K54: =K64/Expenditure!$D$8/$D$10 -> 4503.949612 | L54: =L64/Expenditure!$D$8/$D$10 -> 4705.222214 | M54: =M64/Expenditure!$D$8/$D$10 -> 4906.494817 | N54: =N64/Expenditure!$D$8/$D$10 -> 5107.76742 | O54: =O64/Expenditure!$D$8/$D$10 -> 5309.040023 | P54: =P64/Expenditure!$D$8/$D$10 -> 5510.312626 | Q54: =Q64/Expenditure!$D$8/$D$10 -> 5711.585229 | R54: =R64/Expenditure!$D$8/$D$10 -> 5912.857832 | S54: =S64/Expenditure!$D$8/$D$10 -> 6114.130435
B55: Average lecturer salary | C55: =$C$6 -> 83914 | D55: =C55*(1+$C$9)/(1+$C$5) -> 89116.668 | E55: =$E$6*1.074*(1+$C$9) -> 312723.508 | F55: =E55*(1+$C$9)/(1+$C$5) -> 332112.3655 | G55: 352703.3321 | H55: 374570.9387 | I55: 397794.3369 | J55: 422457.5858 | K55: 448649.9561 | L55: 476466.2534 | M55: 506007.1611 | N55: 537379.6051 | O55: 570697.1406 | P55: 606080.3633 | Q55: 643657.3458 | R55: 683564.1013 | S55: 725945.0756 | T55: =(1.062)^16 -> 2.618136395
B56: Lecturer development | C56: =C53*$C$12 -> 14827016.4 | D56: =D53*$E$12 -> 21472215.57 | E56: 15462523.13 | F56: 17423876.37 | G56: 19568999.47 | H56: 21913140.46 | I56: 24472731.69 | J56: 27265478.12 | K56: 30310451.93 | L56: 33628194 | M56: 37240822.7 | N56: 41172150.59 | O56: 45447809.41 | P56: 50095384.18 | Q56: 55144556.84 | R56: 60627260.25 | S56: 66577843.21
B57: Management and Support | C57: =$C$21*$C$20 -> 242790317.5 | D57: =$E$20*$E$21*(1+$C$9)/(1+$C$5) -> 275890077 | E57: =D57*(1+$C$9)/(1+$C$5) -> 292995261.8 | F57: 311160968 | G57: 330452948 | H57: 350941030.8 | I57: 372699374.7 | J57: 395806735.9 | K57: 420346753.6 | L57: 446408252.3 | M57: 474085563.9 | N57: 503478868.9 | O57: 534694558.8 | P57: 567845621.4 | Q57: 603052049.9 | R57: 640441277 | S57: 680148636.2
B58: Indirect costs per centre | C58: =$C$17+$C$18 -> 21208.74542 | D58: =($E$17+$E$18)*(1+$C$9)/(1+$C$5) -> 34990.776 | E58: =D58*(1+$C$9)/(1+$C$5) -> 37160.20411 | F58: 39464.13677 | G58: 41910.91325 | H58: 44509.38987 | I58: 47268.97204 | J58: 50199.64831 | K58: 53312.0265 | L58: 56617.37214 | M58: 60127.64922 | N58: 63855.56347 | O58: 67814.6084 | P58: 72019.11412 | Q58: 76484.2992 | R58: 81226.32575 | S58: 86262.35795
B59: Total indirect costs | C59: =C58*$E$16 -> 69479850 | D59: 114629782.2 | E59: 121736828.7 | F59: 129284512 | G59: 137300151.8 | H59: 145812761.2 | I59: 154853152.4 | J59: 164454047.9 | K59: 174650198.8 | L59: 185478511.1 | M59: 196978178.8 | N59: 209190825.9 | O59: 222160657.1 | P59: 235934617.9 | Q59: 250562564.2 | R59: 266097443.2 | S59: 282595484.6
B60: Direct cost per learner | C60: 525 | D60: =$E$14*(1+$C$15)/(1+$C$5) -> 2761.2 | E60: =D60*(1+$C$15)/(1+$C$5) -> 2932.3944 | F60: 3114.202853 | G60: 3307.28343 | H60: 3512.335002 | I60: 3730.099772 | J60: 3961.365958 | K60: 4206.970648 | L60: 4467.802828 | M60: 4744.806603 | N60: 5038.984613 | O60: 5351.401659 | P60: 5683.188561 | Q60: 6035.546252 | R60: 6409.75012 | S60: 6807.154627
B61: Total direct cost | C61: =C60*C64 -> 134414577.3 | D61: 786234602.6 | E61: 889280528.1 | F61: 1002081863 | G61: 1125452168 | H61: 1260268389 | I61: 1407475583 | J61: 1568091997 | K61: 1743214511 | L61: 1934024471 | M61: 2141793949 | N61: 2367892452 | O61: 2613794114 | P61: 2881085403 | Q61: 3171473388 | R61: 3486794590 | S61: 3829024478
B62: Total occupational Costs | C62: =Enrolments!$G$84*Enrolments!C112 -> 98898504.49 | D62: =Enrolments!$G$84*Enrolments!D112*((1+$C$15)/(1+$C$5))^(D$28-$C$28) -> 135471778.6 | E62: =Enrolments!$G$84*Enrolments!E112*((1+$C$15)/(1+$C$5))^(E$28-$C$28) -> 345750376.9 | F62: =Enrolments!$G$84*Enrolments!F112*((1+$C$15)/(1+$C$5))^(F$28-$C$28) -> 581582767.9 | G62: =Enrolments!$G$84*Enrolments!G112*((1+$C$15)/(1+$C$5))^(G$28-$C$28) -> 845329311 | H62: =Enrolments!$G$84*Enrolments!H112*((1+$C$15)/(1+$C$5))^(H$28-$C$28) -> 1139544821 | I62: =Enrolments!$G$84*Enrolments!I112*((1+$C$15)/(1+$C$5))^(I$28-$C$28) -> 1466993609 | J62: =Enrolments!$G$84*Enrolments!J112*((1+$C$15)/(1+$C$5))^(J$28-$C$28) -> 1830665636 | K62: =Enrolments!$G$84*Enrolments!K112*((1+$C$15)/(1+$C$5))^(K$28-$C$28) -> 2233793871 | L62: =Enrolments!$G$84*Enrolments!L112*((1+$C$15)/(1+$C$5))^(L$28-$C$28) -> 2679872928 | M62: =Enrolments!$G$84*Enrolments!M112*((1+$C$15)/(1+$C$5))^(M$28-$C$28) -> 3172679085 | N62: =Enrolments!$G$84*Enrolments!N112*((1+$C$15)/(1+$C$5))^(N$28-$C$28) -> 3716291774 | O62: =Enrolments!$G$84*Enrolments!O112*((1+$C$15)/(1+$C$5))^(O$28-$C$28) -> 4315116658 | P62: =Enrolments!$G$84*Enrolments!P112*((1+$C$15)/(1+$C$5))^(P$28-$C$28) -> 4973910401 | Q62: =Enrolments!$G$84*Enrolments!Q112*((1+$C$15)/(1+$C$5))^(Q$28-$C$28) -> 5697807261 | R62: =Enrolments!$G$84*Enrolments!R112*((1+$C$15)/(1+$C$5))^(R$28-$C$28) -> 6492347619 | S62: =Enrolments!$G$84*Enrolments!S112*((1+$C$15)/(1+$C$5))^(S$28-$C$28) -> 7363508611
B63: Total costs | C63: =C61+C59+C57+C56+C53+C62 -> 1908320848 | D63: 2765179494 | E63: 2696060394 | F63: 3203125745 | G63: 3762703543 | H63: 4379356173 | I63: 5058009897 | J63: 5803982437 | K63: 6623012582 | L63: 7521291956 | M63: 8505499113 | N63: 9582836110 | O63: 1.076106776e+10 | P63: 1.204856371e+10 | Q63: 1.345434361e+10 | R63: 1.498812554e+10 | S63: 1.666037793e+10
A64: Balanced | B64: =Enrolments!B26 -> Total Enrolment | C64: =Enrolments!C65 -> 256027.7664 | D64: =Enrolments!D65 -> 284743.808 | E64: =Enrolments!E65 -> 303260.8875 | F64: =Enrolments!F65 -> 321777.9669 | G64: =Enrolments!G65 -> 340295.0464 | H64: =Enrolments!H65 -> 358812.1259 | I64: =Enrolments!I65 -> 377329.2053 | J64: =Enrolments!J65 -> 395846.2848 | K64: =Enrolments!K65 -> 414363.3643 | L64: =Enrolments!L65 -> 432880.4437 | M64: =Enrolments!M65 -> 451397.5232 | N64: =Enrolments!N65 -> 469914.6027 | O64: =Enrolments!O65 -> 488431.6821 | P64: =Enrolments!P65 -> 506948.7616 | Q64: =Enrolments!Q65 -> 525465.8411 | R64: =Enrolments!R65 -> 543982.9205 | S64: =Enrolments!S65 -> 562500
B68: Total costs | C68: 2014 | D68: 2015 | E68: 2016 | F68: 2017 | G68: 2018 | H68: 2019 | I68: 2020 | J68: 2021 | K68: 2022 | L68: 2023 | M68: 2024 | N68: 2025 | O68: 2026 | P68: 2027 | Q68: 2028 | R68: 2029 | S68: 2030
B69: Status Quo (R'm) | C69: =C39/1000000 -> 1843.818969 | D69: 1999.63534 | E69: 2307.552593 | F69: 2645.964986 | G69: 3017.470284 | H69: 3424.871149 | I69: 3871.190566 | J69: 4359.688386 | K69: 4893.87908 | L69: 5477.550777 | M69: 6114.785693 | N69: 6809.982033 | O69: 7567.877484 | P69: 8393.574399 | Q69: 9292.566811 | R69: 10270.76938 | S69: 11334.54845
B70: Full White Paper (R'm) | C70: =C51/1000000 -> 1928.517164 | D70: 3102.368538 | E70: 3122.075864 | F70: 3727.685962 | G70: 4396.390452 | H70: 5133.685075 | I70: 5945.504506 | J70: 6838.255661 | K70: 7818.85344 | L70: 8894.759089 | M70: 10074.02137 | N70: 11365.32071 | O70: 12778.01664 | P70: 14322.19856 | Q70: 16008.74035 | R70: 17849.3588 | S70: 19856.67633
B71: Balanced (R'm) | C71: =C63/1000000 -> 1908.320848 | D71: 2765.179494 | E71: 2696.060394 | F71: 3203.125745 | G71: 3762.703543 | H71: 4379.356173 | I71: 5058.009897 | J71: 5803.982437 | K71: 6623.012582 | L71: 7521.291956 | M71: 8505.499113 | N71: 9582.83611 | O71: 10761.06776 | P71: 12048.56371 | Q71: 13454.34361 | R71: 14988.12554 | S71: 16660.37793

Sheet Dashboard (hidden)
C2: INPUTS & ASSUMPTIONS | M2: OUTPUTS | AL2: CPI Inflation
N3: 2030 | AK3: Real | AL3: 0
N4: Status quo | O4: Full Policy | P4: Mixed | Q4: 2014 | AK4: Nominal | AL4: 0.062
E5: Status quo | F5: Full Policy | G5: Mixed | H5: 2014 | M5: Total Spending (R'm) 2030 | N5: =Expenditure!S39/1000000 -> 11334.54845 | O5: =Expenditure!S51/1000000 -> 19856.67633 | P5: =Expenditure!S63/1000000 -> 16660.37793 | Q5: =Expenditure!C39/1000000 -> 1843.818969
C6: Enrolment scenarios | D6: Target Enrolments (2030) | E6: ='PSET Dashboard'!L6 -> 750000 | F6: =E6 -> 750000 | G6: =F6 -> 750000 | H6: =Enrolments!C2 -> 262621 | M6: Total number of completions | N6: ='[15]Learner Numbers'!S35 -> 33015 | O6: ='[15]Learner Numbers'!S39 -> 89620 | P6: ='[15]Learner Numbers'!S43 -> 203685 | Q6: ='[15]Learner Numbers'!C35 -> 28336
D7: Occupational % enrol | E7: 0.029 | F7: 0.35 | G7: 0.25 | H7: =E7 -> 0.029 | M7: Total Cumulative Spending (R'm) | N7: =SUM(Expenditure!E39:S39)/1000000 -> 89782.27207 | O7: =SUM(Expenditure!E51:S51)/1000000 -> 148131.5428 | P7: =SUM(Expenditure!E63:S63)/1000000 -> 125048.3565 | Q7: N/A | T7: =vlookup -> 
C8: Performance | D8: AET Throughput % | E8: 0.1745255015 | F8: 0.2 | G8: 0.1745255015 | H8: 0.1745255015 | M8: Infrastructure Spend (R'm) | N8: =Infrastructure!R30 -> 0 | O8: =Infrastructure!R31/1000000 -> 1835.605322 | P8: =Infrastructure!R32/1000000 -> 677.2018566 | Q8: N/A
C9: Student:Lecturer ratio | D9: All enrolments | E9: 18.25611654 | F9: 23 | G9: 23 | H9: =Expenditure!C8 -> 18 | M9: Cumulative Infrastructure Spend | N9: =Infrastructure!S30 -> 0 | O9: =Infrastructure!S31/1000000 -> 18737.22849 | P9: =Infrastructure!S32/1000000 -> 6894.556892 | Q9: N/A
C10: Direct Costs | D10: Direct Learner Cost | E10: 214 | F10: 3600 | G10: 2600 | H10: 525 | M10: Spend per FTE | N10: =N5/Enrolments!S90*1000000 -> 16562.77074 | O10: =O5/Enrolments!S98*1000000 -> 39252.14001 | P10: =P5/Enrolments!S106*1000000 -> 29717.50802 | Q10: =Q5/Enrolments!C90*1000000 -> 7694.472624
C11: Inflation | D11: PSET Inflation | E11: Nominal | G11: =IF(E11=AK3,AL3,AL4) -> 0.062 | M11: Spend per AET completion | N11: =(Expenditure!S39-Expenditure!S38)/SUM('[15]Learner Numbers'!S36:S37) -> 385790.3794 | O11: =(Expenditure!S51-Expenditure!S50)/SUM('[15]Learner Numbers'!S40:S41) -> 501800.8236 | P11: =(Expenditure!S63-Expenditure!S62)/SUM('[15]Learner Numbers'!S44:S45) -> 155765.5914 | Q11: =(Expenditure!C39-Expenditure!C38)/SUM('[15]Learner Numbers'!C36:C37) -> 63667.04093
D15: Heading
D16: Item description
D17: User-defined Input
D18: Fixed Assumption
D19: Key output

Sheet 2b. Primary costing dashboard
B2: OUTPUTS | G2: INPUTS & ASSUMPTIONS
B3: Current spending (R'm) | C3: 2014 | D3: Scenario (2030) | E3: Status quo (2030) | G3: Select pre-set scenario
B4: Universities | C4: 49868 | D4: ='5m. Current spending summary'!S160/1000 -> 128100.7772 | E4: 251515.8673
B5: Residences | C5: 3052 | D5: ='5g. Residences spending'!V4/1000 -> 10120.49301 | E5: 14017.62816 | G5: Custom inputs and assumptions
B6: Total | C6: =SUM(C4:C5) -> 52920 | D6: =SUM(D4:D5) -> 138221.2702 | E6: =SUM(E4:E5) -> 265533.4955 | G6: Growth targets
G7: Enrolment Target | H7: 494876.2123
B8: Spending per unit | C8: 2014 | D8: Scenario (2030) | E8: Status quo (2030) | G8: Graduate Target | H8: 400000
B9: Number of FTEs | C9: 683013.3474 | D9: ='5b. Full-Time-Equivalents'!$V$30 -> 338212.8245 | E9: 984137.9626 | G9: Performance rates | H9: Scenario selection | I9: User-defined
B10: Current spending per FTE | C10: =C4*1000000/C9 -> 73011.75034 | D10: =D4/D9*1000000 -> 378757.8942 | E10: 255569.7239 | G10: Improvement in throughput rate by 2030 | H10: User-defined %-point change | I10: 0.08
B11: Number of graduates | C11: 174037 | D11: ='5a. Headount'!V182 -> 122031.5222 | E11: 245960.1934 | G11: Student qualification mix | H11: Scenario selection | I11: User-defined | J11: 2014
B12: Current spending per Graduate | C12: =C4/C11*1000000 -> 286536.7709 | D12: =D4/D11*1000000 -> 1049735.141 | E12: 1022587.696 | G12: Percentage of student FTEs enrolled in PhD programmes | H12: User-defined | I12: 0.05 | J12: 0.0185
G13: Contact v/s Distance | H13: Scenario selection | I13: User-defined | J13: 2014
G14: Percentage of student FTEs enrolled in distance programmes | H14: User-defined | I14: 0.4 | J14: 0.31
B15: MTEF (R'm) | C15: 2017/18 | D15: 2018/19 | E15: 2019/20 | G15: Student - staff ratio | H15: Scenario selection | I15: User-defined | J15: 2014
B16: Current spending: Universities and residences | C16: ='3a. Time-series results'!D22/1000 -> 63411.24005 | D16: ='3a. Time-series results'!E22/1000 -> 66930.15492 | E16: ='3a. Time-series results'!F22/1000 -> 70664.86303 | G16: Teaching Input Units (Weighted student FTEs) to Academic staff ratio | H16: Status quo (2014) | I16: 0.1 | J16: =AVERAGE('5l. Current spending calc.'!X353,'5l. Current spending calc.'!X339,'5l. Current spending calc.'!X325,'5l. Current spending calc.'!X311,'5l. Current spending calc.'!X297,'5l. Current spending calc.'!X283,'5l. Current spending calc.'!X269,'5l. Current spending calc.'!X255,'5l. Current spending calc.'!X241,'5l. Current spending calc.'!X227,'5l. Current spending calc.'!X213,'5l. Current spending calc.'!X199,'5l. Current spending calc.'!X185,'5l. Current spending calc.'!X171,'5l. Current spending calc.'!X157,'5l. Current spending calc.'!X143,'5l. Current spending calc.'!X129,'5l. Current spending calc.'!X115,'5l. Current spending calc.'!X101,'5l. Current spending calc.'!X87,'5l. Current spending calc.'!X73,'5l. Current spending calc.'!X59,'5l. Current spending calc.'!X45,'5l. Current spending calc.'!X31,'5l. Current spending calc.'!X17,'5l. Current spending calc.'!X3) -> 52.81940388
G17: Academic staff qualification mix | H17: Scenario selection | I17: User-defined | J17: 2014
B18: Infrastructure requirement (R'm) | C18: Scenario (2016 - 2030) | D18: Status quo (2016 - 2030) | G18: Percentage of Academic staff with PhDs | H18: User-defined % | I18: 0.75 | J18: 0.43
B19: Universities | C19: =IF('2c. Secondary costing dashboard'!$C$5=List!$P$2,'5f. Infrastructure'!W8,'5f. Infrastructure'!W10)/1000 -> -24798.67977 | D19: 24763.93958 | G19: Residences | H19: Scenario selection | I19: User-defined | J19: 2010
B20: Residences | C20: =IF('2c. Secondary costing dashboard'!$C$5=List!$P$2,'5g. Residences spending'!W6,'5g. Residences spending'!W8)/1000 -> 4541.446024 | D20: 28160.61982 | G20: Bed capacity as % of FTE enrolment in 2030 | H20: Always user defined | I20: 0.5 | J20: 0.238
B21: Total | C21: =SUM(C19:C20) -> -20257.23375 | D21: =SUM(D19:D20) -> 52924.5594 | G21: Navigate to other dashboards
A53: ='3a. Time-series results'!S25 -> -5.123764277e-05

Sheet 2c. Secondary costing dashboard
B2: SECONDARY INPUTS & ASSUMPTIONS
B3: Inflation | C3: Scenario selection | D3: User-defined
B4: Real current expenditure inflation | C4: User-defined | D4: 0.018
B5: Real infrastructure inflation | C5: User-defined | D5: 0
B6: Growth dynamics | C6: Scenario selection
B7: Growth scenario | C7: Constant rate
B8: Performance rates | C8: Scenario selection | D8: User-defined
B9: Improvement in regulation time throughput rate by 2030 | C9: User-defined %-point change | D9: 0.04
B10: Operational staff numbers | C10: Scenario selection | D10: User-defined | E10: 2014
B11: Annual growth in the number of executive management staff members | C11: Status quo (2014) | D11: 0.02 | E11: 0.009
B12: Annual growth in number of support professionals staff members | C12: Status quo (2014) | D12: 0.02 | E12: 0.011
B13: Annual growth in the number of non-professional staff members | C13: Status quo (2014) | D13: 0.02 | E13: 0.007
B14: Residences | C14: Scenario selection | D14: User-defined | E14: 2010
B15: Bed capacity as % of enrolment in 2014 | C15: Always user defined | D15: 0.238 | E15: 0.238
B16: Distibution between level of qualification | C16: Scenario selection | D16: User-defined | E16: 2014
B17: Percentage Undergraduate | C17: Balancing figure | D17: =100%-SUM(D18:D19,'2b. Primary costing dashboard'!I12) -> 0.75 | E17: 0.83
B18: Percentage Honours | C18: User-defined | D18: 0.15 | E18: 0.12
B19: Percentage Masters | C19: User-defined | D19: 0.05 | E19: 0.03
B20: Distibution between fields of study | C20: Scenario selection | D20: User-defined | E20: 2014
B21: Percentage in funding group 1 | C21: Balancing figure | D21: 0.21 | E21: 0.29
B22: Percentage in funding group 2 | C22: User-defined | D22: 0.38 | E22: 0.44
B23: Percentage in funding group 3 | C23: User-defined | D23: 0.15 | E23: 0.11
B24: Percentage in funding group 4 | C24: User-defined | D24: 0.2 | E24: 0.16
B25: Funding Group Description | C25: CESM Categories
B26: Funding group 1 | C26: 07 education 12 law 18 psychology 19 public administration and services
B27: Funding group 2 | C27: 04 business economics & management studies 05 communication & journalism 06 computer & information sciences 11 languages linguistics & literature 17 philosophy religion and theology 20 social sciences
B28: Funding group 3 | C28: 02 architecture & the built environment 08 engineering 10 family ecology & consumer sciences 15 mathematics & statistics
B29: Funding group 4 | C29: 01 agriculture & agricultural operations 03 visual and performing arts 09 health professions & related clinical sciences 13 life sciences 14 physical sciences 16 military sciences
B30: Navigate to other dashboards

Sheet 4g. GDP (hidden)
B1: 2014 | C1: 2015 | D1: 2016 | E1: 2017 | F1: 2018 | G1: 2019 | H1: 2020 | I1: 2021 | J1: 2022 | K1: 2023 | L1: 2024 | M1: 2025 | N1: 2026 | O1: 2027 | P1: 2028 | Q1: 2029 | R1: 2030
A2: GDP | B2: 3843778062 | C2: 4073200000 | D2: =C2*(1+$B$6) -> 4276860000 | E2: 4490703000 | F2: 4715238150 | G2: 4951000058 | H2: 5198550060 | I2: 5458477563 | J2: 5731401442 | K2: 6017971514 | L2: 6318870089 | M2: 6634813594 | N2: 6966554273 | O2: 7314881987 | P2: 7680626087 | Q2: 8064657391 | R2: 8467890260
A3: Tax revenue | B3: 986227962.5 | C3: 1069700000 | D3: =$B$9*D2 -> 1124814180 | E3: =$B$9*E2 -> 1181054889 | F3: 1240107633 | G3: 1302113015 | H3: 1367218666 | I3: 1435579599 | J3: 1507358579 | K3: 1582726508 | L3: 1661862833 | M3: 1744955975 | N3: 1832203774 | O3: 1923813963 | P3: 2020004661 | Q3: 2121004894 | R3: 2227055138
A6: User-defined | B6: ='PSET Dashboard'!L13 -> 0.05
A7: Projection scenario (2.9% real) | B7: ='[17]7. Grant projection'!G11 -> 0.091
A8: Historical scenario (1.6% real) | B8: ='[17]7. Grant projection'!G12 -> 0.078
A9: Tax as % of GDP | B9: ='PSET Dashboard'!L14 -> 0.263

Sheet 2d. University NSFAS dashboard
B1: Proportion of students that repay loans | D1: Growth Type | E1: Percentage Growth | F1: Maximum | G1: 2030 Value
B2: Drop Outs | C2: 0.08 | D2: Linear | E2: 0.01 | F2: =IF(D2="Linear",(1-C2)/14,IF(D2="Compound",((100/(C2*100))^(1/14) - 1),"")) -> 0.06571428571 | G2: =IF(D2="Linear", C2+E2*14,IF(D2="Compound",C2*(1+E2)^14,IF(D2="None",C2,'[18]UserRepaymentRates (2)'!#REF!))) -> 0.22 | I2: Linear | J2: 0
B3: Graduates | C3: 0.16 | D3: Linear | E3: 0.02 | F3: =IF(D3="Linear",(1-C3)/14,IF(D3="Compound",((100/(C3*100))^(1/14) - 1),"")) -> 0.06 | G3: =IF(D3="Linear", C3+E3*14,IF(D3="Compound",C3*(1+E3)^14,IF(D3="None",C3,'[18]UserRepaymentRates (2)'!AG1))) -> 0.44 | I3: Compound | J3: 0
J5: 0.04
B6: UniExp NSFAS Link V04 WRJ 29032016 v2.xlsm | J6: 0.05
B7: 2010-2019 Improvement | C7: 0.38 | J7: 0.06
B8: 2020-2030 Improvement | C8: 0.38 | J8: 0.07
J9: 0.08
B10: Loan conversion percentage | J10: 0.09
B11: Base (2000-2009) | C11: 20% Conversion | D11: 40% Conversion | E11: 100% Graduate | F11: Max 20% | G11: Max 40% | J11: 0.1
B12: Business, economic and management sciences | C12: 0.3 | D12: 0.65 | E12: 1 | F12: =1-D12 -> 0.35 | G12: =1-C12 -> 0.7 | J12: 0.11
B13: Health sciences | C13: 0.3 | D13: 0.65 | E13: 1 | F13: =1-D13 -> 0.35 | G13: =1-C13 -> 0.7 | J13: 0.12
B14: Humanities and social sciences | C14: 0.3 | D14: 0.65 | E14: 1 | F14: =1-D14 -> 0.35 | G14: =1-C14 -> 0.7 | J14: 0.13
B15: Natural sciences | C15: 0.3 | D15: 0.65 | E15: 1 | F15: =1-D15 -> 0.35 | G15: =1-C15 -> 0.7 | J15: 0.14
J16: 0.15
J17: 0.16
B18: NSFAS value of loan | J18: 0.17
B19: Cost of study real inflation | C19: Inflation | D19: Growth Type | E19: Percentage Growth | F19: Maximum | G19: 2030 Value | J19: 0.18
B20: Tuition | C20: 0 | D20: Compound | E20: 0 | F20: =IF(D20="Linear",(1-C20)/14,IF(D20="Compound",((100/(C20*100))^(1/14) - 1),"")) ->  | G20: =IF(D20="Linear", C20+E20*14,IF(D20="Compound",C20*(1+E20)^14,IF(D20="None",C20,""))) -> 0 | J20: 0.19
B21: Residence | C21: 0 | D21: Compound | E21: 0 | F21: =IF(D21="Linear",(1-C21)/14,IF(D21="Compound",((100/(C21*100))^(1/14) - 1),"")) ->  | G21: =IF(D21="Linear", C21+E21*14,IF(D21="Compound",C21*(1+E21)^14,IF(D21="None",C21,""))) -> 0 | J21: 0.2
B22: Other Allowances | C22: 0 | D22: Compound | E22: 0 | F22: =IF(D22="Linear",(1-C22)/14,IF(D22="Compound",((100/(C22*100))^(1/14) - 1),"")) ->  | G22: =IF(D22="Linear", C22+E22*14,IF(D22="Compound",C22*(1+E22)^14,IF(D22="None",C22,""))) -> 0 | J22: 0.21
B24: Consumer Price Index | C24: ='2a. Funding dashboard'!J3 -> 0.062 | D24: Compound | E24: 0 | F24: =IF(D24="Linear",(1-C24)/14,IF(D24="Compound",((100/(C24*100))^(1/14) - 1),"")) -> 0.2197132354 | G24: =IF(D24="Linear", C24+E24*14,IF(D24="Compound",C24*(1+E24)^14,IF(D24="None",C24,""))) -> 0.062 | J24: 0.23
J25: 0.24
B26: Coverage criteria | J26: 0.25
B27: Income percentile funded | C27: 0.4 | J27: 0.26
J28: 0.27 | Y28: NSFAS Path | Z28: =LEFT(CELL("filename",$A$1),FIND("[",CELL("filename",$A$1),1)-1)&Z29 -> C:\CONOR WORK\NSFAS model.xlsm
J29: 0.28 | Y29: NSFAS File | Z29: NSFAS model.xlsm
J30: 0.29 | Y30: Path | Z30: =LEFT(CELL("filename",$A$1),FIND("[",CELL("filename",$A$1),1)-1)&Z31 -> C:\CONOR WORK\NSFAS-University link file.xlsm
J31: 0.3 | Y31: Name | Z31: NSFAS-University link file.xlsm
J32: 0.31
J33: 0.32
J34: 0.33
J35: 0.34
J36: 0.35
J37: 0.36
J38: 0.37
J39: 0.38
J40: 0.39
J41: 0.4
J42: 0.41
J43: 0.42
J44: 0.43
J45: 0.44
J46: 0.45
J47: 0.46
J48: 0.47
J49: 0.48
J50: 0.49
J51: 0.5
J52: 0.51
J53: 0.52
J54: 0.53
J55: 0.54
J56: 0.55
J57: 0.56
J58: 0.57
J59: 0.58
J60: 0.59
J61: 0.6
J62: 0.61
J63: 0.62
J64: 0.63
J65: 0.64
J66: 0.65
J67: 0.66
J68: 0.67
J69: 0.68
J70: 0.69
J71: 0.7
J72: 0.71
J73: 0.72
J74: 0.73
J75: 0.74
J76: 0.75
J77: 0.76
J78: 0.77
J79: 0.78
J80: 0.79
J81: 0.8
J82: 0.81
J83: 0.82
J84: 0.83
J85: 0.84
J86: 0.85
J87: 0.86
J88: 0.87
J89: 0.88
J90: 0.89
J91: 0.9
J92: 0.91
J93: 0.92
J94: 0.93
J95: 0.94
J96: 0.95
J97: 0.96
J98: 0.97
J99: 0.98
J100: 0.99
J101: 1

Sheet 3a. Time-series results
B1: 2014 | C1: 2015 | D1: 2016 | E1: 2017 | F1: 2018 | G1: 2019 | H1: 2020 | I1: 2021 | J1: 2022 | K1: 2023 | L1: 2024 | M1: 2025 | N1: 2026 | O1: 2027 | P1: 2028 | Q1: 2029 | R1: 2030 | S1: 2016 - 2030
A2: Block grant | C2: ='4a. Government grants'!G7 -> 20538361 | D2: =IF('2a. Funding dashboard'!$J$5=List!$S$2,'4a. Government grants'!J7,IF('2a. Funding dashboard'!$J$5=List!$S$3,'4a. Government grants'!J8,'4a. Government grants'!J9)) -> 21678098 | E2: =IF('2a. Funding dashboard'!$J$5=List!$S$2,'4a. Government grants'!M7,IF('2a. Funding dashboard'!$J$5=List!$S$3,'4a. Government grants'!M8,'4a. Government grants'!M9)) -> 23368989.64 | F2: =IF('2a. Funding dashboard'!$J$5=List!$S$2,'4a. Government grants'!P7,IF('2a. Funding dashboard'!$J$5=List!$S$3,'4a. Government grants'!P8,'4a. Government grants'!P9)) -> 25191770.84 | G2: =IF('2a. Funding dashboard'!$J$5=List!$S$2,'4a. Government grants'!S7,IF('2a. Funding dashboard'!$J$5=List!$S$3,'4a. Government grants'!S8,'4a. Government grants'!S9)) -> 27156728.96 | H2: =IF('2a. Funding dashboard'!$J$5=List!$S$2,'4a. Government grants'!V7,IF('2a. Funding dashboard'!$J$5=List!$S$3,'4a. Government grants'!V8,'4a. Government grants'!V9)) -> 29274953.82 | I2: =IF('2a. Funding dashboard'!$J$5=List!$S$2,'4a. Government grants'!Y7,IF('2a. Funding dashboard'!$J$5=List!$S$3,'4a. Government grants'!Y8,'4a. Government grants'!Y9)) -> 31558400.22 | J2: =IF('2a. Funding dashboard'!$J$5=List!$S$2,'4a. Government grants'!AB7,IF('2a. Funding dashboard'!$J$5=List!$S$3,'4a. Government grants'!AB8,'4a. Government grants'!AB9)) -> 34019955.44 | K2: =IF('2a. Funding dashboard'!$J$5=List!$S$2,'4a. Government grants'!AE7,IF('2a. Funding dashboard'!$J$5=List!$S$3,'4a. Government grants'!AE8,'4a. Government grants'!AE9)) -> 36673511.96 | L2: =IF('2a. Funding dashboard'!$J$5=List!$S$2,'4a. Government grants'!AH7,IF('2a. Funding dashboard'!$J$5=List!$S$3,'4a. Government grants'!AH8,'4a. Government grants'!AH9)) -> 39534045.89 | M2: =IF('2a. Funding dashboard'!$J$5=List!$S$2,'4a. Government grants'!AK7,IF('2a. Funding dashboard'!$J$5=List!$S$3,'4a. Government grants'!AK8,'4a. Government grants'!AK9)) -> 42617701.47 | N2: =IF('2a. Funding dashboard'!$J$5=List!$S$2,'4a. Government grants'!AN7,IF('2a. Funding dashboard'!$J$5=List!$S$3,'4a. Government grants'!AN8,'4a. Government grants'!AN9)) -> 45941882.19 | O2: =IF('2a. Funding dashboard'!$J$5=List!$S$2,'4a. Government grants'!AQ7,IF('2a. Funding dashboard'!$J$5=List!$S$3,'4a. Government grants'!AQ8,'4a. Government grants'!AQ9)) -> 49525349 | P2: =IF('2a. Funding dashboard'!$J$5=List!$S$2,'4a. Government grants'!AT7,IF('2a. Funding dashboard'!$J$5=List!$S$3,'4a. Government grants'!AT8,'4a. Government grants'!AT9)) -> 53388326.22 | Q2: =IF('2a. Funding dashboard'!$J$5=List!$S$2,'4a. Government grants'!AW7,IF('2a. Funding dashboard'!$J$5=List!$S$3,'4a. Government grants'!AW8,'4a. Government grants'!AW9)) -> 57552615.66 | R2: =IF('2a. Funding dashboard'!$J$5=List!$S$2,'4a. Government grants'!AZ7,IF('2a. Funding dashboard'!$J$5=List!$S$3,'4a. Government grants'!AZ8,'4a. Government grants'!AZ9)) -> 62041719.69 | S2: =SUM(D2:R2) -> 579524049
A3: Earmarked grant | C3: ='4a. Government grants'!C30 -> 3708136 | D3: =IF('2a. Funding dashboard'!$J$6=List!$S$2,'4a. Government grants'!D30,IF('2a. Funding dashboard'!$J$6=List!$S$3,'4a. Government grants'!D31,'4a. Government grants'!D32)) -> 3534007 | E3: =IF('2a. Funding dashboard'!$J$6=List!$S$2,'4a. Government grants'!E30,IF('2a. Funding dashboard'!$J$6=List!$S$3,'4a. Government grants'!E31,'4a. Government grants'!E32)) -> 3809659.546 | F3: =IF('2a. Funding dashboard'!$J$6=List!$S$2,'4a. Government grants'!F30,IF('2a. Funding dashboard'!$J$6=List!$S$3,'4a. Government grants'!F31,'4a. Government grants'!F32)) -> 4106812.991 | G3: =IF('2a. Funding dashboard'!$J$6=List!$S$2,'4a. Government grants'!G30,IF('2a. Funding dashboard'!$J$6=List!$S$3,'4a. Government grants'!G31,'4a. Government grants'!G32)) -> 4427144.404 | H3: =IF('2a. Funding dashboard'!$J$6=List!$S$2,'4a. Government grants'!H30,IF('2a. Funding dashboard'!$J$6=List!$S$3,'4a. Government grants'!H31,'4a. Government grants'!H32)) -> 4772461.667 | I3: =IF('2a. Funding dashboard'!$J$6=List!$S$2,'4a. Government grants'!I30,IF('2a. Funding dashboard'!$J$6=List!$S$3,'4a. Government grants'!I31,'4a. Government grants'!I32)) -> 5144713.677 | J3: =IF('2a. Funding dashboard'!$J$6=List!$S$2,'4a. Government grants'!J30,IF('2a. Funding dashboard'!$J$6=List!$S$3,'4a. Government grants'!J31,'4a. Government grants'!J32)) -> 5546001.344 | K3: =IF('2a. Funding dashboard'!$J$6=List!$S$2,'4a. Government grants'!K30,IF('2a. Funding dashboard'!$J$6=List!$S$3,'4a. Government grants'!K31,'4a. Government grants'!K32)) -> 5978589.449 | L3: =IF('2a. Funding dashboard'!$J$6=List!$S$2,'4a. Government grants'!L30,IF('2a. Funding dashboard'!$J$6=List!$S$3,'4a. Government grants'!L31,'4a. Government grants'!L32)) -> 6444919.426 | M3: =IF('2a. Funding dashboard'!$J$6=List!$S$2,'4a. Government grants'!M30,IF('2a. Funding dashboard'!$J$6=List!$S$3,'4a. Government grants'!M31,'4a. Government grants'!M32)) -> 6947623.141 | N3: =IF('2a. Funding dashboard'!$J$6=List!$S$2,'4a. Government grants'!N30,IF('2a. Funding dashboard'!$J$6=List!$S$3,'4a. Government grants'!N31,'4a. Government grants'!N32)) -> 7489537.746 | O3: =IF('2a. Funding dashboard'!$J$6=List!$S$2,'4a. Government grants'!O30,IF('2a. Funding dashboard'!$J$6=List!$S$3,'4a. Government grants'!O31,'4a. Government grants'!O32)) -> 8073721.691 | P3: =IF('2a. Funding dashboard'!$J$6=List!$S$2,'4a. Government grants'!P30,IF('2a. Funding dashboard'!$J$6=List!$S$3,'4a. Government grants'!P31,'4a. Government grants'!P32)) -> 8703471.982 | Q3: =IF('2a. Funding dashboard'!$J$6=List!$S$2,'4a. Government grants'!Q30,IF('2a. Funding dashboard'!$J$6=List!$S$3,'4a. Government grants'!Q31,'4a. Government grants'!Q32)) -> 9382342.797 | R3: =IF('2a. Funding dashboard'!$J$6=List!$S$2,'4a. Government grants'!R30,IF('2a. Funding dashboard'!$J$6=List!$S$3,'4a. Government grants'!R31,'4a. Government grants'!R32)) -> 10114165.54 | S3: =SUM(D3:R3) -> 94475172.4
A4: Tuition fees | C4: ='4b. Tuition Fees'!C6 -> 19351575.32 | D4: =IF('2a. Funding dashboard'!$J$8=List!$T$2,'4b. Tuition Fees'!D6,IF('2a. Funding dashboard'!$J$8=List!$T$3,'4b. Tuition Fees'!D7,'4b. Tuition Fees'!D8)) -> 17470653.52 | E4: =IF('2a. Funding dashboard'!$J$8=List!$T$2,'4b. Tuition Fees'!E6,IF('2a. Funding dashboard'!$J$8=List!$T$3,'4b. Tuition Fees'!E7,'4b. Tuition Fees'!E8)) -> 17944765.91 | F4: =IF('2a. Funding dashboard'!$J$8=List!$T$2,'4b. Tuition Fees'!F6,IF('2a. Funding dashboard'!$J$8=List!$T$3,'4b. Tuition Fees'!F7,'4b. Tuition Fees'!F8)) -> 18410511.04 | G4: =IF('2a. Funding dashboard'!$J$8=List!$T$2,'4b. Tuition Fees'!G6,IF('2a. Funding dashboard'!$J$8=List!$T$3,'4b. Tuition Fees'!G7,'4b. Tuition Fees'!G8)) -> 18865028.89 | H4: =IF('2a. Funding dashboard'!$J$8=List!$T$2,'4b. Tuition Fees'!H6,IF('2a. Funding dashboard'!$J$8=List!$T$3,'4b. Tuition Fees'!H7,'4b. Tuition Fees'!H8)) -> 19305136.95 | I4: =IF('2a. Funding dashboard'!$J$8=List!$T$2,'4b. Tuition Fees'!I6,IF('2a. Funding dashboard'!$J$8=List!$T$3,'4b. Tuition Fees'!I7,'4b. Tuition Fees'!I8)) -> 19727301.24 | J4: =IF('2a. Funding dashboard'!$J$8=List!$T$2,'4b. Tuition Fees'!J6,IF('2a. Funding dashboard'!$J$8=List!$T$3,'4b. Tuition Fees'!J7,'4b. Tuition Fees'!J8)) -> 20127604.95 | K4: =IF('2a. Funding dashboard'!$J$8=List!$T$2,'4b. Tuition Fees'!K6,IF('2a. Funding dashboard'!$J$8=List!$T$3,'4b. Tuition Fees'!K7,'4b. Tuition Fees'!K8)) -> 20501714.58 | L4: =IF('2a. Funding dashboard'!$J$8=List!$T$2,'4b. Tuition Fees'!L6,IF('2a. Funding dashboard'!$J$8=List!$T$3,'4b. Tuition Fees'!L7,'4b. Tuition Fees'!L8)) -> 20844843.28 | M4: =IF('2a. Funding dashboard'!$J$8=List!$T$2,'4b. Tuition Fees'!M6,IF('2a. Funding dashboard'!$J$8=List!$T$3,'4b. Tuition Fees'!M7,'4b. Tuition Fees'!M8)) -> 21151711.36 | N4: =IF('2a. Funding dashboard'!$J$8=List!$T$2,'4b. Tuition Fees'!N6,IF('2a. Funding dashboard'!$J$8=List!$T$3,'4b. Tuition Fees'!N7,'4b. Tuition Fees'!N8)) -> 21416503.49 | O4: =IF('2a. Funding dashboard'!$J$8=List!$T$2,'4b. Tuition Fees'!O6,IF('2a. Funding dashboard'!$J$8=List!$T$3,'4b. Tuition Fees'!O7,'4b. Tuition Fees'!O8)) -> 21632822.68 | P4: =IF('2a. Funding dashboard'!$J$8=List!$T$2,'4b. Tuition Fees'!P6,IF('2a. Funding dashboard'!$J$8=List!$T$3,'4b. Tuition Fees'!P7,'4b. Tuition Fees'!P8)) -> 21793640.4 | Q4: =IF('2a. Funding dashboard'!$J$8=List!$T$2,'4b. Tuition Fees'!Q6,IF('2a. Funding dashboard'!$J$8=List!$T$3,'4b. Tuition Fees'!Q7,'4b. Tuition Fees'!Q8)) -> 21891242.96 | R4: =IF('2a. Funding dashboard'!$J$8=List!$T$2,'4b. Tuition Fees'!R6,IF('2a. Funding dashboard'!$J$8=List!$T$3,'4b. Tuition Fees'!R7,'4b. Tuition Fees'!R8)) -> 21917173.47 | S4: =SUM(D4:R4) -> 303000654.7
A5: Residences fees | C5: =IF('2a. Funding dashboard'!$J$9=List!$T$2,'4c. Residence fees'!C31,'4c. Residence fees'!C32) -> 2831679.566 | D5: =IF('2a. Funding dashboard'!$J$9=List!$T$2,'4c. Residence fees'!D31,'4c. Residence fees'!D32) -> 3022197.968 | E5: =IF('2a. Funding dashboard'!$J$9=List!$T$2,'4c. Residence fees'!E31,'4c. Residence fees'!E32) -> 3225455.676 | F5: =IF('2a. Funding dashboard'!$J$9=List!$T$2,'4c. Residence fees'!F31,'4c. Residence fees'!F32) -> 3442300.01 | G5: =IF('2a. Funding dashboard'!$J$9=List!$T$2,'4c. Residence fees'!G31,'4c. Residence fees'!G32) -> 3673634.391 | H5: =IF('2a. Funding dashboard'!$J$9=List!$T$2,'4c. Residence fees'!H31,'4c. Residence fees'!H32) -> 3920422.033 | I5: =IF('2a. Funding dashboard'!$J$9=List!$T$2,'4c. Residence fees'!I31,'4c. Residence fees'!I32) -> 4183689.892 | J5: =IF('2a. Funding dashboard'!$J$9=List!$T$2,'4c. Residence fees'!J31,'4c. Residence fees'!J32) -> 4464532.864 | K5: =IF('2a. Funding dashboard'!$J$9=List!$T$2,'4c. Residence fees'!K31,'4c. Residence fees'!K32) -> 4764118.26 | L5: =IF('2a. Funding dashboard'!$J$9=List!$T$2,'4c. Residence fees'!L31,'4c. Residence fees'!L32) -> 5083690.581 | M5: =IF('2a. Funding dashboard'!$J$9=List!$T$2,'4c. Residence fees'!M31,'4c. Residence fees'!M32) -> 5424576.599 | N5: =IF('2a. Funding dashboard'!$J$9=List!$T$2,'4c. Residence fees'!N31,'4c. Residence fees'!N32) -> 5788190.777 | O5: =IF('2a. Funding dashboard'!$J$9=List!$T$2,'4c. Residence fees'!O31,'4c. Residence fees'!O32) -> 6176041.04 | P5: =IF('2a. Funding dashboard'!$J$9=List!$T$2,'4c. Residence fees'!P31,'4c. Residence fees'!P32) -> 6589734.931 | Q5: =IF('2a. Funding dashboard'!$J$9=List!$T$2,'4c. Residence fees'!Q31,'4c. Residence fees'!Q32) -> 7030986.163 | R5: =IF('2a. Funding dashboard'!$J$9=List!$T$2,'4c. Residence fees'!R31,'4c. Residence fees'!R32) -> 7501621.606 | S5: 74291192.79
A6: Third stream income | C6: =IF('2a. Funding dashboard'!$J$7=List!$U$2,'4d Third stream income'!C54,'4d Third stream income'!C55) -> 17179008.2 | D6: =IF('2a. Funding dashboard'!$J$7=List!$U$2,'4d Third stream income'!D54,'4d Third stream income'!D55) -> 16910833.9 | E6: =IF('2a. Funding dashboard'!$J$7=List!$U$2,'4d Third stream income'!E54,'4d Third stream income'!E55) -> 17889082.19 | F6: =IF('2a. Funding dashboard'!$J$7=List!$U$2,'4d Third stream income'!F54,'4d Third stream income'!F55) -> 18926016.11 | G6: =IF('2a. Funding dashboard'!$J$7=List!$U$2,'4d Third stream income'!G54,'4d Third stream income'!G55) -> 20025338.56 | H6: =IF('2a. Funding dashboard'!$J$7=List!$U$2,'4d Third stream income'!H54,'4d Third stream income'!H55) -> 21191000.55 | I6: =IF('2a. Funding dashboard'!$J$7=List!$U$2,'4d Third stream income'!I54,'4d Third stream income'!I55) -> 22427218.86 | J6: =IF('2a. Funding dashboard'!$J$7=List!$U$2,'4d Third stream income'!J54,'4d Third stream income'!J55) -> 23738495 | K6: =IF('2a. Funding dashboard'!$J$7=List!$U$2,'4d Third stream income'!K54,'4d Third stream income'!K55) -> 25129635.67 | L6: =IF('2a. Funding dashboard'!$J$7=List!$U$2,'4d Third stream income'!L54,'4d Third stream income'!L55) -> 26605774.7 | M6: =IF('2a. Funding dashboard'!$J$7=List!$U$2,'4d Third stream income'!M54,'4d Third stream income'!M55) -> 28172396.65 | N6: =IF('2a. Funding dashboard'!$J$7=List!$U$2,'4d Third stream income'!N54,'4d Third stream income'!N55) -> 29835362.26 | O6: =IF('2a. Funding dashboard'!$J$7=List!$U$2,'4d Third stream income'!O54,'4d Third stream income'!O55) -> 31600935.73 | P6: =IF('2a. Funding dashboard'!$J$7=List!$U$2,'4d Third stream income'!P54,'4d Third stream income'!P55) -> 33475814.21 | Q6: =IF('2a. Funding dashboard'!$J$7=List!$U$2,'4d Third stream income'!Q54,'4d Third stream income'!Q55) -> 35467159.4 | R6: =IF('2a. Funding dashboard'!$J$7=List!$U$2,'4d Third stream income'!R54,'4d Third stream income'!R55) -> 37582631.71 | S6: 388977695.5
A7: Total income (Scenario) - Current | B7: 57106939 | C7: =SUM(C2:C6) -> 63608760.08 | D7: 62615790.39 | E7: 66237952.96 | F7: 70077410.99 | G7: 74147875.21 | H7: 78463975.03 | I7: 83041323.89 | J7: 87896589.59 | K7: 93047569.91 | L7: 98513273.88 | M7: 104314009.2 | N7: 110471476.5 | O7: 117008870.1 | P7: 123950987.7 | Q7: 131324347 | R7: 139157312 | S7: 1440268764
A8: Total expenditure (Scenario) - Current | B8: 52860096 | C8: ='5m. Current spending summary'!D160 -> 57126401.9 | D8: ='5m. Current spending summary'!E160+'5g. Residences spending'!H4 -> 63411240.05 | E8: ='5m. Current spending summary'!F160+'5g. Residences spending'!I4 -> 66930154.92 | F8: ='5m. Current spending summary'!G160+'5g. Residences spending'!J4 -> 70664863.03 | G8: ='5m. Current spending summary'!H160+'5g. Residences spending'!K4 -> 74628921.19 | H8: ='5m. Current spending summary'!I160+'5g. Residences spending'!L4 -> 78836715.52 | I8: ='5m. Current spending summary'!J160+'5g. Residences spending'!M4 -> 83303508.53 | J8: ='5m. Current spending summary'!K160+'5g. Residences spending'!N4 -> 88045488.41 | K8: ='5m. Current spending summary'!L160+'5g. Residences spending'!O4 -> 93079820.59 | L8: ='5m. Current spending summary'!M160+'5g. Residences spending'!P4 -> 98424701.76 | M8: ='5m. Current spending summary'!N160+'5g. Residences spending'!Q4 -> 104099416.2 | N8: ='5m. Current spending summary'!O160+'5g. Residences spending'!R4 -> 110124394.6 | O8: ='5m. Current spending summary'!P160+'5g. Residences spending'!S4 -> 116564493.7 | P8: ='5m. Current spending summary'!Q160+'5g. Residences spending'!T4 -> 123359644.2 | Q8: ='5m. Current spending summary'!R160+'5g. Residences spending'!U4 -> 130574131.5 | R8: ='5m. Current spending summary'!S160+'5g. Residences spending'!V4 -> 138221270.2 | S8: 1440268764
A9: Shortfall | B9: =B7-B8 -> 4246843 | C9: 6482358.181 | D9: -795449.6608 | E9: -692201.9523 | F9: -587452.0464 | G9: -481045.9818 | H9: -372740.4929 | I9: -262184.6451 | J9: -148898.8131 | K9: -32250.67799 | L9: 88572.11426 | M9: 214593.0309 | N9: 347081.9074 | O9: 444376.4133 | P9: 591343.5137 | Q9: 750215.5063 | R9: 936041.7844 | S9: -5.125999451e-05
A11: Infrastructure and Efficiency earmarked grant | C11: =IF('2a. Funding dashboard'!#REF!=List!$S$2,'4a. Government grants'!C36,IF('2a. Funding dashboard'!#REF!=List!$S$3,'4a. Government grants'!C37,'4a. Government grants'!C38)) ->  | D11: =IF('2a. Funding dashboard'!J6=List!$S$2,'4a. Government grants'!D36,IF('2a. Funding dashboard'!J6=List!$S$3,'4a. Government grants'!D37,'4a. Government grants'!D38)) -> 2422013 | E11: =IF('2a. Funding dashboard'!K6=List!$S$2,'4a. Government grants'!E36,IF('2a. Funding dashboard'!K6=List!$S$3,'4a. Government grants'!E37,'4a. Government grants'!E38)) -> 2610930.014 | F11: =IF('2a. Funding dashboard'!L6=List!$S$2,'4a. Government grants'!F36,IF('2a. Funding dashboard'!L6=List!$S$3,'4a. Government grants'!F37,'4a. Government grants'!F38)) -> 2814582.555 | G11: =IF('2a. Funding dashboard'!M6=List!$S$2,'4a. Government grants'!G36,IF('2a. Funding dashboard'!M6=List!$S$3,'4a. Government grants'!G37,'4a. Government grants'!G38)) -> 3034119.994 | H11: =IF('2a. Funding dashboard'!N6=List!$S$2,'4a. Government grants'!H36,IF('2a. Funding dashboard'!N6=List!$S$3,'4a. Government grants'!H37,'4a. Government grants'!H38)) -> 3270781.354 | I11: =IF('2a. Funding dashboard'!O6=List!$S$2,'4a. Government grants'!I36,IF('2a. Funding dashboard'!O6=List!$S$3,'4a. Government grants'!I37,'4a. Government grants'!I38)) -> 3525902.3 | J11: =IF('2a. Funding dashboard'!P6=List!$S$2,'4a. Government grants'!J36,IF('2a. Funding dashboard'!P6=List!$S$3,'4a. Government grants'!J37,'4a. Government grants'!J38)) -> 3800922.679 | K11: =IF('2a. Funding dashboard'!Q6=List!$S$2,'4a. Government grants'!K36,IF('2a. Funding dashboard'!Q6=List!$S$3,'4a. Government grants'!K37,'4a. Government grants'!K38)) -> 4097394.648 | L11: =IF('2a. Funding dashboard'!R6=List!$S$2,'4a. Government grants'!L36,IF('2a. Funding dashboard'!R6=List!$S$3,'4a. Government grants'!L37,'4a. Government grants'!L38)) -> 4416991.43 | M11: =IF('2a. Funding dashboard'!S6=List!$S$2,'4a. Government grants'!M36,IF('2a. Funding dashboard'!S6=List!$S$3,'4a. Government grants'!M37,'4a. Government grants'!M38)) -> 4761516.762 | N11: =IF('2a. Funding dashboard'!T6=List!$S$2,'4a. Government grants'!N36,IF('2a. Funding dashboard'!T6=List!$S$3,'4a. Government grants'!N37,'4a. Government grants'!N38)) -> 5132915.069 | O11: =IF('2a. Funding dashboard'!U6=List!$S$2,'4a. Government grants'!O36,IF('2a. Funding dashboard'!U6=List!$S$3,'4a. Government grants'!O37,'4a. Government grants'!O38)) -> 5533282.445 | P11: =IF('2a. Funding dashboard'!V6=List!$S$2,'4a. Government grants'!P36,IF('2a. Funding dashboard'!V6=List!$S$3,'4a. Government grants'!P37,'4a. Government grants'!P38)) -> 5964878.476 | Q11: =IF('2a. Funding dashboard'!W6=List!$S$2,'4a. Government grants'!Q36,IF('2a. Funding dashboard'!W6=List!$S$3,'4a. Government grants'!Q37,'4a. Government grants'!Q38)) -> 6430138.997 | R11: =IF('2a. Funding dashboard'!X6=List!$S$2,'4a. Government grants'!R36,IF('2a. Funding dashboard'!X6=List!$S$3,'4a. Government grants'!R37,'4a. Government grants'!R38)) -> 6931689.838 | S11: =SUM(D11:R11) -> 64748059.56
A12: Infrastructure expenditure requirement - Universities | C12: ='5f. Infrastructure'!G10 -> 1870166.231 | D12: =IF('5f. Infrastructure'!H10<0,0,'5f. Infrastructure'!H10) -> 0 | E12: =IF('5f. Infrastructure'!I10<0,0,'5f. Infrastructure'!I10) -> 0 | F12: =IF('5f. Infrastructure'!J10<0,0,'5f. Infrastructure'!J10) -> 0 | G12: =IF('5f. Infrastructure'!K10<0,0,'5f. Infrastructure'!K10) -> 0 | H12: =IF('5f. Infrastructure'!L10<0,0,'5f. Infrastructure'!L10) -> 0 | I12: =IF('5f. Infrastructure'!M10<0,0,'5f. Infrastructure'!M10) -> 0 | J12: =IF('5f. Infrastructure'!N10<0,0,'5f. Infrastructure'!N10) -> 0 | K12: =IF('5f. Infrastructure'!O10<0,0,'5f. Infrastructure'!O10) -> 0 | L12: =IF('5f. Infrastructure'!P10<0,0,'5f. Infrastructure'!P10) -> 0 | M12: =IF('5f. Infrastructure'!Q10<0,0,'5f. Infrastructure'!Q10) -> 0 | N12: =IF('5f. Infrastructure'!R10<0,0,'5f. Infrastructure'!R10) -> 0 | O12: =IF('5f. Infrastructure'!S10<0,0,'5f. Infrastructure'!S10) -> 0 | P12: =IF('5f. Infrastructure'!T10<0,0,'5f. Infrastructure'!T10) -> 0 | Q12: =IF('5f. Infrastructure'!U10<0,0,'5f. Infrastructure'!U10) -> 0 | R12: =IF('5f. Infrastructure'!V10<0,0,'5f. Infrastructure'!V10) -> 0
A13: Infrastructure expenditure requirement - Residences | C13: ='5g. Residences spending'!G8 -> 180941.5 | D13: =IF('5g. Residences spending'!H8<0,0,'5g. Residences spending'!H8) -> 192159.873 | E13: =IF('5g. Residences spending'!I8<0,0,'5g. Residences spending'!I8) -> 204073.7851 | F13: =IF('5g. Residences spending'!J8<0,0,'5g. Residences spending'!J8) -> 216726.3598 | G13: =IF('5g. Residences spending'!K8<0,0,'5g. Residences spending'!K8) -> 230163.3941 | H13: =IF('5g. Residences spending'!L8<0,0,'5g. Residences spending'!L8) -> 244433.5245 | I13: =IF('5g. Residences spending'!M8<0,0,'5g. Residences spending'!M8) -> 259588.403 | J13: =IF('5g. Residences spending'!N8<0,0,'5g. Residences spending'!N8) -> 275682.884 | K13: =IF('5g. Residences spending'!O8<0,0,'5g. Residences spending'!O8) -> 292775.2228 | L13: =IF('5g. Residences spending'!P8<0,0,'5g. Residences spending'!P8) -> 310927.2866 | M13: =IF('5g. Residences spending'!Q8<0,0,'5g. Residences spending'!Q8) -> 330204.7784 | N13: =IF('5g. Residences spending'!R8<0,0,'5g. Residences spending'!R8) -> 350677.4747 | O13: =IF('5g. Residences spending'!S8<0,0,'5g. Residences spending'!S8) -> 372419.4781 | P13: =IF('5g. Residences spending'!T8<0,0,'5g. Residences spending'!T8) -> 395509.4858 | Q13: =IF('5g. Residences spending'!U8<0,0,'5g. Residences spending'!U8) -> 420031.0739 | R13: =IF('5g. Residences spending'!V8<0,0,'5g. Residences spending'!V8) -> 446073.0005
A14: Infrastructure expenditure requirement - Universities (t+2) | D14: =SUM(C12:F12) -> 1870166.231 | E14: =G12 -> 0 | F14: 0 | G14: 0 | H14: 0 | I14: 0 | J14: 0 | K14: 0 | L14: 0 | M14: 0 | N14: 0 | O14: 0 | P14: 0 | Q14: 0 | R14: 0
A15: Infrastructure expenditure requirement - Residences (t+2) | D15: =SUM(C13:F13) -> 793901.5178 | E15: =G13 -> 230163.3941 | F15: 244433.5245 | G15: 259588.403 | H15: 275682.884 | I15: 292775.2228 | J15: 310927.2866 | K15: 330204.7784 | L15: 350677.4747 | M15: 372419.4781 | N15: 395509.4858 | O15: 420031.0739 | P15: 446073.0005 | Q15: 0 | R15: 0
A16: Total infrastructure expenditure requirement | D16: =SUM(D14:D15) -> 2664067.749 | E16: 230163.3941 | F16: 244433.5245 | G16: 259588.403 | H16: 275682.884 | I16: 292775.2228 | J16: 310927.2866 | K16: 330204.7784 | L16: 350677.4747 | M16: 372419.4781 | N16: 395509.4858 | O16: 420031.0739 | P16: 446073.0005
B18: 2014 | C18: 2015 | D18: 2016 | E18: 2017 | F18: 2018 | G18: 2019 | H18: 2020 | I18: 2021 | J18: 2022 | K18: 2023 | L18: 2024 | M18: 2025 | N18: 2026 | O18: 2027 | P18: 2028 | Q18: 2029 | R18: 2030 | S18: 2016 - 2030
A19: Total income - Current | B19: 57106939 | C19: =C7 -> 63608760.08 | D19: =D7 -> 62615790.39 | E19: =E7 -> 66237952.96 | F19: 70077410.99 | G19: 74147875.21 | H19: 78463975.03 | I19: 83041323.89 | J19: 87896589.59 | K19: 93047569.91 | L19: 98513273.88 | M19: 104314009.2 | N19: 110471476.5 | O19: 117008870.1 | P19: 123950987.7 | Q19: 131324347 | R19: 139157312 | S19: =SUM(D19:R19) -> 1440268764
A20: Infrastructure and Efficiency earmarked grant | D20: =D11 -> 2422013 | E20: =E11 -> 2610930.014 | F20: 2814582.555 | G20: 3034119.994 | H20: 3270781.354 | I20: 3525902.3 | J20: 3800922.679 | K20: 4097394.648 | L20: 4416991.43 | M20: 4761516.762 | N20: 5132915.069 | O20: 5533282.445 | P20: 5964878.476 | Q20: 6430138.997 | R20: 6931689.838 | S20: =SUM(D20:R20) -> 64748059.56
A21: Total income incl. Infrastructure | D21: =SUM(D18:D20) -> 65039819.39 | E21: =SUM(E18:E20) -> 68850899.98 | F21: 72894011.54 | G21: 77184014.2 | H21: 81736776.38 | I21: 86569247.19 | J21: 91699534.27 | K21: 97146987.56 | L21: 102932289.3 | M21: 109077551 | N21: 115606417.5 | O21: 122544179.6 | P21: 129917894.2 | Q21: 137756515 | R21: 146091031.8 | S21: 1505047169
A22: Total expenditure - Current | B22: 52860096 | C22: =C8 -> 57126401.9 | D22: =D8 -> 63411240.05 | E22: =E8 -> 66930154.92 | F22: 70664863.03 | G22: 74628921.19 | H22: 78836715.52 | I22: 83303508.53 | J22: 88045488.41 | K22: 93079820.59 | L22: 98424701.76 | M22: 104099416.2 | N22: 110124394.6 | O22: 116564493.7 | P22: 123359644.2 | Q22: 130574131.5 | R22: 138221270.2 | S22: 1440268764
A23: Total infrastructure expenditure requirement | D23: =D16 -> 2664067.749 | E23: =E16 -> 230163.3941 | F23: 244433.5245 | G23: 259588.403 | H23: 275682.884 | I23: 292775.2228 | J23: 310927.2866 | K23: 330204.7784 | L23: 350677.4747 | M23: 372419.4781 | N23: 395509.4858 | O23: 420031.0739 | P23: 446073.0005 | Q23: 0 | R23: 0 | S23: 6592553.755
A24: Total expenditure incl infrastructure | D24: =SUM(D22:D23) -> 66075307.8 | E24: =SUM(E22:E23) -> 67160318.31 | F24: 70909296.56 | G24: 74888509.6 | H24: 79112398.4 | I24: 83596283.75 | J24: 88356415.69 | K24: 93410025.37 | L24: 98775379.24 | M24: 104471835.7 | N24: 110519904 | O24: 116984524.8 | P24: 123805717.2 | Q24: 130574131.5 | R24: 138221270.2 | S24: 1446861318
A25: Total surplus (+) / shortfall (-) - excl. Infrastructure | B25: =B19-B22 -> 4246843 | C25: 6482358.181 | D25: =D19-D22 -> -795449.6608 | E25: =E19-E22 -> -692201.9523 | F25: -587452.0464 | G25: -481045.9818 | H25: -372740.4929 | I25: -262184.6451 | J25: -148898.8131 | K25: -32250.67799 | L25: 88572.11426 | M25: 214593.0309 | N25: 347081.9074 | O25: 444376.4133 | P25: 591343.5137 | Q25: 750215.5063 | R25: 936041.7844 | S25: -5.123764277e-05
A26: Total surplus (+) / shortfall (-) - incl. Infrastructure | D26: =D19+D20-D22-D23 -> -1037504.409 | E26: =E19+E20-E22-E23 -> 1688564.668 | F26: 1982696.984 | G26: 2293485.61 | H26: 2622357.977 | I26: 2970942.432 | J26: 3341096.579 | K26: 3734939.191 | L26: 4154886.07 | M26: 4603690.315 | N26: 5084487.491 | O26: 5557627.784 | P26: 6110148.989 | Q26: 7180354.503 | R26: 7867731.623 | S26: 58155505.81
A27: GDP | B27: ='4e. GDP projection'!B2 -> 3843778062 | C27: ='4e. GDP projection'!C2 -> 4193561866 | D27: ='4e. GDP projection'!D2 -> 4575175996 | E27: ='4e. GDP projection'!E2 -> 4991517011 | F27: ='4e. GDP projection'!F2 -> 5445745059 | G27: ='4e. GDP projection'!G2 -> 5941307860 | H27: ='4e. GDP projection'!H2 -> 6481966875 | I27: ='4e. GDP projection'!I2 -> 7071825860 | J27: ='4e. GDP projection'!J2 -> 7715362014 | K27: ='4e. GDP projection'!K2 -> 8417459957 | L27: ='4e. GDP projection'!L2 -> 9183448813 | M27: ='4e. GDP projection'!M2 -> 1.001914266e+10 | N27: ='4e. GDP projection'!N2 -> 1.093088464e+10 | O27: ='4e. GDP projection'!O2 -> 1.192559514e+10 | P27: ='4e. GDP projection'!P2 -> 1.30108243e+10 | Q27: ='4e. GDP projection'!Q2 -> 1.419480931e+10 | R27: ='4e. GDP projection'!R2 -> 1.548653695e+10
A28: Expenditure as % of GDP | D28: =D22/D27 -> 0.01385984717 | E28: =E22/E27 -> 0.01340878029 | F28: 0.0129761607 | G28: 0.01256102578 | H28: 0.01216246813 | I28: 0.01177963233 | J28: 0.01141171189 | K28: 0.01105794635 | L28: 0.01071761859 | M28: 0.0103900523 | N28: 0.01007460953 | O28: 0.009774312508 | P28: 0.009481308903 | Q28: 0.009198723889 | R28: 0.008925253634
I29: 2016-2020 | J29: 2021-2025 | K29: 2026-2030
H30: Infrastructure expenditure requirement - Universities | I30: =SUM(D12:H12) -> 0 | J30: =SUM(I12:M12) -> 0 | K30: =SUM(N12:R12) -> 0
H31: Infrastructure expenditure requirement - Residences | I31: =SUM(D13:H13) -> 1087556.936 | J31: =SUM(I13:M13) -> 1469178.575 | K31: =SUM(N13:R13) -> 1984710.513
H32: Total infrastructure expenditure requirement | I32: =SUM(I30:I31) -> 1087556.936 | J32: =SUM(J30:J31) -> 1469178.575 | K32: =SUM(K30:K31) -> 1984710.513
T35: 2087658564
T36: 1921962272
B64: 2014 | C64: 2015 | D64: 2016 | E64: 2017 | F64: 2018 | G64: 2019 | H64: 2020 | I64: 2021 | J64: 2022 | K64: 2023 | L64: 2024 | M64: 2025 | N64: 2026 | O64: 2027 | P64: 2028 | Q64: 2029 | R64: 2030 | S64: 2016 - 2030
A65: Total income (Status quo) - Current | B65: 57751963 | C65: 62090038.79 | D65: 66776420.34 | E65: 71500136.49 | F65: 77978801.31 | G65: 85019252.21 | H65: 92669275.02 | I65: 100980697 | J65: 110009729.6 | K65: 119817339.9 | L65: 130469654.4 | M65: 142038396.8 | N65: 154601363.5 | O65: 168242939.6 | P65: 183054659 | Q65: 199135813.2 | R65: 216594110.8 | S65: 235546395.3
A66: Total expenditure (Status quo) | B66: 52920000 | D66: 69332099.79 | E66: 76447508.19 | F66: 84266219.82 | G66: 92856075.82 | H66: 102291355.4 | I66: 112653380.2 | J66: 124031174.8 | K66: 136522189.3 | L66: 150233088.5 | M66: 165280614.7 | N66: 181792531.5 | O66: 199951873.1 | P66: 219828655 | Q66: 241630320.6 | R66: 265533495.5 | S66: 229749037
H69: 2016-2020 | I69: 2021-2025 | J69: 2026-2030
G70: Infrastructure expenditure requirement - Universities | H70: 5296238.385 | I70: 7711781.572 | J70: 10417830.9
G71: Infrastructure expenditure requirement - Residences | H71: 6743728.156 | I71: 9110089.403 | J71: 12306802.26
G72: Total infrastructure expenditure requirement (Status quo) | H72: 12039966.54 | I72: 16821870.97 | J72: 22724633.16

Sheet 3b. Graduates
A1: Level of qualification | B1: Funding group | C1: 2030 Expenditure per FTE ('000) | D1: 2030 Expenditure per graduate ('000) | E1: Number of graduates (2030)
A2: Undergraduate - contact | B2: FG 1 | C2: ='Per grad exp'!D39 -> 161.2867429 | D2: ='Per grad exp'!J39 -> 473.2692716 | E2: ='5a. Headount'!V162 -> 9786.031617
B3: FG 2 | C3: ='Per grad exp'!D40 -> 241.9301143 | D3: ='Per grad exp'!J40 -> 709.9039074 | E3: ='5a. Headount'!V163 -> 13772.93339
B4: FG 3 | C4: ='Per grad exp'!D41 -> 403.2168572 | D4: ='Per grad exp'!J41 -> 1183.173179 | E4: ='5a. Headount'!V164 -> 5436.684232
B5: FG 4 | C5: ='Per grad exp'!D42 -> 564.5036001 | D5: ='Per grad exp'!J42 -> 1656.442451 | E5: ='5a. Headount'!V165 -> 7248.912309
A6: Undergraduate - distance | B6: FG 1 | C6: ='Per grad exp'!D35 -> 80.64337144 | D6: ='Per grad exp'!J35 -> 950.428095 | E6: ='5a. Headount'!V166 -> 3326.400975
B7: FG 2 | C7: ='Per grad exp'!D36 -> 120.9650572 | D7: ='Per grad exp'!J36 -> 1425.642142 | E7: ='5a. Headount'!V167 -> 4681.601372
B8: FG 3 | C8: ='Per grad exp'!D37 -> 201.6084286 | D8: ='Per grad exp'!J37 -> 2376.070237 | E8: ='5a. Headount'!V168 -> 1848.000542
B9: FG 4 | C9: ='Per grad exp'!D38 -> 282.2518 | D9: ='Per grad exp'!J38 -> 3326.498332 | E9: ='5a. Headount'!V169 -> 2464.000722
A10: Post-graduate to Masters level | B10: FG 1 | C10: ='Per grad exp'!D43 -> 322.5734858 | D10: ='Per grad exp'!J43 -> 304.765808 | E10: ='5a. Headount'!V170 -> 14497.98081
B11: FG 2 | C11: ='Per grad exp'!D44 -> 483.8602287 | D11: ='Per grad exp'!J44 -> 457.1487119 | E11: ='5a. Headount'!V171 -> 20404.56558
B12: FG 3 | C12: ='Per grad exp'!D45 -> 806.4337144 | D12: ='Per grad exp'!J45 -> 761.9145199 | E12: ='5a. Headount'!V172 -> 8054.433781
B13: FG 4 | C13: ='Per grad exp'!D46 -> 1129.0072 | D13: ='Per grad exp'!J46 -> 1066.680328 | E13: ='5a. Headount'!V173 -> 10739.24504
A14: Masters | B14: FG 1 | C14: ='Per grad exp'!D47 -> 483.8602287 | D14: ='Per grad exp'!J47 -> 617.3245999 | E14: ='5a. Headount'!V174 -> 3578.740289
B15: FG 2 | C15: ='Per grad exp'!D48 -> 725.790343 | D15: ='Per grad exp'!J48 -> 925.9868998 | E15: ='5a. Headount'!V175 -> 5036.745592
B16: FG 3 | C16: ='Per grad exp'!D49 -> 1209.650572 | D16: ='Per grad exp'!J49 -> 1543.3115 | E16: ='5a. Headount'!V176 -> 1988.18905
B17: FG 4 | C17: ='Per grad exp'!D50 -> 1693.5108 | D17: ='Per grad exp'!J50 -> 2160.6361 | E17: ='5a. Headount'!V177 -> 2650.918733
A18: Doctorates | B18: FG 1 | C18: ='Per grad exp'!D51 -> 645.1469715 | D18: ='Per grad exp'!J51 -> 1674.281401 | E18: ='5a. Headount'!V178 -> 1759.357311
B19: FG 2 | C19: ='Per grad exp'!D52 -> 967.7204573 | D19: ='Per grad exp'!J52 -> 2511.422101 | E19: ='5a. Headount'!V179 -> 2476.132512
B20: FG 3 | C20: ='Per grad exp'!D53 -> 1612.867429 | D20: ='Per grad exp'!J53 -> 4185.703502 | E20: ='5a. Headount'!V180 -> 977.4207283
B21: FG 4 | C21: ='Per grad exp'!D54 -> 2258.0144 | D21: ='Per grad exp'!J54 -> 5859.984902 | E21: ='5a. Headount'!V181 -> 1303.227638
A23: Funding Group description | B23: FG 1 | C23: FG 2 | D23: FG 3 | E23: FG 4 | AB23: Undergraduate | AC23: =SUM(E9:E12) -> 45420.98089
A24: CESM Categories | B24: 07 education 12 law 18 psychology 19 public administration and services | C24: 04 business economics & management studies 05 communication & journalism 06 computer & information sciences 11 languages linguistics & literature 17 philosophy religion and theology 20 social sciences | D24: 02 architecture & the built environment 08 engineering 10 family ecology & consumer sciences 15 mathematics & statistics | E24: 01 agriculture & agricultural operations 03 visual and performing arts 09 health professions & related clinical sciences 13 life sciences 14 physical sciences 16 military sciences | AB24: Post-graduate to Masters level | AC24: =SUM(E10:E13) -> 53696.22521
AB25: Masters | AC25: =SUM(E14:E17) -> 13254.59366
AB26: Doctorates | AC26: =SUM(E18:E21) -> 6516.138189
AB28: Number of graduates by funding group
AB29: Funding group 1 | AC29: =SUM(E2,E6,E10,E14,E18) -> 32948.511
AB30: Funding group 2 | AC30: =SUM(E3,E7,E11,E15,E19) -> 46371.97844
AB31: Funding group 3 | AC31: =SUM(E4,E8,E12,E16,E20) -> 18304.72833
AB32: Funding group 4 | AC32: =SUM(E5,E9,E13,E17,E21) -> 24406.30444

Sheet 3c. Current performance
A1: Throughput rates | B1: Regulation time | C1: 6 years
A2: Undergraduate - Contact | B2: 0.17 | C2: 0.61
A3: Undergraduate - Distance | B3: 0.02 | C3: 0.04
A4: Postgraduate diplomas, certificates and honours | B4: 0.43 | C4: 0.76
A5: Masters | B5: 0.07 | C5: 0.55
A6: Doctorates | B6: 0.03 | C6: 0.48
A8: Variables that could affect throughput rate | B8: Dashboard parameter
A9: Number of students per lecturers | B9: TIUs:Academic staff ratio (excl. UNISA)
A10: Quality of lecturers | B10: Percentage PHD (Weak approximation)
A11: Improving living conditions | B11: Bed capacity as % of FTE enrolment in 2030
A12: Greater levels of student support | B12: To be partly addressed in NSFAS model
A13: Foundation or bridging programmes | B13: Not modelled
A14: General student perfomance in Matric | B14: Beyond university control
A15: Maths and english scores in Matric | B15: Beyond university control
A16: Having english as a first home language | B16: Beyond university control

Sheet 4a. Government grants
A1: BLOCK GRANT | B1: 2014 | E1: 2015 | H1: 2016 | K1: 2017 | N1: 2018 | Q1: 2019 | T1: 2020 | W1: 2021 | Z1: 2022 | AC1: 2023 | AF1: 2024 | AI1: 2025 | AL1: 2026 | AO1: 2027 | AR1: 2028 | AU1: 2029 | AX1: 2030 | BA1: 2016 - 2030
A2: COMPONENT | B2: FUNDING UNITS | C2: RAND VALUE | D2: ALLOCATION (R*000) | E2: FUNDING UNITS | F2: RAND VALUE | G2: ALLOCATION (R*000) | H2: FUNDING UNITS | I2: RAND VALUE | J2: ALLOCATION (R*000) | K2: FUNDING UNITS | L2: RAND VALUE | M2: ALLOCATION (R*000) | N2: FUNDING UNITS | O2: RAND VALUE | P2: ALLOCATION (R*000) | Q2: FUNDING UNITS | R2: RAND VALUE | S2: ALLOCATION (R*000) | T2: FUNDING UNITS | U2: RAND VALUE | V2: ALLOCATION (R*000) | W2: FUNDING UNITS | X2: RAND VALUE | Y2: ALLOCATION (R*000) | Z2: FUNDING UNITS | AA2: RAND VALUE | AB2: ALLOCATION (R*000) | AC2: FUNDING UNITS | AD2: RAND VALUE | AE2: ALLOCATION (R*000) | AF2: FUNDING UNITS | AG2: RAND VALUE | AH2: ALLOCATION (R*000) | AI2: FUNDING UNITS | AJ2: RAND VALUE | AK2: ALLOCATION (R*000) | AL2: FUNDING UNITS | AM2: RAND VALUE | AN2: ALLOCATION (R*000) | AO2: FUNDING UNITS | AP2: RAND VALUE | AQ2: ALLOCATION (R*000) | AR2: FUNDING UNITS | AS2: RAND VALUE | AT2: ALLOCATION (R*000) | AU2: FUNDING UNITS | AV2: RAND VALUE | AW2: ALLOCATION (R*000) | AX2: FUNDING UNITS | AY2: RAND VALUE | AZ2: ALLOCATION (R*000)
A3: Teaching Input Grant | B3: 1224506.717 | C3: 10382.35709 | D3: 12713266 | E3: 1275724.567 | F3: 10301.21967 | G3: 13141519 | H3: 1376234.057 | I3: =J3/H3*1000 -> 9993.605327 | J3: 13753540 | K3: 1409350.359 | L3: =M3/K3*1000 -> 11045.38362 | M3: =$G$13*M7 -> 15566815.37 | N3: 1443040.052 | O3: =P3/N3*1000 -> 12106.54454 | P3: =$G$13*P7 -> 17470228.66 | Q3: 1476541.956 | R3: =S3/Q3*1000 -> 13278.57933 | S3: =$G$13*S7 -> 19606379.49 | T3: 1536700.219 | U3: =V3/T3*1000 -> 14318.81462 | V3: =$G$13*V7 -> 22003725.55 | W3: 1596858.481 | X3: =Y3/W3*1000 -> 15464.24086 | Y3: =$G$13*Y7 -> 24694204.16 | Z3: 1657016.743 | AA3: =AB3/Z3*1000 -> 16725.03182 | AB3: =$G$13*AB7 -> 27713657.75 | AC3: 1717175.005 | AD3: =AE3/AC3*1000 -> 18112.4878 | AE3: =$G$13*AE7 -> 31102311.34 | AF3: 1777333.268 | AG3: =AH3/AF3*1000 -> 19639.14648 | AH3: =$G$13*AH7 -> 34905308.39 | AI3: 1837491.53 | AJ3: =AK3/AI3*1000 -> 21318.90766 | AK3: =$G$13*AK7 -> 39173312.26 | AL3: 1897649.792 | AM3: =AN3/AL3*1000 -> 23167.17302 | AN3: =$G$13*AN7 -> 43963181.07 | AO3: 1957808.054 | AP3: =AQ3/AO3*1000 -> 25201.00227 | AQ3: =$G$13*AQ7 -> 49338725.23 | AR3: 2017966.317 | AS3: =AT3/AR3*1000 -> 27439.28728 | AT3: =$G$13*AT7 -> 55371557.47 | AU3: 2078124.579 | AV3: =AW3/AU3*1000 -> 29902.94592 | AW3: =$G$13*AW7 -> 62142046.9 | AX3: 2138282.841 | AY3: =AZ3/AX3*1000 -> 32615.13785 | AZ3: =$G$13*AZ7 -> 69740389.63
A4: Teaching Output Grant | B4: 149138.481 | C4: 19944.3831 | D4: 2974475 | E4: 163568.896 | F4: 19644.9391 | G4: 3213301 | H4: 179131.6711 | I4: =J4/H4*1000 -> 19605.78483 | J4: 3512017 | K4: 184638.8922 | L4: =M4/K4*1000 -> 20614.95687 | M4: =$G$14*M7 -> 3806322.799 | N4: 190513.3438 | O4: =P4/N4*1000 -> 22422.24181 | P4: =$G$14*P7 -> 4271736.261 | Q4: 196783.2892 | R4: =S4/Q4*1000 -> 24362.11735 | S4: =$G$14*S7 -> 4794057.584 | T4: 204309.7914 | U4: =V4/T4*1000 -> 26333.76047 | V4: =$G$14*V7 -> 5380245.108 | W4: 210047.4954 | X4: =Y4/W4*1000 -> 28746.39368 | Y4: =$G$14*Y7 -> 6038107.994 | Z4: 215604.1148 | AA4: =AB4/Z4*1000 -> 31429.87446 | AB4: =$G$14*AB7 -> 6776410.259 | AC4: 221308.5199 | AD4: =AE4/AC4*1000 -> 34363.7359 | AE4: =$G$14*AE7 -> 7604987.53 | AF4: 227164.0795 | AG4: =AH4/AF4*1000 -> 37571.42456 | AH4: =$G$14*AH7 -> 8534878.073 | AI4: 233175.7641 | AJ4: =AK4/AI4*1000 -> 41078.3251 | AK4: =$G$14*AK7 -> 9578469.844 | AL4: 239346.744 | AM4: =AN4/AL4*1000 -> 44912.5204 | AN4: =$G$14*AN7 -> 10749665.52 | AO4: 245681.8024 | AP4: =AQ4/AO4*1000 -> 49104.4416 | AQ4: =$G$14*AQ7 -> 12064067.72 | AR4: 252186.3393 | AS4: =AT4/AR4*1000 -> 53687.2333 | AT4: =$G$14*AT7 -> 13539186.83 | AU4: 258862.8745 | AV4: =AW4/AU4*1000 -> 58697.77333 | AW4: =$G$14*AW7 -> 15194674.33 | AX4: 265717.5511 | AY4: =AZ4/AX4*1000 -> 64175.60478 | AZ4: =$G$14*AZ7 -> 17052584.54
A5: Research Output Grant | B5: 24076.852 | C5: 115052.4579 | D5: 2770101 | E5: 26621.879 | F5: 113183.9342 | G5: 3013169 | H5: 31240.65521 | I5: =J5/H5*1000 -> 102009.0961 | J5: 3186831 | K5: 32355.22084 | L5: =M5/K5*1000 -> 110314.6851 | M5: =$G$15*M7 -> 3569255.997 | N5: 33518.5733 | O5: =P5/N5*1000 -> 119506.3516 | P5: =$G$15*P7 -> 4005682.405 | Q5: 34732.01849 | R5: =S5/Q5*1000 -> 129433.0855 | S5: =$G$15*S7 -> 4495472.319 | T5: 36056.66438 | U5: =V5/T5*1000 -> 139922.8348 | V5: =$G$15*V7 -> 5045150.695 | W5: 37483.74881 | X5: =Y5/W5*1000 -> 151053.2031 | Y5: =$G$15*Y7 -> 5662040.321 | Z5: 38957.60556 | AA5: =AB5/Z5*1000 -> 163109.5977 | AB5: =$G$15*AB7 -> 6354359.372 | AC5: 40492.80189 | AD5: =AE5/AC5*1000 -> 176113.545 | AE5: =$G$15*AE7 -> 7131330.887 | AF5: 42092.02207 | AG5: =AH5/AF5*1000 -> 190138.3029 | AH5: =$G$15*AH7 -> 8003305.644 | AI5: 43770.07298 | AJ5: =AK5/AI5*1000 -> 205206.4215 | AK5: =$G$15*AK7 -> 8981900.047 | AL5: 45505.88989 | AM5: =AN5/AL5*1000 -> 221513.1032 | AN5: =$G$15*AN7 -> 10080150.88 | AO5: 47314.5425 | AP5: =AQ5/AO5*1000 -> 239095.3901 | AQ5: =$G$15*AQ7 -> 11312688.99 | AR5: 49199.24138 | AS5: =AT5/AR5*1000 -> 258051.4219 | AT5: =$G$15*AT7 -> 12695934.2 | AU5: 51163.34462 | AV5: =AW5/AU5*1000 -> 278486.7588 | AW5: =$G$15*AW7 -> 14248314.01 | AX5: 53210.36484 | AY5: =AZ5/AX5*1000 -> 300514.932 | AZ5: =$G$15*AZ7 -> 15990509.17
A6: Institutional Grant | B6: 99462.413 | C6: 11093.55752 | D6: 1103392 | E6: 108950.303 | F6: 10742.25558 | G6: 1170372 | H6: 115951.8865 | I6: =J6/H6*1000 -> 10570.85 | J6: 1225710 | K6: 118647.4652 | L6: =M6/K6*1000 -> 11684.75648 | M6: =$G$16*M7 -> 1386366.739 | N6: 121618.1267 | O6: =P6/N6*1000 -> 12793.18369 | P6: =$G$16*P7 -> 1555883.035 | Q6: 124182.5325 | R6: =S6/Q6*1000 -> 14060.96892 | S6: =$G$16*S7 -> 1746126.729 | T6: 126297.6221 | U6: =V6/T6*1000 -> 15515.98679 | V6: =$G$16*V7 -> 1959632.237 | W6: 128538.9521 | X6: =Y6/W6*1000 -> 17109.55189 | Y6: =$G$16*Y7 -> 2199243.871 | Z6: 131468.6059 | AA6: =AB6/Z6*1000 -> 18773.71185 | AB6: =$G$16*AB7 -> 2468153.724 | AC6: 134584.3678 | AD6: =AE6/AC6*1000 -> 20581.47052 | AE6: =$G$16*AE7 -> 2769944.199 | AF6: 137643.5188 | AG6: =AH6/AF6*1000 -> 22584.68661 | AH6: =$G$16*AH7 -> 3108635.736 | AI6: 140650.7203 | AJ6: =AK6/AI6*1000 -> 24804.28368 | AK6: =$G$16*AK7 -> 3488740.366 | AL6: 143601.8629 | AM6: =AN6/AL6*1000 -> 27265.11861 | AN6: =$G$16*AN7 -> 3915321.825 | AO6: 146496.9597 | AP6: =AQ6/AO6*1000 -> 29994.22663 | AQ6: =$G$16*AQ7 -> 4394063.009 | AR6: 149448.0105 | AS6: =AT6/AR6*1000 -> 32997.03802 | AT6: =$G$16*AT7 -> 4931341.686 | AU6: 152836.078 | AV6: =AW6/AU6*1000 -> 36210.79215 | AW6: =$G$16*AW7 -> 5534315.455 | AX6: 156281.6397 | AY6: =AZ6/AX6*1000 -> 39742.46186 | AZ6: =$G$16*AZ7 -> 6211017.105
A7: Total Grant (User-defined) | D7: 19561234 | G7: 20538361 | J7: =SUM(J3:J6) -> 21678098 | M7: =J7*(1+$G$10) -> 24328760.9 | P7: =M7*(1+$G$10) -> 27303530.37 | S7: =P7*(1+$G$10) -> 30642036.13 | V7: =S7*(1+$G$10) -> 34388753.59 | Y7: =V7*(1+$G$10) -> 38593596.35 | AB7: =Y7*(1+$G$10) -> 43312581.11 | AE7: =AB7*(1+$G$10) -> 48608573.96 | AH7: =AE7*(1+$G$10) -> 54552127.85 | AK7: =AH7*(1+$G$10) -> 61222422.51 | AN7: =AK7*(1+$G$10) -> 68708319.3 | AQ7: =AN7*(1+$G$10) -> 77109544.95 | AT7: =AQ7*(1+$G$10) -> 86538020.19 | AW7: =AT7*(1+$G$10) -> 97119350.7 | AZ7: =AW7*(1+$G$10) -> 108994500.4 | BA7: =SUM(J7:AZ7) -> 823100216.3
A8: Total Grant (Projection) | G8: =SUM(G3:G6) -> 20538361 | J8: =SUM(J3:J6) -> 21678098 | M8: =J8*(1+$G$11) -> 23650804.92 | P8: =M8*(1+$G$11) -> 25803028.17 | S8: =P8*(1+$G$11) -> 28151103.73 | V8: =S8*(1+$G$11) -> 30712854.17 | Y8: =V8*(1+$G$11) -> 33507723.9 | AB8: =Y8*(1+$G$11) -> 36556926.77 | AE8: =AB8*(1+$G$11) -> 39883607.11 | AH8: =AE8*(1+$G$11) -> 43513015.35 | AK8: =AH8*(1+$G$11) -> 47472699.75 | AN8: =AK8*(1+$G$11) -> 51792715.43 | AQ8: =AN8*(1+$G$11) -> 56505852.53 | AT8: =AQ8*(1+$G$11) -> 61647885.11 | AW8: =AT8*(1+$G$11) -> 67257842.66 | AZ8: =AW8*(1+$G$11) -> 73378306.34 | BA8: =SUM(J8:AZ8) -> 641512463.9
A9: Total Grant (Historical) | G9: =SUM(G3:G6) -> 20538361 | J9: =SUM(J3:J6) -> 21678098 | M9: =J9*(1+$G$12) -> 23368989.64 | P9: =M9*(1+$G$12) -> 25191770.84 | S9: =P9*(1+$G$12) -> 27156728.96 | V9: =S9*(1+$G$12) -> 29274953.82 | Y9: =V9*(1+$G$12) -> 31558400.22 | AB9: =Y9*(1+$G$12) -> 34019955.44 | AE9: =AB9*(1+$G$12) -> 36673511.96 | AH9: =AE9*(1+$G$12) -> 39534045.89 | AK9: =AH9*(1+$G$12) -> 42617701.47 | AN9: =AK9*(1+$G$12) -> 45941882.19 | AQ9: =AN9*(1+$G$12) -> 49525349 | AT9: =AQ9*(1+$G$12) -> 53388326.22 | AW9: =AT9*(1+$G$12) -> 57552615.66 | AZ9: =AW9*(1+$G$12) -> 62041719.69 | BA9: 579524049
A10: User-defined | G10: ='2a. Funding dashboard'!J3+'2a. Funding dashboard'!K5 -> 0.1222737761
A11: Projection scenario (2.9% real) | G11: ='2a. Funding dashboard'!J3+2.9% -> 0.091
A12: Historical scenario (1.6% real) | G12: ='2a. Funding dashboard'!J3+1.6% -> 0.078
F13: Teaching Input Grant | G13: =G3/$G$7 -> 0.6398523719
F14: Teaching Output Grant | G14: =G4/$G$7 -> 0.1564536235
F15: Research Output Grant | G15: 0.1467093212
A16: Percentage allocated per component | F16: Institutional Grant | G16: 0.05698468344
A20: EARMARKED GRANTS | B20: 2014 | C20: 2015 | D20: 2016 | E20: 2017 | F20: 2018 | G20: 2019 | H20: 2020 | I20: 2021 | J20: 2022 | K20: 2023 | L20: 2024 | M20: 2025 | N20: 2026 | O20: 2027 | P20: 2028 | Q20: 2029 | R20: 2030 | S20: 2016 - 2030
B21: (R*000) | C21: (R*000) | D21: (R*000) | E21: (R*000) | F21: (R*000) | G21: (R*000) | H21: (R*000) | I21: (R*000) | J21: (R*000) | K21: (R*000) | L21: (R*000) | M21: (R*000) | N21: (R*000) | O21: (R*000) | P21: (R*000) | Q21: (R*000) | R21: (R*000)
A22: University Development Grant | B22: 796929 | C22: =199000+616900 -> 815900 | D22: =649596+209547 -> 859143
B23: 236560 | C23: 304470
A24: Foundation Provision | B24: 236560 | C24: 304470 | D24: 319956
A25: Clinical Training | B25: 410740 | C25: 429635 | D25: 452406
A26: Veterinary Science | B26: 136210 | C26: 141764 | D26: 149250
A27: Interest & Redemption | B27: 6757 | C27: 4447 | D27: 4209
A28: Institutions in NC & MP | B28: =159000+48143+500000 -> 707143 | C28: =1000000+201014+12000 -> 1213014 | D28: 1275165
A29: Other (Incl HDI Grant) | B29: =94720+4800 -> 99520 | C29: =44864+5000+10000+410743+23829 -> 494436 | D29: 473878
A30: Total Conditional grant (User-defined) | B30: =SUM(B22:B29) -> 2630419 | C30: =SUM(C22:C29) -> 3708136 | D30: =SUM(D22:D29) -> 3534007 | E30: =D30*(1+$C$40) -> 3966123.381 | F30: 4451076.263 | G30: 4995326.166 | H30: 5606123.559 | I30: 6291605.456 | J30: 7060903.813 | K30: 7924267.185 | L30: 8893197.257 | M30: 9980602.068 | N30: 11200967.97 | O30: 12570552.62 | P30: 14107601.56 | Q30: 15832591.27 | R30: 17768501.99 | S30: =SUM(D30:R30) -> 134183447.6
A31: Total Earmarked grant (Projection) | B31: =SUM(B22:B29) -> 2630419 | C31: =SUM(C22:C29) -> 3708136 | D31: =SUM(D22:D29) -> 3534007 | E31: =D31*(1+$C$41) -> 3855601.637 | F31: 4206461.386 | G31: 4589249.372 | H31: 5006871.065 | I31: 5462496.332 | J31: 5959583.498 | K31: 6501905.596 | L31: 7093579.006 | M31: 7739094.695 | N31: 8443352.312 | O31: 9211697.373 | P31: 10049961.83 | Q31: 10964508.36 | R31: 11962278.62 | S31: =SUM(D31:R31) -> 104580648.1
A32: Total Earmarked grant (Historical) | B32: =SUM(B22:B29) -> 2630419 | C32: =SUM(C22:C29) -> 3708136 | D32: =SUM(D22:D29) -> 3534007 | E32: =D32*(1+$C$42) -> 3809659.546 | F32: 4106812.991 | G32: 4427144.404 | H32: 4772461.667 | I32: 5144713.677 | J32: 5546001.344 | K32: 5978589.449 | L32: 6444919.426 | M32: 6947623.141 | N32: 7489537.746 | O32: 8073721.691 | P32: 8703471.982 | Q32: 9382342.797 | R32: 10114165.54 | S32: 94475172.4
A34: Infrastructure & Efficiency earmarked grant | B34: 2014 | C34: 2015 | D34: 2016 | E34: 2017 | F34: 2018 | G34: 2019 | H34: 2020 | I34: 2021 | J34: 2022 | K34: 2023 | L34: 2024 | M34: 2025 | N34: 2026 | O34: 2027 | P34: 2028 | Q34: 2029 | R34: 2030 | S34: 2016 - 2030
B35: (R*000) | C35: (R*000) | D35: (R*000) | E35: (R*000) | F35: (R*000) | G35: (R*000) | H35: (R*000) | I35: (R*000) | J35: (R*000) | K35: (R*000) | L35: (R*000) | M35: (R*000) | N35: (R*000) | O35: (R*000) | P35: (R*000) | Q35: (R*000) | R35: (R*000)
A36: User-defined | B36: 2200000 | C36: 2301200 | D36: 2422013 | E36: =D36*(1+$C$40) -> 2718161.675 | F36: 3050521.568 | G36: 3423520.359 | H36: 3842127.121 | I36: 4311918.512 | J36: 4839153.071 | K36: 5430854.59 | L36: 6094905.689 | M36: 6840152.822 | N36: 7676524.137 | O36: 8615161.731 | P36: 9668570.088 | Q36: 10850782.66 | R36: 12177548.83 | S36: 13666543.71
A37: Projection scenario (2.9% real) | B37: 2200000 | C37: 2301200 | D37: 2422013 | E37: =D37*(1+$C$41) -> 2642416.183 | F37: =E37*(1+$C$41) -> 2882876.056 | G37: 3145217.777 | H37: 3431432.594 | I37: 3743692.96 | J37: 4084369.02 | K37: 4456046.601 | L37: 4861546.841 | M37: 5303947.604 | N37: 5786606.836 | O37: 6313188.058 | P37: 6887688.171 | Q37: 7514467.795 | R37: 8198284.364 | S37: =R37*(1+$C$40) -> 9200719.551
A38: Historical scenario (1.6% real) | B38: 2200000 | C38: 2301200 | D38: 2422013 | E38: =D38*(1+$C$42) -> 2610930.014 | F38: =E38*(1+$C$42) -> 2814582.555 | G38: 3034119.994 | H38: 3270781.354 | I38: 3525902.3 | J38: 3800922.679 | K38: 4097394.648 | L38: 4416991.43 | M38: 4761516.762 | N38: 5132915.069 | O38: 5533282.445 | P38: 5964878.476 | Q38: 6430138.997 | R38: 6931689.838 | S38: =R38*(1+$C$40) -> 7779253.73
A40: User-defined | C40: ='2a. Funding dashboard'!J3+'2a. Funding dashboard'!K6 -> 0.1222737761
A41: Projection scenario (2.9% real) | C41: ='2a. Funding dashboard'!J3+2.9% -> 0.091
A42: Historical scenario (1.6% real) | C42: ='2a. Funding dashboard'!J3+1.6% -> 0.078

Sheet 4b. Tuition Fees
A1: Tuition fees | B1: 2014 | C1: 2015 | D1: 2016 | E1: 2017 | F1: 2018 | G1: 2019 | H1: 2020 | I1: 2021 | J1: 2022 | K1: 2023 | L1: 2024 | M1: 2025 | N1: 2026 | O1: 2027 | P1: 2028 | Q1: 2029 | R1: 2030 | S1: 2016 - 2030
A2: Scenario based on FTEs | B2: 666920.694 | C2: 693210.425 | D2: ='5b. Full-Time-Equivalents'!H30 -> 625832.2103 | E2: ='5b. Full-Time-Equivalents'!I30 -> 605287.9685 | F2: ='5b. Full-Time-Equivalents'!J30 -> 584743.7266 | G2: ='5b. Full-Time-Equivalents'!K30 -> 564199.4848 | H2: ='5b. Full-Time-Equivalents'!L30 -> 543655.2429 | I2: ='5b. Full-Time-Equivalents'!M30 -> 523111.0011 | J2: ='5b. Full-Time-Equivalents'!N30 -> 502566.7593 | K2: ='5b. Full-Time-Equivalents'!O30 -> 482022.5174 | L2: ='5b. Full-Time-Equivalents'!P30 -> 461478.2756 | M2: ='5b. Full-Time-Equivalents'!Q30 -> 440934.0337 | N2: ='5b. Full-Time-Equivalents'!R30 -> 420389.7919 | O2: ='5b. Full-Time-Equivalents'!S30 -> 399845.55 | P2: ='5b. Full-Time-Equivalents'!T30 -> 379301.3082 | Q2: ='5b. Full-Time-Equivalents'!U30 -> 358757.0663 | R2: ='5b. Full-Time-Equivalents'!V30 -> 338212.8245
A3: User-defined annual increase | B3: 25.49394943 | C3: =B3*1.095 -> 27.91587463 | D3: 27.91587463 | E3: =D3*(1+$B$10) -> 29.64665886 | F3: =E3*(1+$B$10) -> 31.48475171 | G3: 33.43680631 | H3: 35.5098883 | I3: 37.71150138 | J3: 40.04961446 | K3: 42.53269056 | L3: 45.16971737 | M3: 47.97023985 | N3: 50.94439472 | O3: 54.1029472 | P3: 57.45732992 | Q3: 61.01968438 | R3: 64.80290481
A4: 0% real annual increase | B4: 25.49394943 | C4: =B4*1.095 -> 27.91587463 | D4: 27.91587463 | E4: =D4*(1+$B$11) -> 29.64665886 | F4: =E4*(1+$B$11) -> 31.48475171 | G4: 33.43680631 | H4: 35.5098883 | I4: 37.71150138 | J4: 40.04961446 | K4: 42.53269056 | L4: 45.16971737 | M4: 47.97023985 | N4: 50.94439472 | O4: 54.1029472 | P4: 57.45732992 | Q4: 61.01968438 | R4: 64.80290481
A5: 2030 Fee-free university education | B5: 25.49394943 | C5: =B5*1.095 -> 27.91587463 | D5: 27.91587463 | E5: =D5-($D$5)/($R$1-$D$1) -> 25.92188358 | F5: =E5-($D$5)/($R$1-$D$1) -> 23.92789254 | G5: 21.93390149 | H5: 19.93991045 | I5: 17.9459194 | J5: 15.95192836 | K5: 13.95793731 | L5: 11.96394627 | M5: 9.969955225 | N5: 7.97596418 | O5: 5.981973135 | P5: 3.98798209 | Q5: 1.993991045 | R5: 2.220446049e-15
A6: Estimated tuition fee income - User-defined annual increase | B6: =B2*B3 -> 17002442.45 | C6: 19351575.32 | D6: 17470653.52 | E6: 17944765.91 | F6: 18410511.04 | G6: 18865028.89 | H6: 19305136.95 | I6: 19727301.24 | J6: 20127604.95 | K6: 20501714.58 | L6: 20844843.28 | M6: 21151711.36 | N6: 21416503.49 | O6: 21632822.68 | P6: 21793640.4 | Q6: 21891242.96 | R6: 21917173.47 | S6: =SUM(D6:R6) -> 303000654.7
A7: Estimated tuition fee income - 0% real annual increase | B7: =B2*B4 -> 17002442.45 | C7: 19351575.32 | D7: 17470653.52 | E7: 17944765.91 | F7: 18410511.04 | G7: 18865028.89 | H7: 19305136.95 | I7: 19727301.24 | J7: 20127604.95 | K7: 20501714.58 | L7: 20844843.28 | M7: 21151711.36 | N7: 21416503.49 | O7: 21632822.68 | P7: 21793640.4 | Q7: 21891242.96 | R7: 21917173.47 | S7: =SUM(D7:R7) -> 303000654.7
A8: Estimated tuition fee income - Fee-free university education | B8: =B2*B5 -> 17002442.45 | C8: =C2*C5 -> 19351575.32 | D8: 17470653.52 | E8: 15690204.25 | F8: 13991685.05 | G8: 12375095.92 | H8: 10840436.86 | I8: 9387707.865 | J8: 8016908.94 | K8: 6728040.082 | L8: 5521101.294 | M8: 4396092.573 | N8: 3353013.922 | O8: 2391865.338 | P8: 1512646.824 | Q8: 715358.3776 | R8: 7.5098333e-10 | S8: 112390810.8
A10: User-defined increase | B10: ='2a. Funding dashboard'!J3+'2a. Funding dashboard'!K8 -> 0.062
A11: 0% real annual increase | B11: ='2a. Funding dashboard'!J3 -> 0.062
A14: 2015 increase is 9.95% which was average for 2010 to 2014
A15: 2016 no increase

Sheet 4c. Residence fees
A1: Insitution | B1: 2010 Fee income ('000) | C1: 2010 Beds per University | D1: 2010 fee income per bed
A2: CPUT | B2: 78018.288 | C2: 5843 | D2: =B2/C2 -> 13.35243676
A3: CUT | B3: 8412 | C3: 728 | D3: =B3/C3 -> 11.55494505
A4: DUT | B4: 61605 | C4: 2611 | D4: 23.59440827
A5: MUT | B5: 57604 | C5: 1270 | D5: 45.35748031
A6: NMMU | B6: 60599 | C6: 2811 | D6: 21.55780861
A7: RU | B7: 106040 | C7: 3503 | D7: 30.27119612
A8: TUT | B8: 107246 | C8: 10164 | D8: 10.55155451
A9: UCT | B9: 183391 | C9: 5579 | D9: 32.87166159
A10: UFS | B10: 50851 | C10: 4435 | D10: 11.46583991
A11: UJ | B11: 69382 | C11: 4393 | D11: 15.7937628
A12: UKZN | B12: 136500 | C12: 6924 | D12: 19.71403813
A13: UL | B13: 80249 | C13: 5935 | D13: 13.52131424
A14: UZ | B14: 32006 | C14: 4354 | D14: 7.350941663
A15: NWU | B15: 86652 | C15: 8096 | D15: 10.70306324
A16: UP | B16: 202588 | C16: 7650 | D16: 26.4820915
A17: US | B17: 175028 | C17: 6874 | D17: 25.46232179
A18: UV | B18: 16244 | C18: 2036 | D18: 7.978388998
A19: UWC | B19: 39797 | C19: 3656 | D19: 10.88539387
A20: VUT | B20: 42147 | C20: 3081 | D20: 13.67964946
A21: WITS | B21: 129703 | C21: 4464 | D21: 29.05533154
A22: Total (2010 prices) | B22: =SUM(B2:B21) -> 1724062.288 | C22: =SUM(C2:C21) -> 94407 | D22: 18.26201752
F23: 1
B27: 2014 | C27: 2015 | D27: 2016 | E27: 2017 | F27: 2018 | G27: 2019 | H27: 2020 | I27: 2021 | J27: 2022 | K27: 2023 | L27: 2024 | M27: 2025 | N27: 2026 | O27: 2027 | P27: 2028 | Q27: 2029 | R27: 2030 | S27: 2016 - 2030
A28: Number of students in residences | B28: ='5g. Residences spending'!F3 -> 114210.9497 | C28: ='5g. Residences spending'!G3 -> 114781.7305 | D28: ='5g. Residences spending'!H3 -> 115352.5113 | E28: ='5g. Residences spending'!I3 -> 115923.292 | F28: ='5g. Residences spending'!J3 -> 116494.0728 | G28: ='5g. Residences spending'!K3 -> 117064.8536 | H28: ='5g. Residences spending'!L3 -> 117635.6343 | I28: ='5g. Residences spending'!M3 -> 118206.4151 | J28: ='5g. Residences spending'!N3 -> 118777.1959 | K28: ='5g. Residences spending'!O3 -> 119347.9767 | L28: ='5g. Residences spending'!P3 -> 119918.7574 | M28: ='5g. Residences spending'!Q3 -> 120489.5382 | N28: ='5g. Residences spending'!R3 -> 121060.319 | O28: ='5g. Residences spending'!S3 -> 121631.0997 | P28: ='5g. Residences spending'!T3 -> 122201.8805 | Q28: ='5g. Residences spending'!U3 -> 122772.6613 | R28: ='5g. Residences spending'!V3 -> 123343.4421
A29: Fee per student - User-defined real annual growth | B29: =D22*(1+B35)^4 -> 23.22987228 | C29: =B29*(1+$B$35) -> 24.67012436 | D29: =C29*(1+$B$35) -> 26.19967208 | E29: =D29*(1+$B$35) -> 27.82405174 | F29: 29.54914295 | G29: 31.38118982 | H29: 33.32682358 | I29: 35.39308665 | J29: 37.58745802 | K29: 39.91788041 | L29: 42.392789 | M29: 45.02114192 | N29: 47.81245272 | O29: 50.77682479 | P29: 53.92498792 | Q29: 57.26833717 | R29: 60.81897408
A30: Fee per student - 0% real annual growth | B30: =D22*(1+B36)^4 -> 23.22987228 | C30: =B30*(1+$B$36) -> 24.67012436 | D30: =C30*(1+$B$36) -> 26.19967208 | E30: =D30*(1+$B$36) -> 27.82405174 | F30: 29.54914295 | G30: 31.38118982 | H30: 33.32682358 | I30: 35.39308665 | J30: 37.58745802 | K30: 39.91788041 | L30: 42.392789 | M30: 45.02114192 | N30: 47.81245272 | O30: 50.77682479 | P30: 53.92498792 | Q30: 57.26833717 | R30: 60.81897408
A31: Total fee income - User-defined real annual growth | B31: =B28*B29 -> 2653105.775 | C31: =C28*C29 -> 2831679.566 | D31: 3022197.968 | E31: 3225455.676 | F31: 3442300.01 | G31: 3673634.391 | H31: 3920422.033 | I31: 4183689.892 | J31: 4464532.864 | K31: 4764118.26 | L31: 5083690.581 | M31: 5424576.599 | N31: 5788190.777 | O31: 6176041.04 | P31: 6589734.931 | Q31: 7030986.163 | R31: 7501621.606 | S31: =SUM(D31:R31) -> 74291192.79
A32: Total fee income - 0% real annual growth | B32: =B28*B30 -> 2653105.775 | C32: =C28*C30 -> 2831679.566 | D32: 3022197.968 | E32: 3225455.676 | F32: 3442300.01 | G32: 3673634.391 | H32: 3920422.033 | I32: 4183689.892 | J32: 4464532.864 | K32: 4764118.26 | L32: 5083690.581 | M32: 5424576.599 | N32: 5788190.777 | O32: 6176041.04 | P32: 6589734.931 | Q32: 7030986.163 | R32: 7501621.606 | S32: =SUM(D32:R32) -> 74291192.79
A35: User-defined increase | B35: ='2a. Funding dashboard'!J3+'2a. Funding dashboard'!K9 -> 0.062
A36: 0% real annual increase | B36: ='2a. Funding dashboard'!J3 -> 0.062

Sheet 4d Third stream income
A1: Individual Third Stream Exponential Time Series | AE1: Raw Data with Smoothing Assumptions | AR1: Aggregate Third Stream (Smoothed)
A2: Year | B2: UP | C2: UKZN | D2: UCT | E2: WITS | F2: N.West | G2: STELLEN | H2: UFS | I2: UWC | J2: RHODES | K2: UFH | L2: Unisa | M2: UniZulu | N2: UniVen | O2: CUT | P2: CPUT | Q2: VUT | R2: DUT | S2: TUT | T2: MUT | U2: WSU | V2: UL | W2: UJ | X2: NMMU | Y2: University Level (Nominal+Real) | Z2: Aggregate Level (Nominal+real) | AA2: CPI | AB2: University Level (Real) | AC2: Aggregate Level (Real) | AE2: University | AF2: 2004 | AG2: 2005 | AH2: 2006 | AI2: 2007 | AJ2: 2008 | AK2: 2009 | AL2: 2010 | AM2: 2011 | AN2: 2012 | AO2: 2013 | AP2: 2014 | AS2: Total
A3: 2015 | B3: 2300264.397 | C3: 964528.3206 | D3: 1778169.743 | E3: 2561346.283 | F3: 791919.5237 | G3: 2892964.268 | H3: 598037.8235 | I3: 414650.4446 | J3: 248340.5667 | K3: 155947.6192 | L3: 1227960.682 | M3: 79587.98411 | N3: 104272.6998 | O3: 47044.34917 | P3: 237426.4184 | Q3: 145510.4951 | R3: 105809.5772 | S3: 352224.068 | T3: 16450.41318 | U3: 31299.75108 | V3: 146878.8637 | W3: 778291.7722 | X3: 583986.2419 | Y3: =SUM(B3:X3)*1000 -> 1.65629123e+10 | Z3: 1.670518964e+10 | AA3: ='2a. Funding dashboard'!$J$3 -> 0.062 | AB3: =Y3*(1-AA3)^(A3-$A$3) -> 1.65629123e+10 | AC3: =Z3*(1-AA3)^(A3-$A$3) -> 1.670518964e+10 | AE3: UP | AF3: 729066 | AG3: 1120248 | AH3: 1019521 | AI3: 1231241 | AJ3: 1322144 | AK3: 1759217 | AL3: 1728469 | AM3: 1655700 | AN3: 2093819 | AO3: 1488925 | AP3: 2449226 | AR3: 2004 | AS3: 5695521.516 | AU3: 61.4 | AV3: =AS3/AU3*AU13 -> 10175874.76
A4: 2016 | B4: 2424985.552 | C4: 964528.3206 | D4: 1778169.743 | E4: 2715745.424 | F4: 838871.3083 | G4: 2892964.268 | H4: 636535.3444 | I4: 414650.4446 | J4: 260404.8259 | K4: 155947.6192 | L4: 1227960.682 | M4: 79587.98411 | N4: 111215.9628 | O4: 47044.34917 | P4: 237426.4184 | Q4: 157060.2513 | R4: 105809.5772 | S4: 352224.068 | T4: 16450.41318 | U4: 31299.75108 | V4: 146878.8637 | W4: 778291.7722 | X4: 626826.9623 | Y4: =SUM(B4:X4)*1000 -> 1.700087991e+10 | Z4: 1.767008583e+10 | AA4: ='2a. Funding dashboard'!$J$3 -> 0.062 | AB4: =Y4*(1-AA4)^(A4-$A$3) -> 1.594682535e+10 | AC4: =Z4*(1-AA4)^(A4-$A$3) -> 1.65745405e+10 | AE4: UKZN | AF4: 388385 | AG4: 434751 | AH4: 813188 | AI4: 615857 | AJ4: 880832 | AK4: 942634 | AL4: 911187 | AM4: 1025272 | AN4: 1206230 | AO4: 1043815 | AP4: 933735.2918 | AR4: 2005 | AS4: 6571742.791 | AT4: =AS4/AS3-1 -> 0.1538439058
A5: 2017 | B5: 2549706.707 | C5: 964528.3206 | D5: 1778169.743 | E5: 2870144.566 | F5: 885823.0928 | G5: 2892964.268 | H5: 675032.8652 | I5: 414650.4446 | J5: 272469.0851 | K5: 155947.6192 | L5: 1227960.682 | M5: 79587.98411 | N5: 118159.2258 | O5: 47044.34917 | P5: 237426.4184 | Q5: 168610.0074 | R5: 105809.5772 | S5: 352224.068 | T5: 16450.41318 | U5: 31299.75108 | V5: 146878.8637 | W5: 778291.7722 | X5: 669667.6828 | Y5: 1.743884751e+10 | Z5: 1.863498201e+10 | AA5: ='2a. Funding dashboard'!$J$3 -> 0.062 | AB5: 1.534346535e+10 | AC5: 1.639587711e+10 | AE5: UCT | AF5: 599053.2757 | AG5: 655915 | AH5: 718174 | AI5: 655915 | AJ5: 1017599 | AK5: 1202668 | AL5: 1217946 | AM5: 1237717 | AN5: 1374738 | AO5: 1778213 | AP5: 2300104.801 | AR5: 2006 | AS5: 7987060.137 | AT5: =AS5/AS4-1 -> 0.2153640809
A6: 2018 | B6: 2674427.862 | C6: 964528.3206 | D6: 1778169.743 | E6: 3024543.707 | F6: 932774.8773 | G6: 2892964.268 | H6: 713530.3861 | I6: 414650.4446 | J6: 284533.3443 | K6: 155947.6192 | L6: 1227960.682 | M6: 79587.98411 | N6: 125102.4888 | O6: 47044.34917 | P6: 237426.4184 | Q6: 180159.7636 | R6: 105809.5772 | S6: 352224.068 | T6: 16450.41318 | U6: 31299.75108 | V6: 146878.8637 | W6: 778291.7722 | X6: 712508.4032 | Y6: 1.787681511e+10 | Z6: 1.95998782e+10 | AA6: ='2a. Funding dashboard'!$J$3 -> 0.062 | AB6: 1.475362238e+10 | AC6: 1.617565545e+10 | AE6: WITS | AF6: 892660 | AG6: 974626 | AH6: 1325605 | AI6: 1566558 | AJ6: 1757316 | AK6: 1891456 | AL6: 1847498 | AM6: 1897726 | AN6: 2127051 | AO6: 2058328 | AP6: 2455911 | AR6: 2007 | AS6: 9329200.13 | AT6: 0.1680392998
A7: 2019 | B7: 2799149.017 | C7: 964528.3206 | D7: 1778169.743 | E7: 3178942.848 | F7: 979726.6618 | G7: 2892964.268 | H7: 752027.907 | I7: 414650.4446 | J7: 296597.6035 | K7: 155947.6192 | L7: 1227960.682 | M7: 79587.98411 | N7: 132045.7518 | O7: 47044.34917 | P7: 237426.4184 | Q7: 191709.5198 | R7: 105809.5772 | S7: 352224.068 | T7: 16450.41318 | U7: 31299.75108 | V7: 146878.8637 | W7: 778291.7722 | X7: 755349.1237 | Y7: 1.831478271e+10 | Z7: 2.056477438e+10 | AA7: ='2a. Funding dashboard'!$J$3 -> 0.062 | AB7: 1.417793967e+10 | AC7: 1.591971552e+10 | AE7: N.WEST | AF7: 250387 | AG7: 282259 | AH7: 342728 | AI7: 457276 | AJ7: 508298 | AK7: 502682 | AL7: 472216 | AM7: 551006 | AN7: 643399.364 | AO7: 711340.217 | AP7: 662625.343 | AR7: 2008 | AS7: 10140504.76 | AT7: 0.08696400786
A8: 2020 | B8: 2923870.172 | C8: 964528.3206 | D8: 1778169.743 | E8: 3333341.99 | F8: 1026678.446 | G8: 2892964.268 | H8: 790525.4278 | I8: 414650.4446 | J8: 308661.8627 | K8: 155947.6192 | L8: 1227960.682 | M8: 79587.98411 | N8: 138989.0148 | O8: 47044.34917 | P8: 237426.4184 | Q8: 203259.276 | R8: 105809.5772 | S8: 352224.068 | T8: 16450.41318 | U8: 31299.75108 | V8: 146878.8637 | W8: 778291.7722 | X8: 798189.8441 | Y8: 1.875275031e+10 | Z8: 2.152967057e+10 | AA8: ='2a. Funding dashboard'!$J$3 -> 0.062 | AB8: 1.361692868e+10 | AC8: 1.563333292e+10 | AE8: STELLEN | AF8: 793507 | AG8: 693684 | AH8: 987127 | AI8: 1188825 | AJ8: 1189309 | AK8: 1175936 | AL8: 1373288 | AM8: 1481123 | AN8: 1554117 | AO8: 1856179 | AP8: 2893068 | AR8: 2009 | AS8: 11172577.47 | AT8: 0.101777252
A9: 2021 | B9: 3048591.327 | C9: 964528.3206 | D9: 1778169.743 | E9: 3487741.131 | F9: 1073630.231 | G9: 2892964.268 | H9: 829022.9487 | I9: 414650.4446 | J9: 320726.1219 | K9: 155947.6192 | L9: 1227960.682 | M9: 79587.98411 | N9: 145932.2777 | O9: 47044.34917 | P9: 237426.4184 | Q9: 214809.0321 | R9: 105809.5772 | S9: 352224.068 | T9: 16450.41318 | U9: 31299.75108 | V9: 146878.8637 | W9: 778291.7722 | X9: 841030.5646 | Y9: 1.919071791e+10 | Z9: 2.249456675e+10 | AA9: ='2a. Funding dashboard'!$J$3 -> 0.062 | AB9: 1.307098306e+10 | AC9: 1.532126638e+10 | AE9: UFS | AF9: 135261.3242 | AG9: 181106 | AH9: 242489 | AI9: 331808 | AJ9: 397196 | AK9: 429503 | AL9: 429698 | AM9: 451497 | AN9: 401933 | AO9: 465015 | AP9: 559546 | AR9: 2010 | AS9: 11795857.39 | AT9: 0.0557865826
A10: 2022 | B10: 3173312.483 | C10: 964528.3206 | D10: 1778169.743 | E10: 3642140.273 | F10: 1120582.015 | G10: 2892964.268 | H10: 867520.4696 | I10: 414650.4446 | J10: 332790.3811 | K10: 155947.6192 | L10: 1227960.682 | M10: 79587.98411 | N10: 152875.5407 | O10: 47044.34917 | P10: 237426.4184 | Q10: 226358.7883 | R10: 105809.5772 | S10: 352224.068 | T10: 16450.41318 | U10: 31299.75108 | V10: 146878.8637 | W10: 778291.7722 | X10: 883871.285 | Y10: 1.962868551e+10 | Z10: 2.345946294e+10 | AA10: ='2a. Funding dashboard'!$J$3 -> 0.062 | AB10: 1.254039122e+10 | AC10: 1.498780155e+10 | AE10: UWC | AF10: 113680 | AG10: 128818 | AH10: 165593 | AI10: 376440.129 | AJ10: 310984 | AK10: 310750.559 | AL10: 268288.258 | AM10: 319087.326 | AN10: 345540 | AO10: 342001.184 | AP10: 428334.981 | AR10: 2011 | AS10: 11785413.58 | AT10: -0.0008853789798
A11: 2023 | B11: 3298033.638 | C11: 964528.3206 | D11: 1778169.743 | E11: 3796539.414 | F11: 1167533.8 | G11: 2892964.268 | H11: 906017.9904 | I11: 414650.4446 | J11: 344854.6403 | K11: 155947.6192 | L11: 1227960.682 | M11: 79587.98411 | N11: 159818.8037 | O11: 47044.34917 | P11: 237426.4184 | Q11: 237908.5445 | R11: 105809.5772 | S11: 352224.068 | T11: 16450.41318 | U11: 31299.75108 | V11: 146878.8637 | W11: 778291.7722 | X11: 926712.0054 | Y11: 2.006665311e+10 | Z11: 2.442435913e+10 | AA11: ='2a. Funding dashboard'!$J$3 -> 0.062 | AB11: 1.202534792e+10 | AC11: 1.463679142e+10 | AE11: RHODES | AF11: 121140 | AG11: 129796 | AH11: 144566 | AI11: 130468 | AJ11: 170363 | AK11: 158094 | AL11: 169121 | AM11: 190357 | AN11: 234496 | AO11: 223993 | AP11: 236214 | AR11: 2012 | AS11: 13839652.36 | AT11: 0.1743034952
A12: 2024 | B12: 3422754.793 | C12: 964528.3206 | D12: 1778169.743 | E12: 3950938.555 | F12: 1214485.584 | G12: 2892964.268 | H12: 944515.5113 | I12: 414650.4446 | J12: 356918.8995 | K12: 155947.6192 | L12: 1227960.682 | M12: 79587.98411 | N12: 166762.0667 | O12: 47044.34917 | P12: 237426.4184 | Q12: 249458.3006 | R12: 105809.5772 | S12: 352224.068 | T12: 16450.41318 | U12: 31299.75108 | V12: 146878.8637 | W12: 778291.7722 | X12: 969552.7259 | Y12: 2.050462071e+10 | Z12: 2.538925531e+10 | AA12: ='2a. Funding dashboard'!$J$3 -> 0.062 | AB12: 1.152596471e+10 | AC12: 1.427169344e+10 | AE12: UFH | AF12: 158540 | AG12: 143329.956 | AH12: 140967 | AI12: 138643 | AJ12: 167300 | AK12: 161357 | AL12: 233838 | AM12: 143967 | AN12: 144697 | AO12: 136380 | AP12: 136384 | AR12: 2013 | AS12: 14019968.28 | AT12: 0.01302893368
A13: 2025 | B13: 3547475.948 | C13: 964528.3206 | D13: 1778169.743 | E13: 4105337.697 | F13: 1261437.369 | G13: 2892964.268 | H13: 983013.0322 | I13: 414650.4446 | J13: 368983.1587 | K13: 155947.6192 | L13: 1227960.682 | M13: 79587.98411 | N13: 173705.3297 | O13: 47044.34917 | P13: 237426.4184 | Q13: 261008.0568 | R13: 105809.5772 | S13: 352224.068 | T13: 16450.41318 | U13: 31299.75108 | V13: 146878.8637 | W13: 778291.7722 | X13: 1012393.446 | Y13: 2.094258831e+10 | Z13: 2.63541515e+10 | AA13: ='2a. Funding dashboard'!$J$3 -> 0.062 | AB13: 1.104227959e+10 | AC13: 1.389560377e+10 | AE13: UNISA | AF13: 570221 | AG13: 838581 | AH13: 937604 | AI13: 824372 | AJ13: 622502 | AK13: 950916 | AL13: 1158492 | AM13: 948183 | AN13: 1425240 | AO13: 1484364 | AP13: 1117193 | AR13: 2014 | AS13: 16946658.17 | AT13: 0.2087515347 | AU13: 109.7 | AV13: =RATE(10,,-AV3,AS13) -> 0.05232825564
A14: 2026 | B14: 3672197.103 | C14: 964528.3206 | D14: 1778169.743 | E14: 4259736.838 | F14: 1308389.153 | G14: 2892964.268 | H14: 1021510.553 | I14: 414650.4446 | J14: 381047.4178 | K14: 155947.6192 | L14: 1227960.682 | M14: 79587.98411 | N14: 180648.5926 | O14: 47044.34917 | P14: 237426.4184 | Q14: 272557.813 | R14: 105809.5772 | S14: 352224.068 | T14: 16450.41318 | U14: 31299.75108 | V14: 146878.8637 | W14: 778291.7722 | X14: 1055234.167 | Y14: 2.138055591e+10 | Z14: 2.731904768e+10 | AA14: ='2a. Funding dashboard'!$J$3 -> 0.062 | AB14: 1.057426561e+10 | AC14: 1.351128884e+10 | AE14: UNIZULU | AF14: 68909 | AG14: 91576 | AH14: 86561 | AI14: 129617 | AJ14: 177977 | AK14: 111813 | AL14: 53013 | AM14: 49892 | AN14: 69436 | AO14: 79589 | AP14: 91226.58161
A15: 2027 | B15: 3796918.258 | C15: 964528.3206 | D15: 1778169.743 | E15: 4414135.98 | F15: 1355340.938 | G15: 2892964.268 | H15: 1060008.074 | I15: 414650.4446 | J15: 393111.677 | K15: 155947.6192 | L15: 1227960.682 | M15: 79587.98411 | N15: 187591.8556 | O15: 47044.34917 | P15: 237426.4184 | Q15: 284107.5691 | R15: 105809.5772 | S15: 352224.068 | T15: 16450.41318 | U15: 31299.75108 | V15: 146878.8637 | W15: 778291.7722 | X15: 1098074.887 | Y15: =SUM(B15:X15)*1000 -> 2.181852351e+10 | Z15: 2.828394387e+10 | AA15: ='2a. Funding dashboard'!$J$3 -> 0.062 | AB15: 1.012183885e+10 | AC15: 1.312121426e+10 | AE15: UNIVEN | AF15: 26599 | AG15: 30911 | AH15: 42325 | AI15: 50601 | AJ15: 72759 | AK15: 50964 | AL15: 72465 | AM15: 58521 | AN15: 80171 | AO15: 99421 | AP15: 121807 | AS15: =RATE(10,,-AS3,AS13) -> 0.1152058971
A16: 2028 | B16: 3921639.413 | C16: 964528.3206 | D16: 1778169.743 | E16: 4568535.121 | F16: 1402292.722 | G16: 2892964.268 | H16: 1098505.595 | I16: 414650.4446 | J16: 405175.9362 | K16: 155947.6192 | L16: 1227960.682 | M16: 79587.98411 | N16: 194535.1186 | O16: 47044.34917 | P16: 237426.4184 | Q16: 295657.3253 | R16: 105809.5772 | S16: 352224.068 | T16: 16450.41318 | U16: 31299.75108 | V16: 146878.8637 | W16: 778291.7722 | X16: 1140915.608 | Y16: 2.225649111e+10 | Z16: 2.924884005e+10 | AA16: ='2a. Funding dashboard'!$J$3 -> 0.062 | AB16: 9684865524 | AC16: 1.272757153e+10 | AE16: CUT | AF16: 25845 | AG16: 23727.17896 | AH16: 30417 | AI16: 38993 | AJ16: 45681 | AK16: 50039 | AL16: 60707 | AM16: 42261 | AN16: 56070 | AO16: 51091 | AP16: 48144
A17: 2029 | B17: 4046360.568 | C17: 964528.3206 | D17: 1778169.743 | E17: 4722934.262 | F17: 1449244.507 | G17: 2892964.268 | H17: 1137003.116 | I17: 414650.4446 | J17: 417240.1954 | K17: 155947.6192 | L17: 1227960.682 | M17: 79587.98411 | N17: 201478.3816 | O17: 47044.34917 | P17: 237426.4184 | Q17: 307207.0815 | R17: 105809.5772 | S17: 352224.068 | T17: 16450.41318 | U17: 31299.75108 | V17: 146878.8637 | W17: 778291.7722 | X17: 1183756.328 | Y17: 2.269445871e+10 | Z17: 3.021373624e+10 | AA17: ='2a. Funding dashboard'!$J$3 -> 0.062 | AB17: 9263168544 | AC17: 1.233230255e+10 | AE17: CPUT | AF17: 81286 | AG17: 91217 | AH17: 101148 | AI17: 331808 | AJ17: 151123.104 | AK17: 176875.781 | AL17: 204758.13 | AM17: 230473.306 | AN17: 248341 | AO17: 297097.441 | AP17: 395222.347
A18: 2030 | B18: 4171081.724 | C18: 964528.3206 | D18: 1778169.743 | E18: 4877333.404 | F18: 1496196.291 | G18: 2892964.268 | H18: 1175500.637 | I18: 414650.4446 | J18: 429304.4546 | K18: 155947.6192 | L18: 1227960.682 | M18: 79587.98411 | N18: 208421.6446 | O18: 47044.34917 | P18: 237426.4184 | Q18: 318756.8376 | R18: 105809.5772 | S18: 352224.068 | T18: 16450.41318 | U18: 31299.75108 | V18: 146878.8637 | W18: 778291.7722 | X18: 1226597.049 | Y18: 2.313242632e+10 | Z18: 3.117863243e+10 | AA18: ='2a. Funding dashboard'!$J$3 -> 0.062 | AB18: 8856533367 | AC18: 1.193712214e+10 | AE18: VUT | AF18: 25418 | AG18: 27396 | AH18: 31706 | AI18: 53234 | AJ18: 69279 | AK18: 75857 | AL18: 75161 | AM18: 95259.7 | AN18: 109983 | AO18: 129569 | AP18: 146374
I19: Tuition | K19: Residences | AE19: DUT | AF19: 70173 | AG19: 49368 | AH19: 54319 | AI19: 74366 | AJ19: 84090 | AK19: 85730 | AL19: 134985 | AM19: 105052 | AN19: 150657 | AO19: 106915 | AP19: 98406
B20: Simple | C20: Compound | E20: Simple Growth Rate | F20: ='2a. Funding dashboard'!K7 -> 0.008 | H20: Year | I20: Third Stream Income | J20: University Buffer | K20: Third Stream Income | L20: University Buffer | M20: Adjusted | Y20: =RATE(15,,-Y3,Y18) -> 0.02252114814 | Z20: =RATE(15,,-Z3,Z18) -> 0.04247834775 | AE20: TUT | AF20: 235181.9424 | AG20: 160386.1382 | AH20: 145251.6671 | AI20: 222936.3336 | AJ20: 254956.0612 | AK20: 237402 | AL20: 305433 | AM20: 257132 | AN20: 296879 | AO20: 311418 | AP20: 365447.8937
A21: 2015 | B21: 1.663405097e+10 | C21: 1.663405097e+10 | E21: Compound Growth Rate | F21: ='2a. Funding dashboard'!J3+'2a. Funding dashboard'!K7 -> 0.07 | H21: 2014 | I21: 16946658.17 | M21: Unadjusted | AE21: MUT | AF21: 7932 | AG21: 8235 | AH21: 7932 | AI21: 15382.645 | AJ21: 9534 | AK21: 30453 | AL21: 20275 | AM21: 16346 | AN21: 18454 | AO21: 20242 | AP21: 17649
A22: 2016 | B22: =$B$21*(1+(A22-$A$21)*$F$20) -> 1.676712338e+10 | C22: =C21*(1+$F$21) -> 1.779843454e+10 | H22: 2015 | I22: =I21*(1+$F$21) -> 18132924.24 | K22: =IF('2a. Funding dashboard'!#REF! = "Unadjusted",IF('2a. Funding dashboard'!$J$7=List!$R$2,AD3,IF('2a. Funding dashboard'!$J$7=List!$R$3,AE3,IF('2a. Funding dashboard'!$J$7=List!$R$4,D21,E21))),(IF('2a. Funding dashboard'!$J$7=List!$R$2,AD3,IF('2a. Funding dashboard'!$J$7=List!$R$3,AE3,IF('2a. Funding dashboard'!$J$7=List!$R$4,D21,E21))))*(1+'4d Third stream income'!$K$20)) ->  | AE22: WSU | AF22: 13184 | AG22: 14012 | AH22: 13184 | AI22: 23852.811 | AJ22: 31279.598 | AK22: 18286.132 | AL22: 31761 | AM22: 62780 | AN22: 22910 | AO22: 8360.434852 | AP22: 3050.93282
A23: 2017 | B23: =$B$21*(1+(A23-$A$21)*$F$20) -> 1.690019579e+10 | C23: =C22*(1+$F$21) -> 1.904432496e+10 | H23: 2016 | I23: =IF('2a. Funding dashboard'!#REF! = "Unadjusted",IF('2a. Funding dashboard'!$J$7=List!$R$2,AB4,IF('2a. Funding dashboard'!$J$7=List!$R$3,AC4,IF('2a. Funding dashboard'!$J$7=List!$R$4,B22,C22))),(IF('2a. Funding dashboard'!$J$7=List!$R$2,AB4,IF('2a. Funding dashboard'!$J$7=List!$R$3,AC4,IF('2a. Funding dashboard'!$J$7=List!$R$4,B22,C22))))*(1+'4d Third stream income'!$K$20)) ->  | K23: =IF('2a. Funding dashboard'!#REF! = "Unadjusted",IF('2a. Funding dashboard'!$J$7=List!$R$2,AD4,IF('2a. Funding dashboard'!$J$7=List!$R$3,AE4,IF('2a. Funding dashboard'!$J$7=List!$R$4,D22,E22))),(IF('2a. Funding dashboard'!$J$7=List!$R$2,AD4,IF('2a. Funding dashboard'!$J$7=List!$R$3,AE4,IF('2a. Funding dashboard'!$J$7=List!$R$4,D22,E22))))*(1+'4d Third stream income'!$K$20)) ->  | AE23: UL | AF23: 17681.47385 | AG23: 38046.51797 | AH23: 81867.46999 | AI23: 176160.2112 | AJ23: 133204 | AK23: 105684 | AL23: 160849 | AM23: 155004 | AN23: 183054 | AO23: 170961 | AP23: 154943
A24: 2018 | B24: =$B$21*(1+(A24-$A$21)*$F$20) -> 1.70332682e+10 | C24: 2.037742771e+10 | H24: 2017 | I24: =IF('2a. Funding dashboard'!#REF! = "Unadjusted",IF('2a. Funding dashboard'!$J$7=List!$R$2,AB5,IF('2a. Funding dashboard'!$J$7=List!$R$3,AC5,IF('2a. Funding dashboard'!$J$7=List!$R$4,B23,C23))),(IF('2a. Funding dashboard'!$J$7=List!$R$2,AB5,IF('2a. Funding dashboard'!$J$7=List!$R$3,AC5,IF('2a. Funding dashboard'!$J$7=List!$R$4,B23,C23))))*(1+'4d Third stream income'!$K$20)) ->  | K24: =IF('2a. Funding dashboard'!#REF! = "Unadjusted",IF('2a. Funding dashboard'!$J$7=List!$R$2,AD5,IF('2a. Funding dashboard'!$J$7=List!$R$3,AE5,IF('2a. Funding dashboard'!$J$7=List!$R$4,D23,E23))),(IF('2a. Funding dashboard'!$J$7=List!$R$2,AD5,IF('2a. Funding dashboard'!$J$7=List!$R$3,AE5,IF('2a. Funding dashboard'!$J$7=List!$R$4,D23,E23))))*(1+'4d Third stream income'!$K$20)) ->  | AE24: UJ | AF24: 246543.8919 | AG24: 307208 | AH24: 382799 | AI24: 465476 | AJ24: 438029 | AK24: 423051 | AL24: 502201 | AM24: 418277.2518 | AN24: 598299 | AO24: 689615 | AP24: 789210
A25: 2019 | B25: 1.71663406e+10 | C25: 2.180384764e+10 | H25: 2018 | I25: =IF('2a. Funding dashboard'!#REF! = "Unadjusted",IF('2a. Funding dashboard'!$J$7=List!$R$2,AB6,IF('2a. Funding dashboard'!$J$7=List!$R$3,AC6,IF('2a. Funding dashboard'!$J$7=List!$R$4,B24,C24))),(IF('2a. Funding dashboard'!$J$7=List!$R$2,AB6,IF('2a. Funding dashboard'!$J$7=List!$R$3,AC6,IF('2a. Funding dashboard'!$J$7=List!$R$4,B24,C24))))*(1+'4d Third stream income'!$K$20)) ->  | K25: =IF('2a. Funding dashboard'!#REF! = "Unadjusted",IF('2a. Funding dashboard'!$J$7=List!$R$2,AD6,IF('2a. Funding dashboard'!$J$7=List!$R$3,AE6,IF('2a. Funding dashboard'!$J$7=List!$R$4,D24,E24))),(IF('2a. Funding dashboard'!$J$7=List!$R$2,AD6,IF('2a. Funding dashboard'!$J$7=List!$R$3,AE6,IF('2a. Funding dashboard'!$J$7=List!$R$4,D24,E24))))*(1+'4d Third stream income'!$K$20)) ->  | AE25: NMMU | AF25: 124867.6077 | AG25: 146546 | AH25: 171988 | AI25: 229370 | AJ25: 328750 | AK25: 321209 | AL25: 364208 | AM25: 392780 | AN25: 454138 | AO25: 467136 | AP25: 542835
A26: 2020 | B26: 1.729941301e+10 | C26: 2.333011698e+10 | H26: 2019 | I26: =IF('2a. Funding dashboard'!#REF! = "Unadjusted",IF('2a. Funding dashboard'!$J$7=List!$R$2,AB7,IF('2a. Funding dashboard'!$J$7=List!$R$3,AC7,IF('2a. Funding dashboard'!$J$7=List!$R$4,B25,C25))),(IF('2a. Funding dashboard'!$J$7=List!$R$2,AB7,IF('2a. Funding dashboard'!$J$7=List!$R$3,AC7,IF('2a. Funding dashboard'!$J$7=List!$R$4,B25,C25))))*(1+'4d Third stream income'!$K$20)) ->  | K26: =IF('2a. Funding dashboard'!#REF! = "Unadjusted",IF('2a. Funding dashboard'!$J$7=List!$R$2,AD7,IF('2a. Funding dashboard'!$J$7=List!$R$3,AE7,IF('2a. Funding dashboard'!$J$7=List!$R$4,D25,E25))),(IF('2a. Funding dashboard'!$J$7=List!$R$2,AD7,IF('2a. Funding dashboard'!$J$7=List!$R$3,AE7,IF('2a. Funding dashboard'!$J$7=List!$R$4,D25,E25))))*(1+'4d Third stream income'!$K$20)) ->  | AE26: Total | AF26: 5695521.516 | AG26: 6571742.791 | AH26: 7987060.137 | AI26: 9329200.13 | AJ26: 10140504.76 | AK26: 11172577.47 | AL26: 11795857.39 | AM26: 11785413.58 | AN26: 13839652.36 | AO26: 14019968.28 | AP26: 16946658.17
A27: 2021 | B27: 1.743248542e+10 | C27: 2.496322517e+10 | H27: 2020 | I27: =IF('2a. Funding dashboard'!#REF! = "Unadjusted",IF('2a. Funding dashboard'!$J$7=List!$R$2,AB8,IF('2a. Funding dashboard'!$J$7=List!$R$3,AC8,IF('2a. Funding dashboard'!$J$7=List!$R$4,B26,C26))),(IF('2a. Funding dashboard'!$J$7=List!$R$2,AB8,IF('2a. Funding dashboard'!$J$7=List!$R$3,AC8,IF('2a. Funding dashboard'!$J$7=List!$R$4,B26,C26))))*(1+'4d Third stream income'!$K$20)) ->  | K27: =IF('2a. Funding dashboard'!#REF! = "Unadjusted",IF('2a. Funding dashboard'!$J$7=List!$R$2,AD8,IF('2a. Funding dashboard'!$J$7=List!$R$3,AE8,IF('2a. Funding dashboard'!$J$7=List!$R$4,D26,E26))),(IF('2a. Funding dashboard'!$J$7=List!$R$2,AD8,IF('2a. Funding dashboard'!$J$7=List!$R$3,AE8,IF('2a. Funding dashboard'!$J$7=List!$R$4,D26,E26))))*(1+'4d Third stream income'!$K$20)) ->  | AG27: =AG26/AF26-1 -> 0.1538439058 | AH27: =AH26/AG26-1 -> 0.2153640809 | AI27: 0.1680392998 | AJ27: 0.08696400786 | AK27: 0.101777252 | AL27: 0.0557865826 | AM27: -0.0008853789798 | AN27: 0.1743034952 | AO27: 0.01302893368 | AP27: 0.2087515347
A28: 2022 | B28: 1.756555783e+10 | C28: 2.671065093e+10 | H28: 2021 | I28: =IF('2a. Funding dashboard'!#REF! = "Unadjusted",IF('2a. Funding dashboard'!$J$7=List!$R$2,AB9,IF('2a. Funding dashboard'!$J$7=List!$R$3,AC9,IF('2a. Funding dashboard'!$J$7=List!$R$4,B27,C27))),(IF('2a. Funding dashboard'!$J$7=List!$R$2,AB9,IF('2a. Funding dashboard'!$J$7=List!$R$3,AC9,IF('2a. Funding dashboard'!$J$7=List!$R$4,B27,C27))))*(1+'4d Third stream income'!$K$20)) ->  | K28: =IF('2a. Funding dashboard'!#REF! = "Unadjusted",IF('2a. Funding dashboard'!$J$7=List!$R$2,AD9,IF('2a. Funding dashboard'!$J$7=List!$R$3,AE9,IF('2a. Funding dashboard'!$J$7=List!$R$4,D27,E27))),(IF('2a. Funding dashboard'!$J$7=List!$R$2,AD9,IF('2a. Funding dashboard'!$J$7=List!$R$3,AE9,IF('2a. Funding dashboard'!$J$7=List!$R$4,D27,E27))))*(1+'4d Third stream income'!$K$20)) ->  | AJ28: 1001583.1
A29: 2023 | B29: 1.769863023e+10 | C29: 2.85803965e+10 | H29: 2022 | I29: =IF('2a. Funding dashboard'!#REF! = "Unadjusted",IF('2a. Funding dashboard'!$J$7=List!$R$2,AB10,IF('2a. Funding dashboard'!$J$7=List!$R$3,AC10,IF('2a. Funding dashboard'!$J$7=List!$R$4,B28,C28))),(IF('2a. Funding dashboard'!$J$7=List!$R$2,AB10,IF('2a. Funding dashboard'!$J$7=List!$R$3,AC10,IF('2a. Funding dashboard'!$J$7=List!$R$4,B28,C28))))*(1+'4d Third stream income'!$K$20)) ->  | K29: =IF('2a. Funding dashboard'!#REF! = "Unadjusted",IF('2a. Funding dashboard'!$J$7=List!$R$2,AD10,IF('2a. Funding dashboard'!$J$7=List!$R$3,AE10,IF('2a. Funding dashboard'!$J$7=List!$R$4,D28,E28))),(IF('2a. Funding dashboard'!$J$7=List!$R$2,AD10,IF('2a. Funding dashboard'!$J$7=List!$R$3,AE10,IF('2a. Funding dashboard'!$J$7=List!$R$4,D28,E28))))*(1+'4d Third stream income'!$K$20)) ->  | AJ29: 4834515.61 | AL29: =6428.36*26^2 + 924442.78*26 +5001652.97 -> 33382736.61
A30: 2024 | B30: 1.783170264e+10 | C30: 3.058102425e+10 | H30: 2023 | I30: =IF('2a. Funding dashboard'!#REF! = "Unadjusted",IF('2a. Funding dashboard'!$J$7=List!$R$2,AB11,IF('2a. Funding dashboard'!$J$7=List!$R$3,AC11,IF('2a. Funding dashboard'!$J$7=List!$R$4,B29,C29))),(IF('2a. Funding dashboard'!$J$7=List!$R$2,AB11,IF('2a. Funding dashboard'!$J$7=List!$R$3,AC11,IF('2a. Funding dashboard'!$J$7=List!$R$4,B29,C29))))*(1+'4d Third stream income'!$K$20)) ->  | K30: =IF('2a. Funding dashboard'!#REF! = "Unadjusted",IF('2a. Funding dashboard'!$J$7=List!$R$2,AD11,IF('2a. Funding dashboard'!$J$7=List!$R$3,AE11,IF('2a. Funding dashboard'!$J$7=List!$R$4,D29,E29))),(IF('2a. Funding dashboard'!$J$7=List!$R$2,AD11,IF('2a. Funding dashboard'!$J$7=List!$R$3,AE11,IF('2a. Funding dashboard'!$J$7=List!$R$4,D29,E29))))*(1+'4d Third stream income'!$K$20)) ->  | AJ30: =AJ29+26*AJ28 -> 30875676.21
A31: 2025 | B31: 1.796477505e+10 | C31: 3.272169595e+10 | H31: 2024 | I31: =IF('2a. Funding dashboard'!#REF! = "Unadjusted",IF('2a. Funding dashboard'!$J$7=List!$R$2,AB12,IF('2a. Funding dashboard'!$J$7=List!$R$3,AC12,IF('2a. Funding dashboard'!$J$7=List!$R$4,B30,C30))),(IF('2a. Funding dashboard'!$J$7=List!$R$2,AB12,IF('2a. Funding dashboard'!$J$7=List!$R$3,AC12,IF('2a. Funding dashboard'!$J$7=List!$R$4,B30,C30))))*(1+'4d Third stream income'!$K$20)) ->  | K31: =IF('2a. Funding dashboard'!#REF! = "Unadjusted",IF('2a. Funding dashboard'!$J$7=List!$R$2,AD12,IF('2a. Funding dashboard'!$J$7=List!$R$3,AE12,IF('2a. Funding dashboard'!$J$7=List!$R$4,D30,E30))),(IF('2a. Funding dashboard'!$J$7=List!$R$2,AD12,IF('2a. Funding dashboard'!$J$7=List!$R$3,AE12,IF('2a. Funding dashboard'!$J$7=List!$R$4,D30,E30))))*(1+'4d Third stream income'!$K$20)) -> 
A32: 2026 | B32: 1.809784746e+10 | C32: 3.501221466e+10 | H32: 2025 | I32: =IF('2a. Funding dashboard'!#REF! = "Unadjusted",IF('2a. Funding dashboard'!$J$7=List!$R$2,AB13,IF('2a. Funding dashboard'!$J$7=List!$R$3,AC13,IF('2a. Funding dashboard'!$J$7=List!$R$4,B31,C31))),(IF('2a. Funding dashboard'!$J$7=List!$R$2,AB13,IF('2a. Funding dashboard'!$J$7=List!$R$3,AC13,IF('2a. Funding dashboard'!$J$7=List!$R$4,B31,C31))))*(1+'4d Third stream income'!$K$20)) ->  | K32: =IF('2a. Funding dashboard'!#REF! = "Unadjusted",IF('2a. Funding dashboard'!$J$7=List!$R$2,AD13,IF('2a. Funding dashboard'!$J$7=List!$R$3,AE13,IF('2a. Funding dashboard'!$J$7=List!$R$4,D31,E31))),(IF('2a. Funding dashboard'!$J$7=List!$R$2,AD13,IF('2a. Funding dashboard'!$J$7=List!$R$3,AE13,IF('2a. Funding dashboard'!$J$7=List!$R$4,D31,E31))))*(1+'4d Third stream income'!$K$20)) -> 
A33: 2027 | B33: 1.823091987e+10 | C33: 3.746306969e+10 | H33: 2026 | I33: =IF('2a. Funding dashboard'!#REF! = "Unadjusted",IF('2a. Funding dashboard'!$J$7=List!$R$2,AB14,IF('2a. Funding dashboard'!$J$7=List!$R$3,AC14,IF('2a. Funding dashboard'!$J$7=List!$R$4,B32,C32))),(IF('2a. Funding dashboard'!$J$7=List!$R$2,AB14,IF('2a. Funding dashboard'!$J$7=List!$R$3,AC14,IF('2a. Funding dashboard'!$J$7=List!$R$4,B32,C32))))*(1+'4d Third stream income'!$K$20)) ->  | K33: =IF('2a. Funding dashboard'!#REF! = "Unadjusted",IF('2a. Funding dashboard'!$J$7=List!$R$2,AD14,IF('2a. Funding dashboard'!$J$7=List!$R$3,AE14,IF('2a. Funding dashboard'!$J$7=List!$R$4,D32,E32))),(IF('2a. Funding dashboard'!$J$7=List!$R$2,AD14,IF('2a. Funding dashboard'!$J$7=List!$R$3,AE14,IF('2a. Funding dashboard'!$J$7=List!$R$4,D32,E32))))*(1+'4d Third stream income'!$K$20)) -> 
A34: 2028 | B34: 1.836399227e+10 | C34: 4.008548457e+10 | H34: 2027 | I34: =IF('2a. Funding dashboard'!#REF! = "Unadjusted",IF('2a. Funding dashboard'!$J$7=List!$R$2,AB15,IF('2a. Funding dashboard'!$J$7=List!$R$3,AC15,IF('2a. Funding dashboard'!$J$7=List!$R$4,B33,C33))),(IF('2a. Funding dashboard'!$J$7=List!$R$2,AB15,IF('2a. Funding dashboard'!$J$7=List!$R$3,AC15,IF('2a. Funding dashboard'!$J$7=List!$R$4,B33,C33))))*(1+'4d Third stream income'!$K$20)) ->  | K34: =IF('2a. Funding dashboard'!#REF! = "Unadjusted",IF('2a. Funding dashboard'!$J$7=List!$R$2,AD15,IF('2a. Funding dashboard'!$J$7=List!$R$3,AE15,IF('2a. Funding dashboard'!$J$7=List!$R$4,D33,E33))),(IF('2a. Funding dashboard'!$J$7=List!$R$2,AD15,IF('2a. Funding dashboard'!$J$7=List!$R$3,AE15,IF('2a. Funding dashboard'!$J$7=List!$R$4,D33,E33))))*(1+'4d Third stream income'!$K$20)) -> 
A35: 2029 | B35: 1.849706468e+10 | C35: 4.289146849e+10 | H35: 2028 | I35: =IF('2a. Funding dashboard'!#REF! = "Unadjusted",IF('2a. Funding dashboard'!$J$7=List!$R$2,AB16,IF('2a. Funding dashboard'!$J$7=List!$R$3,AC16,IF('2a. Funding dashboard'!$J$7=List!$R$4,B34,C34))),(IF('2a. Funding dashboard'!$J$7=List!$R$2,AB16,IF('2a. Funding dashboard'!$J$7=List!$R$3,AC16,IF('2a. Funding dashboard'!$J$7=List!$R$4,B34,C34))))*(1+'4d Third stream income'!$K$20)) ->  | K35: =IF('2a. Funding dashboard'!#REF! = "Unadjusted",IF('2a. Funding dashboard'!$J$7=List!$R$2,AD16,IF('2a. Funding dashboard'!$J$7=List!$R$3,AE16,IF('2a. Funding dashboard'!$J$7=List!$R$4,D34,E34))),(IF('2a. Funding dashboard'!$J$7=List!$R$2,AD16,IF('2a. Funding dashboard'!$J$7=List!$R$3,AE16,IF('2a. Funding dashboard'!$J$7=List!$R$4,D34,E34))))*(1+'4d Third stream income'!$K$20)) ->  | L35: 2016 - 2030
A36: 2030 | B36: 1.863013709e+10 | C36: 4.589387128e+10 | H36: 2029 | I36: =IF('2a. Funding dashboard'!#REF! = "Unadjusted",IF('2a. Funding dashboard'!$J$7=List!$R$2,AB17,IF('2a. Funding dashboard'!$J$7=List!$R$3,AC17,IF('2a. Funding dashboard'!$J$7=List!$R$4,B35,C35))),(IF('2a. Funding dashboard'!$J$7=List!$R$2,AB17,IF('2a. Funding dashboard'!$J$7=List!$R$3,AC17,IF('2a. Funding dashboard'!$J$7=List!$R$4,B35,C35))))*(1+'4d Third stream income'!$K$20)) ->  | J36: 2016 - 2030 | K36: =IF('2a. Funding dashboard'!#REF! = "Unadjusted",IF('2a. Funding dashboard'!$J$7=List!$R$2,AD17,IF('2a. Funding dashboard'!$J$7=List!$R$3,AE17,IF('2a. Funding dashboard'!$J$7=List!$R$4,D35,E35))),(IF('2a. Funding dashboard'!$J$7=List!$R$2,AD17,IF('2a. Funding dashboard'!$J$7=List!$R$3,AE17,IF('2a. Funding dashboard'!$J$7=List!$R$4,D35,E35))))*(1+'4d Third stream income'!$K$20)) ->  | L36: =SUM(K23:K37) -> 
H37: 2030 | I37: =IF('2a. Funding dashboard'!#REF! = "Unadjusted",IF('2a. Funding dashboard'!$J$7=List!$R$2,AB18,IF('2a. Funding dashboard'!$J$7=List!$R$3,AC18,IF('2a. Funding dashboard'!$J$7=List!$R$4,B36,C36))),(IF('2a. Funding dashboard'!$J$7=List!$R$2,AB18,IF('2a. Funding dashboard'!$J$7=List!$R$3,AC18,IF('2a. Funding dashboard'!$J$7=List!$R$4,B36,C36))))*(1+'4d Third stream income'!$K$20)) ->  | J37: =SUM(I23:I37) ->  | K37: =IF('2a. Funding dashboard'!#REF! = "Unadjusted",IF('2a. Funding dashboard'!$J$7=List!$R$2,AD18,IF('2a. Funding dashboard'!$J$7=List!$R$3,AE18,IF('2a. Funding dashboard'!$J$7=List!$R$4,D36,E36))),(IF('2a. Funding dashboard'!$J$7=List!$R$2,AD18,IF('2a. Funding dashboard'!$J$7=List!$R$3,AE18,IF('2a. Funding dashboard'!$J$7=List!$R$4,D36,E36))))*(1+'4d Third stream income'!$K$20)) -> 
A40: Year | B40: Residences third stream income | C40: University Third Stream income
A41: 2006 | B41: 146906.606 | C41: 7987060.137
A42: 2007 | B42: 159460.6084 | C42: 9329200.13
A43: 2008 | B43: 166083.8779 | C43: 10140504.76
A44: 2009 | B44: 182876.845 | C44: 11172577.47
A45: 2010 | B45: 189598.08 | C45: 11795857.39
A46: 2011 | B46: 181233.6591 | C46: 11785413.58
A47: 2012 | B47: 241317.266 | C47: 13839652.36
A48: 2013 | B48: 247340.05 | C48: 14019968.28
A49: 2014 | B49: 264173.8173 | C49: 16946658.17
B53: 2014 | C53: 2015 | D53: 2016 | E53: 2017 | F53: 2018 | G53: 2019 | H53: 2020 | I53: 2021 | J53: 2022 | K53: 2023 | L53: 2024 | M53: 2025 | N53: 2026 | O53: 2027 | P53: 2028 | Q53: 2029 | R53: 2030 | S53: 2016 - 2030
A54: Total third stream income - user-defined growth rate | B54: =B49+C49 -> 17210831.99 | C54: =B54*(1+$B$58) -> 18415590.23 | D54: =C54*(1+$B$58) -> 19704681.54 | E54: 21084009.25 | F54: 22559889.9 | G54: 24139082.19 | H54: 25828817.95 | I54: 27636835.2 | J54: 29571413.67 | K54: 31641412.62 | L54: 33856311.51 | M54: 36226253.31 | N54: 38762091.04 | O54: 41475437.42 | P54: 44378718.04 | Q54: 47485228.3 | R54: 50809194.28 | S54: =SUM(D54:R54) -> 495159376.2
A55: Total third stream income - 37% of fee and grant income | B55: =B49+C49 -> 17210831.99 | C55: =0.37*SUM('3a. Time-series results'!C2:C5) -> 17179008.2 | D55: =0.37*SUM('3a. Time-series results'!D2:D5) -> 16910833.9 | E55: =0.37*SUM('3a. Time-series results'!E2:E5) -> 17889082.19 | F55: =0.37*SUM('3a. Time-series results'!F2:F5) -> 18926016.11 | G55: =0.37*SUM('3a. Time-series results'!G2:G5) -> 20025338.56 | H55: =0.37*SUM('3a. Time-series results'!H2:H5) -> 21191000.55 | I55: =0.37*SUM('3a. Time-series results'!I2:I5) -> 22427218.86 | J55: =0.37*SUM('3a. Time-series results'!J2:J5) -> 23738495 | K55: =0.37*SUM('3a. Time-series results'!K2:K5) -> 25129635.67 | L55: =0.37*SUM('3a. Time-series results'!L2:L5) -> 26605774.7 | M55: =0.37*SUM('3a. Time-series results'!M2:M5) -> 28172396.65 | N55: =0.37*SUM('3a. Time-series results'!N2:N5) -> 29835362.26 | O55: =0.37*SUM('3a. Time-series results'!O2:O5) -> 31600935.73 | P55: =0.37*SUM('3a. Time-series results'!P2:P5) -> 33475814.21 | Q55: =0.37*SUM('3a. Time-series results'!Q2:Q5) -> 35467159.4 | R55: =0.37*SUM('3a. Time-series results'!R2:R5) -> 37582631.71 | S55: =SUM(D55:R55) -> 388977695.5
A58: User define growth | B58: ='2a. Funding dashboard'!J3+'2a. Funding dashboard'!K7 -> 0.07

Sheet 4e. GDP projection
B1: 2014 | C1: 2015 | D1: 2016 | E1: 2017 | F1: 2018 | G1: 2019 | H1: 2020 | I1: 2021 | J1: 2022 | K1: 2023 | L1: 2024 | M1: 2025 | N1: 2026 | O1: 2027 | P1: 2028 | Q1: 2029 | R1: 2030
A2: GDP | B2: 3843778062 | C2: =B2*(1+$B$4) -> 4193561866 | D2: =C2*(1+$B$4) -> 4575175996 | E2: 4991517011 | F2: 5445745059 | G2: 5941307860 | H2: 6481966875 | I2: 7071825860 | J2: 7715362014 | K2: 8417459957 | L2: 9183448813 | M2: 1.001914266e+10 | N2: 1.093088464e+10 | O2: 1.192559514e+10 | P2: 1.30108243e+10 | Q2: 1.419480931e+10 | R2: 1.548653695e+10
A4: Projection scenario (2.9% real) | B4: ='4a. Government grants'!G11 -> 0.091

Sheet 1. Introduction (hidden)
A1: PURPOSE
A2: Purpose | B2: This model is designed to calculate expenditure for the university sector in line with targets set out in the White Paper for PSET
A3: Description | B3: The model uses statistical relationships to identify the relationship between key cost drivers and total university expenditure. Based on the strength of these relationships, the model estimates expenditure for each year between 2016 and 2030 needed to reach the target head count enrolment by 2030.
A6: EXPENDITURE DRIVERS
A7: Category | B7: Cost driver | C7: How does it affect expenditure? | D7: What are the key variables and what is the basis for costing these?
